Workbook

Sheet INTRO
A3: This is the main workbook for Republic Services' General Rate Case submission to the Washington Utilities & Transporation Commission
A5: The subject company of this filing is : | B5: 4183 - Allied Waste Services of Kent, Rabanco Co. & SeaTac Disposal (G-12, Tariff # 26)
A7: This file will need to be submitted through the WUTC eFile web portal is it's size before adding 'filing/division/test period specific' tabs is too large for email.
A8: This file is to be completed seperately from the Payroll model in order to keep the pay data confidential. Once both models are complete, this model
A9: will be transferred to a protected folder with the Payroll model which will then be moved into this model right after the "PF Adj" tab.
A11: Tab Color Legend
A12: Auditor Narrative & Internal Instructions
A13: SQL Source Data | C13: *Print Margin for All SQL Tabs are set to first 100 pages to avoid extremely large accidental print jobs
A14: Reference Tables
A15: Cost of Service
A16: Oracle Essbase Data Extraction from Lawson
A18: Note to auditor: Detailed SQL data is available upon request. We summarize some of the SQL data reports within this model as the filesize of full
A19: reports with every transaction is often 15+ MB and discusstions with WUTC staff has concluded that summarizing when possible is the best option.
A21: Table of Contents | B21: Tab # | C21: Formula Driven / Hardcode / HC with Formulas / Written | D21: Source of Hardcode (if any)
A22: G Cert Financial | B22: 2 | C22: Formulas
A23: RS Cap Structure | B23: 3 | C23: Hardcode | D23: Annual Reports
A24: Combined LG | B24: 4 | C24: Formulas
A25: MSW | B25: 5 | C25: Formulas
A26: RCY | B26: 6 | C26: Formulas
A27: YW | B27: 7 | C27: Formulas
A28: MF RCY | B28: 8 | C28: Formulas
A29: Alloc Summary | B29: 9 | C29: Formulas
A30: Proforma | B30: 10 | C30: Formulas
A31: PR Restate | B31: 11 | C31: Formulas
A32: PF Adj | B32: 12 | C32: Formulas
A33: PR Narrative | B33: 13 | C33: Written
A34: Summary & PF | B34: 14 | C34: Formulas
A35: PR vs. GL | B35: 15 | C35: Formulas
A36: Summary Calc & Lookup | B36: 16 | C36: Formulas & Hardcode ee Data | D36: Payroll employee reports
A37: PR Instructions | B37: 17 | C37: Written
A38: Summary PR Data | B38: 18 | C38: Hardcode | D38: PR295 from Lawson
A39: Lookup Data | B39: 19 | C39: Hardcode Tables
A40: Union Wage & Pension | B40: 20 | C40: Hardcode | D40: Union Contracts
A41: H&W | B41: 21 | C41: Hardcode | D41: Union Contracts
A42: L&I | B42: 22 | C42: Hardcode | D42: WA Dept. of Labor & Industries
A43: Rev Narrative & Instructions | B43: 23 | C43: Written
A44: Revenue Lookup | B44: 24 | C44: Formulas
A45: SQL Revenue Analysis | B45: 25 | C45: Hardcode with Formulas | D45: SQL Extract from Infopro
A46: Rev Ref Tables | B46: 26 | C46: Hardcode Tables | D46: Lookup info for Infopro
A47: Price Out Summ | B47: 27 | C47: Formulas
A48: Residential Price Out | B48: 28 | C48: Formulas and Hardcode Rate Data | D48: Tariff Pages
A49: Commercial (+MF) Price Out | B49: 29 | C49: Formulas and Hardcode Rate Data | D49: Tariff Pages
A50: Commercial Lift Instructions | B50: 30 | C50: Written
A51: Commercial Lifts | B51: 31 | C51: Hardcode with Formulas | D51: SQL Extract from Infopro
A52: IND (+MF) Price Out | B52: 32 | C52: Formulas and Hardcode Rate Data | D52: Tariff Pages
A53: Truck Hrs Sum | B53: 33 | C53: Formulas
A54: RESI WUTC Hrs | B54: 34 | C54: Formulas with Hardcode | D54: See "Route Detail Residential"
A55: RES Rt Hr Instructions | B55: EXTERNAL | C55: Written
A56: RES Pivot | B56: EXTERNAL | C56: Formulas - Pivot
A57: RES Route Detail | B57: EXTERNAL | C57: Hardcode with Formulas | D57: SQL Extract from Infopro
A58: Sample Routes | B58: EXTERNAL | C58: Formulas
A59: COM WUTC Hrs | B59: 35 | C59: Formulas
A60: COM Rt Hr Instructions | B60: 36 | C60: Written
A61: COM Pivot | B61: 37 | C61: Formulas - Pivot
A62: COM Route Detail | B62: 38 | C62: Hardcode with Formulas | D62: SQL Extract from Infopro
A63: IND Hrs Sum | B63: 39 | C63: Formulas
A64: IND Data | B64: 40 | C64: Hardcode with Formulas | D64: Report from Infopro
A65: Route Analysis - IND | B65: 41 | C65: Hardcode | D65: SQL Extract from Infopro
A66: Route Analysis - COM | B66: 42 | C66: Hardcode | D66: SQL Extract from Infopro
A67: Route Analysis - RESI | B67: 43 | C67: Hardcode | D67: SQL Extract from Infopro
A68: Contract Ref | B68: 44 | C68: Hardcode Tables | D68: Lookup info for Infopro
A69: Fuel Calc | B69: 45 | C69: Formulas
A70: Fuel Invoice Data Entry | B70: 46 | C70: Hardcode with Formulas | D70: Fuel Invoices
A71: Disposal Instructions | B71: 47 | C71: Written
A72: Disposal Summary (with IC) | B72: 48 | C72: Formulas
A73: Summary Disposal Data | B73: 49 | C73: Hardcode with Formulas
A74: Industrial Summary Data Confirmation | B74: 50 | C74: Hardcode with Formulas
A75: Non-Regulated Operations | B75: 51 | C75: Written
A76: Disposal Ref Tables | B76: 52 | C76: Hardcode Tables | D76: Lookup info for Infopro
A77: Ave Inv. Narrative | B77: 53 | C77: Written
A78: Ave Inv. Summary | B78: 54 | C78: Formulas
A79: AM260 Asset Listing | B79: 55 | C79: Formulas
A80: AM260 Data | B80: 56 | C80: Hardcode with Formulas | D80: Report from Lawson
A81: Asset Type Tables | B81: 57 | C81: Hardcode Tables | D81: Lookup info for Lawson
A82: Narrative | B82: 58 | C82: Written
A83: Container Counts | B83: 59 | C83: Formulas
A84: Container Data | B84: 60 | C84: Hardcode with Formulas | D84: SQL Extract from Infopro
A85: Container Ref Tables | B85: 61 | C85: Hardcode Tables | D85: Lookup info for Infopro
A86: Cost of Service | B86: 62 | C86: Formulas
A87: Meeks Data | B87: 63 | C87: Hardcode | D87: WUTC Data
A88: Essbase Narrative | B88: 64 | C88: Written
A89: P&L - ITD3 (Acct Desc) | B89: 65 | C89: Hardcode | D89: Essbase Extract from Lawson
A90: BS - BTD3 | B90: 66 | C90: Hardcode | D90: Essbase Extract from Lawson
A91: P&L - ITD3 (Acct #) | B91: 67 | C91: Hardcode | D91: Essbase Extract from Lawson
A92: STATS - XOST (IND, COM, RES) | B92: 68 | C92: Hardcode | D92: Essbase Extract from Lawson
A93: P&L - ITD2 Aff. Co. MRF | B93: 69 | C93: Hardcode | D93: Essbase Extract from Lawson
A94: G-12 FS | B94: 70 | C94: Hardcode | D94: Essbase Extract from Lawson
A95: BS - BTD2 Aff. Co. MRF | B95: 71 | C95: Hardcode | D95: Essbase Extract from Lawson
A96: MGmt Fee2014 Budget Pull | B96: 72 | C96: Hardcode | D96: Essbase Extract from Lawson
A97: Mgmt Fee - 2014 A53 Division Expense | B97: 73 | C97: Hardcode | D97: Essbase Extract from Lawson
A98: Filing Specific Tabs > | B98: 74 | C98: Written
A99: 176 v 183 CNG Trucks | B99: 75 | C99: Hardcode | D99: JE Backup from Fleet management system - Doissier
A100: Fuel Allocations | B100: 76 | C100: Hardcode with Formulas | D100: Essbase Extract from Lawson
A101: 4183-SeaTac-AM260 | B101: 77 | C101: Hardcode | D101: Report from Lawson
A102: L&I RETRO Credit JE | B102: 78 | C102: Hardcode | D102: Journal Entry
A103: Truck Depreciation Summary | B103: 79 | C103: Formulas
A104: Jan - Dec | B104: 80 - 92 | C104: Hardcode with Formulas | D104: Report from Lawson
A105: Tons Master Report > | B105: 93 | C105: Written
A106: Division Tons (XXX Tons) | B106: 94 | C106: Hardcode with Formulas | D106: Billing and County / Municipality Reporting Document
A107: MSW Tons | B107: 95 | C107: Hardcode with Formulas
A108: Recycle Tons | B108: 96 | C108: Hardcode with Formulas
A109: YW Tons | B109: 97 | C109: Hardcode with Formulas

Sheet G-12 Cert Financial
A1: If this rate case pertains to G Certificate # 60, of which the only company is Division 4176, tariff # 27, Fiorito Enterprises, Inc. & Rabanco Companies, dba Kent-Meridian Disposal Company the only financials you need are in the Essbase Data workbook or provided in PDF form.
A2: If this rate case pertains to G Certificate # 12 (varios division info below) this tab will be populated with summarized financial data for each operating division to calculate total Certificate financial data.
A3: See Source Data: 4XXXITD2
A5: Division # | B5: 4183 | E5: 4172 | H5: 4197 | K5: 4487 | N5: 4175 | Q5: 4584 | T5: TOTAL
A6: Division Name | B6: Sea Tac Disposal | E6: Eastside Disposal | H6: Lynnwood Disposal | K6: Tri-County Disposal | N6: AW of Seattle | Q6: Robanco Recycling MRF | T6: Regulated / Unregulated
A7: Certificate & Tariff Number | B7: G-12 / Tariff 27 | E7: G-12 / Tariff 11 | H7: G-12 / Tariff 4 | K7: G-12 / Tariff 8 | N7: G-12 | Q7: G-12 | T7: G-12
A8: Regulated / Unregulated % | C8: =1-B8 -> 1 | F8: =1-E8 -> 1 | I8: =1-H8 -> 1 | L8: =1-K8 -> 1 | N8: 0 | O8: =1-N8 -> 1 | Q8: 0 | R8: =1-Q8 -> 1 | T8: =+T59/SUM(T59:U59) -> 0 | U8: =1-T8 -> 1
A11: Industrial O/S Total | B11: ='G-12 FS'!B6*B$8 -> 0 | C11: ='G-12 FS'!B6*C$8 -> 3379225.51 | E11: ='G-12 FS'!E6*E$8 -> 0 | F11: ='G-12 FS'!E6*F$8 -> 9079734.27 | H11: ='G-12 FS'!H6*H$8 -> 0 | I11: ='G-12 FS'!H6*I$8 -> 3113837.03 | K11: ='G-12 FS'!K6*K$8 -> 0 | L11: ='G-12 FS'!K6*L$8 -> 397626.87 | N11: ='G-12 FS'!N6*N$8 -> 0 | O11: ='G-12 FS'!N6*O$8 -> 8812552.65 | Q11: ='G-12 FS'!Q6*Q$8 -> 0 | R11: ='G-12 FS'!Q6*R$8 -> 0 | T11: =+B11+E11+H11+K11+N11+Q11 -> 0 | U11: 24782976.33
A12: Commercial O/S Total | B12: ='G-12 FS'!B7*B$8 -> 0 | C12: ='G-12 FS'!B7*C$8 -> 4328366.13 | E12: ='G-12 FS'!E7*E$8 -> 0 | F12: ='G-12 FS'!E7*F$8 -> 15991640.31 | H12: ='G-12 FS'!H7*H$8 -> 0 | I12: ='G-12 FS'!H7*I$8 -> 7487240.8 | K12: ='G-12 FS'!K7*K$8 -> 0 | L12: ='G-12 FS'!K7*L$8 -> 811366.53 | N12: ='G-12 FS'!N7*N$8 -> 0 | O12: ='G-12 FS'!N7*O$8 -> 11523573.26 | Q12: ='G-12 FS'!Q7*Q$8 -> 0 | R12: ='G-12 FS'!Q7*R$8 -> 0 | T12: 0 | U12: 40142187.03
A13: Residential O/S Total | B13: ='G-12 FS'!B8*B$8 -> 0 | C13: ='G-12 FS'!B8*C$8 -> 8338912.57 | E13: ='G-12 FS'!E8*E$8 -> 0 | F13: ='G-12 FS'!E8*F$8 -> 25542485.9 | H13: ='G-12 FS'!H8*H$8 -> 0 | I13: ='G-12 FS'!H8*I$8 -> 9986100.13 | K13: ='G-12 FS'!K8*K$8 -> 0 | L13: ='G-12 FS'!K8*L$8 -> 639502.94 | N13: ='G-12 FS'!N8*N$8 -> 0 | O13: ='G-12 FS'!N8*O$8 -> 0 | Q13: ='G-12 FS'!Q8*Q$8 -> 0 | R13: ='G-12 FS'!Q8*R$8 -> 0 | T13: 0 | U13: 44507001.54
A15: Industrial SOM RCY Revenue I/C | B15: ='G-12 FS'!B17*B$8 -> 0 | C15: ='G-12 FS'!B17*C$8 -> -1137483.41 | E15: ='G-12 FS'!E17*E$8 -> 0 | F15: ='G-12 FS'!E17*F$8 -> -164422.4 | H15: ='G-12 FS'!H17*H$8 -> 0 | I15: ='G-12 FS'!H17*I$8 -> -4984.56 | K15: ='G-12 FS'!K17*K$8 -> 0 | L15: ='G-12 FS'!K17*L$8 -> 106941.95 | N15: ='G-12 FS'!N17*N$8 -> 0 | O15: ='G-12 FS'!N17*O$8 -> -1836670.36 | Q15: ='G-12 FS'!Q17*Q$8 -> 0 | R15: ='G-12 FS'!Q17*R$8 -> 0 | T15: =+B15+E15+H15+K15+N15+Q15 -> 0 | U15: -3036618.78
A16: Commercial SOM RCY Revenue I/C | B16: ='G-12 FS'!B18*B$8 -> 0 | C16: ='G-12 FS'!B18*C$8 -> -267698.01 | E16: ='G-12 FS'!E18*E$8 -> 0 | F16: ='G-12 FS'!E18*F$8 -> -809168.59 | H16: ='G-12 FS'!H18*H$8 -> 0 | I16: ='G-12 FS'!H18*I$8 -> -219176.34 | K16: ='G-12 FS'!K18*K$8 -> 0 | L16: ='G-12 FS'!K18*L$8 -> 7489.2 | N16: ='G-12 FS'!N18*N$8 -> 0 | O16: ='G-12 FS'!N18*O$8 -> -664444.65 | Q16: ='G-12 FS'!Q18*Q$8 -> 0 | R16: ='G-12 FS'!Q18*R$8 -> 0 | T16: 0 | U16: -1952998.39
A17: Residential SOM RCY Revenue I/C | B17: ='G-12 FS'!B19*B$8 -> 0 | C17: ='G-12 FS'!B19*C$8 -> -704804.07 | E17: ='G-12 FS'!E19*E$8 -> 0 | F17: ='G-12 FS'!E19*F$8 -> -1815274.22 | H17: ='G-12 FS'!H19*H$8 -> 0 | I17: ='G-12 FS'!H19*I$8 -> -649597.41 | K17: ='G-12 FS'!K19*K$8 -> 0 | L17: ='G-12 FS'!K19*L$8 -> 1599.48 | N17: ='G-12 FS'!N19*N$8 -> 0 | O17: ='G-12 FS'!N19*O$8 -> 0 | Q17: ='G-12 FS'!Q19*Q$8 -> 0 | R17: ='G-12 FS'!Q19*R$8 -> 0 | T17: 0 | U17: -3168076.22
A19: Total Revenue | B19: =SUM(B10:B18) -> 0 | C19: =SUM(C10:C18) -> 13936518.72 | E19: =SUM(E10:E18) -> 0 | F19: =SUM(F10:F18) -> 47824995.27 | H19: =SUM(H10:H18) -> 0 | I19: =SUM(I10:I18) -> 19713419.65 | K19: =SUM(K10:K18) -> 0 | L19: =SUM(L10:L18) -> 1964526.97 | N19: =SUM(N10:N18) -> 0 | O19: =SUM(O10:O18) -> 17835010.9 | Q19: ='G-12 FS'!$Q29*Q$8 -> 0 | R19: ='G-12 FS'!$Q29*R$8 -> 20375577.27 | T19: =+B19+E19+H19+K19+N19+Q19 -> 0 | U19: =+C19+F19+I19+L19+O19+R19 -> 121650048.8
A21: Tipping & Disposal Costs | B21: =SUM('G-12 FS'!B31*B$8) -> 0 | C21: =SUM('G-12 FS'!B31*C$8) -> 1970772.68 | E21: =SUM('G-12 FS'!E31*E$8) -> 0 | F21: =SUM('G-12 FS'!E31*F$8) -> 18028167.72 | H21: =SUM('G-12 FS'!H31*H$8) -> 0 | I21: =SUM('G-12 FS'!H31*I$8) -> 6926637.27 | K21: =SUM('G-12 FS'!K31*K$8) -> 0 | L21: =SUM('G-12 FS'!K31*L$8) -> 97333.67 | N21: =SUM('G-12 FS'!N31*N$8) -> 0 | O21: =SUM('G-12 FS'!N31*O$8) -> 2792952.36 | Q21: =SUM('G-12 FS'!Q31*Q$8) -> 0 | R21: =SUM('G-12 FS'!Q31*R$8) -> 1853860.39 | T21: =+B21+E21+H21+K21+N21+Q21 -> 0 | U21: =+C21+F21+I21+L21+O21+R21 -> 31669724.09
A22: Cost of Goods Sold | B22: =SUM('G-12 FS'!B32*B$8) -> 0 | C22: =SUM('G-12 FS'!B32*C$8) -> 0 | E22: =SUM('G-12 FS'!E32*E$8) -> 0 | F22: =SUM('G-12 FS'!E32*F$8) -> 0 | H22: =SUM('G-12 FS'!H32*H$8) -> 0 | I22: =SUM('G-12 FS'!H32*I$8) -> 0 | K22: =SUM('G-12 FS'!K32*K$8) -> 0 | L22: =SUM('G-12 FS'!K32*L$8) -> 0 | N22: =SUM('G-12 FS'!N32*N$8) -> 0 | O22: =SUM('G-12 FS'!N32*O$8) -> 0 | Q22: =SUM('G-12 FS'!Q32*Q$8) -> 0 | R22: =SUM('G-12 FS'!Q32*R$8) -> 0 | T22: 0 | U22: 0
A23: Transportation | B23: =SUM('G-12 FS'!B33*B$8) -> 0 | C23: =SUM('G-12 FS'!B33*C$8) -> 1088.75 | E23: =SUM('G-12 FS'!E33*E$8) -> 0 | F23: =SUM('G-12 FS'!E33*F$8) -> 3542.57 | H23: =SUM('G-12 FS'!H33*H$8) -> 0 | I23: =SUM('G-12 FS'!H33*I$8) -> 104.58 | K23: =SUM('G-12 FS'!K33*K$8) -> 0 | L23: =SUM('G-12 FS'!K33*L$8) -> 0 | N23: =SUM('G-12 FS'!N33*N$8) -> 0 | O23: =SUM('G-12 FS'!N33*O$8) -> 2348.48 | Q23: =SUM('G-12 FS'!Q33*Q$8) -> 0 | R23: =SUM('G-12 FS'!Q33*R$8) -> 0 | T23: 0 | U23: 7084.38
A24: Subcontract | B24: =SUM('G-12 FS'!B34*B$8) -> 0 | C24: =SUM('G-12 FS'!B34*C$8) -> 0 | E24: =SUM('G-12 FS'!E34*E$8) -> 0 | F24: =SUM('G-12 FS'!E34*F$8) -> 0 | H24: =SUM('G-12 FS'!H34*H$8) -> 0 | I24: =SUM('G-12 FS'!H34*I$8) -> 0 | K24: =SUM('G-12 FS'!K34*K$8) -> 0 | L24: =SUM('G-12 FS'!K34*L$8) -> 0 | N24: =SUM('G-12 FS'!N34*N$8) -> 0 | O24: =SUM('G-12 FS'!N34*O$8) -> 0 | Q24: =SUM('G-12 FS'!Q34*Q$8) -> 0 | R24: =SUM('G-12 FS'!Q34*R$8) -> 284811.75 | T24: 0 | U24: 284811.75
A25: Franchise Fees / Taxes | B25: =SUM('G-12 FS'!B35*B$8) -> 0 | C25: =SUM('G-12 FS'!B35*C$8) -> 0 | E25: =SUM('G-12 FS'!E35*E$8) -> 0 | F25: =SUM('G-12 FS'!E35*F$8) -> 0 | H25: =SUM('G-12 FS'!H35*H$8) -> 0 | I25: =SUM('G-12 FS'!H35*I$8) -> 0 | K25: =SUM('G-12 FS'!K35*K$8) -> 0 | L25: =SUM('G-12 FS'!K35*L$8) -> 0 | N25: =SUM('G-12 FS'!N35*N$8) -> 0 | O25: =SUM('G-12 FS'!N35*O$8) -> 0 | Q25: =SUM('G-12 FS'!Q35*Q$8) -> 0 | R25: =SUM('G-12 FS'!Q35*R$8) -> 0 | T25: 0 | U25: 0
A26: COGS Other | B26: =SUM('G-12 FS'!B36*B$8) -> 0 | C26: =SUM('G-12 FS'!B36*C$8) -> 0 | E26: =SUM('G-12 FS'!E36*E$8) -> 0 | F26: =SUM('G-12 FS'!E36*F$8) -> 0 | H26: =SUM('G-12 FS'!H36*H$8) -> 0 | I26: =SUM('G-12 FS'!H36*I$8) -> 0 | K26: =SUM('G-12 FS'!K36*K$8) -> 0 | L26: =SUM('G-12 FS'!K36*L$8) -> 0 | N26: =SUM('G-12 FS'!N36*N$8) -> 0 | O26: =SUM('G-12 FS'!N36*O$8) -> 0 | Q26: =SUM('G-12 FS'!Q36*Q$8) -> 0 | R26: =SUM('G-12 FS'!Q36*R$8) -> 0 | T26: 0 | U26: 0
A27: Total Revenue Reductions | B27: =SUM(B20:B26) -> 0 | C27: =SUM(C20:C26) -> 1971861.43 | E27: =SUM(E20:E26) -> 0 | F27: =SUM(F20:F26) -> 18031710.29 | H27: =SUM(H20:H26) -> 0 | I27: =SUM(I20:I26) -> 6926741.85 | K27: =SUM(K20:K26) -> 0 | L27: =SUM(L20:L26) -> 97333.67 | N27: =SUM(N20:N26) -> 0 | O27: =SUM(O20:O26) -> 2795300.84 | Q27: =SUM(Q20:Q26) -> 0 | R27: =SUM(R20:R26) -> 2138672.14 | T27: 0 | U27: 31961620.22
A29: Net Revenue | B29: =+B19-B27 -> 0 | C29: =+C19-C27 -> 11964657.29 | E29: =+E19-E27 -> 0 | F29: =+F19-F27 -> 29793284.98 | H29: =+H19-H27 -> 0 | I29: =+I19-I27 -> 12786677.8 | K29: =+K19-K27 -> 0 | L29: =+L19-L27 -> 1867193.3 | N29: =+N19-N27 -> 0 | O29: =+O19-O27 -> 15039710.06 | Q29: =+Q19-Q27 -> 0 | R29: =+R19-R27 -> 18236905.13 | T29: =+B29+E29+H29+K29+N29+Q29 -> 0 | U29: =+C29+F29+I29+L29+O29+R29 -> 89688428.56
A31: Operating Labor | B31: ='G-12 FS'!B41*B$8 -> 0 | C31: ='G-12 FS'!B41*C$8 -> 5174284.49 | E31: ='G-12 FS'!E41*E$8 -> 0 | F31: ='G-12 FS'!E41*F$8 -> 12761202.98 | H31: ='G-12 FS'!H41*H$8 -> 0 | I31: ='G-12 FS'!H41*I$8 -> 4942594.05 | K31: ='G-12 FS'!K41*K$8 -> 0 | L31: ='G-12 FS'!K41*L$8 -> 651644.81 | N31: ='G-12 FS'!N41*N$8 -> 0 | O31: ='G-12 FS'!N41*O$8 -> 2973579.87 | Q31: ='G-12 FS'!Q41*Q$8 -> 0 | R31: ='G-12 FS'!Q41*R$8 -> 8144720.78 | T31: =+B31+E31+H31+K31+N31+Q31 -> 0 | U31: 34648026.98
A32: Supervisor Labor | B32: ='G-12 FS'!B42*B$8 -> 0 | C32: ='G-12 FS'!B42*C$8 -> 543212.81 | E32: ='G-12 FS'!E42*E$8 -> 0 | F32: ='G-12 FS'!E42*F$8 -> 1274932.94 | H32: ='G-12 FS'!H42*H$8 -> 0 | I32: ='G-12 FS'!H42*I$8 -> 447088.7 | K32: ='G-12 FS'!K42*K$8 -> 0 | L32: ='G-12 FS'!K42*L$8 -> 102040.36 | N32: ='G-12 FS'!N42*N$8 -> 0 | O32: ='G-12 FS'!N42*O$8 -> 601406.15 | Q32: ='G-12 FS'!Q42*Q$8 -> 0 | R32: ='G-12 FS'!Q42*R$8 -> 434634.97 | T32: 0 | U32: 3403315.93
A33: Equipment Operating | B33: ='G-12 FS'!B43*B$8 -> 0 | C33: ='G-12 FS'!B43*C$8 -> 688166.82 | E33: ='G-12 FS'!E43*E$8 -> 0 | F33: ='G-12 FS'!E43*F$8 -> 1462045.02 | H33: ='G-12 FS'!H43*H$8 -> 0 | I33: ='G-12 FS'!H43*I$8 -> 909143.11 | K33: ='G-12 FS'!K43*K$8 -> 0 | L33: ='G-12 FS'!K43*L$8 -> 233341.9 | N33: ='G-12 FS'!N43*N$8 -> 0 | O33: ='G-12 FS'!N43*O$8 -> 418589.87 | Q33: ='G-12 FS'!Q43*Q$8 -> 0 | R33: ='G-12 FS'!Q43*R$8 -> 575467.21 | T33: 0 | U33: 4286753.93
A34: Equipment Maintenance | B34: ='G-12 FS'!B44*B$8 -> 0 | C34: ='G-12 FS'!B44*C$8 -> 1303753.88 | E34: ='G-12 FS'!E44*E$8 -> 0 | F34: ='G-12 FS'!E44*F$8 -> 3243929.4 | H34: ='G-12 FS'!H44*H$8 -> 0 | I34: ='G-12 FS'!H44*I$8 -> 1470580.06 | K34: ='G-12 FS'!K44*K$8 -> 0 | L34: ='G-12 FS'!K44*L$8 -> 208500.17 | N34: ='G-12 FS'!N44*N$8 -> 0 | O34: ='G-12 FS'!N44*O$8 -> 734404.9 | Q34: ='G-12 FS'!Q44*Q$8 -> 0 | R34: ='G-12 FS'!Q44*R$8 -> 2693315.6
A35: Container Maintenance | B35: ='G-12 FS'!B45*B$8 -> 0 | C35: ='G-12 FS'!B45*C$8 -> 143775.25 | E35: ='G-12 FS'!E45*E$8 -> 0 | F35: ='G-12 FS'!E45*F$8 -> 368791.57 | H35: ='G-12 FS'!H45*H$8 -> 0 | I35: ='G-12 FS'!H45*I$8 -> 87657.68 | K35: ='G-12 FS'!K45*K$8 -> 0 | L35: ='G-12 FS'!K45*L$8 -> 0 | N35: ='G-12 FS'!N45*N$8 -> 0 | O35: ='G-12 FS'!N45*O$8 -> 277635.11 | Q35: ='G-12 FS'!Q45*Q$8 -> 0 | R35: ='G-12 FS'!Q45*R$8 -> 0 | T35: =+B35+E35+H35+K35+N35+Q35 -> 0 | U35: 877859.61
A36: Insurance Expense | B36: ='G-12 FS'!B46*B$8 -> 0 | C36: ='G-12 FS'!B46*C$8 -> 599046.84 | E36: ='G-12 FS'!E46*E$8 -> 0 | F36: ='G-12 FS'!E46*F$8 -> 1440327.88 | H36: ='G-12 FS'!H46*H$8 -> 0 | I36: ='G-12 FS'!H46*I$8 -> 450053.8 | K36: ='G-12 FS'!K46*K$8 -> 0 | L36: ='G-12 FS'!K46*L$8 -> 81842.99 | N36: ='G-12 FS'!N46*N$8 -> 0 | O36: ='G-12 FS'!N46*O$8 -> 329502.43 | Q36: ='G-12 FS'!Q46*Q$8 -> 0 | R36: ='G-12 FS'!Q46*R$8 -> 455019.31 | T36: 0 | U36: 3355793.25
A37: Occupancy / Facilty Expense | B37: ='G-12 FS'!B47*B$8 -> 0 | C37: ='G-12 FS'!B47*C$8 -> 191300.67 | E37: ='G-12 FS'!E47*E$8 -> 0 | F37: ='G-12 FS'!E47*F$8 -> 1190052.17 | H37: ='G-12 FS'!H47*H$8 -> 0 | I37: ='G-12 FS'!H47*I$8 -> 443239.5 | K37: ='G-12 FS'!K47*K$8 -> 0 | L37: ='G-12 FS'!K47*L$8 -> 2005.97 | N37: ='G-12 FS'!N47*N$8 -> 0 | O37: ='G-12 FS'!N47*O$8 -> 520452.96 | Q37: ='G-12 FS'!Q47*Q$8 -> 0 | R37: ='G-12 FS'!Q47*R$8 -> 1181321.35 | T37: 0 | U37: 3528372.62
A38: Other Operating Expense | B38: ='G-12 FS'!B48*B$8 -> 0 | C38: ='G-12 FS'!B48*C$8 -> 551420.3 | E38: ='G-12 FS'!E48*E$8 -> 0 | F38: ='G-12 FS'!E48*F$8 -> 2952061.19 | H38: ='G-12 FS'!H48*H$8 -> 0 | I38: ='G-12 FS'!H48*I$8 -> 502588.45 | K38: ='G-12 FS'!K48*K$8 -> 0 | L38: ='G-12 FS'!K48*L$8 -> 48853.55 | N38: ='G-12 FS'!N48*N$8 -> 0 | O38: ='G-12 FS'!N48*O$8 -> 458409.3 | Q38: ='G-12 FS'!Q48*Q$8 -> 0 | R38: ='G-12 FS'!Q48*R$8 -> 786117.36 | T38: 0 | U38: 5299450.15
A39: Pre-DD&A GOE | B39: =SUM(B30:B38) -> 0 | C39: =SUM(C30:C38) -> 9194961.06 | E39: =SUM(E30:E38) -> 0 | F39: =SUM(F30:F38) -> 24693343.15 | H39: =SUM(H30:H38) -> 0 | I39: =SUM(I30:I38) -> 9252945.35 | K39: =SUM(K30:K38) -> 0 | L39: =SUM(L30:L38) -> 1328229.75 | N39: =SUM(N30:N38) -> 0 | O39: =SUM(O30:O38) -> 6313980.59 | Q39: =SUM(Q30:Q38) -> 0 | R39: =SUM(R30:R38) -> 14270596.58 | T39: 0 | U39: 65054056.48
A41: Depreciation Total | B41: ='G-12 FS'!B51*B$8 -> 0 | C41: ='G-12 FS'!B51*C$8 -> 1708729.57 | E41: ='G-12 FS'!E51*E$8 -> 0 | F41: ='G-12 FS'!E51*F$8 -> 3553168.82 | H41: ='G-12 FS'!H51*H$8 -> 0 | I41: ='G-12 FS'!H51*I$8 -> 1186106.83 | K41: ='G-12 FS'!K51*K$8 -> 0 | L41: ='G-12 FS'!K51*L$8 -> 198397.34 | N41: ='G-12 FS'!N51*N$8 -> 0 | O41: ='G-12 FS'!N51*O$8 -> 344572.93 | Q41: ='G-12 FS'!Q51*Q$8 -> 0 | R41: ='G-12 FS'!Q51*R$8 -> 1349818.55 | T41: =+B41+E41+H41+K41+N41+Q41 -> 0 | U41: 8340794.04
A42: Amortization Total | T42: 0 | U42: 0
A43: Total DD&A | B43: =SUM(B40:B42) -> 0 | C43: =SUM(C40:C42) -> 1708729.57 | E43: =SUM(E40:E42) -> 0 | F43: =SUM(F40:F42) -> 3553168.82 | H43: =SUM(H40:H42) -> 0 | I43: =SUM(I40:I42) -> 1186106.83 | K43: =SUM(K40:K42) -> 0 | L43: =SUM(L40:L42) -> 198397.34 | N43: =SUM(N40:N42) -> 0 | O43: =SUM(O40:O42) -> 344572.93 | Q43: =SUM(Q40:Q42) -> 0 | R43: =SUM(R40:R42) -> 1349818.55 | T43: 0 | U43: 8340794.04
A45: GOE | B45: =+B39+B43 -> 0 | C45: =+C39+C43 -> 10903690.63 | E45: =+E39+E43 -> 0 | F45: =+F39+F43 -> 28246511.97 | H45: =+H39+H43 -> 0 | I45: =+I39+I43 -> 10439052.18 | K45: =+K39+K43 -> 0 | L45: =+L39+L43 -> 1526627.09 | N45: =+N39+N43 -> 0 | O45: =+O39+O43 -> 6658553.52 | Q45: =+Q39+Q43 -> 0 | R45: =+R39+R43 -> 15620415.13 | T45: =+B45+E45+H45+K45+N45+Q45 -> 0 | U45: =+C45+F45+I45+L45+O45+R45 -> 73394850.52
A47: Gross Operating Profit | B47: =+B29-B45 -> 0 | C47: =+C29-C45 -> 1060966.66 | E47: =+E29-E45 -> 0 | F47: =+F29-F45 -> 1546773.01 | H47: =+H29-H45 -> 0 | I47: =+I29-I45 -> 2347625.62 | K47: =+K29-K45 -> 0 | L47: =+L29-L45 -> 340566.21 | N47: =+N29-N45 -> 0 | O47: =+O29-O45 -> 8381156.54 | Q47: =+Q29-Q45 -> 0 | R47: =+R29-R45 -> 2616490 | T47: =+B47+E47+H47+K47+N47+Q47 -> 0 | U47: =+C47+F47+I47+L47+O47+R47 -> 16293578.04
A49: Sales & Cust Svc Payroll & Related | B49: ='G-12 FS'!B59*B$8 -> 0 | C49: ='G-12 FS'!B59*C$8 -> 270104.43 | E49: ='G-12 FS'!E59*E$8 -> 0 | F49: ='G-12 FS'!E59*F$8 -> 911621.83 | H49: ='G-12 FS'!H59*H$8 -> 0 | I49: ='G-12 FS'!H59*I$8 -> 398724.5 | K49: ='G-12 FS'!K59*K$8 -> 0 | L49: ='G-12 FS'!K59*L$8 -> 0 | N49: ='G-12 FS'!N59*N$8 -> 0 | O49: ='G-12 FS'!N59*O$8 -> 1012018.94 | Q49: ='G-12 FS'!Q59*Q$8 -> 0 | R49: ='G-12 FS'!Q59*R$8 -> 0 | T49: =+B49+E49+H49+K49+N49+Q49 -> 0 | U49: 2592469.7
A50: Sales Expense | B50: ='G-12 FS'!B60*B$8 -> 0 | C50: ='G-12 FS'!B60*C$8 -> 37606.99 | E50: ='G-12 FS'!E60*E$8 -> 0 | F50: ='G-12 FS'!E60*F$8 -> 49601.39 | H50: ='G-12 FS'!H60*H$8 -> 0 | I50: ='G-12 FS'!H60*I$8 -> 21979.69 | K50: ='G-12 FS'!K60*K$8 -> 0 | L50: ='G-12 FS'!K60*L$8 -> 0 | N50: ='G-12 FS'!N60*N$8 -> 0 | O50: ='G-12 FS'!N60*O$8 -> 43038.69 | Q50: ='G-12 FS'!Q60*Q$8 -> 0 | R50: ='G-12 FS'!Q60*R$8 -> 0 | T50: 0 | U50: 152226.76
A51: Total Sales & Customer Svc Exp | B51: =SUM(B48:B50) -> 0 | C51: =SUM(C48:C50) -> 307711.42 | E51: =SUM(E48:E50) -> 0 | F51: =SUM(F48:F50) -> 961223.22 | H51: =SUM(H48:H50) -> 0 | I51: =SUM(I48:I50) -> 420704.19 | K51: =SUM(K48:K50) -> 0 | L51: =SUM(L48:L50) -> 0 | N51: =SUM(N48:N50) -> 0 | O51: =SUM(O48:O50) -> 1055057.63 | Q51: =SUM(Q48:Q50) -> 0 | R51: =SUM(R48:R50) -> 0 | T51: 0 | U51: 2744696.46
A53: G&A Payroll & Related | B53: ='G-12 FS'!B63*B$8 -> 0 | C53: ='G-12 FS'!B63*C$8 -> 848567.46 | E53: ='G-12 FS'!E63*E$8 -> 0 | F53: ='G-12 FS'!E63*F$8 -> 822252.66 | H53: ='G-12 FS'!H63*H$8 -> 0 | I53: ='G-12 FS'!H63*I$8 -> 273657.72 | K53: ='G-12 FS'!K63*K$8 -> 0 | L53: ='G-12 FS'!K63*L$8 -> 136888.29 | N53: ='G-12 FS'!N63*N$8 -> 0 | O53: ='G-12 FS'!N63*O$8 -> 280524.93 | Q53: ='G-12 FS'!Q63*Q$8 -> 0 | R53: ='G-12 FS'!Q63*R$8 -> 411422.9 | T53: =+B53+E53+H53+K53+N53+Q53 -> 0 | U53: 2773313.96
A54: G&E Expense | B54: =SUM('G-12 FS'!B64:B66)*B$8 -> 0 | C54: =SUM('G-12 FS'!B64:B66)*C$8 -> 703977.74 | E54: =SUM('G-12 FS'!E64:E66)*E$8 -> 0 | F54: =SUM('G-12 FS'!E64:E66)*F$8 -> 2587804.62 | H54: =SUM('G-12 FS'!H64:H66)*H$8 -> 0 | I54: =SUM('G-12 FS'!H64:H66)*I$8 -> 1061806.33 | K54: =SUM('G-12 FS'!K64:K66)*K$8 -> 0 | L54: =SUM('G-12 FS'!K64:K66)*L$8 -> 137801.16 | N54: =SUM('G-12 FS'!N64:N66)*N$8 -> 0 | O54: =SUM('G-12 FS'!N64:N66)*O$8 -> 1034370.4 | Q54: =SUM('G-12 FS'!Q64:Q66)*Q$8 -> 0 | R54: =SUM('G-12 FS'!Q64:Q66)*R$8 -> 1016787.49 | T54: 0 | U54: 6542547.74
A55: Total G&A Expense | B55: =SUM(B52:B54) -> 0 | C55: =SUM(C52:C54) -> 1552545.2 | E55: =SUM(E52:E54) -> 0 | F55: =SUM(F52:F54) -> 3410057.28 | H55: =SUM(H52:H54) -> 0 | I55: =SUM(I52:I54) -> 1335464.05 | K55: =SUM(K52:K54) -> 0 | L55: =SUM(L52:L54) -> 274689.45 | N55: =SUM(N52:N54) -> 0 | O55: =SUM(O52:O54) -> 1314895.33 | Q55: =SUM(Q52:Q54) -> 0 | R55: =SUM(R52:R54) -> 1428210.39 | T55: 0 | U55: 9315861.7
A57: Total SG&A | B57: =+B51+B55 -> 0 | C57: =+C51+C55 -> 1860256.62 | E57: =+E51+E55 -> 0 | F57: =+F51+F55 -> 4371280.5 | H57: =+H51+H55 -> 0 | I57: =+I51+I55 -> 1756168.24 | K57: =+K51+K55 -> 0 | L57: =+L51+L55 -> 274689.45 | N57: =+N51+N55 -> 0 | O57: =+O51+O55 -> 2369952.96 | Q57: =+Q51+Q55 -> 0 | R57: =+R51+R55 -> 1428210.39 | T57: =+B57+E57+H57+K57+N57+Q57 -> 0 | U57: =+C57+F57+I57+L57+O57+R57 -> 12060558.16
A59: Operating Income | B59: =+B47-B57 -> 0 | C59: =+C47-C57 -> -799289.96 | E59: =+E47-E57 -> 0 | F59: =+F47-F57 -> -2824507.49 | H59: =+H47-H57 -> 0 | I59: =+I47-I57 -> 591457.38 | K59: =+K47-K57 -> 0 | L59: =+L47-L57 -> 65876.76 | N59: =+N47-N57 -> 0 | O59: =+O47-O57 -> 6011203.58 | Q59: =+Q47-Q57 -> 0 | R59: =+R47-R57 -> 1188279.61 | T59: =+B59+E59+H59+K59+N59+Q59 -> 0 | U59: =+C59+F59+I59+L59+O59+R59 -> 4233019.88

Sheet RS Cap Struct.
A2: CAPITAL STRUCTURE CALCULATION | B2: 2017 | C2: 2016 | D2: 2015
A3: Source: Republic Services, Inc Annual Report
A4: http://www.republicservices.com/investors
A5: Generally published each Feb/Mar of following year
A6: (in millions)
A8: Accounts Payable | B8: 598.1 | C8: 553.8 | D8: 577.4 | E8: (pg 82)
A9: Notes Payable and current maturities of LTD | B9: 706.7 | C9: 5.8 | D9: 5.5
A10: Deferred Revenue | B10: 312.1 | C10: 312.9 | D10: 313.9
A11: Accrued Landfill and Environmental costs, current portion | B11: 135.2 | C11: 142.7 | D11: 149.8
A12: Accrued Interest | B12: 74.5 | C12: 71.8 | D12: 71.6
A13: Other Accrued Liabilities | B13: 808.2 | C13: 725 | D13: 716.6
A14: Total Current Liabilities | B14: =SUM(B8:B13) -> 2634.8 | C14: =SUM(C8:C13) -> 1812 | D14: =SUM(D8:D13) -> 1834.8
A16: Long-term Debt, net of current maturities | B16: 7480.7 | C16: 7653.1 | D16: 7527.4
A17: Accrued Landfill and Environmental costs, net of current portion | B17: 1686.5 | C17: 1684.8 | D17: 1677.9
A18: Deferred Income Taxes and other long-term liabilities | B18: 796.4 | C18: 1210.2 | D18: 1131.8
A19: Self-insurance reserves, net of current portion | B19: 275.4 | C19: 274.6 | D19: 278.1
A20: Other long-term liabilities | B20: 312.1 | C20: 301.2 | D20: 309.3
A22: Total Liabilities | B22: =SUM(B14:B21) -> 13185.9 | C22: =SUM(C14:C21) -> 12935.9 | D22: =SUM(D14:D21) -> 12759.3
A24: Preferred Stock | B24: 0 | C24: 0
A25: Common Stock | B25: 3.5 | C25: 3.5 | D25: 3.5
A26: Additional Paid-in Capital | B26: 4839.6 | C26: 4764.5 | D26: 4677.7
A27: Retained Earnings | B27: 4152.5 | C27: 3324 | D27: 3138.3
A28: Treasury stock | B28: -1059.4 | C28: -414.9 | D28: -14.9
A29: Accumulated other comprehensive income (loss), net of tax | B29: 22.6 | C29: 14.2 | D29: -30.5
A31: Non-controlling Interest | B31: 2.3 | C31: 2.4 | D31: 2.5
A33: Total Stockholder's Equity | B33: =SUM(B23:B32) -> 7961.1 | C33: =SUM(C23:C32) -> 7693.7 | D33: =SUM(D23:D32) -> 7776.6
A35: Total Liabilities & Equity | B35: =+B22+B33 -> 21147 | C35: =+C22+C33 -> 20629.6 | D35: =+D22+D33 -> 20535.9
A37: Total Debt | B37: =B9+B16 -> 8187.4 | C37: =C9+C16 -> 7658.9 | D37: =D9+D16 -> 7532.9
A38: Total Net Equity | B38: =+B33-B29 -> 7938.5 | C38: =+C33-C29 -> 7679.5 | D38: =+D33-D29 -> 7807.1
A41: Debt Ratio | B41: =B37/SUM(B37:B38) -> 0.5077173987 | C41: =C37/SUM(C37:C38) -> 0.4993284828 | D41: =D37/SUM(D37:D38) -> 0.4910625815
A42: Equity Ratio | B42: =1-B41 -> 0.4922826013 | C42: =1-C41 -> 0.5006715172 | D42: =1-D41 -> 0.5089374185
A45: COST of DEBT CALCULATION
A46: Source: Republic Services, Inc Annual Report
A47: (in millions)
A49: As of: | B49: 43100 | C49: 42735 | D49: 42369
A50: Total Debt (Carrying Value) | B50: 8187.4 | C50: 7658.9 | D50: 7532.9 | E50: (pg 113)
A51: Interest paid | B51: 326.9 | C51: 330.2 | D51: 327.6 | E51: (pg 116)
A52: Effective Interest Rate | B52: =B51/B50 -> 0.03992720522 | C52: =C51/C50 -> 0.0431132408 | D52: =D51/D50 -> 0.04348922726
A56: TAX RATE
A57: Source: Republic Services, Inc Annual Report
A59: Effective Income Tax Rate | B59: 0.002 | C59: 0.365 | D59: 0.373 | E59: (pg 118)

Sheet Combined LG 2018 V5.0c
B2: Public Companies | F2: Public Co | I2: LURITO - GALLAGHER FORMULA MODEL 2018 V5.0a | M2: Public Co | R2: CALCULATION TABLES | AH2: Revenue Senstive Taxes (RevS)
K3: (b) + (c) | M3: (d) + (e) | T3: Regession | V3: Regession | W3: Regession | X3: Regession | Z3: Adjusted | AA3: Hauler | AB3: Hauler | AC3: Hauler | AD3: Hauler | AE3: Hauler | AF3: Hauler | AG3: Revenue Req | AH3: Revenue | AI3: Revenue
B4: INPUTS - Test Year | H4: (a) | I4: (b) | J4: (c) | K4: (d) | L4: (e) | M4: (f) | T4: Before Tax | V4: Less | W4: Adjusted | X4: After Tax | Y4: Flotation Costs | Z4: After Tax | AA4: Weighted Cost | AB4: Weighted Cost | AC4: Weighted Cost | AD4: Adjusted | AE4: Before Tax | AF4: Before Tax | AG4: Before RevS | AH4: Increase Before | AI4: Increase After | AJ4: RevS | AK4: Total
B5: Operating Revenue | C5: 2680866.936 | F5: Line | I5: Historical | J5: Revenue | K5: Proforma | L5: Add: Revenue | M5: Revenue | T5: Profit Ratio | U5: BTROI | V5: WCDebt | W5: BTROE | X5: ROE | Y5: Basis Points | Z5: ROE | AA5: Equity | AB5: Equity BFT | AC5: Debt | AD5: BTROR | AE5: Profit Ratio | AF5: Operating Ratio | AG5: Taxes | AH5: RevS Taxes | AI5: RevS Taxes | AJ5: Taxes | AK5: Revenue Req
B6: Operating Expenses | C6: 2783011.932 | F6: No. | J6: Change | L6: Sensitive Taxes | M6: Requirement | R6: 1 | S6: =Revenue/Investment*100 -> 236.0149855 | T6: =EXP(y_inter1-(slope*LN(+S6))) -> 7.29433996 | U6: =(+S6*T6/100)/100 -> 0.172157354 | V6: =regDebt_weighted -> 0.03586 | W6: =+U6-V6 -> 0.136297354 | X6: =+((W6*(1-0.34))-Pfd_weighted)/Equity_percent -> 0.2435065513 | Y6: =+C15 -> 0.0025 | Z6: =+X6+Y6 -> 0.2460065513 | AA6: =Z6*equityP -> 0.121104745 | AB6: =+AA6/(1-taxrate) -> 0.1213474399 | AC6: =debtP*Debt_Rate -> 0.02027173677 | AD6: =AC6+AB6 -> 0.1416191767 | AE6: =AD6/(S6/100) -> 0.06000431555 | AF6: =1-AE6 -> 0.9399956844 | AG6: =expenses/(AF6) -> 2960664.584 | AH6: =+AG6-Revenue -> 279797.648 | AI6: =+AH6/$J$49 -> 304139.5229 | AJ6: =+AI6*$J$47 -> 7687.126441 | AK6: =ROUND(+AJ6+AG6,5) -> 2968351.711
B7: Investment | C7: 1135888.439 | F7: 1 | H7: Operating Revenue | I7: =IF(A64=TRUE,C5,0) -> 2680866.936 | J7: =(+$I8/($R50))-I7 -> 263792.0512 | K7: =+I7+J7 -> 2944658.987 | L7: =((+J7/J49*K35)-J7) -> 7247.390627 | M7: =IFERROR(+K7+L7,0.00001) -> 2951906.378 | R7: 2 | S7: =Revenue/Investment*100 -> 236.0149855 | T7: =EXP(y_inter1-(slope*LN(+S7))) -> 7.29433996 | U7: =(+S7*T7/100)/100 -> 0.172157354 | V7: =regDebt_weighted -> 0.03586 | W7: =+U7-V7 -> 0.136297354 | X7: =+((W7*(1-0.34))-Pfd_weighted)/Equity_percent -> 0.2435065513 | Y7: =+Y6 -> 0.0025 | Z7: =+X7+Y7 -> 0.2460065513 | AA7: =Z7*equityP -> 0.121104745 | AB7: =+AA7/(1-taxrate) -> 0.1213474399 | AC7: =debtP*Debt_Rate -> 0.02027173677 | AD7: =AC7+AB7 -> 0.1416191767 | AE7: =AD7/(S7/100) -> 0.06000431555 | AF7: =1-AE7 -> 0.9399956844 | AG7: =expenses/(AF7) -> 2960664.584 | AH7: =+AG7-Revenue -> 279797.648 | AI7: =+AH7/$J$49 -> 304139.5229 | AJ7: =+AI7*$J$47 -> 7687.126441 | AK7: =ROUND(+AJ7+AG7,5) -> 2968351.711
B8: Capital Structure-Debt % | C8: 0.5077173987 | F8: =+F7+1 -> 2 | H8: Operating Expenses | I8: =IF(A64=TRUE,C6,0) -> 2783011.932 | K8: =+I8 -> 2783011.932 | L8: =+L7 -> 7247.390627 | M8: =IFERROR(+K8+L8,0.00001) -> 2790259.323 | R8: 3 | S8: =Revenue/Investment*100 -> 236.0149855 | T8: =EXP(y_inter1-(slope*LN(+S8))) -> 7.29433996 | U8: 0.172157354 | V8: =regDebt_weighted -> 0.03586 | W8: 0.136297354 | X8: =+((W8*(1-0.34))-Pfd_weighted)/Equity_percent -> 0.2435065513 | Y8: =+Y7 -> 0.0025 | Z8: =+X8+Y8 -> 0.2460065513 | AA8: =Z8*equityP -> 0.121104745 | AB8: =+AA8/(1-taxrate) -> 0.1213474399 | AC8: =debtP*Debt_Rate -> 0.02027173677 | AD8: 0.1416191767 | AE8: 0.06000431555 | AF8: 0.9399956844 | AG8: =expenses/(AF8) -> 2960664.584 | AH8: =+AG8-Revenue -> 279797.648 | AI8: =+AH8/$J$49 -> 304139.5229 | AJ8: =+AI8*$J$47 -> 7687.126441 | AK8: 2968351.711
B9: Capital Structure-Debt Rate | C9: 0.03992720522 | F9: =+F8+1 -> 3 | H9: Operating Income | I9: =+I7-I8 -> -102144.996 | K9: =+K7-K8 -> 161647.0551 | M9: =+M7-M8 -> 161647.0551 | R9: 4 | S9: =Revenue/Investment*100 -> 236.0149855 | T9: =EXP(y_inter1-(slope*LN(+S9))) -> 7.29433996 | U9: 0.172157354 | V9: =regDebt_weighted -> 0.03586 | W9: 0.136297354 | X9: =+((W9*(1-0.34))-Pfd_weighted)/Equity_percent -> 0.2435065513 | Y9: =+Y8 -> 0.0025 | Z9: 0.2460065513 | AA9: =Z9*equityP -> 0.121104745 | AB9: =+AA9/(1-taxrate) -> 0.1213474399 | AC9: =debtP*Debt_Rate -> 0.02027173677 | AD9: 0.1416191767 | AE9: 0.06000431555 | AF9: 0.9399956844 | AG9: =expenses/(AF9) -> 2960664.584 | AH9: =+AG9-Revenue -> 279797.648 | AI9: =+AH9/$J$49 -> 304139.5229 | AJ9: =+AI9*$J$47 -> 7687.126441 | AK9: 2968351.711
B10: Federal Income Tax Rate | C10: 0.002 | F10: 4 | R10: 2nd Iteration
B11: B&O Tax Rate | C11: 0.015 | F11: 5 | H11: Interest Expense | I11: =+K11 -> 23026.43145 | K11: =+M27 -> 23026.43145 | M11: =+K11 -> 23026.43145 | R11: 1 | S11: =IF((AK6/Investment*100)>0,(AK6/Investment*100),0) -> 261.3242293 | T11: =EXP(y_inter1-(slope*LN(S11))) -> 6.80362505 | U11: =(+S11*T11/100)/100 -> 0.1777952073 | V11: =regDebt_weighted -> 0.03586 | W11: =+U11-V11 -> 0.1419352073 | X11: =+((W11*(1-0.34))-Pfd_weighted)/Equity_percent -> 0.2543233628 | Y11: =+Y9 -> 0.0025 | Z11: =+X11+Y11 -> 0.2568233628 | AA11: =Z11*equityP -> 0.1264296731 | AB11: =+AA11/(1-taxrate) -> 0.1266830392 | AC11: =debtP*Debt_Rate -> 0.02027173677 | AD11: =+AC11+AB11 -> 0.146954776 | AE11: =+AD11/(S11/100) -> 0.05623465391 | AF11: =1-AE11 -> 0.9437653461 | AG11: =expenses/(AF11) -> 2948838.865 | AH11: =+AG11-Revenue -> 267971.9291 | AI11: =+AH11/$J$49 -> 291284.9884 | AJ11: =+AI11*$J$47 -> 7362.228083 | AK11: =ROUND(+AJ11+AG11,5) -> 2956201.093
B12: WUTC Fee | C12: 0.004275 | F12: 6 | H12: Income Tax Expense | I12: =IF(I14<0,0,+J38*I14) -> 0 | J12: =+K12-I12 -> 277.2412473 | K12: =+(K9-K11)*taxrate -> 277.2412473 | M12: =+K12 -> 277.2412473 | R12: 2 | S12: =IF((AK7/Investment*100)>0,(AK7/Investment*100),0) -> 261.3242293 | T12: =EXP(y_inter2-(slope*LN(+S12))) -> 6.706824336 | U12: =(+S12*T12/100)/100 -> 0.1752655701 | V12: =regDebt_weighted -> 0.03586 | W12: =+U12-V12 -> 0.1394055701 | X12: =+((W12*(1-0.34))-Pfd_weighted)/Equity_percent -> 0.2494699891 | Y12: =+Y11 -> 0.0025 | Z12: =+X12+Y12 -> 0.2519699891 | AA12: =Z12*equityP -> 0.1240404417 | AB12: =+AA12/(1-taxrate) -> 0.1242890197 | AC12: =debtP*Debt_Rate -> 0.02027173677 | AD12: =+AC12+AB12 -> 0.1445607565 | AE12: =+AD12/(S12/100) -> 0.05531854313 | AF12: =1-AE12 -> 0.9446814569 | AG12: =expenses/(AF12) -> 2945979.21 | AH12: =+AG12-Revenue -> 265112.274 | AI12: =+AH12/$J$49 -> 288176.5487 | AJ12: =+AI12*$J$47 -> 7283.662269 | AK12: =ROUND(+AJ12+AG12,5) -> 2953262.873
B13: City Tax | C13: 0 | F13: 7 | R13: 3 | S13: =IF((AK8/Investment*100)>0,(AK8/Investment*100),0) -> 261.3242293 | T13: =EXP(y_inter3-(slope*LN(S13))) -> 6.641617715 | U13: =(+S13*T13/100)/100 -> 0.1735615631 | V13: =regDebt_weighted -> 0.03586 | W13: =+U13-V13 -> 0.1377015631 | X13: =+((W13*(1-0.34))-Pfd_weighted)/Equity_percent -> 0.2462006734 | Y13: =+Y12 -> 0.0025 | Z13: =+X13+Y13 -> 0.2487006734 | AA13: =Z13*equityP -> 0.1224310144 | AB13: =+AA13/(1-taxrate) -> 0.1226763672 | AC13: =debtP*Debt_Rate -> 0.02027173677 | AD13: =+AC13+AB13 -> 0.142948104 | AE13: =+AD13/(S13/100) -> 0.05470143519 | AF13: =1-AE13 -> 0.9452985648 | AG13: =expenses/(AF13) -> 2944056.022 | AH13: =+AG13-Revenue -> 263189.0857 | AI13: =+AH13/$J$49 -> 286086.0466 | AJ13: =+AI13*$J$47 -> 7230.824828 | AK13: 2951286.847
B14: Bad Debts | C14: 0.006 | F14: 8 | H14: Net Income | I14: =+I9-SUM(I11:I13) -> -125171.4275 | K14: =+K9-SUM(K11:K13) -> 138343.3824 | M14: =+M9-SUM(M11:M13) -> 138343.3824 | R14: 4 | S14: =IF((AK9/Investment*100)>0,(AK9/Investment*100),0) -> 261.3242293 | T14: =EXP(y_inter4-(slope*LN(S14))) -> 6.59990705 | U14: =(+S14*T14/100)/100 -> 0.1724715624 | V14: =regDebt_weighted -> 0.03586 | W14: =+U14-V14 -> 0.1366115624 | X14: =+((W14*(1-0.34))-Pfd_weighted)/Equity_percent -> 0.2441093929 | Y14: =+Y13 -> 0.0025 | Z14: 0.2466093929 | AA14: =Z14*equityP -> 0.1214015134 | AB14: =+AA14/(1-taxrate) -> 0.1216448031 | AC14: =debtP*Debt_Rate -> 0.02027173677 | AD14: =+AC14+AB14 -> 0.1419165398 | AE14: =+AD14/(S14/100) -> 0.05430669027 | AF14: =1-AE14 -> 0.9456933097 | AG14: =expenses/(AF14) -> 2942827.134 | AH14: =+AG14-Revenue -> 261960.1977 | AI14: =+AH14/$J$49 -> 284750.2476 | AJ14: =+AI14*$J$47 -> 7197.062509 | AK14: 2950024.197
B15: Basis Points - Flotation | C15: 0.0025 | F15: 9 | R15: 3rd Iteration
D16: Yes | F16: 10 | H16: Operating Ratio | I16: =+I8/I7 -> 1.038101479 | K16: =+K8/K7 -> 0.945105 | M16: =+M8/M7 -> 0.9452397758 | R16: 1 | S16: =AK11/Investment*100 -> 260.2545277 | T16: =EXP(y_inter1-(slope*LN(+S16))) -> 6.822731031 | U16: =(+S16*T16/100)/100 -> 0.1775646642 | V16: =regDebt_weighted -> 0.03586 | W16: =+U16-V16 -> 0.1417046642 | X16: =+((W16*(1-0.34))-Pfd_weighted)/Equity_percent -> 0.2538810418 | Y16: =+Y14 -> 0.0025 | Z16: =+X16+Y16 -> 0.2563810418 | AA16: =Z16*equityP -> 0.1262119262 | AB16: =+AA16/(1-taxrate) -> 0.1264648559 | AC16: =debtP*Debt_Rate -> 0.02027173677 | AD16: =+AC16+AB16 -> 0.1467365927 | AE16: =+AD16/(S16/100) -> 0.05638195575 | AF16: =1-AE16 -> 0.9436180442 | AG16: =expenses/(AF16) -> 2949299.189 | AH16: =+AG16-Revenue -> 268432.2524 | AI16: =+AH16/$J$49 -> 291785.359 | AJ16: =+AI16*$J$47 -> 7374.874949 | AK16: =ROUND(+AJ16+AG16,5) -> 2956674.064
B17: Check when input is complete | D17: No | F17: 11 | R17: 2 | S17: =AK12/Investment*100 -> 259.9958561 | T17: =EXP(y_inter2-(slope*LN(+S17))) -> 6.730232473 | U17: =(+S17*T17/100)/100 -> 0.1749832553 | V17: =regDebt_weighted -> 0.03586 | W17: =+U17-V17 -> 0.1391232553 | X17: =+((W17*(1-0.34))-Pfd_weighted)/Equity_percent -> 0.2489283387 | Y17: =+Y16 -> 0.0025 | Z17: =+X17+Y17 -> 0.2514283387 | AA17: =Z17*equityP -> 0.1237737966 | AB17: =+AA17/(1-taxrate) -> 0.1240218403 | AC17: =debtP*Debt_Rate -> 0.02027173677 | AD17: =+AC17+AB17 -> 0.1442935771 | AE17: =+AD17/(S17/100) -> 0.05549841419 | AF17: =1-AE17 -> 0.9445015858 | AG17: =expenses/(AF17) -> 2946540.243 | AH17: =+AG17-Revenue -> 265673.3069 | AI17: =+AH17/$J$49 -> 288786.3904 | AJ17: =+AI17*$J$47 -> 7299.076017 | AK17: =ROUND(+AJ17+AG17,5) -> 2953839.319
F18: 12 | H18: Revenue Requirement | R18: 3 | S18: =AK13/Investment*100 -> 259.8218931 | T18: =EXP(y_inter3-(slope*LN(S18))) -> 6.667848752 | U18: =(+S18*T18/100)/100 -> 0.1732453086 | V18: =regDebt_weighted -> 0.03586 | W18: =+U18-V18 -> 0.1373853086 | X18: =+((W18*(1-0.34))-Pfd_weighted)/Equity_percent -> 0.2455939059 | Y18: =+Y17 -> 0.0025 | Z18: =+X18+Y18 -> 0.2480939059 | AA18: =Z18*equityP -> 0.1221323134 | AB18: =+AA18/(1-taxrate) -> 0.1223770675 | AC18: =debtP*Debt_Rate -> 0.02027173677 | AD18: =+AC18+AB18 -> 0.1426488043 | AE18: =+AD18/(S18/100) -> 0.05490253442 | AF18: =1-AE18 -> 0.9450974656 | AG18: =expenses/(AF18) -> 2944682.463 | AH18: =+AG18-Revenue -> 263815.5263 | AI18: =+AH18/$J$49 -> 286766.9863 | AJ18: =+AI18*$J$47 -> 7248.03558 | AK18: 2951930.498
B19: For Intial input: Uncheck Checkbox Until Completed | F19: 13 | I19: Historical Revenue | J19: =+Revenue -> 2680866.936 | L19: Revenue Increase before taxes | M19: =+J7 -> 263792.0512 | R19: 4 | S19: =AK14/Investment*100 -> 259.7107334 | T19: =EXP(y_inter4-(slope*LN(S19))) -> 6.627912112 | U19: =(+S19*T19/100)/100 -> 0.1721339915 | V19: =regDebt_weighted -> 0.03586 | W19: =+U19-V19 -> 0.1362739915 | X19: =+((W19*(1-0.34))-Pfd_weighted)/Equity_percent -> 0.2434617279 | Y19: =+Y18 -> 0.0025 | Z19: 0.2459617279 | AA19: =Z19*equityP -> 0.1210826792 | AB19: =+AA19/(1-taxrate) -> 0.1213253299 | AC19: =debtP*Debt_Rate -> 0.02027173677 | AD19: =+AC19+AB19 -> 0.1415970667 | AE19: =+AD19/(S19/100) -> 0.05452106844 | AF19: =1-AE19 -> 0.9454789316 | AG19: =expenses/(AF19) -> 2943494.392 | AH19: =+AG19-Revenue -> 262627.4552 | AI19: =+AH19/$J$49 -> 285475.5553 | AJ19: =+AI19*$J$47 -> 7215.394659 | AK19: 2950709.786
F20: 14 | I20: Rate Increase | J20: =+J21-J19 -> 271039.4418 | L20: Rev Sensitive Taxes | M20: =+L8 -> 7247.390627 | R20: 4th Iteration
F21: 15 | I21: Revenue Requirement | J21: =+M7 -> 2951906.378 | L21: Rate Increase | M21: =+M19+M20 -> 271039.4418 | R21: 1 | S21: =AK16/Investment*100 -> 260.2961665 | T21: =EXP(y_inter1-(slope*LN(+S21))) -> 6.821984847 | U21: =(+S21*T21/100)/100 -> 0.1775736503 | V21: =regDebt_weighted -> 0.03586 | W21: =+U21-V21 -> 0.1417136503 | X21: =+((W21*(1-0.34))-Pfd_weighted)/Equity_percent -> 0.2538982826 | Y21: =+Y19 -> 0.0025 | Z21: =+X21+Y21 -> 0.2563982826 | AA21: =Z21*equityP -> 0.1262204135 | AB21: =+AA21/(1-taxrate) -> 0.1264733603 | AC21: =debtP*Debt_Rate -> 0.02027173677 | AD21: =+AC21+AB21 -> 0.146745097 | AE21: =+AD21/(S21/100) -> 0.0563762037 | AF21: =1-AE21 -> 0.9436237963 | AG21: =expenses/(AF21) -> 2949281.211 | AH21: =+AG21-Revenue -> 268414.2743 | AI21: =+AH21/$J$49 -> 291765.8169 | AJ21: =+AI21*$J$47 -> 7374.381022 | AK21: =ROUND(+AJ21+AG21,5) -> 2956655.592
F22: 16 | R22: 2 | S22: =AK17/Investment*100 -> 260.0466046 | T22: =EXP(y_inter2-(slope*LN(+S22))) -> 6.729334502 | U22: =(+S22*T22/100)/100 -> 0.1749940589 | V22: =regDebt_weighted -> 0.03586 | W22: =+U22-V22 -> 0.1391340589 | X22: =+((W22*(1-0.34))-Pfd_weighted)/Equity_percent -> 0.2489490664 | Y22: =+Y21 -> 0.0025 | Z22: =+X22+Y22 -> 0.2514490664 | AA22: =Z22*equityP -> 0.1237840005 | AB22: =+AA22/(1-taxrate) -> 0.1240320646 | AC22: =debtP*Debt_Rate -> 0.02027173677 | AD22: =+AC22+AB22 -> 0.1443038014 | AE22: =+AD22/(S22/100) -> 0.0554915153 | AF22: =1-AE22 -> 0.9445084847 | AG22: =expenses/(AF22) -> 2946518.721 | AH22: =+AG22-Revenue -> 265651.7847 | AI22: =+AH22/$J$49 -> 288762.9959 | AJ22: =+AI22*$J$47 -> 7298.48472 | AK22: =ROUND(+AJ22+AG22,5) -> 2953817.206
B23: 2018 Version Update Changes | F23: 17 | R23: 3 | S23: =AK18/Investment*100 -> 259.8785581 | T23: =EXP(y_inter3-(slope*LN(S23))) -> 6.666854739 | U23: =(+S23*T23/100)/100 -> 0.1732572597 | V23: =regDebt_weighted -> 0.03586 | W23: =+U23-V23 -> 0.1373972597 | X23: =+((W23*(1-0.34))-Pfd_weighted)/Equity_percent -> 0.2456168354 | Y23: =+Y22 -> 0.0025 | Z23: =+X23+Y23 -> 0.2481168354 | AA23: =Z23*equityP -> 0.1221436012 | AB23: =+AA23/(1-taxrate) -> 0.1223883779 | AC23: =debtP*Debt_Rate -> 0.02027173677 | AD23: =+AC23+AB23 -> 0.1426601147 | AE23: =+AD23/(S23/100) -> 0.05489491543 | AF23: =1-AE23 -> 0.9451050846 | AG23: =expenses/(AF23) -> 2944658.724 | AH23: =+AG23-Revenue -> 263791.7877 | AI23: =+AH23/$J$49 -> 286741.1825 | AJ23: =+AI23*$J$47 -> 7247.383387 | AK23: 2951906.107
B24: ● Allows Income Tax Rate Changes, | F24: 18 | H24: Captial Structure Financing Investment | K24: Financing Cost | R24: 4 | S24: =AK19/Investment*100 -> 259.7710905 | T24: =EXP(y_inter4-(slope*LN(S24))) -> 6.626859237 | U24: =(+S24*T24/100)/100 -> 0.172146645 | V24: =regDebt_weighted -> 0.03586 | W24: =+U24-V24 -> 0.136286645 | X24: =+((W24*(1-0.34))-Pfd_weighted)/Equity_percent -> 0.243486005 | Y24: =+Y23 -> 0.0025 | Z24: 0.245986005 | AA24: =Z24*equityP -> 0.1210946304 | AB24: =+AA24/(1-taxrate) -> 0.121337305 | AC24: =debtP*Debt_Rate -> 0.02027173677 | AD24: =+AC24+AB24 -> 0.1416090418 | AE24: =+AD24/(S24/100) -> 0.05451301049 | AF24: =1-AE24 -> 0.9454869895 | AG24: =expenses/(AF24) -> 2943469.305 | AH24: =+AG24-Revenue -> 262602.3692 | AI24: =+AH24/$J$49 -> 285448.2868 | AJ24: =+AI24*$J$47 -> 7214.705449 | AK24: 2950684.011
B25: ● Minimizes impact of changes in test-year revenue from | F25: 19 | H25: Type | I25: Percent | J25: Amount | K25: Cost of Capital | L25: Weighted | M25: Amount | R25: 5th Iteration
B26: resulting revenue requirment, | F26: 20 | H26: Equity | I26: =1-I27 -> 0.4922826013 | J26: =+I26*J28 -> 559178.1158 | K26: =+K34 -> 0.2474048582 | L26: =+K26*I26 -> 0.1217931072 | M26: =+J26*K26 -> 138343.3824 | R26: 1 | S26: =AK21/Investment*100 -> 260.2945403 | T26: =EXP(y_inter1-(slope*LN(+S26))) -> 6.822013985 | U26: =(+S26*T26/100)/100 -> 0.1775732994 | V26: =regDebt_weighted -> 0.03586 | W26: =+U26-V26 -> 0.1417132994 | X26: =+((W26*(1-0.34))-Pfd_weighted)/Equity_percent -> 0.2538976093 | Y26: =+Y24 -> 0.0025 | Z26: =+X26+Y26 -> 0.2563976093 | AA26: =Z26*equityP -> 0.1262200821 | AB26: =+AA26/(1-taxrate) -> 0.1264730281 | AC26: =debtP*Debt_Rate -> 0.02027173677 | AD26: =+AC26+AB26 -> 0.1467447649 | AE26: =+AD26/(S26/100) -> 0.05637642832 | AF26: =1-AE26 -> 0.9436235717 | AG26: =expenses/(AF26) -> 2949281.913 | AH26: =+AG26-Revenue -> 268414.9764 | AI26: =+AH26/$J$49 -> 291766.58 | AJ26: =+AI26*$J$47 -> 7374.40031 | AK26: =ROUND(+AJ26+AG26,5) -> 2956656.313
B27: ● Corrects interest rate transposition in LG. | F27: 21 | H27: Debt | I27: =IF(A64=TRUE,C8,0) -> 0.5077173987 | J27: =+I27*J28 -> 576710.3237 | K27: =IF(A64=TRUE,C9,0) -> 0.03992720522 | L27: =+K27*I27 -> 0.02027173677 | M27: =+K27*J27 -> 23026.43145 | R27: 2 | S27: =AK22/Investment*100 -> 260.0446578 | T27: =EXP(y_inter2-(slope*LN(+S27))) -> 6.729368944 | U27: =(+S27*T27/100)/100 -> 0.1749936444 | V27: =regDebt_weighted -> 0.03586 | W27: =+U27-V27 -> 0.1391336444 | X27: =+((W27*(1-0.34))-Pfd_weighted)/Equity_percent -> 0.2489482713 | Y27: =+Y26 -> 0.0025 | Z27: =+X27+Y27 -> 0.2514482713 | AA27: =Z27*equityP -> 0.1237836091 | AB27: =+AA27/(1-taxrate) -> 0.1240316724 | AC27: =debtP*Debt_Rate -> 0.02027173677 | AD27: =+AC27+AB27 -> 0.1443034092 | AE27: =+AD27/(S27/100) -> 0.05549177992 | AF27: =1-AE27 -> 0.9445082201 | AG27: =expenses/(AF27) -> 2946519.547 | AH27: =+AG27-Revenue -> 265652.6102 | AI27: =+AH27/$J$49 -> 288763.8932 | AJ27: =+AI27*$J$47 -> 7298.5074 | AK27: =ROUND(+AJ27+AG27,5) -> 2953818.054
F28: 22 | H28: Total | I28: =SUM(I26:I27) -> 1 | J28: =IF(A64=TRUE,C7,0) -> 1135888.439 | L28: =SUM(L26:L27) -> 0.1420648439 | M28: =SUM(M26:M27) -> 161369.8139 | R28: 3 | S28: =AK23/Investment*100 -> 259.8764108 | T28: =EXP(y_inter3-(slope*LN(S28))) -> 6.6668924 | U28: =(+S28*T28/100)/100 -> 0.1732568068 | V28: =regDebt_weighted -> 0.03586 | W28: =+U28-V28 -> 0.1373968068 | X28: =+((W28*(1-0.34))-Pfd_weighted)/Equity_percent -> 0.2456159666 | Y28: =+Y27 -> 0.0025 | Z28: =+X28+Y28 -> 0.2481159666 | AA28: =Z28*equityP -> 0.1221431734 | AB28: =+AA28/(1-taxrate) -> 0.1223879493 | AC28: =debtP*Debt_Rate -> 0.02027173677 | AD28: =+AC28+AB28 -> 0.1426596861 | AE28: =+AD28/(S28/100) -> 0.0548952041 | AF28: =1-AE28 -> 0.9451047959 | AG28: =expenses/(AF28) -> 2944659.623 | AH28: =+AG28-Revenue -> 263792.6871 | AI28: =+AH28/$J$49 -> 286742.1601 | AJ28: =+AI28*$J$47 -> 7247.408098 | AK28: 2951907.031
F29: 23 | R29: 4 | S29: =AK24/Investment*100 -> 259.7688213 | T29: =EXP(y_inter4-(slope*LN(S29))) -> 6.626898813 | U29: =(+S29*T29/100)/100 -> 0.1721461694 | V29: =regDebt_weighted -> 0.03586 | W29: =+U29-V29 -> 0.1362861694 | X29: =+((W29*(1-0.34))-Pfd_weighted)/Equity_percent -> 0.2434850924 | Y29: =+Y28 -> 0.0025 | Z29: 0.2459850924 | AA29: =Z29*equityP -> 0.1210941812 | AB29: =+AA29/(1-taxrate) -> 0.1213368549 | AC29: =debtP*Debt_Rate -> 0.02027173677 | AD29: =+AC29+AB29 -> 0.1416085916 | AE29: =+AD29/(S29/100) -> 0.05451331338 | AF29: =1-AE29 -> 0.9454866866 | AG29: =expenses/(AF29) -> 2943470.248 | AH29: =+AG29-Revenue -> 262603.3121 | AI29: =+AH29/$J$49 -> 285449.3118 | AJ29: =+AI29*$J$47 -> 7214.731355 | AK29: 2950684.98
F30: 24 | J30: Before | K30: After | R30: 6th Iteration
F31: 25 | H31: Operating Statistics | J31: Income Tax | K31: Income Tax | R31: 1 | S31: =AK26/Investment*100 -> 260.2946038 | T31: =EXP(y_inter1-(slope*LN(+S31))) -> 6.822012847 | U31: =(+S31*T31/100)/100 -> 0.1775733131 | V31: =regDebt_weighted -> 0.03586 | W31: =+U31-V31 -> 0.1417133131 | X31: =+((W31*(1-0.34))-Pfd_weighted)/Equity_percent -> 0.2538976356 | Y31: =+Y29 -> 0.0025 | Z31: =+X31+Y31 -> 0.2563976356 | AA31: =Z31*equityP -> 0.126220095 | AB31: =+AA31/(1-taxrate) -> 0.1264730411 | AC31: =debtP*Debt_Rate -> 0.02027173677 | AD31: =+AC31+AB31 -> 0.1467447779 | AE31: =+AD31/(S31/100) -> 0.05637641954 | AF31: =1-AE31 -> 0.9436235805 | AG31: =expenses/(AF31) -> 2949281.885 | AH31: =+AG31-Revenue -> 268414.949 | AI31: =+AH31/$J$49 -> 291766.5502 | AJ31: =+AI31*$J$47 -> 7374.399557 | AK31: =ROUND(+AJ31+AG31,5) -> 2956656.285
F32: 26 | R32: 2 | S32: =AK27/Investment*100 -> 260.0447325 | T32: =EXP(y_inter2-(slope*LN(+S32))) -> 6.729367623 | U32: =(+S32*T32/100)/100 -> 0.1749936603 | V32: =regDebt_weighted -> 0.03586 | W32: =+U32-V32 -> 0.1391336603 | X32: =+((W32*(1-0.34))-Pfd_weighted)/Equity_percent -> 0.2489483018 | Y32: =+Y31 -> 0.0025 | Z32: =+X32+Y32 -> 0.2514483018 | AA32: =Z32*equityP -> 0.1237836241 | AB32: =+AA32/(1-taxrate) -> 0.1240316875 | AC32: =debtP*Debt_Rate -> 0.02027173677 | AD32: =+AC32+AB32 -> 0.1443034242 | AE32: =+AD32/(S32/100) -> 0.05549176977 | AF32: =1-AE32 -> 0.9445082302 | AG32: =expenses/(AF32) -> 2946519.515 | AH32: =+AG32-Revenue -> 265652.5786 | AI32: =+AH32/$J$49 -> 288763.8588 | AJ32: =+AI32*$J$47 -> 7298.50653 | AK32: =ROUND(+AJ32+AG32,5) -> 2953818.021
F33: 27 | H33: Return on Investment | J33: =+K9/J28 -> 0.1423089183 | K33: =+(M14+M11)/J28 -> 0.1420648439 | R33: 3 | S33: =AK28/Investment*100 -> 259.8764922 | T33: =EXP(y_inter3-(slope*LN(S33))) -> 6.666890973 | U33: =(+S33*T33/100)/100 -> 0.173256824 | V33: =regDebt_weighted -> 0.03586 | W33: =+U33-V33 -> 0.137396824 | X33: =+((W33*(1-0.34))-Pfd_weighted)/Equity_percent -> 0.2456159995 | Y33: =+Y32 -> 0.0025 | Z33: =+X33+Y33 -> 0.2481159995 | AA33: =Z33*equityP -> 0.1221431897 | AB33: =+AA33/(1-taxrate) -> 0.1223879656 | AC33: =debtP*Debt_Rate -> 0.02027173677 | AD33: =+AC33+AB33 -> 0.1426597024 | AE33: =+AD33/(S33/100) -> 0.05489519316 | AF33: =1-AE33 -> 0.9451048068 | AG33: =expenses/(AF33) -> 2944659.589 | AH33: =+AG33-Revenue -> 263792.653 | AI33: =+AH33/$J$49 -> 286742.1231 | AJ33: =+AI33*$J$47 -> 7247.407161 | AK33: 2951906.996
F34: 28 | H34: Return on Equity | J34: =+(M9-M11)/J26 -> 0.2479006595 | K34: =+M14/J26 -> 0.2474048582 | R34: 4 | S34: =AK29/Investment*100 -> 259.7689066 | T34: =EXP(y_inter4-(slope*LN(S34))) -> 6.626897325 | U34: =(+S34*T34/100)/100 -> 0.1721461872 | V34: =regDebt_weighted -> 0.03586 | W34: =+U34-V34 -> 0.1362861872 | X34: =+((W34*(1-0.34))-Pfd_weighted)/Equity_percent -> 0.2434851267 | Y34: =+Y33 -> 0.0025 | Z34: 0.2459851267 | AA34: =Z34*equityP -> 0.121094198 | AB34: =+AA34/(1-taxrate) -> 0.1213368718 | AC34: =debtP*Debt_Rate -> 0.02027173677 | AD34: =+AC34+AB34 -> 0.1416086086 | AE34: =+AD34/(S34/100) -> 0.054513302 | AF34: =1-AE34 -> 0.945486698 | AG34: =expenses/(AF34) -> 2943470.213 | AH34: =+AG34-Revenue -> 262603.2767 | AI34: =+AH34/$J$49 -> 285449.2733 | AJ34: =+AI34*$J$47 -> 7214.730382 | AK34: 2950684.943
F35: 29 | H35: Operating Ratio | J35: =+K8/K7 -> 0.945105 | K35: =+M8/M7 -> 0.9452397758 | R35: 7th Iteration
F36: 30 | H36: Profit Margin | J36: =+K9/K7 -> 0.054895 | K36: =+J36 -> 0.054895 | R36: 1 | S36: =AK31/Investment*100 -> 260.2946013 | T36: =EXP(y_inter1-(slope*LN(+S36))) -> 6.822012892 | U36: =(+S36*T36/100)/100 -> 0.1775733126 | V36: =regDebt_weighted -> 0.03586 | W36: =+U36-V36 -> 0.1417133126 | X36: =+((W36*(1-0.34))-Pfd_weighted)/Equity_percent -> 0.2538976346 | Y36: =+Y34 -> 0.0025 | Z36: =+X36+Y36 -> 0.2563976346 | AA36: =Z36*equityP -> 0.1262200945 | AB36: =+AA36/(1-taxrate) -> 0.1264730406 | AC36: =debtP*Debt_Rate -> 0.02027173677 | AD36: =+AC36+AB36 -> 0.1467447774 | AE36: =+AD36/(S36/100) -> 0.05637641989 | AF36: =1-AE36 -> 0.9436235801 | AG36: =expenses/(AF36) -> 2949281.886 | AH36: =+AG36-Revenue -> 268414.95 | AI36: =+AH36/$J$49 -> 291766.5514 | AJ36: =+AI36*$J$47 -> 7374.399586 | AK36: =ROUND(+AJ36+AG36,5) -> 2956656.286
F37: 31 | H37: Final turnover | J37: =+S39/100 -> 2.597689034 | K37: =+J37 -> 2.597689034 | R37: 2 | S37: =AK32/Investment*100 -> 260.0447296 | T37: =EXP(y_inter2-(slope*LN(+S37))) -> 6.729367674 | U37: =(+S37*T37/100)/100 -> 0.1749936597 | V37: =regDebt_weighted -> 0.03586 | W37: =+U37-V37 -> 0.1391336597 | X37: =+((W37*(1-0.34))-Pfd_weighted)/Equity_percent -> 0.2489483006 | Y37: =+Y36 -> 0.0025 | Z37: =+X37+Y37 -> 0.2514483006 | AA37: =Z37*equityP -> 0.1237836235 | AB37: =+AA37/(1-taxrate) -> 0.1240316869 | AC37: =debtP*Debt_Rate -> 0.02027173677 | AD37: =+AC37+AB37 -> 0.1443034237 | AE37: =+AD37/(S37/100) -> 0.05549177016 | AF37: =1-AE37 -> 0.9445082298 | AG37: =expenses/(AF37) -> 2946519.516 | AH37: =+AG37-Revenue -> 265652.5798 | AI37: =+AH37/$J$49 -> 288763.8601 | AJ37: =+AI37*$J$47 -> 7298.506563 | AK37: =ROUND(+AJ37+AG37,5) -> 2953818.023
F38: 32 | H38: Tax Rate | J38: =+C10 -> 0.002 | K38: =+J38 -> 0.002 | R38: 3 | S38: =AK33/Investment*100 -> 259.8764891 | T38: =EXP(y_inter3-(slope*LN(S38))) -> 6.666891028 | U38: =(+S38*T38/100)/100 -> 0.1732568233 | V38: =regDebt_weighted -> 0.03586 | W38: =+U38-V38 -> 0.1373968233 | X38: =+((W38*(1-0.34))-Pfd_weighted)/Equity_percent -> 0.2456159983 | Y38: =+Y37 -> 0.0025 | Z38: =+X38+Y38 -> 0.2481159983 | AA38: =Z38*equityP -> 0.122143189 | AB38: =+AA38/(1-taxrate) -> 0.122387965 | AC38: =debtP*Debt_Rate -> 0.02027173677 | AD38: =+AC38+AB38 -> 0.1426597017 | AE38: =+AD38/(S38/100) -> 0.05489519358 | AF38: =1-AE38 -> 0.9451048064 | AG38: =expenses/(AF38) -> 2944659.591 | AH38: =+AG38-Revenue -> 263792.6543 | AI38: =+AH38/$J$49 -> 286742.1245 | AJ38: =+AI38*$J$47 -> 7247.407197 | AK38: 2951906.998
F39: 33 | R39: 4 | S39: =AK34/Investment*100 -> 259.7689034 | T39: =EXP(y_inter4-(slope*LN(S39))) -> 6.626897381 | U39: =(+S39*T39/100)/100 -> 0.1721461866 | V39: =regDebt_weighted -> 0.03586 | W39: =+U39-V39 -> 0.1362861866 | X39: =+((W39*(1-0.34))-Pfd_weighted)/Equity_percent -> 0.2434851254 | Y39: =+Y38 -> 0.0025 | Z39: 0.2459851254 | AA39: =Z39*equityP -> 0.1210941974 | AB39: =+AA39/(1-taxrate) -> 0.1213368712 | AC39: =debtP*Debt_Rate -> 0.02027173677 | AD39: =+AC39+AB39 -> 0.1416086079 | AE39: =+AD39/(S39/100) -> 0.05451330242 | AF39: =1-AE39 -> 0.9454866976 | AG39: =expenses/(AF39) -> 2943470.214 | AH39: =+AG39-Revenue -> 262603.278 | AI39: =+AH39/$J$49 -> 285449.2747 | AJ39: =+AI39*$J$47 -> 7214.730418 | AK39: 2950684.945
F40: 34
F41: 35 | H41: Revenue Sensitive Taxes Charges | R41: Curve
F42: 36 | J42: Rate | K42: Taxes | R42: Lookup Table
F43: 37 | H43: B & O Tax | J43: =IF(A64=TRUE,C11,0) -> 0.015 | K43: =+J43*($J$7/$J$49) -> 4301.122034 | R43: 0 | S43: 1 | U43: Profit Margin | V43: =VLOOKUP(R48,R36:AG39,14) -> 0.05489519358
F44: 38 | H44: WUTC Fee | J44: =IF(A64=TRUE,C12,0) -> 0.004275 | K44: =+J44*($J$7/$J$49) -> 1225.81978 | R44: 50 | S44: 2 | U44: Operating Ratio | V44: =ROUND(1-V43,6) -> 0.945105
F45: 39 | H45: City Tax | J45: =IF(A64=TRUE,C13,0) -> 0 | K45: =+J45*($J$7/$J$49) -> 0 | R45: 125 | S45: 3 | U45: Percent Chg | V45: =+M7/Revenue-1 -> 0.1011014154
F46: 40 | H46: Bad Debts | J46: =IF(A64=TRUE,C14,0) -> 0.006 | K46: =+J46*($J$7/$J$49) -> 1720.448813 | R46: 401 | S46: 4
F47: 41 | H47: Revenue Sensitive | J47: =SUM(J43:J46) -> 0.025275 | K47: =+K43+K44+K45+K46 -> 7247.390627 | R47: =VLOOKUP(R48,R36:S39,2) -> 259.8764891 | S47: Curve turnover | X47: @EXP(5.72260-(.68367*@LN(T)))
F48: 42 | R48: =VLOOKUP(S36,R43:S46,2) -> 3 | S48: Curve No. Used | X48: @EXP(5.70827-(.68367*@LN(T)))
F49: 43 | H49: Conversion Factor | J49: =((K35)-J47) -> 0.9199647758 | X49: @EXP(5.69850-(.68367*@LN(T)))
R50: =+V44 -> 0.945105 | S50: Operating Ratio | X50: @EXP(5.69220-(.68367*@LN(T)))
S53: Base Utility from LG Sample Study | W53: Regression Results
S54: Percent | T54: Cost | U54: Weighted | W54: Y intercept (1) | X54: 5.7226 | Y54: Y intercept (3) | Z54: 5.6985
R55: Debt | S55: 0.562 | T55: 0.0638 | U55: =ROUND(+S55*T55,5) -> 0.03586 | W55: Y intercept (2) | X55: 5.70827 | Y55: Y intercept (4) | Z55: 5.6922
R56: Pfd. | S56: 0.094 | T56: 0.0659 | U56: =ROUND(+S56*T56,5) -> 0.00619
R57: Equity | S57: 0.344 | X57: Slope | Y57: 0.68367
S58: =SUM(S55:S57) -> 1
X60: Operating Statistics | Y60: Pre-tax | Z60: After Tax
X62: Return on Investment | Y62: =+J33 -> 0.1423089183 | Z62: 0.1420648439
X63: Return on Equity | Y63: 0.2479006595 | Z63: 0.2474048582
A64: TRUE | X64: Operating Ratio | Y64: 0.945105 | Z64: 0.9452397758
X65: Profit Margin | Y65: 0.054895 | Z65: 0.054895
X66: Final turnover | Y66: 2.597689034 | Z66: 2.597689034
X67: Tax Rate | Y67: 0.002 | Z67: 0.002

Sheet Combined LG
B1: NEW IMPROVED LURITO - GALLAGHER FORMULA | AE1: !??! | AF1: OP/RATIO | AI1: curve
G2: NOTE: | N2: FORMULAS | U2: 1st Revenue | V2: 1st Turnover | W2: M | X2: ROR | Y2: ROE | AA2: Adj ROE | AB2: Pre Tax ROE | AC2: Adj M | AD2: Revenues | AE2: Decision | AI2: lookup table
B3: !!! | C3: Revenue Requirement | E3: =E5+E4 -> 2950868.538 | F3: !!!<-- | H3: Red numbers are linked fields. | N3: 1. less than 50 | Q3: @EXP(5.72260-(.68367*@LN(T))) | U3: =$E$6*1.25 -> 3478764.915 | V3: ='Combined LG 2018 V5.0c'!S6 -> 236.0149855 | W3: =EXP(5.7226-(0.68367*LN(+V3))) -> 7.29433996 | X3: =(+W3*V3)/100 -> 17.2157354 | Y3: ='Combined LG 2018 V5.0c'!X6 -> 0.2435065513 | Z3: =+$E$18 -> 0.25 | AA3: =Y3+Z3 -> 0.4935065513 | AB3: =100*($E$15*$E$17+($E$16*(AA3/100))/(1-$E$19)) -> 2.270605229 | AC3: ='Combined LG 2018 V5.0c'!AE6 -> 0.06000431555 | AD3: =$E$6/(1-AC3) -> 2960664.584 | AE3: =IF(AD3=$U$3,"yes","not yet") -> not yet | AF3: =100*(1-AC3) -> 93.99956844 | AI3: 0 | AJ3: 1
B4: !!! | C4: Revenue Deficiency | E4: =SUM('MSW:MF RCY'!E4) -> 270001.602 | F4: !!!<-- | H4: Yellow cells are input fields. | N4: 2. Between 50 and 125 | Q4: @EXP(5.70827-(.68367*@LN(T))) | U4: =$E$6*1.25 -> 3478764.915 | V4: ='Combined LG 2018 V5.0c'!S7 -> 236.0149855 | W4: ='Combined LG 2018 V5.0c'!T7 -> 7.29433996 | X4: =(+W4*V4)/100 -> 17.2157354 | Y4: ='Combined LG 2018 V5.0c'!X7 -> 0.2435065513 | Z4: =+$E$18 -> 0.25 | AA4: =Y4+Z4 -> 0.4935065513 | AB4: =100*($E$15*$E$17+($E$16*(AA4/100))/(1-$E$19)) -> 2.270605229 | AC4: ='Combined LG 2018 V5.0c'!AE7 -> 0.06000431555 | AD4: =$E$6/(1-AC4) -> 2960664.584 | AE4: =IF(AD4=$U$4,"yes","not yet") -> not yet | AF4: =100*(1-AC4) -> 93.99956844 | AI4: 50 | AJ4: 2
B5: * | C5: Revenue | E5: =SUM('MSW:MF RCY'!E5) -> 2680866.936 | F5: * p/f before rates | H5: Black are formula calculations | N5: 3. Between 125 and 140 | Q5: @EXP(5.69850-(.68367*@LN(T))) | U5: =$E$6*1.25 -> 3478764.915 | V5: ='Combined LG 2018 V5.0c'!S8 -> 236.0149855 | W5: ='Combined LG 2018 V5.0c'!T8 -> 7.29433996 | X5: =(+W5*V5)/100 -> 17.2157354 | Y5: ='Combined LG 2018 V5.0c'!X8 -> 0.2435065513 | Z5: =+$E$18 -> 0.25 | AA5: =Y5+Z5 -> 0.4935065513 | AB5: =100*($E$15*$E$17+($E$16*(AA5/100))/(1-$E$19)) -> 2.270605229 | AC5: ='Combined LG 2018 V5.0c'!AE8 -> 0.06000431555 | AD5: =$E$6/(1-AC5) -> 2960664.584 | AE5: =IF(AD5=$U$5,"yes","not yet") -> not yet | AF5: =100*(1-AC5) -> 93.99956844 | AI5: 125 | AJ5: 3
B6: * | C6: Expenses | E6: =SUM('MSW:MF RCY'!E6) -> 2783011.932 | F6: * p/f before rates | N6: 4. greater than 400 | Q6: @EXP(5.69220-(.68367*@LN(T))) | U6: =$E$6*1.25 -> 3478764.915 | V6: ='Combined LG 2018 V5.0c'!S9 -> 236.0149855 | W6: ='Combined LG 2018 V5.0c'!T9 -> 7.29433996 | X6: =(+W6*V6)/100 -> 17.2157354 | Y6: ='Combined LG 2018 V5.0c'!X9 -> 0.2435065513 | Z6: =+$E$18 -> 0.25 | AA6: =Y6+Z6 -> 0.4935065513 | AB6: =100*($E$15*$E$17+($E$16*(AA6/100))/(1-$E$19)) -> 2.270605229 | AC6: ='Combined LG 2018 V5.0c'!AE9 -> 0.06000431555 | AD6: =$E$6/(1-AC6) -> 2960664.584 | AE6: =IF(AD6=$U$6,"yes","not yet") -> not yet | AF6: =100*(1-AC6) -> 93.99956844 | AI6: 401 | AJ6: 4
B7: * | C7: Avg. Investment - | E7: =SUM('MSW:MF RCY'!E7) -> 1135888.439 | F7: * p/f before rates
C8: curve turnover | E8: =V3 -> 236.0149855 | F8: (calculated) | V8: 2nd Turnover | W8: M | X8: ROR | Y8: ROE | AI8: lookup tables
C9: final turnover | E9: =HLOOKUP($AJ$32,$AJ$26:$AR$30,$E$10+1) -> 259.8764891 | F9: (calculated) | V9: ='Combined LG 2018 V5.0c'!S11 -> 261.3242293 | W9: ='Combined LG 2018 V5.0c'!T11 -> 6.80362505 | X9: =(+W9*V9)/100 -> 17.77952073 | Y9: ='Combined LG 2018 V5.0c'!X11 -> 0.2543233628 | Z9: =+$E$18 -> 0.25 | AA9: =Y9+Z9 -> 0.5043233628 | AB9: =100*($E$15*$E$17+($E$16*(AA9/100))/(1-$E$19)) -> 2.275940828 | AC9: ='Combined LG 2018 V5.0c'!AE11 -> 0.05623465391 | AD9: =$E$6/(1-AC9) -> 2948838.865 | AE9: =IF(OR(OR(AD9=AD3,AD9=(AD3+1)),AD9=(AD8187-1)),"yes","not yet") -> not yet | AF9: =100*(1-AC9) -> 94.37653461
C10: curve No. used | E10: =VLOOKUP(E8,AI3:AJ6,2) -> 3 | F10: (calculated) | V10: ='Combined LG 2018 V5.0c'!S12 -> 261.3242293 | W10: ='Combined LG 2018 V5.0c'!T12 -> 6.706824336 | X10: =(+W10*V10)/100 -> 17.52655701 | Y10: ='Combined LG 2018 V5.0c'!X12 -> 0.2494699891 | Z10: =+$E$18 -> 0.25 | AA10: =Y10+Z10 -> 0.4994699891 | AB10: =100*($E$15*$E$17+($E$16*(AA10/100))/(1-$E$19)) -> 2.273546809 | AC10: ='Combined LG 2018 V5.0c'!AE12 -> 0.05531854313 | AD10: =$E$6/(1-AC10) -> 2945979.21 | AE10: =IF(OR(OR(AD10=AD4,AD10=(AD4+1)),AD10=(AD4-1)),"yes","not yet") -> not yet | AF10: =100*(1-AC10) -> 94.46814569
V11: ='Combined LG 2018 V5.0c'!S13 -> 261.3242293 | W11: ='Combined LG 2018 V5.0c'!T13 -> 6.641617715 | X11: =(+W11*V11)/100 -> 17.35615631 | Y11: ='Combined LG 2018 V5.0c'!X13 -> 0.2462006734 | Z11: =+$E$18 -> 0.25 | AA11: =Y11+Z11 -> 0.4962006734 | AB11: =100*($E$15*$E$17+($E$16*(AA11/100))/(1-$E$19)) -> 2.271934156 | AC11: ='Combined LG 2018 V5.0c'!AE13 -> 0.05470143519 | AD11: =$E$6/(1-AC11) -> 2944056.022 | AE11: =IF(OR(OR(AD11=AD5,AD11=(AD5+1)),AD11=(AD5-1)),"yes","not yet") -> not yet | AF11: =100*(1-AC11) -> 94.52985648 | AJ11: 1 | AK11: 2 | AL11: 3 | AM11: 4 | AN11: 5 | AO11: 6 | AP11: 7 | AQ11: 8 | AR11: 9
C12: Company actual | V12: ='Combined LG 2018 V5.0c'!S14 -> 261.3242293 | W12: ='Combined LG 2018 V5.0c'!T14 -> 6.59990705 | X12: =(+W12*V12)/100 -> 17.24715624 | Y12: ='Combined LG 2018 V5.0c'!X14 -> 0.2441093929 | Z12: =+$E$18 -> 0.25 | AA12: =Y12+Z12 -> 0.4941093929 | AB12: =100*($E$15*$E$17+($E$16*(AA12/100))/(1-$E$19)) -> 2.270902592 | AC12: ='Combined LG 2018 V5.0c'!AE14 -> 0.05430669027 | AD12: =$E$6/(1-AC12) -> 2942827.134 | AE12: =IF(OR(OR(AD12=AD6,AD12=(AD6+1)),AD12=(AD6-1)),"yes","not yet") -> not yet | AF12: =100*(1-AC12) -> 94.56933097 | AJ12: =AE3 -> not yet | AK12: =AE9 -> not yet | AL12: =AE15 -> not yet | AM12: =AE21 -> not yet | AN12: =AE27 -> not yet | AO12: =AE33 -> not yet | AP12: =AE39 -> yes | AQ12: =AE45 -> 0 | AR12: =AE51 -> 0
C13: capital structure: | E13: !!! | F13: OPERATING RATIO -> | H13: =HLOOKUP($AJ$23,$AJ$17:$AR$21,$E$10+1) -> 94.51048064 | I13: !!!<-- | AJ13: =AE4 -> not yet | AK13: =AE10 -> not yet | AL13: =AE16 -> not yet | AM13: =AE22 -> not yet | AN13: =AE28 -> not yet | AO13: =AE34 -> not yet | AP13: =AE40 -> yes | AQ13: =AE46 -> 0 | AR13: =AE52 -> 0
C14: - | D14: - | H14: = | V14: 3rd Turnover | W14: M | X14: ROR | Y14: ROE | AJ14: =AE5 -> not yet | AK14: =AE11 -> not yet | AL14: =AE17 -> not yet | AM14: =AE23 -> not yet | AN14: =AE29 -> not yet | AO14: =AE35 -> not yet | AP14: =AE41 -> yes | AQ14: =AE47 -> 0 | AR14: =AE53 -> 0
B15: * | C15: Actual Debt Ratio | E15: =+'RS Cap Struct.'!B41 -> 0.5077173987 | F15: Conversion factor data: | V15: ='Combined LG 2018 V5.0c'!S16 -> 260.2545277 | W15: ='Combined LG 2018 V5.0c'!T16 -> 6.822731031 | X15: =(+W15*V15)/100 -> 17.75646642 | Y15: ='Combined LG 2018 V5.0c'!X16 -> 0.2538810418 | Z15: =+$E$18 -> 0.25 | AA15: =Y15+Z15 -> 0.5038810418 | AB15: =100*($E$15*$E$17+($E$16*(AA15/100))/(1-$E$19)) -> 2.275722645 | AC15: ='Combined LG 2018 V5.0c'!AE16 -> 0.05638195575 | AD15: =$E$6/(1-AC15) -> 2949299.189 | AE15: =IF(OR(OR(AD15=AD9,AD15=(AD9+1)),AD15=(AD1-1)),"yes","not yet") -> not yet | AF15: =100*(1-AC15) -> 94.36180442 | AJ15: =AE6 -> not yet | AK15: =AE12 -> not yet | AL15: =AE18 -> not yet | AM15: =AE24 -> not yet | AN15: =AE30 -> not yet | AO15: =AE36 -> not yet | AP15: =AE42 -> yes | AQ15: =AE48 -> 0 | AR15: =AE54 -> 0
B16: * | C16: Actual Equity Ratio | E16: =1-E15 -> 0.4922826013 | F16: B & O Tax | H16: 0.015 | I16: * | V16: ='Combined LG 2018 V5.0c'!S17 -> 259.9958561 | W16: ='Combined LG 2018 V5.0c'!T17 -> 6.730232473 | X16: =(+W16*V16)/100 -> 17.49832553 | Y16: ='Combined LG 2018 V5.0c'!X17 -> 0.2489283387 | Z16: =+$E$18 -> 0.25 | AA16: =Y16+Z16 -> 0.4989283387 | AB16: =100*($E$15*$E$17+($E$16*(AA16/100))/(1-$E$19)) -> 2.273279629 | AC16: ='Combined LG 2018 V5.0c'!AE17 -> 0.05549841419 | AD16: =$E$6/(1-AC16) -> 2946540.243 | AE16: =IF(OR(OR(AD16=AD10,AD16=(AD10+1)),AD16=(AD10-1)),"yes","not yet") -> not yet | AF16: =100*(1-AC16) -> 94.45015858
B17: * | C17: Actual Cost of Debt | E17: =+'RS Cap Struct.'!B52 -> 0.03992720522 | F17: WUTC Fee | H17: 0.004275 | I17: * | V17: ='Combined LG 2018 V5.0c'!S18 -> 259.8218931 | W17: ='Combined LG 2018 V5.0c'!T18 -> 6.667848752 | X17: =(+W17*V17)/100 -> 17.32453086 | Y17: ='Combined LG 2018 V5.0c'!X18 -> 0.2455939059 | Z17: =+$E$18 -> 0.25 | AA17: =Y17+Z17 -> 0.4955939059 | AB17: =100*($E$15*$E$17+($E$16*(AA17/100))/(1-$E$19)) -> 2.271634857 | AC17: ='Combined LG 2018 V5.0c'!AE18 -> 0.05490253442 | AD17: =$E$6/(1-AC17) -> 2944682.463 | AE17: =IF(OR(OR(AD17=AD11,AD17=(AD11+1)),AD17=(AD11-1)),"yes","not yet") -> not yet | AF17: =100*(1-AC17) -> 94.50974656 | AJ17: =HLOOKUP(1,$AJ$11:$AR$15,$E$10+1) -> not yet | AK17: =HLOOKUP(2,$AJ$11:$AR$15,$E$10+1) -> not yet | AL17: =HLOOKUP(3,$AJ$11:$AR$15,$E$10+1) -> not yet | AM17: =HLOOKUP(4,$AJ$11:$AR$15,$E$10+1) -> not yet | AN17: =HLOOKUP(5,$AJ$11:$AR$15,$E$10+1) -> not yet | AO17: =HLOOKUP(6,$AJ$11:$AR$15,$E$10+1) -> not yet | AP17: =HLOOKUP(7,$AJ$11:$AR$15,$E$10+1) -> yes | AQ17: =HLOOKUP(8,$AJ$11:$AR$15,$E$10+1) -> 0 | AR17: =HLOOKUP(9,$AJ$11:$AR$15,$E$10+1) -> 0
B18: * | C18: Basis Points | E18: 0.25 | F18: City Tax | H18: 0 | I18: * | V18: ='Combined LG 2018 V5.0c'!S19 -> 259.7107334 | W18: ='Combined LG 2018 V5.0c'!T19 -> 6.627912112 | X18: =(+W18*V18)/100 -> 17.21339915 | Y18: ='Combined LG 2018 V5.0c'!X19 -> 0.2434617279 | Z18: =+$E$18 -> 0.25 | AA18: =Y18+Z18 -> 0.4934617279 | AB18: =100*($E$15*$E$17+($E$16*(AA18/100))/(1-$E$19)) -> 2.270583119 | AC18: ='Combined LG 2018 V5.0c'!AE19 -> 0.05452106844 | AD18: =$E$6/(1-AC18) -> 2943494.392 | AE18: =IF(OR(OR(AD18=AD12,AD18=(AD12+1)),AD18=(AD12-1)),"yes","not yet") -> not yet | AF18: =100*(1-AC18) -> 94.54789316 | AI18: 1 | AJ18: =AF3 -> 93.99956844 | AK18: =AF9 -> 94.37653461 | AL18: =AF15 -> 94.36180442 | AM18: =AF21 -> 94.36237963 | AN18: =AF27 -> 94.36235717 | AO18: =AF33 -> 94.36235805 | AP18: =AF39 -> 94.36235801 | AQ18: =AF45 -> 0 | AR18: =AF51 -> 0
B19: * | C19: Tax Rate | E19: =+'RS Cap Struct.'!B59 -> 0.002 | F19: Bad Debts | H19: 0.006 | I19: * | AI19: 2 | AJ19: =AF4 -> 93.99956844 | AK19: =AF10 -> 94.46814569 | AL19: =AF16 -> 94.45015858 | AM19: =AF22 -> 94.45084847 | AN19: =AF28 -> 94.45082201 | AO19: =AF34 -> 94.45082302 | AP19: =AF40 -> 94.45082298 | AQ19: =AF46 -> 0 | AR19: =AF52 -> 0
H20: - | V20: 4th Turnover | W20: M | X20: ROR | Y20: ROE | AI20: 3 | AJ20: =AF5 -> 93.99956844 | AK20: =AF11 -> 94.52985648 | AL20: =AF17 -> 94.50974656 | AM20: =AF23 -> 94.51050846 | AN20: =AF29 -> 94.51047959 | AO20: =AF35 -> 94.51048068 | AP20: =AF41 -> 94.51048064 | AQ20: =AF47 -> 0 | AR20: =AF53 -> 0
F21: Revenue Sensitive | H21: =SUM(H16:H19) -> 0.025275 | V21: ='Combined LG 2018 V5.0c'!S21 -> 260.2961665 | W21: ='Combined LG 2018 V5.0c'!T21 -> 6.821984847 | X21: =(+W21*V21)/100 -> 17.75736503 | Y21: ='Combined LG 2018 V5.0c'!X21 -> 0.2538982826 | Z21: =+$E$18 -> 0.25 | AA21: =Y21+Z21 -> 0.5038982826 | AB21: =100*($E$15*$E$17+($E$16*(AA21/100))/(1-$E$19)) -> 2.275731149 | AC21: ='Combined LG 2018 V5.0c'!AE21 -> 0.0563762037 | AD21: =$E$6/(1-AC21) -> 2949281.211 | AE21: =IF(OR(OR(AD21=AD15,AD21=(AD15+1)),AD21=(AD7-1)),"yes","not yet") -> not yet | AF21: =100*(1-AC21) -> 94.36237963 | AI21: 4 | AJ21: =AF6 -> 93.99956844 | AK21: =AF12 -> 94.56933097 | AL21: =AF18 -> 94.54789316 | AM21: =AF24 -> 94.54869895 | AN21: =AF30 -> 94.54866866 | AO21: =AF36 -> 94.5486698 | AP21: =AF42 -> 94.54866976 | AQ21: =AF48 -> 0 | AR21: =AF54 -> 0
V22: ='Combined LG 2018 V5.0c'!S22 -> 260.0466046 | W22: ='Combined LG 2018 V5.0c'!T22 -> 6.729334502 | X22: =(+W22*V22)/100 -> 17.49940589 | Y22: ='Combined LG 2018 V5.0c'!X22 -> 0.2489490664 | Z22: =+$E$18 -> 0.25 | AA22: =Y22+Z22 -> 0.4989490664 | AB22: =100*($E$15*$E$17+($E$16*(AA22/100))/(1-$E$19)) -> 2.273289854 | AC22: ='Combined LG 2018 V5.0c'!AE22 -> 0.0554915153 | AD22: =$E$6/(1-AC22) -> 2946518.721 | AE22: =IF(OR(OR(AD22=AD16,AD22=(AD16+1)),AD22=(AD16-1)),"yes","not yet") -> not yet | AF22: =100*(1-AC22) -> 94.45084847
F23: Conversion Factor | H23: =((+H13/100)-H21) -> 0.9198298064 | V23: ='Combined LG 2018 V5.0c'!S23 -> 259.8785581 | W23: ='Combined LG 2018 V5.0c'!T23 -> 6.666854739 | X23: =(+W23*V23)/100 -> 17.32572597 | Y23: ='Combined LG 2018 V5.0c'!X23 -> 0.2456168354 | Z23: =+$E$18 -> 0.25 | AA23: =Y23+Z23 -> 0.4956168354 | AB23: =100*($E$15*$E$17+($E$16*(AA23/100))/(1-$E$19)) -> 2.271646167 | AC23: ='Combined LG 2018 V5.0c'!AE23 -> 0.05489491543 | AD23: =$E$6/(1-AC23) -> 2944658.724 | AE23: =IF(OR(OR(AD23=AD17,AD23=(AD17+1)),AD23=(AD17-1)),"yes","not yet") -> not yet | AF23: =100*(1-AC23) -> 94.51050846 | AJ23: yes
V24: ='Combined LG 2018 V5.0c'!S24 -> 259.7710905 | W24: ='Combined LG 2018 V5.0c'!T24 -> 6.626859237 | X24: =(+W24*V24)/100 -> 17.2146645 | Y24: ='Combined LG 2018 V5.0c'!X24 -> 0.243486005 | Z24: =+$E$18 -> 0.25 | AA24: =Y24+Z24 -> 0.493486005 | AB24: =100*($E$15*$E$17+($E$16*(AA24/100))/(1-$E$19)) -> 2.270595094 | AC24: ='Combined LG 2018 V5.0c'!AE24 -> 0.05451301049 | AD24: =$E$6/(1-AC24) -> 2943469.305 | AE24: =IF(OR(OR(AD24=AD18,AD24=(AD18+1)),AD24=(AD18-1)),"yes","not yet") -> not yet | AF24: =100*(1-AC24) -> 94.54869895 | AJ24: =HLOOKUP($AJ$23,$AJ$17:$AR$21,$E$10+1) -> 94.51048064
C26: Company Reference | V26: 5th Turnover | W26: M | X26: ROR | Y26: ROE | AJ26: =HLOOKUP(1,$AJ$11:$AR$15,$E$10+1) -> not yet | AK26: =HLOOKUP(2,$AJ$11:$AR$15,$E$10+1) -> not yet | AL26: =HLOOKUP(3,$AJ$11:$AR$15,$E$10+1) -> not yet | AM26: =HLOOKUP(4,$AJ$11:$AR$15,$E$10+1) -> not yet | AN26: =HLOOKUP(5,$AJ$11:$AR$15,$E$10+1) -> not yet | AO26: =HLOOKUP(6,$AJ$11:$AR$15,$E$10+1) -> not yet | AP26: =HLOOKUP(7,$AJ$11:$AR$15,$E$10+1) -> yes | AQ26: =HLOOKUP(8,$AJ$11:$AR$15,$E$10+1) -> 0 | AR26: =HLOOKUP(9,$AJ$11:$AR$15,$E$10+1) -> 0
C27: Annl Price Increase (PI) $ | E27: =+E4 -> 270001.602 | V27: ='Combined LG 2018 V5.0c'!S26 -> 260.2945403 | W27: ='Combined LG 2018 V5.0c'!T26 -> 6.822013985 | X27: =(+W27*V27)/100 -> 17.75732994 | Y27: ='Combined LG 2018 V5.0c'!X26 -> 0.2538976093 | Z27: =+$E$18 -> 0.25 | AA27: =Y27+Z27 -> 0.5038976093 | AB27: =100*($E$15*$E$17+($E$16*(AA27/100))/(1-$E$19)) -> 2.275730817 | AC27: ='Combined LG 2018 V5.0c'!AE26 -> 0.05637642832 | AD27: =$E$6/(1-AC27) -> 2949281.913 | AE27: =IF(OR(OR(AD27=AD21,AD27=(AD21+1)),AD27=(AD13-1)),"yes","not yet") -> not yet | AF27: =100*(1-AC27) -> 94.36235717 | AI27: 1 | AJ27: =V3 -> 236.0149855 | AK27: =V9 -> 261.3242293 | AL27: =V15 -> 260.2545277 | AM27: =V21 -> 260.2961665 | AN27: =V27 -> 260.2945403 | AO27: =V33 -> 260.2946038 | AP27: =V39 -> 260.2946013 | AQ27: =V45 -> 0 | AR27: =V51 -> 0
C28: Monthly PI $ | E28: =+E27/12 -> 22500.1335 | V28: ='Combined LG 2018 V5.0c'!S27 -> 260.0446578 | W28: ='Combined LG 2018 V5.0c'!T27 -> 6.729368944 | X28: =(+W28*V28)/100 -> 17.49936444 | Y28: ='Combined LG 2018 V5.0c'!X27 -> 0.2489482713 | Z28: =+$E$18 -> 0.25 | AA28: =Y28+Z28 -> 0.4989482713 | AB28: =100*($E$15*$E$17+($E$16*(AA28/100))/(1-$E$19)) -> 2.273289462 | AC28: ='Combined LG 2018 V5.0c'!AE27 -> 0.05549177992 | AD28: =$E$6/(1-AC28) -> 2946519.547 | AE28: =IF(OR(OR(AD28=AD22,AD28=(AD22+1)),AD28=(AD22-1)),"yes","not yet") -> not yet | AF28: =100*(1-AC28) -> 94.45082201 | AI28: 2 | AJ28: =V4 -> 236.0149855 | AK28: =V10 -> 261.3242293 | AL28: =V16 -> 259.9958561 | AM28: =V22 -> 260.0466046 | AN28: =V28 -> 260.0446578 | AO28: =V34 -> 260.0447325 | AP28: =V40 -> 260.0447296 | AQ28: =V46 -> 0 | AR28: =V52 -> 0
C29: Percentage PI | E29: =+E4/E5 -> 0.100714287 | V29: ='Combined LG 2018 V5.0c'!S28 -> 259.8764108 | W29: ='Combined LG 2018 V5.0c'!T28 -> 6.6668924 | X29: =(+W29*V29)/100 -> 17.32568068 | Y29: ='Combined LG 2018 V5.0c'!X28 -> 0.2456159666 | Z29: =+$E$18 -> 0.25 | AA29: =Y29+Z29 -> 0.4956159666 | AB29: =100*($E$15*$E$17+($E$16*(AA29/100))/(1-$E$19)) -> 2.271645739 | AC29: ='Combined LG 2018 V5.0c'!AE28 -> 0.0548952041 | AD29: =$E$6/(1-AC29) -> 2944659.623 | AE29: =IF(OR(OR(AD29=AD23,AD29=(AD23+1)),AD29=(AD23-1)),"yes","not yet") -> not yet | AF29: =100*(1-AC29) -> 94.51047959 | AI29: 3 | AJ29: =V5 -> 236.0149855 | AK29: =V11 -> 261.3242293 | AL29: =V17 -> 259.8218931 | AM29: =V23 -> 259.8785581 | AN29: =V29 -> 259.8764108 | AO29: =V35 -> 259.8764922 | AP29: =V41 -> 259.8764891 | AQ29: =V47 -> 0 | AR29: =V53 -> 0
V30: ='Combined LG 2018 V5.0c'!S29 -> 259.7688213 | W30: ='Combined LG 2018 V5.0c'!T29 -> 6.626898813 | X30: =(+W30*V30)/100 -> 17.21461694 | Y30: ='Combined LG 2018 V5.0c'!X29 -> 0.2434850924 | Z30: =+$E$18 -> 0.25 | AA30: =Y30+Z30 -> 0.4934850924 | AB30: =100*($E$15*$E$17+($E$16*(AA30/100))/(1-$E$19)) -> 2.270594644 | AC30: ='Combined LG 2018 V5.0c'!AE29 -> 0.05451331338 | AD30: =$E$6/(1-AC30) -> 2943470.248 | AE30: =IF(OR(OR(AD30=AD24,AD30=(AD24+1)),AD30=(AD24-1)),"yes","not yet") -> not yet | AF30: =100*(1-AC30) -> 94.54866866 | AI30: 4 | AJ30: =V6 -> 236.0149855 | AK30: =V12 -> 261.3242293 | AL30: =V18 -> 259.7107334 | AM30: =V24 -> 259.7710905 | AN30: =V30 -> 259.7688213 | AO30: =V36 -> 259.7689066 | AP30: =V42 -> 259.7689034 | AQ30: =V48 -> 0 | AR30: =V54 -> 0
V32: 6th Turnover | W32: M | X32: ROR | Y32: ROE | AJ32: yes
C33: SLOBs | V33: ='Combined LG 2018 V5.0c'!S31 -> 260.2946038 | W33: ='Combined LG 2018 V5.0c'!T31 -> 6.822012847 | X33: =(+W33*V33)/100 -> 17.75733131 | Y33: ='Combined LG 2018 V5.0c'!X31 -> 0.2538976356 | Z33: =+$E$18 -> 0.25 | AA33: =Y33+Z33 -> 0.5038976356 | AB33: =100*($E$15*$E$17+($E$16*(AA33/100))/(1-$E$19)) -> 2.27573083 | AC33: ='Combined LG 2018 V5.0c'!AE31 -> 0.05637641954 | AD33: =ROUND($E$6/(1-AC33),0) -> 2949282 | AE33: =IF(OR(OR(AD33=AD27,AD33=(AD27+1)),AD33=(AD19-1)),"yes","not yet") -> not yet | AF33: =100*(1-AC33) -> 94.36235805 | AJ33: =HLOOKUP($AJ$32,$AJ$26:$AR$30,$E$10+1) -> 259.8764891
C34: MSW | E34: =MSW!E4 -> 72223.60258 | V34: ='Combined LG 2018 V5.0c'!S32 -> 260.0447325 | W34: ='Combined LG 2018 V5.0c'!T32 -> 6.729367623 | X34: =(+W34*V34)/100 -> 17.49936603 | Y34: ='Combined LG 2018 V5.0c'!X32 -> 0.2489483018 | Z34: =+$E$18 -> 0.25 | AA34: =Y34+Z34 -> 0.4989483018 | AB34: =100*($E$15*$E$17+($E$16*(AA34/100))/(1-$E$19)) -> 2.273289477 | AC34: ='Combined LG 2018 V5.0c'!AE32 -> 0.05549176977 | AD34: =ROUND($E$6/(1-AC34),0) -> 2946520 | AE34: =IF(OR(OR(AD34=AD28,AD34=(AD28+1)),AD34=(AD28-1)),"yes","not yet") -> not yet | AF34: =100*(1-AC34) -> 94.45082302
C35: RCY | E35: =RCY!E4 -> 238525.8965 | V35: ='Combined LG 2018 V5.0c'!S33 -> 259.8764922 | W35: ='Combined LG 2018 V5.0c'!T33 -> 6.666890973 | X35: =(+W35*V35)/100 -> 17.3256824 | Y35: ='Combined LG 2018 V5.0c'!X33 -> 0.2456159995 | Z35: =+$E$18 -> 0.25 | AA35: =Y35+Z35 -> 0.4956159995 | AB35: =100*($E$15*$E$17+($E$16*(AA35/100))/(1-$E$19)) -> 2.271645755 | AC35: ='Combined LG 2018 V5.0c'!AE33 -> 0.05489519316 | AD35: =ROUND($E$6/(1-AC35),0) -> 2944660 | AE35: =IF(OR(OR(AD35=AD29,AD35=(AD29+1)),AD35=(AD29-1)),"yes","not yet") -> not yet | AF35: =100*(1-AC35) -> 94.51048068 | AJ35: =HLOOKUP(1,$AJ$11:$AR$15,$E$10+1) -> not yet | AK35: =HLOOKUP(2,$AJ$11:$AR$15,$E$10+1) -> not yet | AL35: =HLOOKUP(3,$AJ$11:$AR$15,$E$10+1) -> not yet | AM35: =HLOOKUP(4,$AJ$11:$AR$15,$E$10+1) -> not yet | AN35: =HLOOKUP(5,$AJ$11:$AR$15,$E$10+1) -> not yet | AO35: =HLOOKUP(6,$AJ$11:$AR$15,$E$10+1) -> not yet | AP35: =HLOOKUP(7,$AJ$11:$AR$15,$E$10+1) -> yes | AQ35: =HLOOKUP(8,$AJ$11:$AR$15,$E$10+1) -> 0 | AR35: =HLOOKUP(9,$AJ$11:$AR$15,$E$10+1) -> 0
C36: YW | E36: =YW!E4 -> -32169.39166 | V36: ='Combined LG 2018 V5.0c'!S34 -> 259.7689066 | W36: ='Combined LG 2018 V5.0c'!T34 -> 6.626897325 | X36: =(+W36*V36)/100 -> 17.21461872 | Y36: ='Combined LG 2018 V5.0c'!X34 -> 0.2434851267 | Z36: =+$E$18 -> 0.25 | AA36: =Y36+Z36 -> 0.4934851267 | AB36: =100*($E$15*$E$17+($E$16*(AA36/100))/(1-$E$19)) -> 2.270594661 | AC36: ='Combined LG 2018 V5.0c'!AE34 -> 0.054513302 | AD36: =ROUND($E$6/(1-AC36),0) -> 2943470 | AE36: =IF(OR(OR(AD36=AD30,AD36=(AD30+1)),AD36=(AD30-1)),"yes","not yet") -> not yet | AF36: =100*(1-AC36) -> 94.5486698 | AI36: 1 | AJ36: =AD3 -> 2960664.584 | AK36: =AD9 -> 2948838.865 | AL36: =AD15 -> 2949299.189 | AM36: =AD21 -> 2949281.211 | AN36: =AD27 -> 2949281.913 | AO36: =AD33 -> 2949282 | AP36: =AD39 -> 2949282 | AQ36: =AD45 -> 0 | AR36: =AD51 -> 0
C37: MF RCY | E37: ='MF RCY'!E4 -> -8578.505418 | AI37: 2 | AJ37: =AD4 -> 2960664.584 | AK37: =AD10 -> 2945979.21 | AL37: =AD16 -> 2946540.243 | AM37: =AD22 -> 2946518.721 | AN37: =AD28 -> 2946519.547 | AO37: =AD34 -> 2946520 | AP37: =AD40 -> 2946520 | AQ37: =AD46 -> 0 | AR37: =AD52 -> 0
C38: Combined | E38: =+E4 -> 270001.602 | V38: 7th turnover | W38: M | X38: ROR | Y38: ROE | AI38: 3 | AJ38: =AD5 -> 2960664.584 | AK38: =AD11 -> 2944056.022 | AL38: =AD17 -> 2944682.463 | AM38: =AD23 -> 2944658.724 | AN38: =AD29 -> 2944659.623 | AO38: =AD35 -> 2944660 | AP38: =AD41 -> 2944660 | AQ38: =AD47 -> 0 | AR38: =AD53 -> 0
E39: =+E38-SUM(E34:E37) -> 0 | V39: ='Combined LG 2018 V5.0c'!S36 -> 260.2946013 | W39: ='Combined LG 2018 V5.0c'!T36 -> 6.822012892 | X39: =(+W39*V39)/100 -> 17.75733126 | Y39: ='Combined LG 2018 V5.0c'!X36 -> 0.2538976346 | Z39: =+$E$18 -> 0.25 | AA39: =Y39+Z39 -> 0.5038976346 | AB39: =100*($E$15*$E$17+($E$16*(AA39/100))/(1-$E$19)) -> 2.27573083 | AC39: ='Combined LG 2018 V5.0c'!AE36 -> 0.05637641989 | AD39: =ROUND($E$6/(1-AC39),0) -> 2949282 | AE39: =IF(OR(OR(AD39=AD33,AD39=(AD33+1)),AD39=(AD25-1)),"yes","not yet") -> yes | AF39: =100*(1-AC39) -> 94.36235801 | AI39: 4 | AJ39: =AD6 -> 2960664.584 | AK39: =AD12 -> 2942827.134 | AL39: =AD18 -> 2943494.392 | AM39: =AD24 -> 2943469.305 | AN39: =AD30 -> 2943470.248 | AO39: =AD36 -> 2943470 | AP39: =AD42 -> 2943470 | AQ39: =AD48 -> 0 | AR39: =AD54 -> 0
V40: ='Combined LG 2018 V5.0c'!S37 -> 260.0447296 | W40: ='Combined LG 2018 V5.0c'!T37 -> 6.729367674 | X40: =(+W40*V40)/100 -> 17.49936597 | Y40: ='Combined LG 2018 V5.0c'!X37 -> 0.2489483006 | Z40: =+$E$18 -> 0.25 | AA40: =Y40+Z40 -> 0.4989483006 | AB40: =100*($E$15*$E$17+($E$16*(AA40/100))/(1-$E$19)) -> 2.273289476 | AC40: ='Combined LG 2018 V5.0c'!AE37 -> 0.05549177016 | AD40: =ROUND($E$6/(1-AC40),0) -> 2946520 | AE40: =IF(OR(OR(AD40=AD34,AD40=(AD34+1)),AD40=(AD34-1)),"yes","not yet") -> yes | AF40: =100*(1-AC40) -> 94.45082298
V41: ='Combined LG 2018 V5.0c'!S38 -> 259.8764891 | W41: ='Combined LG 2018 V5.0c'!T38 -> 6.666891028 | X41: =(+W41*V41)/100 -> 17.32568233 | Y41: ='Combined LG 2018 V5.0c'!X38 -> 0.2456159983 | Z41: =+$E$18 -> 0.25 | AA41: =Y41+Z41 -> 0.4956159983 | AB41: =100*($E$15*$E$17+($E$16*(AA41/100))/(1-$E$19)) -> 2.271645754 | AC41: ='Combined LG 2018 V5.0c'!AE38 -> 0.05489519358 | AD41: =ROUND($E$6/(1-AC41),0) -> 2944660 | AE41: =IF(OR(OR(AD41=AD35,AD41=(AD35+1)),AD41=(AD35-1)),"yes","not yet") -> yes | AF41: =100*(1-AC41) -> 94.51048064 | AJ41: yes
V42: ='Combined LG 2018 V5.0c'!S39 -> 259.7689034 | W42: ='Combined LG 2018 V5.0c'!T39 -> 6.626897381 | X42: =(+W42*V42)/100 -> 17.21461866 | Y42: ='Combined LG 2018 V5.0c'!X39 -> 0.2434851254 | Z42: =+$E$18 -> 0.25 | AA42: =Y42+Z42 -> 0.4934851254 | AB42: =100*($E$15*$E$17+($E$16*(AA42/100))/(1-$E$19)) -> 2.27059466 | AC42: ='Combined LG 2018 V5.0c'!AE39 -> 0.05451330242 | AD42: =ROUND($E$6/(1-AC42),0) -> 2943470 | AE42: =IF(OR(OR(AD42=AD36,AD42=(AD36+1)),AD42=(AD36-1)),"yes","not yet") -> yes | AF42: =100*(1-AC42) -> 94.54866976 | AJ42: =HLOOKUP($AJ$32,$AJ$35:$AR$39,$E$10+1) -> 2944660
V44: 8th turnover | W44: M | X44: ROR | Y44: ROE

Sheet MSW LG 2018 V5.0c
B2: Public Companies | F2: Public Co | I2: LURITO - GALLAGHER FORMULA MODEL 2018 V5.0a | M2: Public Co | R2: CALCULATION TABLES | AH2: Revenue Senstive Taxes (RevS)
K3: (b) + (c) | M3: (d) + (e) | T3: Regession | V3: Regession | W3: Regession | X3: Regession | Z3: Adjusted | AA3: Hauler | AB3: Hauler | AC3: Hauler | AD3: Hauler | AE3: Hauler | AF3: Hauler | AG3: Revenue Req | AH3: Revenue | AI3: Revenue
B4: INPUTS - Test Year | H4: (a) | I4: (b) | J4: (c) | K4: (d) | L4: (e) | M4: (f) | T4: Before Tax | V4: Less | W4: Adjusted | X4: After Tax | Y4: Flotation Costs | Z4: After Tax | AA4: Weighted Cost | AB4: Weighted Cost | AC4: Weighted Cost | AD4: Adjusted | AE4: Before Tax | AF4: Before Tax | AG4: Before RevS | AH4: Increase Before | AI4: Increase After | AJ4: RevS | AK4: Total
B5: Operating Revenue | C5: 1630829.294 | F5: Line | I5: Historical | J5: Revenue | K5: Proforma | L5: Add: Revenue | M5: Revenue | T5: Profit Ratio | U5: BTROI | V5: WCDebt | W5: BTROE | X5: ROE | Y5: Basis Points | Z5: ROE | AA5: Equity | AB5: Equity BFT | AC5: Debt | AD5: BTROR | AE5: Profit Ratio | AF5: Operating Ratio | AG5: Taxes | AH5: RevS Taxes | AI5: RevS Taxes | AJ5: Taxes | AK5: Revenue Req
B6: Operating Expenses | C6: 1618481.245 | F6: No. | J6: Change | L6: Sensitive Taxes | M6: Requirement | R6: 1 | S6: =Revenue/Investment*100 -> 301.3277687 | T6: =EXP(y_inter1-(slope*LN(+S6))) -> 6.172326664 | U6: =(+S6*T6/100)/100 -> 0.1859893421 | V6: =regDebt_weighted -> 0.03586 | W6: =+U6-V6 -> 0.1501293421 | X6: =+((W6*(1-0.34))-Pfd_weighted)/Equity_percent -> 0.270044668 | Y6: =+C15 -> 0.0025 | Z6: =+X6+Y6 -> 0.272544668 | AA6: =Z6*equityP -> 0.1341689981 | AB6: =+AA6/(1-taxrate) -> 0.1344378739 | AC6: =debtP*Debt_Rate -> 0.02027173677 | AD6: =AC6+AB6 -> 0.1547096107 | AE6: =AD6/(S6/100) -> 0.05134263308 | AF6: =1-AE6 -> 0.9486573669 | AG6: =expenses/(AF6) -> 1706075.661 | AH6: =+AG6-Revenue -> 75246.36741 | AI6: =+AH6/$J$49 -> 81242.66639 | AJ6: =+AI6*$J$47 -> 2053.408393 | AK6: =ROUND(+AJ6+AG6,5) -> 1708129.07
B7: Investment | C7: 541214.4061 | F7: 1 | H7: Operating Revenue | I7: =IF(A64=TRUE,C5,0) -> 1630829.294 | J7: =(+$I8/($R50))-I7 -> 70304.96075 | K7: =+I7+J7 -> 1701134.255 | L7: =((+J7/J49*K35)-J7) -> 1918.561672 | M7: =IFERROR(+K7+L7,0.00001) -> 1703052.816 | R7: 2 | S7: =Revenue/Investment*100 -> 301.3277687 | T7: =EXP(y_inter1-(slope*LN(+S7))) -> 6.172326664 | U7: =(+S7*T7/100)/100 -> 0.1859893421 | V7: =regDebt_weighted -> 0.03586 | W7: =+U7-V7 -> 0.1501293421 | X7: =+((W7*(1-0.34))-Pfd_weighted)/Equity_percent -> 0.270044668 | Y7: =+Y6 -> 0.0025 | Z7: =+X7+Y7 -> 0.272544668 | AA7: =Z7*equityP -> 0.1341689981 | AB7: =+AA7/(1-taxrate) -> 0.1344378739 | AC7: =debtP*Debt_Rate -> 0.02027173677 | AD7: =AC7+AB7 -> 0.1547096107 | AE7: =AD7/(S7/100) -> 0.05134263308 | AF7: =1-AE7 -> 0.9486573669 | AG7: =expenses/(AF7) -> 1706075.661 | AH7: =+AG7-Revenue -> 75246.36741 | AI7: =+AH7/$J$49 -> 81242.66639 | AJ7: =+AI7*$J$47 -> 2053.408393 | AK7: =ROUND(+AJ7+AG7,5) -> 1708129.07
B8: Capital Structure-Debt % | C8: 0.5077173987 | F8: =+F7+1 -> 2 | H8: Operating Expenses | I8: =IF(A64=TRUE,C6,0) -> 1618481.245 | K8: =+I8 -> 1618481.245 | L8: =+L7 -> 1918.561672 | M8: =IFERROR(+K8+L8,0.00001) -> 1620399.806 | R8: 3 | S8: =Revenue/Investment*100 -> 301.3277687 | T8: =EXP(y_inter1-(slope*LN(+S8))) -> 6.172326664 | U8: 0.1859893421 | V8: =regDebt_weighted -> 0.03586 | W8: 0.1501293421 | X8: =+((W8*(1-0.34))-Pfd_weighted)/Equity_percent -> 0.270044668 | Y8: =+Y7 -> 0.0025 | Z8: =+X8+Y8 -> 0.272544668 | AA8: =Z8*equityP -> 0.1341689981 | AB8: =+AA8/(1-taxrate) -> 0.1344378739 | AC8: =debtP*Debt_Rate -> 0.02027173677 | AD8: 0.1547096107 | AE8: 0.05134263308 | AF8: 0.9486573669 | AG8: =expenses/(AF8) -> 1706075.661 | AH8: =+AG8-Revenue -> 75246.36741 | AI8: =+AH8/$J$49 -> 81242.66639 | AJ8: =+AI8*$J$47 -> 2053.408393 | AK8: 1708129.07
B9: Capital Structure-Debt Rate | C9: 0.03992720522 | F9: =+F8+1 -> 3 | H9: Operating Income | I9: =+I7-I8 -> 12348.04928 | K9: =+K7-K8 -> 82653.01003 | M9: =+M7-M8 -> 82653.01003 | R9: 4 | S9: =Revenue/Investment*100 -> 301.3277687 | T9: =EXP(y_inter1-(slope*LN(+S9))) -> 6.172326664 | U9: 0.1859893421 | V9: =regDebt_weighted -> 0.03586 | W9: 0.1501293421 | X9: =+((W9*(1-0.34))-Pfd_weighted)/Equity_percent -> 0.270044668 | Y9: =+Y8 -> 0.0025 | Z9: 0.272544668 | AA9: =Z9*equityP -> 0.1341689981 | AB9: =+AA9/(1-taxrate) -> 0.1344378739 | AC9: =debtP*Debt_Rate -> 0.02027173677 | AD9: 0.1547096107 | AE9: 0.05134263308 | AF9: 0.9486573669 | AG9: =expenses/(AF9) -> 1706075.661 | AH9: =+AG9-Revenue -> 75246.36741 | AI9: =+AH9/$J$49 -> 81242.66639 | AJ9: =+AI9*$J$47 -> 2053.408393 | AK9: 1708129.07
B10: Federal Income Tax Rate | C10: 0.002 | F10: 4 | R10: 2nd Iteration
B11: B&O Tax Rate | C11: 0.015 | F11: 5 | H11: Interest Expense | I11: =+K11 -> 10971.35598 | K11: =+M27 -> 10971.35598 | M11: =+K11 -> 10971.35598 | R11: 1 | S11: =IF((AK6/Investment*100)>0,(AK6/Investment*100),0) -> 315.6104217 | T11: =EXP(y_inter1-(slope*LN(S11))) -> 5.979967291 | U11: =(+S11*T11/100)/100 -> 0.1887339999 | V11: =regDebt_weighted -> 0.03586 | W11: =+U11-V11 -> 0.1528739999 | X11: =+((W11*(1-0.34))-Pfd_weighted)/Equity_percent -> 0.2753105812 | Y11: =+Y9 -> 0.0025 | Z11: =+X11+Y11 -> 0.2778105812 | AA11: =Z11*equityP -> 0.1367613156 | AB11: =+AA11/(1-taxrate) -> 0.1370353863 | AC11: =debtP*Debt_Rate -> 0.02027173677 | AD11: =+AC11+AB11 -> 0.1573071231 | AE11: =+AD11/(S11/100) -> 0.04984218273 | AF11: =1-AE11 -> 0.9501578173 | AG11: =expenses/(AF11) -> 1703381.496 | AH11: =+AG11-Revenue -> 72552.20252 | AI11: =+AH11/$J$49 -> 78333.80651 | AJ11: =+AI11*$J$47 -> 1979.886959 | AK11: =ROUND(+AJ11+AG11,5) -> 1705361.383
B12: WUTC Fee | C12: 0.004275 | F12: 6 | H12: Income Tax Expense | I12: =IF(I14<0,0,+J38*I14) -> 2.747890831 | J12: =+K12-I12 -> 140.6154173 | K12: =+(K9-K11)*taxrate -> 143.3633081 | M12: =+K12 -> 143.3633081 | R12: 2 | S12: =IF((AK7/Investment*100)>0,(AK7/Investment*100),0) -> 315.6104217 | T12: =EXP(y_inter2-(slope*LN(+S12))) -> 5.894885428 | U12: =(+S12*T12/100)/100 -> 0.1860487276 | V12: =regDebt_weighted -> 0.03586 | W12: =+U12-V12 -> 0.1501887276 | X12: =+((W12*(1-0.34))-Pfd_weighted)/Equity_percent -> 0.2701586053 | Y12: =+Y11 -> 0.0025 | Z12: =+X12+Y12 -> 0.2726586053 | AA12: =Z12*equityP -> 0.1342250875 | AB12: =+AA12/(1-taxrate) -> 0.1344940756 | AC12: =debtP*Debt_Rate -> 0.02027173677 | AD12: =+AC12+AB12 -> 0.1547658124 | AE12: =+AD12/(S12/100) -> 0.04903697778 | AF12: =1-AE12 -> 0.9509630222 | AG12: =expenses/(AF12) -> 1701939.199 | AH12: =+AG12-Revenue -> 71109.90542 | AI12: =+AH12/$J$49 -> 76776.57437 | AJ12: =+AI12*$J$47 -> 1940.527917 | AK12: =ROUND(+AJ12+AG12,5) -> 1703879.727
B13: City Tax | C13: 0 | F13: 7 | R13: 3 | S13: =IF((AK8/Investment*100)>0,(AK8/Investment*100),0) -> 315.6104217 | T13: =EXP(y_inter3-(slope*LN(S13))) -> 5.837572825 | U13: =(+S13*T13/100)/100 -> 0.1842398821 | V13: =regDebt_weighted -> 0.03586 | W13: =+U13-V13 -> 0.1483798821 | X13: =+((W13*(1-0.34))-Pfd_weighted)/Equity_percent -> 0.2666881459 | Y13: =+Y12 -> 0.0025 | Z13: =+X13+Y13 -> 0.2691881459 | AA13: =Z13*equityP -> 0.1325166407 | AB13: =+AA13/(1-taxrate) -> 0.1327822051 | AC13: =debtP*Debt_Rate -> 0.02027173677 | AD13: =+AC13+AB13 -> 0.1530539419 | AE13: =+AD13/(S13/100) -> 0.04849457792 | AF13: =1-AE13 -> 0.9515054221 | AG13: =expenses/(AF13) -> 1700969.019 | AH13: =+AG13-Revenue -> 70139.72537 | AI13: =+AH13/$J$49 -> 75729.08174 | AJ13: =+AI13*$J$47 -> 1914.052541 | AK13: 1702883.072
B14: Bad Debts | C14: 0.006 | F14: 8 | H14: Net Income | I14: =+I9-SUM(I11:I13) -> 1373.945416 | K14: =+K9-SUM(K11:K13) -> 71538.29075 | M14: =+M9-SUM(M11:M13) -> 71538.29075 | R14: 4 | S14: =IF((AK9/Investment*100)>0,(AK9/Investment*100),0) -> 315.6104217 | T14: =EXP(y_inter4-(slope*LN(S14))) -> 5.80091172 | U14: =(+S14*T14/100)/100 -> 0.1830828194 | V14: =regDebt_weighted -> 0.03586 | W14: =+U14-V14 -> 0.1472228194 | X14: =+((W14*(1-0.34))-Pfd_weighted)/Equity_percent -> 0.2644682001 | Y14: =+Y13 -> 0.0025 | Z14: 0.2669682001 | AA14: =Z14*equityP -> 0.1314238 | AB14: =+AA14/(1-taxrate) -> 0.1316871744 | AC14: =debtP*Debt_Rate -> 0.02027173677 | AD14: =+AC14+AB14 -> 0.1519589111 | AE14: =+AD14/(S14/100) -> 0.04814762145 | AF14: =1-AE14 -> 0.9518523785 | AG14: =expenses/(AF14) -> 1700349.005 | AH14: =+AG14-Revenue -> 69519.71094 | AI14: =+AH14/$J$49 -> 75059.65906 | AJ14: =+AI14*$J$47 -> 1897.132883 | AK14: 1702246.138
B15: Basis Points - Flotation | C15: 0.0025 | F15: 9 | R15: 3rd Iteration
D16: Yes | F16: 10 | H16: Operating Ratio | I16: =+I8/I7 -> 0.9924283619 | K16: =+K8/K7 -> 0.951413 | M16: =+M8/M7 -> 0.9514677353 | R16: 1 | S16: =AK11/Investment*100 -> 315.0990373 | T16: =EXP(y_inter1-(slope*LN(+S16))) -> 5.986600664 | U16: =(+S16*T16/100)/100 -> 0.1886372106 | V16: =regDebt_weighted -> 0.03586 | W16: =+U16-V16 -> 0.1527772106 | X16: =+((W16*(1-0.34))-Pfd_weighted)/Equity_percent -> 0.2751248808 | Y16: =+Y14 -> 0.0025 | Z16: =+X16+Y16 -> 0.2776248808 | AA16: =Z16*equityP -> 0.1366698985 | AB16: =+AA16/(1-taxrate) -> 0.1369437861 | AC16: =debtP*Debt_Rate -> 0.02027173677 | AD16: =+AC16+AB16 -> 0.1572155228 | AE16: =+AD16/(S16/100) -> 0.04989400291 | AF16: =1-AE16 -> 0.9501059971 | AG16: =expenses/(AF16) -> 1703474.401 | AH16: =+AG16-Revenue -> 72645.10745 | AI16: =+AH16/$J$49 -> 78434.11493 | AJ16: =+AI16*$J$47 -> 1982.422255 | AK16: =ROUND(+AJ16+AG16,5) -> 1705456.824
B17: Check when input is complete | D17: No | F17: 11 | R17: 2 | S17: =AK12/Investment*100 -> 314.8252722 | T17: =EXP(y_inter2-(slope*LN(+S17))) -> 5.904932361 | U17: =(+S17*T17/100)/100 -> 0.1859021938 | V17: =regDebt_weighted -> 0.03586 | W17: =+U17-V17 -> 0.1500421938 | X17: =+((W17*(1-0.34))-Pfd_weighted)/Equity_percent -> 0.2698774648 | Y17: =+Y16 -> 0.0025 | Z17: =+X17+Y17 -> 0.2723774648 | AA17: =Z17*equityP -> 0.1340866869 | AB17: =+AA17/(1-taxrate) -> 0.1343553977 | AC17: =debtP*Debt_Rate -> 0.02027173677 | AD17: =+AC17+AB17 -> 0.1546271345 | AE17: =+AD17/(S17/100) -> 0.049115223 | AF17: =1-AE17 -> 0.950884777 | AG17: =expenses/(AF17) -> 1702079.246 | AH17: =+AG17-Revenue -> 71249.95246 | AI17: =+AH17/$J$49 -> 76927.7816 | AJ17: =+AI17*$J$47 -> 1944.34968 | AK17: =ROUND(+AJ17+AG17,5) -> 1704023.596
F18: 12 | H18: Revenue Requirement | R18: 3 | S18: =AK13/Investment*100 -> 314.6411205 | T18: =EXP(y_inter3-(slope*LN(S18))) -> 5.849861661 | U18: =(+S18*T18/100)/100 -> 0.1840607028 | V18: =regDebt_weighted -> 0.03586 | W18: =+U18-V18 -> 0.1482007028 | X18: =+((W18*(1-0.34))-Pfd_weighted)/Equity_percent -> 0.2663443716 | Y18: =+Y17 -> 0.0025 | Z18: =+X18+Y18 -> 0.2688443716 | AA18: =Z18*equityP -> 0.1323474066 | AB18: =+AA18/(1-taxrate) -> 0.1326126319 | AC18: =debtP*Debt_Rate -> 0.02027173677 | AD18: =+AC18+AB18 -> 0.1528843686 | AE18: =+AD18/(S18/100) -> 0.04859007888 | AF18: =1-AE18 -> 0.9514099211 | AG18: =expenses/(AF18) -> 1701139.76 | AH18: =+AG18-Revenue -> 70310.46582 | AI18: =+AH18/$J$49 -> 75913.42832 | AJ18: =+AI18*$J$47 -> 1918.711901 | AK18: 1703058.472
B19: For Intial input: Uncheck Checkbox Until Completed | F19: 13 | I19: Historical Revenue | J19: =+Revenue -> 1630829.294 | L19: Revenue Increase before taxes | M19: =+J7 -> 70304.96075 | R19: 4 | S19: =AK14/Investment*100 -> 314.5234344 | T19: =EXP(y_inter4-(slope*LN(S19))) -> 5.81461035 | U19: =(+S19*T19/100)/100 -> 0.1828831217 | V19: =regDebt_weighted -> 0.03586 | W19: =+U19-V19 -> 0.1470231217 | X19: =+((W19*(1-0.34))-Pfd_weighted)/Equity_percent -> 0.2640850591 | Y19: =+Y18 -> 0.0025 | Z19: 0.2665850591 | AA19: =Z19*equityP -> 0.1312351864 | AB19: =+AA19/(1-taxrate) -> 0.1314981827 | AC19: =debtP*Debt_Rate -> 0.02027173677 | AD19: =+AC19+AB19 -> 0.1517699195 | AE19: =+AD19/(S19/100) -> 0.04825393052 | AF19: =1-AE19 -> 0.9517460695 | AG19: =expenses/(AF19) -> 1700538.932 | AH19: =+AG19-Revenue -> 69709.63819 | AI19: =+AH19/$J$49 -> 75264.7214 | AJ19: =+AI19*$J$47 -> 1902.315833 | AK19: 1702441.248
F20: 14 | I20: Rate Increase | J20: =+J21-J19 -> 72223.52242 | L20: Rev Sensitive Taxes | M20: =+L8 -> 1918.561672 | R20: 4th Iteration
F21: 15 | I21: Revenue Requirement | J21: =+M7 -> 1703052.816 | L21: Rate Increase | M21: =+M19+M20 -> 72223.52242 | R21: 1 | S21: =AK16/Investment*100 -> 315.1166718 | T21: =EXP(y_inter1-(slope*LN(+S21))) -> 5.986371618 | U21: =(+S21*T21/100)/100 -> 0.18864055 | V21: =regDebt_weighted -> 0.03586 | W21: =+U21-V21 -> 0.15278055 | X21: =+((W21*(1-0.34))-Pfd_weighted)/Equity_percent -> 0.2751312878 | Y21: =+Y19 -> 0.0025 | Z21: =+X21+Y21 -> 0.2776312878 | AA21: =Z21*equityP -> 0.1366730526 | AB21: =+AA21/(1-taxrate) -> 0.1369469465 | AC21: =debtP*Debt_Rate -> 0.02027173677 | AD21: =+AC21+AB21 -> 0.1572186832 | AE21: =+AD21/(S21/100) -> 0.04989221369 | AF21: =1-AE21 -> 0.9501077863 | AG21: =expenses/(AF21) -> 1703471.193 | AH21: =+AG21-Revenue -> 72641.89951 | AI21: =+AH21/$J$49 -> 78430.65136 | AJ21: =+AI21*$J$47 -> 1982.334713 | AK21: =ROUND(+AJ21+AG21,5) -> 1705453.528
F22: 16 | R22: 2 | S22: =AK17/Investment*100 -> 314.8518548 | T22: =EXP(y_inter2-(slope*LN(+S22))) -> 5.904591515 | U22: =(+S22*T22/100)/100 -> 0.185907159 | V22: =regDebt_weighted -> 0.03586 | W22: =+U22-V22 -> 0.150047159 | X22: =+((W22*(1-0.34))-Pfd_weighted)/Equity_percent -> 0.2698869912 | Y22: =+Y21 -> 0.0025 | Z22: =+X22+Y22 -> 0.2723869912 | AA22: =Z22*equityP -> 0.1340913766 | AB22: =+AA22/(1-taxrate) -> 0.1343600968 | AC22: =debtP*Debt_Rate -> 0.02027173677 | AD22: =+AC22+AB22 -> 0.1546318335 | AE22: =+AD22/(S22/100) -> 0.04911256872 | AF22: =1-AE22 -> 0.9508874313 | AG22: =expenses/(AF22) -> 1702074.495 | AH22: =+AG22-Revenue -> 71245.20133 | AI22: =+AH22/$J$49 -> 76922.65185 | AJ22: =+AI22*$J$47 -> 1944.220025 | AK22: =ROUND(+AJ22+AG22,5) -> 1704018.715
B23: 2018 Version Update Changes | F23: 17 | R23: 3 | S23: =AK18/Investment*100 -> 314.6735291 | T23: =EXP(y_inter3-(slope*LN(S23))) -> 5.849449754 | U23: =(+S23*T23/100)/100 -> 0.1840666997 | V23: =regDebt_weighted -> 0.03586 | W23: =+U23-V23 -> 0.1482066997 | X23: =+((W23*(1-0.34))-Pfd_weighted)/Equity_percent -> 0.2663558774 | Y23: =+Y22 -> 0.0025 | Z23: =+X23+Y23 -> 0.2688558774 | AA23: =Z23*equityP -> 0.1323530707 | AB23: =+AA23/(1-taxrate) -> 0.1326183073 | AC23: =debtP*Debt_Rate -> 0.02027173677 | AD23: =+AC23+AB23 -> 0.1528900441 | AE23: =+AD23/(S23/100) -> 0.04858687813 | AF23: =1-AE23 -> 0.9514131219 | AG23: =expenses/(AF23) -> 1701134.037 | AH23: =+AG23-Revenue -> 70304.74284 | AI23: =+AH23/$J$49 -> 75907.24928 | AJ23: =+AI23*$J$47 -> 1918.555726 | AK23: 1703052.593
B24: ● Allows Income Tax Rate Changes, | F24: 18 | H24: Captial Structure Financing Investment | K24: Financing Cost | R24: 4 | S24: =AK19/Investment*100 -> 314.5594849 | T24: =EXP(y_inter4-(slope*LN(S24))) -> 5.814154751 | U24: =(+S24*T24/100)/100 -> 0.1828897524 | V24: =regDebt_weighted -> 0.03586 | W24: =+U24-V24 -> 0.1470297524 | X24: =+((W24*(1-0.34))-Pfd_weighted)/Equity_percent -> 0.2640977807 | Y24: =+Y23 -> 0.0025 | Z24: 0.2665977807 | AA24: =Z24*equityP -> 0.131241449 | AB24: =+AA24/(1-taxrate) -> 0.1315044579 | AC24: =debtP*Debt_Rate -> 0.02027173677 | AD24: =+AC24+AB24 -> 0.1517761947 | AE24: =+AD24/(S24/100) -> 0.04825039522 | AF24: =1-AE24 -> 0.9517496048 | AG24: =expenses/(AF24) -> 1700532.615 | AH24: =+AG24-Revenue -> 69703.3215 | AI24: =+AH24/$J$49 -> 75257.90134 | AJ24: =+AI24*$J$47 -> 1902.143456 | AK24: 1702434.759
B25: ● Minimizes impact of changes in test-year revenue from | F25: 19 | H25: Type | I25: Percent | J25: Amount | K25: Cost of Capital | L25: Weighted | M25: Amount | R25: 5th Iteration
B26: resulting revenue requirment, | F26: 20 | H26: Equity | I26: =1-I27 -> 0.4922826013 | J26: =+I26*J28 -> 266430.4357 | K26: =+K34 -> 0.2685064511 | L26: =+K26*I26 -> 0.1321810542 | M26: =+J26*K26 -> 71538.29075 | R26: 1 | S26: =AK21/Investment*100 -> 315.1160629 | T26: =EXP(y_inter1-(slope*LN(+S26))) -> 5.986379527 | U26: =(+S26*T26/100)/100 -> 0.1886404347 | V26: =regDebt_weighted -> 0.03586 | W26: =+U26-V26 -> 0.1527804347 | X26: =+((W26*(1-0.34))-Pfd_weighted)/Equity_percent -> 0.2751310666 | Y26: =+Y24 -> 0.0025 | Z26: =+X26+Y26 -> 0.2776310666 | AA26: =Z26*equityP -> 0.1366729437 | AB26: =+AA26/(1-taxrate) -> 0.1369468373 | AC26: =debtP*Debt_Rate -> 0.02027173677 | AD26: =+AC26+AB26 -> 0.1572185741 | AE26: =+AD26/(S26/100) -> 0.04989227547 | AF26: =1-AE26 -> 0.9501077245 | AG26: =expenses/(AF26) -> 1703471.304 | AH26: =+AG26-Revenue -> 72642.01027 | AI26: =+AH26/$J$49 -> 78430.77094 | AJ26: =+AI26*$J$47 -> 1982.337736 | AK26: =ROUND(+AJ26+AG26,5) -> 1705453.642
B27: ● Corrects interest rate transposition in LG. | F27: 21 | H27: Debt | I27: =IF(A64=TRUE,C8,0) -> 0.5077173987 | J27: =+I27*J28 -> 274783.9704 | K27: =IF(A64=TRUE,C9,0) -> 0.03992720522 | L27: =+K27*I27 -> 0.02027173677 | M27: =+K27*J27 -> 10971.35598 | R27: 2 | S27: =AK22/Investment*100 -> 314.850953 | T27: =EXP(y_inter2-(slope*LN(+S27))) -> 5.904603078 | U27: =(+S27*T27/100)/100 -> 0.1859069906 | V27: =regDebt_weighted -> 0.03586 | W27: =+U27-V27 -> 0.1500469906 | X27: =+((W27*(1-0.34))-Pfd_weighted)/Equity_percent -> 0.269886668 | Y27: =+Y26 -> 0.0025 | Z27: =+X27+Y27 -> 0.272386668 | AA27: =Z27*equityP -> 0.1340912175 | AB27: =+AA27/(1-taxrate) -> 0.1343599374 | AC27: =debtP*Debt_Rate -> 0.02027173677 | AD27: =+AC27+AB27 -> 0.1546316741 | AE27: =+AD27/(S27/100) -> 0.04911265876 | AF27: =1-AE27 -> 0.9508873412 | AG27: =expenses/(AF27) -> 1702074.656 | AH27: =+AG27-Revenue -> 71245.3625 | AI27: =+AH27/$J$49 -> 76922.82587 | AJ27: =+AI27*$J$47 -> 1944.224424 | AK27: =ROUND(+AJ27+AG27,5) -> 1704018.881
F28: 22 | H28: Total | I28: =SUM(I26:I27) -> 1 | J28: =IF(A64=TRUE,C7,0) -> 541214.4061 | L28: =SUM(L26:L27) -> 0.152452791 | M28: =SUM(M26:M27) -> 82509.64673 | R28: 3 | S28: =AK23/Investment*100 -> 314.6724428 | T28: =EXP(y_inter3-(slope*LN(S28))) -> 5.84946356 | U28: =(+S28*T28/100)/100 -> 0.1840664987 | V28: =regDebt_weighted -> 0.03586 | W28: =+U28-V28 -> 0.1482064987 | X28: =+((W28*(1-0.34))-Pfd_weighted)/Equity_percent -> 0.2663554918 | Y28: =+Y27 -> 0.0025 | Z28: =+X28+Y28 -> 0.2688554918 | AA28: =Z28*equityP -> 0.1323528809 | AB28: =+AA28/(1-taxrate) -> 0.1326181171 | AC28: =debtP*Debt_Rate -> 0.02027173677 | AD28: =+AC28+AB28 -> 0.1528898539 | AE28: =+AD28/(S28/100) -> 0.04858698541 | AF28: =1-AE28 -> 0.9514130146 | AG28: =expenses/(AF28) -> 1701134.229 | AH28: =+AG28-Revenue -> 70304.93465 | AI28: =+AH28/$J$49 -> 75907.45638 | AJ28: =+AI28*$J$47 -> 1918.56096 | AK28: 1703052.79
F29: 23 | R29: 4 | S29: =AK24/Investment*100 -> 314.5582859 | T29: =EXP(y_inter4-(slope*LN(S29))) -> 5.814169902 | U29: =(+S29*T29/100)/100 -> 0.1828895318 | V29: =regDebt_weighted -> 0.03586 | W29: =+U29-V29 -> 0.1470295318 | X29: =+((W29*(1-0.34))-Pfd_weighted)/Equity_percent -> 0.2640973576 | Y29: =+Y28 -> 0.0025 | Z29: 0.2665973576 | AA29: =Z29*equityP -> 0.1312412407 | AB29: =+AA29/(1-taxrate) -> 0.1315042492 | AC29: =debtP*Debt_Rate -> 0.02027173677 | AD29: =+AC29+AB29 -> 0.151775986 | AE29: =+AD29/(S29/100) -> 0.04825051279 | AF29: =1-AE29 -> 0.9517494872 | AG29: =expenses/(AF29) -> 1700532.826 | AH29: =+AG29-Revenue -> 69703.53156 | AI29: =+AH29/$J$49 -> 75258.12815 | AJ29: =+AI29*$J$47 -> 1902.149189 | AK29: 1702434.975
F30: 24 | J30: Before | K30: After | R30: 6th Iteration
F31: 25 | H31: Operating Statistics | J31: Income Tax | K31: Income Tax | R31: 1 | S31: =AK26/Investment*100 -> 315.1160839 | T31: =EXP(y_inter1-(slope*LN(+S31))) -> 5.986379254 | U31: =(+S31*T31/100)/100 -> 0.1886404387 | V31: =regDebt_weighted -> 0.03586 | W31: =+U31-V31 -> 0.1527804387 | X31: =+((W31*(1-0.34))-Pfd_weighted)/Equity_percent -> 0.2751310742 | Y31: =+Y29 -> 0.0025 | Z31: =+X31+Y31 -> 0.2776310742 | AA31: =Z31*equityP -> 0.1366729474 | AB31: =+AA31/(1-taxrate) -> 0.1369468411 | AC31: =debtP*Debt_Rate -> 0.02027173677 | AD31: =+AC31+AB31 -> 0.1572185779 | AE31: =+AD31/(S31/100) -> 0.04989227333 | AF31: =1-AE31 -> 0.9501077267 | AG31: =expenses/(AF31) -> 1703471.3 | AH31: =+AG31-Revenue -> 72642.00645 | AI31: =+AH31/$J$49 -> 78430.76681 | AJ31: =+AI31*$J$47 -> 1982.337631 | AK31: =ROUND(+AJ31+AG31,5) -> 1705453.638
F32: 26 | R32: 2 | S32: =AK27/Investment*100 -> 314.8509836 | T32: =EXP(y_inter2-(slope*LN(+S32))) -> 5.904602686 | U32: =(+S32*T32/100)/100 -> 0.1859069963 | V32: =regDebt_weighted -> 0.03586 | W32: =+U32-V32 -> 0.1500469963 | X32: =+((W32*(1-0.34))-Pfd_weighted)/Equity_percent -> 0.269886679 | Y32: =+Y31 -> 0.0025 | Z32: =+X32+Y32 -> 0.272386679 | AA32: =Z32*equityP -> 0.1340912229 | AB32: =+AA32/(1-taxrate) -> 0.1343599428 | AC32: =debtP*Debt_Rate -> 0.02027173677 | AD32: =+AC32+AB32 -> 0.1546316795 | AE32: =+AD32/(S32/100) -> 0.0491126557 | AF32: =1-AE32 -> 0.9508873443 | AG32: =expenses/(AF32) -> 1702074.651 | AH32: =+AG32-Revenue -> 71245.35703 | AI32: =+AH32/$J$49 -> 76922.81996 | AJ32: =+AI32*$J$47 -> 1944.224275 | AK32: =ROUND(+AJ32+AG32,5) -> 1704018.875
F33: 27 | H33: Return on Investment | J33: =+K9/J28 -> 0.1527176829 | K33: =+(M14+M11)/J28 -> 0.152452791 | R33: 3 | S33: =AK28/Investment*100 -> 314.6724792 | T33: =EXP(y_inter3-(slope*LN(S33))) -> 5.849463097 | U33: =(+S33*T33/100)/100 -> 0.1840665055 | V33: =regDebt_weighted -> 0.03586 | W33: =+U33-V33 -> 0.1482065055 | X33: =+((W33*(1-0.34))-Pfd_weighted)/Equity_percent -> 0.2663555047 | Y33: =+Y32 -> 0.0025 | Z33: =+X33+Y33 -> 0.2688555047 | AA33: =Z33*equityP -> 0.1323528872 | AB33: =+AA33/(1-taxrate) -> 0.1326181235 | AC33: =debtP*Debt_Rate -> 0.02027173677 | AD33: =+AC33+AB33 -> 0.1528898602 | AE33: =+AD33/(S33/100) -> 0.04858698181 | AF33: =1-AE33 -> 0.9514130182 | AG33: =expenses/(AF33) -> 1701134.222 | AH33: =+AG33-Revenue -> 70304.92823 | AI33: =+AH33/$J$49 -> 75907.44944 | AJ33: =+AI33*$J$47 -> 1918.560785 | AK33: 1703052.783
F34: 28 | H34: Return on Equity | J34: =+(M9-M11)/J26 -> 0.2690445402 | K34: =+M14/J26 -> 0.2685064511 | R34: 4 | S34: =AK29/Investment*100 -> 314.5583258 | T34: =EXP(y_inter4-(slope*LN(S34))) -> 5.814169399 | U34: =(+S34*T34/100)/100 -> 0.1828895392 | V34: =regDebt_weighted -> 0.03586 | W34: =+U34-V34 -> 0.1470295392 | X34: =+((W34*(1-0.34))-Pfd_weighted)/Equity_percent -> 0.2640973717 | Y34: =+Y33 -> 0.0025 | Z34: 0.2665973717 | AA34: =Z34*equityP -> 0.1312412476 | AB34: =+AA34/(1-taxrate) -> 0.1315042561 | AC34: =debtP*Debt_Rate -> 0.02027173677 | AD34: =+AC34+AB34 -> 0.1517759929 | AE34: =+AD34/(S34/100) -> 0.04825050888 | AF34: =1-AE34 -> 0.9517494911 | AG34: =expenses/(AF34) -> 1700532.819 | AH34: =+AG34-Revenue -> 69703.52458 | AI34: =+AH34/$J$49 -> 75258.1206 | AJ34: =+AI34*$J$47 -> 1902.148998 | AK34: 1702434.968
F35: 29 | H35: Operating Ratio | J35: =+K8/K7 -> 0.951413 | K35: =+M8/M7 -> 0.9514677353 | R35: 7th Iteration
F36: 30 | H36: Profit Margin | J36: =+K9/K7 -> 0.048587 | K36: =+J36 -> 0.048587 | R36: 1 | S36: =AK31/Investment*100 -> 315.1160831 | T36: =EXP(y_inter1-(slope*LN(+S36))) -> 5.986379263 | U36: =(+S36*T36/100)/100 -> 0.1886404386 | V36: =regDebt_weighted -> 0.03586 | W36: =+U36-V36 -> 0.1527804386 | X36: =+((W36*(1-0.34))-Pfd_weighted)/Equity_percent -> 0.275131074 | Y36: =+Y34 -> 0.0025 | Z36: =+X36+Y36 -> 0.277631074 | AA36: =Z36*equityP -> 0.1366729473 | AB36: =+AA36/(1-taxrate) -> 0.136946841 | AC36: =debtP*Debt_Rate -> 0.02027173677 | AD36: =+AC36+AB36 -> 0.1572185778 | AE36: =+AD36/(S36/100) -> 0.04989227341 | AF36: =1-AE36 -> 0.9501077266 | AG36: =expenses/(AF36) -> 1703471.301 | AH36: =+AG36-Revenue -> 72642.00658 | AI36: =+AH36/$J$49 -> 78430.76696 | AJ36: =+AI36*$J$47 -> 1982.337635 | AK36: =ROUND(+AJ36+AG36,5) -> 1705453.638
F37: 31 | H37: Final turnover | J37: =+S39/100 -> 3.145583244 | K37: =+J37 -> 3.145583244 | R37: 2 | S37: =AK32/Investment*100 -> 314.8509825 | T37: =EXP(y_inter2-(slope*LN(+S37))) -> 5.904602699 | U37: =(+S37*T37/100)/100 -> 0.1859069961 | V37: =regDebt_weighted -> 0.03586 | W37: =+U37-V37 -> 0.1500469961 | X37: =+((W37*(1-0.34))-Pfd_weighted)/Equity_percent -> 0.2698866786 | Y37: =+Y36 -> 0.0025 | Z37: =+X37+Y37 -> 0.2723866786 | AA37: =Z37*equityP -> 0.1340912227 | AB37: =+AA37/(1-taxrate) -> 0.1343599426 | AC37: =debtP*Debt_Rate -> 0.02027173677 | AD37: =+AC37+AB37 -> 0.1546316793 | AE37: =+AD37/(S37/100) -> 0.04911265581 | AF37: =1-AE37 -> 0.9508873442 | AG37: =expenses/(AF37) -> 1702074.651 | AH37: =+AG37-Revenue -> 71245.35722 | AI37: =+AH37/$J$49 -> 76922.82016 | AJ37: =+AI37*$J$47 -> 1944.22428 | AK37: =ROUND(+AJ37+AG37,5) -> 1704018.875
F38: 32 | H38: Tax Rate | J38: =+C10 -> 0.002 | K38: =+J38 -> 0.002 | R38: 3 | S38: =AK33/Investment*100 -> 314.672478 | T38: =EXP(y_inter3-(slope*LN(S38))) -> 5.849463112 | U38: =(+S38*T38/100)/100 -> 0.1840665052 | V38: =regDebt_weighted -> 0.03586 | W38: =+U38-V38 -> 0.1482065052 | X38: =+((W38*(1-0.34))-Pfd_weighted)/Equity_percent -> 0.2663555042 | Y38: =+Y37 -> 0.0025 | Z38: =+X38+Y38 -> 0.2688555042 | AA38: =Z38*equityP -> 0.132352887 | AB38: =+AA38/(1-taxrate) -> 0.1326181232 | AC38: =debtP*Debt_Rate -> 0.02027173677 | AD38: =+AC38+AB38 -> 0.15288986 | AE38: =+AD38/(S38/100) -> 0.04858698193 | AF38: =1-AE38 -> 0.9514130181 | AG38: =expenses/(AF38) -> 1701134.222 | AH38: =+AG38-Revenue -> 70304.92844 | AI38: =+AH38/$J$49 -> 75907.44967 | AJ38: =+AI38*$J$47 -> 1918.56079 | AK38: 1703052.783
F39: 33 | R39: 4 | S39: =AK34/Investment*100 -> 314.5583244 | T39: =EXP(y_inter4-(slope*LN(S39))) -> 5.814169415 | U39: =(+S39*T39/100)/100 -> 0.1828895389 | V39: =regDebt_weighted -> 0.03586 | W39: =+U39-V39 -> 0.1470295389 | X39: =+((W39*(1-0.34))-Pfd_weighted)/Equity_percent -> 0.2640973712 | Y39: =+Y38 -> 0.0025 | Z39: 0.2665973712 | AA39: =Z39*equityP -> 0.1312412474 | AB39: =+AA39/(1-taxrate) -> 0.1315042559 | AC39: =debtP*Debt_Rate -> 0.02027173677 | AD39: =+AC39+AB39 -> 0.1517759927 | AE39: =+AD39/(S39/100) -> 0.04825050901 | AF39: =1-AE39 -> 0.951749491 | AG39: =expenses/(AF39) -> 1700532.819 | AH39: =+AG39-Revenue -> 69703.52481 | AI39: =+AH39/$J$49 -> 75258.12085 | AJ39: =+AI39*$J$47 -> 1902.149005 | AK39: 1702434.968
F40: 34
F41: 35 | H41: Revenue Sensitive Taxes Charges | R41: Curve
F42: 36 | J42: Rate | K42: Taxes | R42: Lookup Table
F43: 37 | H43: B & O Tax | J43: =IF(A64=TRUE,C11,0) -> 0.015 | K43: =+J43*($J$7/$J$49) -> 1138.612268 | R43: 0 | S43: 1 | U43: Profit Margin | V43: =VLOOKUP(R48,R36:AG39,14) -> 0.04858698193
F44: 38 | H44: WUTC Fee | J44: =IF(A64=TRUE,C12,0) -> 0.004275 | K44: =+J44*($J$7/$J$49) -> 324.5044965 | R44: 50 | S44: 2 | U44: Operating Ratio | V44: =ROUND(1-V43,6) -> 0.951413
F45: 39 | H45: City Tax | J45: =IF(A64=TRUE,C13,0) -> 0 | K45: =+J45*($J$7/$J$49) -> 0 | R45: 125 | S45: 3 | U45: Percent Chg | V45: =+M7/Revenue-1 -> 0.04428637791
F46: 40 | H46: Bad Debts | J46: =IF(A64=TRUE,C14,0) -> 0.006 | K46: =+J46*($J$7/$J$49) -> 455.4449073 | R46: 401 | S46: 4
F47: 41 | H47: Revenue Sensitive | J47: =SUM(J43:J46) -> 0.025275 | K47: =+K43+K44+K45+K46 -> 1918.561672 | R47: =VLOOKUP(R48,R36:S39,2) -> 314.672478 | S47: Curve turnover | X47: @EXP(5.72260-(.68367*@LN(T)))
F48: 42 | R48: =VLOOKUP(S36,R43:S46,2) -> 3 | S48: Curve No. Used | X48: @EXP(5.70827-(.68367*@LN(T)))
F49: 43 | H49: Conversion Factor | J49: =((K35)-J47) -> 0.9261927353 | X49: @EXP(5.69850-(.68367*@LN(T)))
R50: =+V44 -> 0.951413 | S50: Operating Ratio | X50: @EXP(5.69220-(.68367*@LN(T)))
S53: Base Utility from LG Sample Study | W53: Regression Results
S54: Percent | T54: Cost | U54: Weighted | W54: Y intercept (1) | X54: 5.7226 | Y54: Y intercept (3) | Z54: 5.6985
R55: Debt | S55: 0.562 | T55: 0.0638 | U55: =ROUND(+S55*T55,5) -> 0.03586 | W55: Y intercept (2) | X55: 5.70827 | Y55: Y intercept (4) | Z55: 5.6922
R56: Pfd. | S56: 0.094 | T56: 0.0659 | U56: =ROUND(+S56*T56,5) -> 0.00619
R57: Equity | S57: 0.344 | X57: Slope | Y57: 0.68367
S58: =SUM(S55:S57) -> 1
X60: Operating Statistics | Y60: Pre-tax | Z60: After Tax
X62: Return on Investment | Y62: =+J33 -> 0.1527176829 | Z62: 0.152452791
X63: Return on Equity | Y63: 0.2690445402 | Z63: 0.2685064511
A64: TRUE | X64: Operating Ratio | Y64: 0.951413 | Z64: 0.9514677353
X65: Profit Margin | Y65: 0.048587 | Z65: 0.048587
X66: Final turnover | Y66: 3.145583244 | Z66: 3.145583244
X67: Tax Rate | Y67: 0.002 | Z67: 0.002

Sheet MSW
B1: NEW IMPROVED LURITO - GALLAGHER FORMULA | AE1: !??! | AF1: OP/RATIO | AI1: curve
G2: NOTE: | N2: FORMULAS | U2: 1st Revenue | V2: 1st Turnover | W2: M | X2: ROR | Y2: ROE | AA2: Adj ROE | AB2: Pre Tax ROE | AC2: Adj M | AD2: Revenues | AE2: Decision | AI2: lookup table
B3: !!! | C3: Revenue Requirement | E3: =E5+E4 -> 1703052.897 | F3: !!!<-- | H3: Red numbers are input/linked fields. | N3: 1. less than 50 | Q3: @EXP(5.72260-(.68367*@LN(T))) | U3: =$E$6*1.25 -> 2023101.556 | V3: ='MSW LG 2018 V5.0c'!S6 -> 301.3277687 | W3: =EXP(5.7226-(0.68367*LN(+V3))) -> 6.172326664 | X3: =(+W3*V3)/100 -> 18.59893421 | Y3: ='MSW LG 2018 V5.0c'!X6 -> 0.270044668 | Z3: =+$E$18 -> 0.25 | AA3: =Y3+Z3 -> 0.520044668 | AB3: =100*($E$15*$E$17+($E$16*(AA3/100))/(1-$E$19)) -> 2.283695663 | AC3: ='MSW LG 2018 V5.0c'!AE6 -> 0.05134263308 | AD3: =$E$6/(1-AC3) -> 1706075.661 | AE3: =IF(AD3=$U$3,"yes","not yet") -> not yet | AF3: =100*(1-AC3) -> 94.86573669 | AI3: 0 | AJ3: 1
B4: !!! | C4: Revenue Deficiency | E4: =(+E6-((H13/100)*E5))/H23 -> 72223.60258 | F4: !!!<-- | H4: Black are formula calculations | N4: 2. Between 50 and 125 | Q4: @EXP(5.70827-(.68367*@LN(T))) | U4: =$E$6*1.25 -> 2023101.556 | V4: ='MSW LG 2018 V5.0c'!S7 -> 301.3277687 | W4: ='MSW LG 2018 V5.0c'!T7 -> 6.172326664 | X4: =(+W4*V4)/100 -> 18.59893421 | Y4: ='MSW LG 2018 V5.0c'!X7 -> 0.270044668 | Z4: =+$E$18 -> 0.25 | AA4: =Y4+Z4 -> 0.520044668 | AB4: =100*($E$15*$E$17+($E$16*(AA4/100))/(1-$E$19)) -> 2.283695663 | AC4: ='MSW LG 2018 V5.0c'!AE7 -> 0.05134263308 | AD4: =$E$6/(1-AC4) -> 1706075.661 | AE4: =IF(AD4=$U$4,"yes","not yet") -> not yet | AF4: =100*(1-AC4) -> 94.86573669 | AI4: 50 | AJ4: 2
B5: * | C5: Revenue | E5: =Proforma!O26 -> 1630829.294 | F5: * p/f before rates | N5: 3. Between 125 and 140 | Q5: @EXP(5.69850-(.68367*@LN(T))) | U5: =$E$6*1.25 -> 2023101.556 | V5: ='MSW LG 2018 V5.0c'!S8 -> 301.3277687 | W5: ='MSW LG 2018 V5.0c'!T8 -> 6.172326664 | X5: =(+W5*V5)/100 -> 18.59893421 | Y5: ='MSW LG 2018 V5.0c'!X8 -> 0.270044668 | Z5: =+$E$18 -> 0.25 | AA5: =Y5+Z5 -> 0.520044668 | AB5: =100*($E$15*$E$17+($E$16*(AA5/100))/(1-$E$19)) -> 2.283695663 | AC5: ='MSW LG 2018 V5.0c'!AE8 -> 0.05134263308 | AD5: =$E$6/(1-AC5) -> 1706075.661 | AE5: =IF(AD5=$U$5,"yes","not yet") -> not yet | AF5: =100*(1-AC5) -> 94.86573669 | AI5: 125 | AJ5: 3
B6: * | C6: Expenses | E6: =+Proforma!O391 -> 1618481.245 | F6: * p/f before rates | N6: 4. greater than 400 | Q6: @EXP(5.69220-(.68367*@LN(T))) | U6: =$E$6*1.25 -> 2023101.556 | V6: ='MSW LG 2018 V5.0c'!S9 -> 301.3277687 | W6: ='MSW LG 2018 V5.0c'!T9 -> 6.172326664 | X6: =(+W6*V6)/100 -> 18.59893421 | Y6: ='MSW LG 2018 V5.0c'!X9 -> 0.270044668 | Z6: =+$E$18 -> 0.25 | AA6: =Y6+Z6 -> 0.520044668 | AB6: =100*($E$15*$E$17+($E$16*(AA6/100))/(1-$E$19)) -> 2.283695663 | AC6: ='MSW LG 2018 V5.0c'!AE9 -> 0.05134263308 | AD6: =$E$6/(1-AC6) -> 1706075.661 | AE6: =IF(AD6=$U$6,"yes","not yet") -> not yet | AF6: =100*(1-AC6) -> 94.86573669 | AI6: 401 | AJ6: 4
B7: * | C7: Avg. Investment - | E7: =SUM('Ave Inv. Summary'!I66:J66) -> 541214.4061 | F7: * p/f before rates
C8: curve turnover | E8: =V3 -> 301.3277687 | F8: (calculated) | V8: 2nd Turnover | W8: M | X8: ROR | Y8: ROE | AI8: lookup tables
C9: final turnover | E9: =HLOOKUP($AJ$32,$AJ$26:$AR$30,$E$10+1) -> 314.672478 | F9: (calculated) | V9: ='MSW LG 2018 V5.0c'!S11 -> 315.6104217 | W9: ='MSW LG 2018 V5.0c'!T11 -> 5.979967291 | X9: =(+W9*V9)/100 -> 18.87339999 | Y9: ='MSW LG 2018 V5.0c'!X11 -> 0.2753105812 | Z9: =+$E$18 -> 0.25 | AA9: =Y9+Z9 -> 0.5253105812 | AB9: =100*($E$15*$E$17+($E$16*(AA9/100))/(1-$E$19)) -> 2.286293176 | AC9: ='MSW LG 2018 V5.0c'!AE11 -> 0.04984218273 | AD9: =$E$6/(1-AC9) -> 1703381.496 | AE9: =IF(OR(OR(AD9=AD3,AD9=(AD3+1)),AD9=(AD8187-1)),"yes","not yet") -> not yet | AF9: =100*(1-AC9) -> 95.01578173
C10: curve No. used | E10: =VLOOKUP(E8,AI3:AJ6,2) -> 3 | F10: (calculated) | V10: ='MSW LG 2018 V5.0c'!S12 -> 315.6104217 | W10: ='MSW LG 2018 V5.0c'!T12 -> 5.894885428 | X10: =(+W10*V10)/100 -> 18.60487276 | Y10: ='MSW LG 2018 V5.0c'!X12 -> 0.2701586053 | Z10: =+$E$18 -> 0.25 | AA10: =Y10+Z10 -> 0.5201586053 | AB10: =100*($E$15*$E$17+($E$16*(AA10/100))/(1-$E$19)) -> 2.283751865 | AC10: ='MSW LG 2018 V5.0c'!AE12 -> 0.04903697778 | AD10: =$E$6/(1-AC10) -> 1701939.199 | AE10: =IF(OR(OR(AD10=AD4,AD10=(AD4+1)),AD10=(AD4-1)),"yes","not yet") -> not yet | AF10: =100*(1-AC10) -> 95.09630222
V11: ='MSW LG 2018 V5.0c'!S13 -> 315.6104217 | W11: ='MSW LG 2018 V5.0c'!T13 -> 5.837572825 | X11: =(+W11*V11)/100 -> 18.42398821 | Y11: ='MSW LG 2018 V5.0c'!X13 -> 0.2666881459 | Z11: =+$E$18 -> 0.25 | AA11: =Y11+Z11 -> 0.5166881459 | AB11: =100*($E$15*$E$17+($E$16*(AA11/100))/(1-$E$19)) -> 2.282039994 | AC11: ='MSW LG 2018 V5.0c'!AE13 -> 0.04849457792 | AD11: =$E$6/(1-AC11) -> 1700969.019 | AE11: =IF(OR(OR(AD11=AD5,AD11=(AD5+1)),AD11=(AD5-1)),"yes","not yet") -> not yet | AF11: =100*(1-AC11) -> 95.15054221 | AJ11: 1 | AK11: 2 | AL11: 3 | AM11: 4 | AN11: 5 | AO11: 6 | AP11: 7 | AQ11: 8 | AR11: 9
C12: Company actual | V12: ='MSW LG 2018 V5.0c'!S14 -> 315.6104217 | W12: ='MSW LG 2018 V5.0c'!T14 -> 5.80091172 | X12: =(+W12*V12)/100 -> 18.30828194 | Y12: ='MSW LG 2018 V5.0c'!X14 -> 0.2644682001 | Z12: =+$E$18 -> 0.25 | AA12: =Y12+Z12 -> 0.5144682001 | AB12: =100*($E$15*$E$17+($E$16*(AA12/100))/(1-$E$19)) -> 2.280944964 | AC12: ='MSW LG 2018 V5.0c'!AE14 -> 0.04814762145 | AD12: =$E$6/(1-AC12) -> 1700349.005 | AE12: =IF(OR(OR(AD12=AD6,AD12=(AD6+1)),AD12=(AD6-1)),"yes","not yet") -> not yet | AF12: =100*(1-AC12) -> 95.18523785 | AJ12: =AE3 -> not yet | AK12: =AE9 -> not yet | AL12: =AE15 -> not yet | AM12: =AE21 -> not yet | AN12: =AE27 -> not yet | AO12: =AE33 -> not yet | AP12: =AE39 -> yes | AQ12: =AE45 -> 0 | AR12: =AE51 -> 0
C13: capital structure: | E13: !!! | F13: OPERATING RATIO -> | H13: =HLOOKUP($AJ$23,$AJ$17:$AR$21,$E$10+1) -> 95.14130181 | I13: !!!<-- | AJ13: =AE4 -> not yet | AK13: =AE10 -> not yet | AL13: =AE16 -> not yet | AM13: =AE22 -> not yet | AN13: =AE28 -> not yet | AO13: =AE34 -> not yet | AP13: =AE40 -> yes | AQ13: =AE46 -> 0 | AR13: =AE52 -> 0
C14: - | D14: - | H14: = | V14: 3rd Turnover | W14: M | X14: ROR | Y14: ROE | AJ14: =AE5 -> not yet | AK14: =AE11 -> not yet | AL14: =AE17 -> not yet | AM14: =AE23 -> not yet | AN14: =AE29 -> not yet | AO14: =AE35 -> not yet | AP14: =AE41 -> yes | AQ14: =AE47 -> 0 | AR14: =AE53 -> 0
B15: * | C15: Actual Debt Ratio | E15: =+'Combined LG'!E15 -> 0.5077173987 | F15: Conversion factor data: | V15: ='MSW LG 2018 V5.0c'!S16 -> 315.0990373 | W15: ='MSW LG 2018 V5.0c'!T16 -> 5.986600664 | X15: =(+W15*V15)/100 -> 18.86372106 | Y15: ='MSW LG 2018 V5.0c'!X16 -> 0.2751248808 | Z15: =+$E$18 -> 0.25 | AA15: =Y15+Z15 -> 0.5251248808 | AB15: =100*($E$15*$E$17+($E$16*(AA15/100))/(1-$E$19)) -> 2.286201575 | AC15: ='MSW LG 2018 V5.0c'!AE16 -> 0.04989400291 | AD15: =$E$6/(1-AC15) -> 1703474.401 | AE15: =IF(OR(OR(AD15=AD9,AD15=(AD9+1)),AD15=(AD1-1)),"yes","not yet") -> not yet | AF15: =100*(1-AC15) -> 95.01059971 | AJ15: =AE6 -> not yet | AK15: =AE12 -> not yet | AL15: =AE18 -> not yet | AM15: =AE24 -> not yet | AN15: =AE30 -> not yet | AO15: =AE36 -> not yet | AP15: =AE42 -> yes | AQ15: =AE48 -> 0 | AR15: =AE54 -> 0
B16: * | C16: Actual Equity Ratio | E16: =+'Combined LG'!E16 -> 0.4922826013 | F16: B & O Tax | H16: =+'Combined LG'!H16 -> 0.015 | I16: * | V16: ='MSW LG 2018 V5.0c'!S17 -> 314.8252722 | W16: ='MSW LG 2018 V5.0c'!T17 -> 5.904932361 | X16: =(+W16*V16)/100 -> 18.59021938 | Y16: ='MSW LG 2018 V5.0c'!X17 -> 0.2698774648 | Z16: =+$E$18 -> 0.25 | AA16: =Y16+Z16 -> 0.5198774648 | AB16: =100*($E$15*$E$17+($E$16*(AA16/100))/(1-$E$19)) -> 2.283613187 | AC16: ='MSW LG 2018 V5.0c'!AE17 -> 0.049115223 | AD16: =$E$6/(1-AC16) -> 1702079.246 | AE16: =IF(OR(OR(AD16=AD10,AD16=(AD10+1)),AD16=(AD10-1)),"yes","not yet") -> not yet | AF16: =100*(1-AC16) -> 95.0884777
B17: * | C17: Actual Cost of Debt | E17: =+'Combined LG'!E17 -> 0.03992720522 | F17: WUTC Fee | H17: =+'Combined LG'!H17 -> 0.004275 | I17: * | V17: ='MSW LG 2018 V5.0c'!S18 -> 314.6411205 | W17: ='MSW LG 2018 V5.0c'!T18 -> 5.849861661 | X17: =(+W17*V17)/100 -> 18.40607028 | Y17: ='MSW LG 2018 V5.0c'!X18 -> 0.2663443716 | Z17: =+$E$18 -> 0.25 | AA17: =Y17+Z17 -> 0.5163443716 | AB17: =100*($E$15*$E$17+($E$16*(AA17/100))/(1-$E$19)) -> 2.281870421 | AC17: ='MSW LG 2018 V5.0c'!AE18 -> 0.04859007888 | AD17: =$E$6/(1-AC17) -> 1701139.76 | AE17: =IF(OR(OR(AD17=AD11,AD17=(AD11+1)),AD17=(AD11-1)),"yes","not yet") -> not yet | AF17: =100*(1-AC17) -> 95.14099211 | AJ17: =HLOOKUP(1,$AJ$11:$AR$15,$E$10+1) -> not yet | AK17: =HLOOKUP(2,$AJ$11:$AR$15,$E$10+1) -> not yet | AL17: =HLOOKUP(3,$AJ$11:$AR$15,$E$10+1) -> not yet | AM17: =HLOOKUP(4,$AJ$11:$AR$15,$E$10+1) -> not yet | AN17: =HLOOKUP(5,$AJ$11:$AR$15,$E$10+1) -> not yet | AO17: =HLOOKUP(6,$AJ$11:$AR$15,$E$10+1) -> not yet | AP17: =HLOOKUP(7,$AJ$11:$AR$15,$E$10+1) -> yes | AQ17: =HLOOKUP(8,$AJ$11:$AR$15,$E$10+1) -> 0 | AR17: =HLOOKUP(9,$AJ$11:$AR$15,$E$10+1) -> 0
B18: * | C18: Basis Points | E18: 0.25 | F18: City Tax | H18: =+'Combined LG'!H18 -> 0 | I18: * | V18: ='MSW LG 2018 V5.0c'!S19 -> 314.5234344 | W18: ='MSW LG 2018 V5.0c'!T19 -> 5.81461035 | X18: =(+W18*V18)/100 -> 18.28831217 | Y18: ='MSW LG 2018 V5.0c'!X19 -> 0.2640850591 | Z18: =+$E$18 -> 0.25 | AA18: =Y18+Z18 -> 0.5140850591 | AB18: =100*($E$15*$E$17+($E$16*(AA18/100))/(1-$E$19)) -> 2.280755972 | AC18: ='MSW LG 2018 V5.0c'!AE19 -> 0.04825393052 | AD18: =$E$6/(1-AC18) -> 1700538.932 | AE18: =IF(OR(OR(AD18=AD12,AD18=(AD12+1)),AD18=(AD12-1)),"yes","not yet") -> not yet | AF18: =100*(1-AC18) -> 95.17460695 | AI18: 1 | AJ18: =AF3 -> 94.86573669 | AK18: =AF9 -> 95.01578173 | AL18: =AF15 -> 95.01059971 | AM18: =AF21 -> 95.01077863 | AN18: =AF27 -> 95.01077245 | AO18: =AF33 -> 95.01077267 | AP18: =AF39 -> 95.01077266 | AQ18: =AF45 -> 0 | AR18: =AF51 -> 0
B19: * | C19: Tax Rate | E19: =+'Combined LG'!E19 -> 0.002 | F19: Bad Debts | H19: =+'Combined LG'!H19 -> 0.006 | I19: * | AI19: 2 | AJ19: =AF4 -> 94.86573669 | AK19: =AF10 -> 95.09630222 | AL19: =AF16 -> 95.0884777 | AM19: =AF22 -> 95.08874313 | AN19: =AF28 -> 95.08873412 | AO19: =AF34 -> 95.08873443 | AP19: =AF40 -> 95.08873442 | AQ19: =AF46 -> 0 | AR19: =AF52 -> 0
H20: - | V20: 4th Turnover | W20: M | X20: ROR | Y20: ROE | AI20: 3 | AJ20: =AF5 -> 94.86573669 | AK20: =AF11 -> 95.15054221 | AL20: =AF17 -> 95.14099211 | AM20: =AF23 -> 95.14131219 | AN20: =AF29 -> 95.14130146 | AO20: =AF35 -> 95.14130182 | AP20: =AF41 -> 95.14130181 | AQ20: =AF47 -> 0 | AR20: =AF53 -> 0
F21: Revenue Sensitive | H21: =SUM(H16:H19) -> 0.025275 | V21: ='MSW LG 2018 V5.0c'!S21 -> 315.1166718 | W21: ='MSW LG 2018 V5.0c'!T21 -> 5.986371618 | X21: =(+W21*V21)/100 -> 18.864055 | Y21: ='MSW LG 2018 V5.0c'!X21 -> 0.2751312878 | Z21: =+$E$18 -> 0.25 | AA21: =Y21+Z21 -> 0.5251312878 | AB21: =100*($E$15*$E$17+($E$16*(AA21/100))/(1-$E$19)) -> 2.286204736 | AC21: ='MSW LG 2018 V5.0c'!AE21 -> 0.04989221369 | AD21: =$E$6/(1-AC21) -> 1703471.193 | AE21: =IF(OR(OR(AD21=AD15,AD21=(AD15+1)),AD21=(AD7-1)),"yes","not yet") -> not yet | AF21: =100*(1-AC21) -> 95.01077863 | AI21: 4 | AJ21: =AF6 -> 94.86573669 | AK21: =AF12 -> 95.18523785 | AL21: =AF18 -> 95.17460695 | AM21: =AF24 -> 95.17496048 | AN21: =AF30 -> 95.17494872 | AO21: =AF36 -> 95.17494911 | AP21: =AF42 -> 95.1749491 | AQ21: =AF48 -> 0 | AR21: =AF54 -> 0
V22: ='MSW LG 2018 V5.0c'!S22 -> 314.8518548 | W22: ='MSW LG 2018 V5.0c'!T22 -> 5.904591515 | X22: =(+W22*V22)/100 -> 18.5907159 | Y22: ='MSW LG 2018 V5.0c'!X22 -> 0.2698869912 | Z22: =+$E$18 -> 0.25 | AA22: =Y22+Z22 -> 0.5198869912 | AB22: =100*($E$15*$E$17+($E$16*(AA22/100))/(1-$E$19)) -> 2.283617886 | AC22: ='MSW LG 2018 V5.0c'!AE22 -> 0.04911256872 | AD22: =$E$6/(1-AC22) -> 1702074.495 | AE22: =IF(OR(OR(AD22=AD16,AD22=(AD16+1)),AD22=(AD16-1)),"yes","not yet") -> not yet | AF22: =100*(1-AC22) -> 95.08874313
F23: Conversion Factor | H23: =((+H13/100)-H21) -> 0.9261380181 | V23: ='MSW LG 2018 V5.0c'!S23 -> 314.6735291 | W23: ='MSW LG 2018 V5.0c'!T23 -> 5.849449754 | X23: =(+W23*V23)/100 -> 18.40666997 | Y23: ='MSW LG 2018 V5.0c'!X23 -> 0.2663558774 | Z23: =+$E$18 -> 0.25 | AA23: =Y23+Z23 -> 0.5163558774 | AB23: =100*($E$15*$E$17+($E$16*(AA23/100))/(1-$E$19)) -> 2.281876096 | AC23: ='MSW LG 2018 V5.0c'!AE23 -> 0.04858687813 | AD23: =$E$6/(1-AC23) -> 1701134.037 | AE23: =IF(OR(OR(AD23=AD17,AD23=(AD17+1)),AD23=(AD17-1)),"yes","not yet") -> not yet | AF23: =100*(1-AC23) -> 95.14131219 | AJ23: yes
V24: ='MSW LG 2018 V5.0c'!S24 -> 314.5594849 | W24: ='MSW LG 2018 V5.0c'!T24 -> 5.814154751 | X24: =(+W24*V24)/100 -> 18.28897524 | Y24: ='MSW LG 2018 V5.0c'!X24 -> 0.2640977807 | Z24: =+$E$18 -> 0.25 | AA24: =Y24+Z24 -> 0.5140977807 | AB24: =100*($E$15*$E$17+($E$16*(AA24/100))/(1-$E$19)) -> 2.280762247 | AC24: ='MSW LG 2018 V5.0c'!AE24 -> 0.04825039522 | AD24: =$E$6/(1-AC24) -> 1700532.615 | AE24: =IF(OR(OR(AD24=AD18,AD24=(AD18+1)),AD24=(AD18-1)),"yes","not yet") -> not yet | AF24: =100*(1-AC24) -> 95.17496048 | AJ24: =HLOOKUP($AJ$23,$AJ$17:$AR$21,$E$10+1) -> 95.14130181
C26: Company Reference | V26: 5th Turnover | W26: M | X26: ROR | Y26: ROE | AJ26: =HLOOKUP(1,$AJ$11:$AR$15,$E$10+1) -> not yet | AK26: =HLOOKUP(2,$AJ$11:$AR$15,$E$10+1) -> not yet | AL26: =HLOOKUP(3,$AJ$11:$AR$15,$E$10+1) -> not yet | AM26: =HLOOKUP(4,$AJ$11:$AR$15,$E$10+1) -> not yet | AN26: =HLOOKUP(5,$AJ$11:$AR$15,$E$10+1) -> not yet | AO26: =HLOOKUP(6,$AJ$11:$AR$15,$E$10+1) -> not yet | AP26: =HLOOKUP(7,$AJ$11:$AR$15,$E$10+1) -> yes | AQ26: =HLOOKUP(8,$AJ$11:$AR$15,$E$10+1) -> 0 | AR26: =HLOOKUP(9,$AJ$11:$AR$15,$E$10+1) -> 0
C27: Annl Price Increase (PI) $ | E27: =+E4 -> 72223.60258 | V27: ='MSW LG 2018 V5.0c'!S26 -> 315.1160629 | W27: ='MSW LG 2018 V5.0c'!T26 -> 5.986379527 | X27: =(+W27*V27)/100 -> 18.86404347 | Y27: ='MSW LG 2018 V5.0c'!X26 -> 0.2751310666 | Z27: =+$E$18 -> 0.25 | AA27: =Y27+Z27 -> 0.5251310666 | AB27: =100*($E$15*$E$17+($E$16*(AA27/100))/(1-$E$19)) -> 2.286204627 | AC27: ='MSW LG 2018 V5.0c'!AE26 -> 0.04989227547 | AD27: =$E$6/(1-AC27) -> 1703471.304 | AE27: =IF(OR(OR(AD27=AD21,AD27=(AD21+1)),AD27=(AD13-1)),"yes","not yet") -> not yet | AF27: =100*(1-AC27) -> 95.01077245 | AI27: 1 | AJ27: =V3 -> 301.3277687 | AK27: =V9 -> 315.6104217 | AL27: =V15 -> 315.0990373 | AM27: =V21 -> 315.1166718 | AN27: =V27 -> 315.1160629 | AO27: =V33 -> 315.1160839 | AP27: =V39 -> 315.1160831 | AQ27: =V45 -> 0 | AR27: =V51 -> 0
C28: Monthly PI $ | E28: =+E27/12 -> 6018.633549 | V28: ='MSW LG 2018 V5.0c'!S27 -> 314.850953 | W28: ='MSW LG 2018 V5.0c'!T27 -> 5.904603078 | X28: =(+W28*V28)/100 -> 18.59069906 | Y28: ='MSW LG 2018 V5.0c'!X27 -> 0.269886668 | Z28: =+$E$18 -> 0.25 | AA28: =Y28+Z28 -> 0.519886668 | AB28: =100*($E$15*$E$17+($E$16*(AA28/100))/(1-$E$19)) -> 2.283617727 | AC28: ='MSW LG 2018 V5.0c'!AE27 -> 0.04911265876 | AD28: =$E$6/(1-AC28) -> 1702074.656 | AE28: =IF(OR(OR(AD28=AD22,AD28=(AD22+1)),AD28=(AD22-1)),"yes","not yet") -> not yet | AF28: =100*(1-AC28) -> 95.08873412 | AI28: 2 | AJ28: =V4 -> 301.3277687 | AK28: =V10 -> 315.6104217 | AL28: =V16 -> 314.8252722 | AM28: =V22 -> 314.8518548 | AN28: =V28 -> 314.850953 | AO28: =V34 -> 314.8509836 | AP28: =V40 -> 314.8509825 | AQ28: =V46 -> 0 | AR28: =V52 -> 0
C29: Percentage PI | E29: =+E4/(E5-Proforma!O12) -> 0.04608548293 | V29: ='MSW LG 2018 V5.0c'!S28 -> 314.6724428 | W29: ='MSW LG 2018 V5.0c'!T28 -> 5.84946356 | X29: =(+W29*V29)/100 -> 18.40664987 | Y29: ='MSW LG 2018 V5.0c'!X28 -> 0.2663554918 | Z29: =+$E$18 -> 0.25 | AA29: =Y29+Z29 -> 0.5163554918 | AB29: =100*($E$15*$E$17+($E$16*(AA29/100))/(1-$E$19)) -> 2.281875906 | AC29: ='MSW LG 2018 V5.0c'!AE28 -> 0.04858698541 | AD29: =$E$6/(1-AC29) -> 1701134.229 | AE29: =IF(OR(OR(AD29=AD23,AD29=(AD23+1)),AD29=(AD23-1)),"yes","not yet") -> not yet | AF29: =100*(1-AC29) -> 95.14130146 | AI29: 3 | AJ29: =V5 -> 301.3277687 | AK29: =V11 -> 315.6104217 | AL29: =V17 -> 314.6411205 | AM29: =V23 -> 314.6735291 | AN29: =V29 -> 314.6724428 | AO29: =V35 -> 314.6724792 | AP29: =V41 -> 314.672478 | AQ29: =V47 -> 0 | AR29: =V53 -> 0
V30: ='MSW LG 2018 V5.0c'!S29 -> 314.5582859 | W30: ='MSW LG 2018 V5.0c'!T29 -> 5.814169902 | X30: =(+W30*V30)/100 -> 18.28895318 | Y30: ='MSW LG 2018 V5.0c'!X29 -> 0.2640973576 | Z30: =+$E$18 -> 0.25 | AA30: =Y30+Z30 -> 0.5140973576 | AB30: =100*($E$15*$E$17+($E$16*(AA30/100))/(1-$E$19)) -> 2.280762038 | AC30: ='MSW LG 2018 V5.0c'!AE29 -> 0.04825051279 | AD30: =$E$6/(1-AC30) -> 1700532.826 | AE30: =IF(OR(OR(AD30=AD24,AD30=(AD24+1)),AD30=(AD24-1)),"yes","not yet") -> not yet | AF30: =100*(1-AC30) -> 95.17494872 | AI30: 4 | AJ30: =V6 -> 301.3277687 | AK30: =V12 -> 315.6104217 | AL30: =V18 -> 314.5234344 | AM30: =V24 -> 314.5594849 | AN30: =V30 -> 314.5582859 | AO30: =V36 -> 314.5583258 | AP30: =V42 -> 314.5583244 | AQ30: =V48 -> 0 | AR30: =V54 -> 0
V32: 6th Turnover | W32: M | X32: ROR | Y32: ROE | AJ32: yes
V33: ='MSW LG 2018 V5.0c'!S31 -> 315.1160839 | W33: ='MSW LG 2018 V5.0c'!T31 -> 5.986379254 | X33: =(+W33*V33)/100 -> 18.86404387 | Y33: ='MSW LG 2018 V5.0c'!X31 -> 0.2751310742 | Z33: =+$E$18 -> 0.25 | AA33: =Y33+Z33 -> 0.5251310742 | AB33: =100*($E$15*$E$17+($E$16*(AA33/100))/(1-$E$19)) -> 2.28620463 | AC33: ='MSW LG 2018 V5.0c'!AE31 -> 0.04989227333 | AD33: =ROUND($E$6/(1-AC33),0) -> 1703471 | AE33: =IF(OR(OR(AD33=AD27,AD33=(AD27+1)),AD33=(AD19-1)),"yes","not yet") -> not yet | AF33: =100*(1-AC33) -> 95.01077267 | AJ33: =HLOOKUP($AJ$32,$AJ$26:$AR$30,$E$10+1) -> 314.672478
V34: ='MSW LG 2018 V5.0c'!S32 -> 314.8509836 | W34: ='MSW LG 2018 V5.0c'!T32 -> 5.904602686 | X34: =(+W34*V34)/100 -> 18.59069963 | Y34: ='MSW LG 2018 V5.0c'!X32 -> 0.269886679 | Z34: =+$E$18 -> 0.25 | AA34: =Y34+Z34 -> 0.519886679 | AB34: =100*($E$15*$E$17+($E$16*(AA34/100))/(1-$E$19)) -> 2.283617732 | AC34: ='MSW LG 2018 V5.0c'!AE32 -> 0.0491126557 | AD34: =ROUND($E$6/(1-AC34),0) -> 1702075 | AE34: =IF(OR(OR(AD34=AD28,AD34=(AD28+1)),AD34=(AD28-1)),"yes","not yet") -> not yet | AF34: =100*(1-AC34) -> 95.08873443
V35: ='MSW LG 2018 V5.0c'!S33 -> 314.6724792 | W35: ='MSW LG 2018 V5.0c'!T33 -> 5.849463097 | X35: =(+W35*V35)/100 -> 18.40665055 | Y35: ='MSW LG 2018 V5.0c'!X33 -> 0.2663555047 | Z35: =+$E$18 -> 0.25 | AA35: =Y35+Z35 -> 0.5163555047 | AB35: =100*($E$15*$E$17+($E$16*(AA35/100))/(1-$E$19)) -> 2.281875913 | AC35: ='MSW LG 2018 V5.0c'!AE33 -> 0.04858698181 | AD35: =ROUND($E$6/(1-AC35),0) -> 1701134 | AE35: =IF(OR(OR(AD35=AD29,AD35=(AD29+1)),AD35=(AD29-1)),"yes","not yet") -> not yet | AF35: =100*(1-AC35) -> 95.14130182 | AJ35: =HLOOKUP(1,$AJ$11:$AR$15,$E$10+1) -> not yet | AK35: =HLOOKUP(2,$AJ$11:$AR$15,$E$10+1) -> not yet | AL35: =HLOOKUP(3,$AJ$11:$AR$15,$E$10+1) -> not yet | AM35: =HLOOKUP(4,$AJ$11:$AR$15,$E$10+1) -> not yet | AN35: =HLOOKUP(5,$AJ$11:$AR$15,$E$10+1) -> not yet | AO35: =HLOOKUP(6,$AJ$11:$AR$15,$E$10+1) -> not yet | AP35: =HLOOKUP(7,$AJ$11:$AR$15,$E$10+1) -> yes | AQ35: =HLOOKUP(8,$AJ$11:$AR$15,$E$10+1) -> 0 | AR35: =HLOOKUP(9,$AJ$11:$AR$15,$E$10+1) -> 0
V36: ='MSW LG 2018 V5.0c'!S34 -> 314.5583258 | W36: ='MSW LG 2018 V5.0c'!T34 -> 5.814169399 | X36: =(+W36*V36)/100 -> 18.28895392 | Y36: ='MSW LG 2018 V5.0c'!X34 -> 0.2640973717 | Z36: =+$E$18 -> 0.25 | AA36: =Y36+Z36 -> 0.5140973717 | AB36: =100*($E$15*$E$17+($E$16*(AA36/100))/(1-$E$19)) -> 2.280762045 | AC36: ='MSW LG 2018 V5.0c'!AE34 -> 0.04825050888 | AD36: =ROUND($E$6/(1-AC36),0) -> 1700533 | AE36: =IF(OR(OR(AD36=AD30,AD36=(AD30+1)),AD36=(AD30-1)),"yes","not yet") -> not yet | AF36: =100*(1-AC36) -> 95.17494911 | AI36: 1 | AJ36: =AD3 -> 1706075.661 | AK36: =AD9 -> 1703381.496 | AL36: =AD15 -> 1703474.401 | AM36: =AD21 -> 1703471.193 | AN36: =AD27 -> 1703471.304 | AO36: =AD33 -> 1703471 | AP36: =AD39 -> 1703471 | AQ36: =AD45 -> 0 | AR36: =AD51 -> 0
AI37: 2 | AJ37: =AD4 -> 1706075.661 | AK37: =AD10 -> 1701939.199 | AL37: =AD16 -> 1702079.246 | AM37: =AD22 -> 1702074.495 | AN37: =AD28 -> 1702074.656 | AO37: =AD34 -> 1702075 | AP37: =AD40 -> 1702075 | AQ37: =AD46 -> 0 | AR37: =AD52 -> 0
V38: 7th turnover | W38: M | X38: ROR | Y38: ROE | AI38: 3 | AJ38: =AD5 -> 1706075.661 | AK38: =AD11 -> 1700969.019 | AL38: =AD17 -> 1701139.76 | AM38: =AD23 -> 1701134.037 | AN38: =AD29 -> 1701134.229 | AO38: =AD35 -> 1701134 | AP38: =AD41 -> 1701134 | AQ38: =AD47 -> 0 | AR38: =AD53 -> 0
V39: ='MSW LG 2018 V5.0c'!S36 -> 315.1160831 | W39: ='MSW LG 2018 V5.0c'!T36 -> 5.986379263 | X39: =(+W39*V39)/100 -> 18.86404386 | Y39: ='MSW LG 2018 V5.0c'!X36 -> 0.275131074 | Z39: =+$E$18 -> 0.25 | AA39: =Y39+Z39 -> 0.525131074 | AB39: =100*($E$15*$E$17+($E$16*(AA39/100))/(1-$E$19)) -> 2.28620463 | AC39: ='MSW LG 2018 V5.0c'!AE36 -> 0.04989227341 | AD39: =ROUND($E$6/(1-AC39),0) -> 1703471 | AE39: =IF(OR(OR(AD39=AD33,AD39=(AD33+1)),AD39=(AD25-1)),"yes","not yet") -> yes | AF39: =100*(1-AC39) -> 95.01077266 | AI39: 4 | AJ39: =AD6 -> 1706075.661 | AK39: =AD12 -> 1700349.005 | AL39: =AD18 -> 1700538.932 | AM39: =AD24 -> 1700532.615 | AN39: =AD30 -> 1700532.826 | AO39: =AD36 -> 1700533 | AP39: =AD42 -> 1700533 | AQ39: =AD48 -> 0 | AR39: =AD54 -> 0
V40: ='MSW LG 2018 V5.0c'!S37 -> 314.8509825 | W40: ='MSW LG 2018 V5.0c'!T37 -> 5.904602699 | X40: =(+W40*V40)/100 -> 18.59069961 | Y40: ='MSW LG 2018 V5.0c'!X37 -> 0.2698866786 | Z40: =+$E$18 -> 0.25 | AA40: =Y40+Z40 -> 0.5198866786 | AB40: =100*($E$15*$E$17+($E$16*(AA40/100))/(1-$E$19)) -> 2.283617732 | AC40: ='MSW LG 2018 V5.0c'!AE37 -> 0.04911265581 | AD40: =ROUND($E$6/(1-AC40),0) -> 1702075 | AE40: =IF(OR(OR(AD40=AD34,AD40=(AD34+1)),AD40=(AD34-1)),"yes","not yet") -> yes | AF40: =100*(1-AC40) -> 95.08873442
V41: ='MSW LG 2018 V5.0c'!S38 -> 314.672478 | W41: ='MSW LG 2018 V5.0c'!T38 -> 5.849463112 | X41: =(+W41*V41)/100 -> 18.40665052 | Y41: ='MSW LG 2018 V5.0c'!X38 -> 0.2663555042 | Z41: =+$E$18 -> 0.25 | AA41: =Y41+Z41 -> 0.5163555042 | AB41: =100*($E$15*$E$17+($E$16*(AA41/100))/(1-$E$19)) -> 2.281875912 | AC41: ='MSW LG 2018 V5.0c'!AE38 -> 0.04858698193 | AD41: =ROUND($E$6/(1-AC41),0) -> 1701134 | AE41: =IF(OR(OR(AD41=AD35,AD41=(AD35+1)),AD41=(AD35-1)),"yes","not yet") -> yes | AF41: =100*(1-AC41) -> 95.14130181 | AJ41: yes
V42: ='MSW LG 2018 V5.0c'!S39 -> 314.5583244 | W42: ='MSW LG 2018 V5.0c'!T39 -> 5.814169415 | X42: =(+W42*V42)/100 -> 18.28895389 | Y42: ='MSW LG 2018 V5.0c'!X39 -> 0.2640973712 | Z42: =+$E$18 -> 0.25 | AA42: =Y42+Z42 -> 0.5140973712 | AB42: =100*($E$15*$E$17+($E$16*(AA42/100))/(1-$E$19)) -> 2.280762045 | AC42: ='MSW LG 2018 V5.0c'!AE39 -> 0.04825050901 | AD42: =ROUND($E$6/(1-AC42),0) -> 1700533 | AE42: =IF(OR(OR(AD42=AD36,AD42=(AD36+1)),AD42=(AD36-1)),"yes","not yet") -> yes | AF42: =100*(1-AC42) -> 95.1749491 | AJ42: =HLOOKUP($AJ$32,$AJ$35:$AR$39,$E$10+1) -> 1701134
V44: 8th turnover | W44: M | X44: ROR | Y44: ROE

Sheet RCY LG 2018 V5.0c
B2: Public Companies | F2: Public Co | I2: LURITO - GALLAGHER FORMULA MODEL 2018 V5.0a | M2: Public Co | R2: CALCULATION TABLES | AH2: Revenue Senstive Taxes (RevS)
K3: (b) + (c) | M3: (d) + (e) | T3: Regession | V3: Regession | W3: Regession | X3: Regession | Z3: Adjusted | AA3: Hauler | AB3: Hauler | AC3: Hauler | AD3: Hauler | AE3: Hauler | AF3: Hauler | AG3: Revenue Req | AH3: Revenue | AI3: Revenue
B4: INPUTS - Test Year | H4: (a) | I4: (b) | J4: (c) | K4: (d) | L4: (e) | M4: (f) | T4: Before Tax | V4: Less | W4: Adjusted | X4: After Tax | Y4: Flotation Costs | Z4: After Tax | AA4: Weighted Cost | AB4: Weighted Cost | AC4: Weighted Cost | AD4: Adjusted | AE4: Before Tax | AF4: Before Tax | AG4: Before RevS | AH4: Increase Before | AI4: Increase After | AJ4: RevS | AK4: Total
B5: Operating Revenue | C5: 496839.04 | F5: Line | I5: Historical | J5: Revenue | K5: Proforma | L5: Add: Revenue | M5: Revenue | T5: Profit Ratio | U5: BTROI | V5: WCDebt | W5: BTROE | X5: ROE | Y5: Basis Points | Z5: ROE | AA5: Equity | AB5: Equity BFT | AC5: Debt | AD5: BTROR | AE5: Profit Ratio | AF5: Operating Ratio | AG5: Taxes | AH5: RevS Taxes | AI5: RevS Taxes | AJ5: Taxes | AK5: Revenue Req
B6: Operating Expenses | C6: 686414.4129 | F6: No. | J6: Change | L6: Sensitive Taxes | M6: Requirement | R6: 1 | S6: =Revenue/Investment*100 -> 159.4287639 | T6: =EXP(y_inter1-(slope*LN(+S6))) -> 9.538165214 | U6: =(+S6*T6/100)/100 -> 0.152065789 | V6: =regDebt_weighted -> 0.03586 | W6: =+U6-V6 -> 0.116205789 | X6: =+((W6*(1-0.34))-Pfd_weighted)/Equity_percent -> 0.2049587813 | Y6: =+C15 -> 0.0025 | Z6: =+X6+Y6 -> 0.2074587813 | AA6: =Z6*equityP -> 0.1021283485 | AB6: =+AA6/(1-taxrate) -> 0.1023330145 | AC6: =debtP*Debt_Rate -> 0.02027173677 | AD6: =AC6+AB6 -> 0.1226047513 | AE6: =AD6/(S6/100) -> 0.07690252892 | AF6: =1-AE6 -> 0.9230974711 | AG6: =expenses/(AF6) -> 743599.0612 | AH6: =+AG6-Revenue -> 246760.0212 | AI6: =+AH6/$J$49 -> 269134.5487 | AJ6: =+AI6*$J$47 -> 6802.375718 | AK6: =ROUND(+AJ6+AG6,5) -> 750401.437
B7: Investment | C7: 311637.0144 | F7: 1 | H7: Operating Revenue | I7: =IF(A64=TRUE,C5,0) -> 496839.04 | J7: =(+$I8/($R50))-I7 -> 232123.4559 | K7: =+I7+J7 -> 728962.4959 | L7: =((+J7/J49*K35)-J7) -> 6398.892948 | M7: =IFERROR(+K7+L7,0.00001) -> 735361.3888 | R7: 2 | S7: =Revenue/Investment*100 -> 159.4287639 | T7: =EXP(y_inter1-(slope*LN(+S7))) -> 9.538165214 | U7: =(+S7*T7/100)/100 -> 0.152065789 | V7: =regDebt_weighted -> 0.03586 | W7: =+U7-V7 -> 0.116205789 | X7: =+((W7*(1-0.34))-Pfd_weighted)/Equity_percent -> 0.2049587813 | Y7: =+Y6 -> 0.0025 | Z7: =+X7+Y7 -> 0.2074587813 | AA7: =Z7*equityP -> 0.1021283485 | AB7: =+AA7/(1-taxrate) -> 0.1023330145 | AC7: =debtP*Debt_Rate -> 0.02027173677 | AD7: =AC7+AB7 -> 0.1226047513 | AE7: =AD7/(S7/100) -> 0.07690252892 | AF7: =1-AE7 -> 0.9230974711 | AG7: =expenses/(AF7) -> 743599.0612 | AH7: =+AG7-Revenue -> 246760.0212 | AI7: =+AH7/$J$49 -> 269134.5487 | AJ7: =+AI7*$J$47 -> 6802.375718 | AK7: =ROUND(+AJ7+AG7,5) -> 750401.437
B8: Capital Structure-Debt % | C8: 0.5077173987 | F8: =+F7+1 -> 2 | H8: Operating Expenses | I8: =IF(A64=TRUE,C6,0) -> 686414.4129 | K8: =+I8 -> 686414.4129 | L8: =+L7 -> 6398.892948 | M8: =IFERROR(+K8+L8,0.00001) -> 692813.3059 | R8: 3 | S8: =Revenue/Investment*100 -> 159.4287639 | T8: =EXP(y_inter1-(slope*LN(+S8))) -> 9.538165214 | U8: 0.152065789 | V8: =regDebt_weighted -> 0.03586 | W8: 0.116205789 | X8: =+((W8*(1-0.34))-Pfd_weighted)/Equity_percent -> 0.2049587813 | Y8: =+Y7 -> 0.0025 | Z8: =+X8+Y8 -> 0.2074587813 | AA8: =Z8*equityP -> 0.1021283485 | AB8: =+AA8/(1-taxrate) -> 0.1023330145 | AC8: =debtP*Debt_Rate -> 0.02027173677 | AD8: 0.1226047513 | AE8: 0.07690252892 | AF8: 0.9230974711 | AG8: =expenses/(AF8) -> 743599.0612 | AH8: =+AG8-Revenue -> 246760.0212 | AI8: =+AH8/$J$49 -> 269134.5487 | AJ8: =+AI8*$J$47 -> 6802.375718 | AK8: 750401.437
B9: Capital Structure-Debt Rate | C9: 0.03992720522 | F9: =+F8+1 -> 3 | H9: Operating Income | I9: =+I7-I8 -> -189575.3729 | K9: =+K7-K8 -> 42548.08296 | M9: =+M7-M8 -> 42548.08296 | R9: 4 | S9: =Revenue/Investment*100 -> 159.4287639 | T9: =EXP(y_inter1-(slope*LN(+S9))) -> 9.538165214 | U9: 0.152065789 | V9: =regDebt_weighted -> 0.03586 | W9: 0.116205789 | X9: =+((W9*(1-0.34))-Pfd_weighted)/Equity_percent -> 0.2049587813 | Y9: =+Y8 -> 0.0025 | Z9: 0.2074587813 | AA9: =Z9*equityP -> 0.1021283485 | AB9: =+AA9/(1-taxrate) -> 0.1023330145 | AC9: =debtP*Debt_Rate -> 0.02027173677 | AD9: 0.1226047513 | AE9: 0.07690252892 | AF9: 0.9230974711 | AG9: =expenses/(AF9) -> 743599.0612 | AH9: =+AG9-Revenue -> 246760.0212 | AI9: =+AH9/$J$49 -> 269134.5487 | AJ9: =+AI9*$J$47 -> 6802.375718 | AK9: 750401.437
B10: Federal Income Tax Rate | C10: 0.002 | F10: 4 | R10: 2nd Iteration
B11: B&O Tax Rate | C11: 0.015 | F11: 5 | H11: Interest Expense | I11: =+K11 -> 6317.423524 | K11: =+M27 -> 6317.423524 | M11: =+K11 -> 6317.423524 | R11: 1 | S11: =IF((AK6/Investment*100)>0,(AK6/Investment*100),0) -> 240.7934239 | T11: =EXP(y_inter1-(slope*LN(S11))) -> 7.195063371 | U11: =(+S11*T11/100)/100 -> 0.1732523944 | V11: =regDebt_weighted -> 0.03586 | W11: =+U11-V11 -> 0.1373923944 | X11: =+((W11*(1-0.34))-Pfd_weighted)/Equity_percent -> 0.2456075009 | Y11: =+Y9 -> 0.0025 | Z11: =+X11+Y11 -> 0.2481075009 | AA11: =Z11*equityP -> 0.1221390059 | AB11: =+AA11/(1-taxrate) -> 0.1223837735 | AC11: =debtP*Debt_Rate -> 0.02027173677 | AD11: =+AC11+AB11 -> 0.1426555103 | AE11: =+AD11/(S11/100) -> 0.05924393946 | AF11: =1-AE11 -> 0.9407560605 | AG11: =expenses/(AF11) -> 729641.234 | AH11: =+AG11-Revenue -> 232802.194 | AI11: =+AH11/$J$49 -> 253911.1202 | AJ11: =+AI11*$J$47 -> 6417.603563 | AK11: =ROUND(+AJ11+AG11,5) -> 736058.8376
B12: WUTC Fee | C12: 0.004275 | F12: 6 | H12: Income Tax Expense | I12: =IF(I14<0,0,+J38*I14) -> 0 | J12: =+K12-I12 -> 72.46131887 | K12: =+(K9-K11)*taxrate -> 72.46131887 | M12: =+K12 -> 72.46131887 | R12: 2 | S12: =IF((AK7/Investment*100)>0,(AK7/Investment*100),0) -> 240.7934239 | T12: =EXP(y_inter2-(slope*LN(+S12))) -> 7.092693346 | U12: =(+S12*T12/100)/100 -> 0.1707873915 | V12: =regDebt_weighted -> 0.03586 | W12: =+U12-V12 -> 0.1349273915 | X12: =+((W12*(1-0.34))-Pfd_weighted)/Equity_percent -> 0.2408781349 | Y12: =+Y11 -> 0.0025 | Z12: =+X12+Y12 -> 0.2433781349 | AA12: =Z12*equityP -> 0.1198108213 | AB12: =+AA12/(1-taxrate) -> 0.1200509232 | AC12: =debtP*Debt_Rate -> 0.02027173677 | AD12: =+AC12+AB12 -> 0.14032266 | AE12: =+AD12/(S12/100) -> 0.05827512135 | AF12: =1-AE12 -> 0.9417248786 | AG12: =expenses/(AF12) -> 728890.6012 | AH12: =+AG12-Revenue -> 232051.5612 | AI12: =+AH12/$J$49 -> 253092.425 | AJ12: =+AI12*$J$47 -> 6396.911043 | AK12: =ROUND(+AJ12+AG12,5) -> 735287.5122
B13: City Tax | C13: 0 | F13: 7 | R13: 3 | S13: =IF((AK8/Investment*100)>0,(AK8/Investment*100),0) -> 240.7934239 | T13: =EXP(y_inter3-(slope*LN(S13))) -> 7.023735142 | U13: =(+S13*T13/100)/100 -> 0.1691269233 | V13: =regDebt_weighted -> 0.03586 | W13: =+U13-V13 -> 0.1332669233 | X13: =+((W13*(1-0.34))-Pfd_weighted)/Equity_percent -> 0.2376923529 | Y13: =+Y12 -> 0.0025 | Z13: =+X13+Y13 -> 0.2401923529 | AA13: =Z13*equityP -> 0.1182425163 | AB13: =+AA13/(1-taxrate) -> 0.1184794752 | AC13: =debtP*Debt_Rate -> 0.02027173677 | AD13: =+AC13+AB13 -> 0.138751212 | AE13: =+AD13/(S13/100) -> 0.05762250886 | AF13: =1-AE13 -> 0.9423774911 | AG13: =expenses/(AF13) -> 728385.832 | AH13: =+AG13-Revenue -> 231546.792 | AI13: =+AH13/$J$49 -> 252541.8868 | AJ13: =+AI13*$J$47 -> 6382.996189 | AK13: 734768.8282
B14: Bad Debts | C14: 0.006 | F14: 8 | H14: Net Income | I14: =+I9-SUM(I11:I13) -> -195892.7965 | K14: =+K9-SUM(K11:K13) -> 36158.19812 | M14: =+M9-SUM(M11:M13) -> 36158.19812 | R14: 4 | S14: =IF((AK9/Investment*100)>0,(AK9/Investment*100),0) -> 240.7934239 | T14: =EXP(y_inter4-(slope*LN(S14))) -> 6.979624704 | U14: =(+S14*T14/100)/100 -> 0.168064773 | V14: =regDebt_weighted -> 0.03586 | W14: =+U14-V14 -> 0.132204773 | X14: =+((W14*(1-0.34))-Pfd_weighted)/Equity_percent -> 0.2356545063 | Y14: =+Y13 -> 0.0025 | Z14: 0.2381545063 | AA14: =Z14*equityP -> 0.1172393199 | AB14: =+AA14/(1-taxrate) -> 0.1174742684 | AC14: =debtP*Debt_Rate -> 0.02027173677 | AD14: =+AC14+AB14 -> 0.1377460052 | AE14: =+AD14/(S14/100) -> 0.05720505276 | AF14: =1-AE14 -> 0.9427949472 | AG14: =expenses/(AF14) -> 728063.3132 | AH14: =+AG14-Revenue -> 231224.2732 | AI14: =+AH14/$J$49 -> 252190.1242 | AJ14: =+AI14*$J$47 -> 6374.105389 | AK14: 734437.4186
B15: Basis Points - Flotation | C15: 0.0025 | F15: 9 | R15: 3rd Iteration
D16: Yes | F16: 10 | H16: Operating Ratio | I16: =+I8/I7 -> 1.381562956 | K16: =+K8/K7 -> 0.941632 | M16: =+M8/M7 -> 0.9421399007 | R16: 1 | S16: =AK11/Investment*100 -> 236.1910824 | T16: =EXP(y_inter1-(slope*LN(+S16))) -> 7.290621424 | U16: =(+S16*T16/100)/100 -> 0.1721979766 | V16: =regDebt_weighted -> 0.03586 | W16: =+U16-V16 -> 0.1363379766 | X16: =+((W16*(1-0.34))-Pfd_weighted)/Equity_percent -> 0.24358449 | Y16: =+Y14 -> 0.0025 | Z16: =+X16+Y16 -> 0.24608449 | AA16: =Z16*equityP -> 0.1211431129 | AB16: =+AA16/(1-taxrate) -> 0.1213858846 | AC16: =debtP*Debt_Rate -> 0.02027173677 | AD16: =+AC16+AB16 -> 0.1416576214 | AE16: =+AD16/(S16/100) -> 0.05997585511 | AF16: =1-AE16 -> 0.9400241449 | AG16: =expenses/(AF16) -> 730209.3427 | AH16: =+AG16-Revenue -> 233370.3027 | AI16: =+AH16/$J$49 -> 254530.7411 | AJ16: =+AI16*$J$47 -> 6433.264481 | AK16: =ROUND(+AJ16+AG16,5) -> 736642.6072
B17: Check when input is complete | D17: No | F17: 11 | R17: 2 | S17: =AK12/Investment*100 -> 235.9435748 | T17: =EXP(y_inter2-(slope*LN(+S17))) -> 7.192045243 | U17: =(+S17*T17/100)/100 -> 0.1696916865 | V17: =regDebt_weighted -> 0.03586 | W17: =+U17-V17 -> 0.1338316865 | X17: =+((W17*(1-0.34))-Pfd_weighted)/Equity_percent -> 0.2387759101 | Y17: =+Y16 -> 0.0025 | Z17: =+X17+Y17 -> 0.2412759101 | AA17: =Z17*equityP -> 0.1187759327 | AB17: =+AA17/(1-taxrate) -> 0.1190139606 | AC17: =debtP*Debt_Rate -> 0.02027173677 | AD17: =+AC17+AB17 -> 0.1392856974 | AE17: =+AD17/(S17/100) -> 0.05903347759 | AF17: =1-AE17 -> 0.9409665224 | AG17: =expenses/(AF17) -> 729478.0384 | AH17: =+AG17-Revenue -> 232638.9984 | AI17: =+AH17/$J$49 -> 253733.1271 | AJ17: =+AI17*$J$47 -> 6413.104787 | AK17: =ROUND(+AJ17+AG17,5) -> 735891.1431
F18: 12 | H18: Revenue Requirement | R18: 3 | S18: =AK13/Investment*100 -> 235.7771363 | T18: =EXP(y_inter3-(slope*LN(S18))) -> 7.125557939 | U18: =(+S18*T18/100)/100 -> 0.1680043645 | V18: =regDebt_weighted -> 0.03586 | W18: =+U18-V18 -> 0.1321443645 | X18: =+((W18*(1-0.34))-Pfd_weighted)/Equity_percent -> 0.2355386064 | Y18: =+Y17 -> 0.0025 | Z18: =+X18+Y18 -> 0.2380386064 | AA18: =Z18*equityP -> 0.1171822643 | AB18: =+AA18/(1-taxrate) -> 0.1174170985 | AC18: =debtP*Debt_Rate -> 0.02027173677 | AD18: =+AC18+AB18 -> 0.1376888353 | AE18: =+AD18/(S18/100) -> 0.05839787414 | AF18: =1-AE18 -> 0.9416021259 | AG18: =expenses/(AF18) -> 728985.6236 | AH18: =+AG18-Revenue -> 232146.5836 | AI18: =+AH18/$J$49 -> 253196.0635 | AJ18: =+AI18*$J$47 -> 6399.530505 | AK18: 735385.1541
B19: For Intial input: Uncheck Checkbox Until Completed | F19: 13 | I19: Historical Revenue | J19: =+Revenue -> 496839.04 | L19: Revenue Increase before taxes | M19: =+J7 -> 232123.4559 | R19: 4 | S19: =AK14/Investment*100 -> 235.6707915 | T19: =EXP(y_inter4-(slope*LN(S19))) -> 7.082992316 | U19: =(+S19*T19/100)/100 -> 0.1669254406 | V19: =regDebt_weighted -> 0.03586 | W19: =+U19-V19 -> 0.1310654406 | X19: =+((W19*(1-0.34))-Pfd_weighted)/Equity_percent -> 0.2334685778 | Y19: =+Y18 -> 0.0025 | Z19: 0.2359685778 | AA19: =Z19*equityP -> 0.1161632253 | AB19: =+AA19/(1-taxrate) -> 0.1163960173 | AC19: =debtP*Debt_Rate -> 0.02027173677 | AD19: =+AC19+AB19 -> 0.1366677541 | AE19: =+AD19/(S19/100) -> 0.05799095985 | AF19: =1-AE19 -> 0.9420090401 | AG19: =expenses/(AF19) -> 728670.7279 | AH19: =+AG19-Revenue -> 231831.6879 | AI19: =+AH19/$J$49 -> 252852.6151 | AJ19: =+AI19*$J$47 -> 6390.849847 | AK19: 735061.5777
F20: 14 | I20: Rate Increase | J20: =+J21-J19 -> 238522.3488 | L20: Rev Sensitive Taxes | M20: =+L8 -> 6398.892948 | R20: 4th Iteration
F21: 15 | I21: Revenue Requirement | J21: =+M7 -> 735361.3888 | L21: Rate Increase | M21: =+M19+M20 -> 238522.3488 | R21: 1 | S21: =AK16/Investment*100 -> 236.378406 | T21: =EXP(y_inter1-(slope*LN(+S21))) -> 7.286670942 | U21: =(+S21*T21/100)/100 -> 0.1722411662 | V21: =regDebt_weighted -> 0.03586 | W21: =+U21-V21 -> 0.1363811662 | X21: =+((W21*(1-0.34))-Pfd_weighted)/Equity_percent -> 0.2436673538 | Y21: =+Y19 -> 0.0025 | Z21: =+X21+Y21 -> 0.2461673538 | AA21: =Z21*equityP -> 0.1211839053 | AB21: =+AA21/(1-taxrate) -> 0.1214267588 | AC21: =debtP*Debt_Rate -> 0.02027173677 | AD21: =+AC21+AB21 -> 0.1416984956 | AE21: =+AD21/(S21/100) -> 0.0599456177 | AF21: =1-AE21 -> 0.9400543823 | AG21: =expenses/(AF21) -> 730185.855 | AH21: =+AG21-Revenue -> 233346.815 | AI21: =+AH21/$J$49 -> 254505.1238 | AJ21: =+AI21*$J$47 -> 6432.617003 | AK21: =ROUND(+AJ21+AG21,5) -> 736618.472
F22: 16 | R22: 2 | S22: =AK17/Investment*100 -> 236.1372716 | T22: =EXP(y_inter2-(slope*LN(+S22))) -> 7.188011454 | U22: =(+S22*T22/100)/100 -> 0.1697357413 | V22: =regDebt_weighted -> 0.03586 | W22: =+U22-V22 -> 0.1338757413 | X22: =+((W22*(1-0.34))-Pfd_weighted)/Equity_percent -> 0.2388604339 | Y22: =+Y21 -> 0.0025 | Z22: =+X22+Y22 -> 0.2413604339 | AA22: =Z22*equityP -> 0.1188175422 | AB22: =+AA22/(1-taxrate) -> 0.1190556536 | AC22: =debtP*Debt_Rate -> 0.02027173677 | AD22: =+AC22+AB22 -> 0.1393273903 | AE22: =+AD22/(S22/100) -> 0.05900271032 | AF22: =1-AE22 -> 0.9409972897 | AG22: =expenses/(AF22) -> 729454.187 | AH22: =+AG22-Revenue -> 232615.147 | AI22: =+AH22/$J$49 -> 253707.113 | AJ22: =+AI22*$J$47 -> 6412.447282 | AK22: =ROUND(+AJ22+AG22,5) -> 735866.6343
B23: 2018 Version Update Changes | F23: 17 | R23: 3 | S23: =AK18/Investment*100 -> 235.9749068 | T23: =EXP(y_inter3-(slope*LN(S23))) -> 7.12147457 | U23: =(+S23*T23/100)/100 -> 0.1680489298 | V23: =regDebt_weighted -> 0.03586 | W23: =+U23-V23 -> 0.1321889298 | X23: =+((W23*(1-0.34))-Pfd_weighted)/Equity_percent -> 0.2356241094 | Y23: =+Y22 -> 0.0025 | Z23: =+X23+Y23 -> 0.2381241094 | AA23: =Z23*equityP -> 0.117224356 | AB23: =+AA23/(1-taxrate) -> 0.1174592746 | AC23: =debtP*Debt_Rate -> 0.02027173677 | AD23: =+AC23+AB23 -> 0.1377310113 | AE23: =+AD23/(S23/100) -> 0.05836680401 | AF23: =1-AE23 -> 0.941633196 | AG23: =expenses/(AF23) -> 728961.57 | AH23: =+AG23-Revenue -> 232122.53 | AI23: =+AH23/$J$49 -> 253169.8289 | AJ23: =+AI23*$J$47 -> 6398.867425 | AK23: 735360.4374
B24: ● Allows Income Tax Rate Changes, | F24: 18 | H24: Captial Structure Financing Investment | K24: Financing Cost | R24: 4 | S24: =AK19/Investment*100 -> 235.8710756 | T24: =EXP(y_inter4-(slope*LN(S24))) -> 7.078879935 | U24: =(+S24*T24/100)/100 -> 0.1669703024 | V24: =regDebt_weighted -> 0.03586 | W24: =+U24-V24 -> 0.1311103024 | X24: =+((W24*(1-0.34))-Pfd_weighted)/Equity_percent -> 0.23355465 | Y24: =+Y23 -> 0.0025 | Z24: 0.23605465 | AA24: =Z24*equityP -> 0.1162055971 | AB24: =+AA24/(1-taxrate) -> 0.1164384741 | AC24: =debtP*Debt_Rate -> 0.02027173677 | AD24: =+AC24+AB24 -> 0.1367102109 | AE24: =+AD24/(S24/100) -> 0.05795971826 | AF24: =1-AE24 -> 0.9420402817 | AG24: =expenses/(AF24) -> 728646.5624 | AH24: =+AG24-Revenue -> 231807.5224 | AI24: =+AH24/$J$49 -> 252826.2585 | AJ24: =+AI24*$J$47 -> 6390.183684 | AK24: 735036.7461
B25: ● Minimizes impact of changes in test-year revenue from | F25: 19 | H25: Type | I25: Percent | J25: Amount | K25: Cost of Capital | L25: Weighted | M25: Amount | R25: 5th Iteration
B26: resulting revenue requirment, | F26: 20 | H26: Equity | I26: =1-I27 -> 0.4922826013 | J26: =+I26*J28 -> 153413.4801 | K26: =+K34 -> 0.2356911407 | L26: =+K26*I26 -> 0.1160266478 | M26: =+J26*K26 -> 36158.19812 | R26: 1 | S26: =AK21/Investment*100 -> 236.3706614 | T26: =EXP(y_inter1-(slope*LN(+S26))) -> 7.286834164 | U26: =(+S26*T26/100)/100 -> 0.1722393811 | V26: =regDebt_weighted -> 0.03586 | W26: =+U26-V26 -> 0.1363793811 | X26: =+((W26*(1-0.34))-Pfd_weighted)/Equity_percent -> 0.2436639288 | Y26: =+Y24 -> 0.0025 | Z26: =+X26+Y26 -> 0.2461639288 | AA26: =Z26*equityP -> 0.1211822192 | AB26: =+AA26/(1-taxrate) -> 0.1214250694 | AC26: =debtP*Debt_Rate -> 0.02027173677 | AD26: =+AC26+AB26 -> 0.1416968061 | AE26: =+AD26/(S26/100) -> 0.05994686705 | AF26: =1-AE26 -> 0.9400531329 | AG26: =expenses/(AF26) -> 730186.8255 | AH26: =+AG26-Revenue -> 233347.7855 | AI26: =+AH26/$J$49 -> 254506.1822 | AJ26: =+AI26*$J$47 -> 6432.643755 | AK26: =ROUND(+AJ26+AG26,5) -> 736619.4692
B27: ● Corrects interest rate transposition in LG. | F27: 21 | H27: Debt | I27: =IF(A64=TRUE,C8,0) -> 0.5077173987 | J27: =+I27*J28 -> 158223.5343 | K27: =IF(A64=TRUE,C9,0) -> 0.03992720522 | L27: =+K27*I27 -> 0.02027173677 | M27: =+K27*J27 -> 6317.423524 | R27: 2 | S27: =AK22/Investment*100 -> 236.1294071 | T27: =EXP(y_inter2-(slope*LN(+S27))) -> 7.188175127 | U27: =(+S27*T27/100)/100 -> 0.1697339531 | V27: =regDebt_weighted -> 0.03586 | W27: =+U27-V27 -> 0.1338739531 | X27: =+((W27*(1-0.34))-Pfd_weighted)/Equity_percent -> 0.238857003 | Y27: =+Y26 -> 0.0025 | Z27: =+X27+Y27 -> 0.241357003 | AA27: =Z27*equityP -> 0.1188158533 | AB27: =+AA27/(1-taxrate) -> 0.1190539612 | AC27: =debtP*Debt_Rate -> 0.02027173677 | AD27: =+AC27+AB27 -> 0.1393256979 | AE27: =+AD27/(S27/100) -> 0.05900395875 | AF27: =1-AE27 -> 0.9409960412 | AG27: =expenses/(AF27) -> 729455.1548 | AH27: =+AG27-Revenue -> 232616.1148 | AI27: =+AH27/$J$49 -> 253708.1686 | AJ27: =+AI27*$J$47 -> 6412.473961 | AK27: =ROUND(+AJ27+AG27,5) -> 735867.6288
F28: 22 | H28: Total | I28: =SUM(I26:I27) -> 1 | J28: =IF(A64=TRUE,C7,0) -> 311637.0144 | L28: =SUM(L26:L27) -> 0.1362983846 | M28: =SUM(M26:M27) -> 42475.62164 | R28: 3 | S28: =AK23/Investment*100 -> 235.9669755 | T28: =EXP(y_inter3-(slope*LN(S28))) -> 7.121638215 | U28: =(+S28*T28/100)/100 -> 0.168047143 | V28: =regDebt_weighted -> 0.03586 | W28: =+U28-V28 -> 0.132187143 | X28: =+((W28*(1-0.34))-Pfd_weighted)/Equity_percent -> 0.2356206814 | Y28: =+Y27 -> 0.0025 | Z28: =+X28+Y28 -> 0.2381206814 | AA28: =Z28*equityP -> 0.1172226685 | AB28: =+AA28/(1-taxrate) -> 0.1174575836 | AC28: =debtP*Debt_Rate -> 0.02027173677 | AD28: =+AC28+AB28 -> 0.1377293204 | AE28: =+AD28/(S28/100) -> 0.05836804922 | AF28: =1-AE28 -> 0.9416319508 | AG28: =expenses/(AF28) -> 728962.534 | AH28: =+AG28-Revenue -> 232123.494 | AI28: =+AH28/$J$49 -> 253170.8803 | AJ28: =+AI28*$J$47 -> 6398.893998 | AK28: 735361.428
F29: 23 | R29: 4 | S29: =AK24/Investment*100 -> 235.8631074 | T29: =EXP(y_inter4-(slope*LN(S29))) -> 7.07904343 | U29: =(+S29*T29/100)/100 -> 0.1669685181 | V29: =regDebt_weighted -> 0.03586 | W29: =+U29-V29 -> 0.1311085181 | X29: =+((W29*(1-0.34))-Pfd_weighted)/Equity_percent -> 0.2335512266 | Y29: =+Y28 -> 0.0025 | Z29: 0.2360512266 | AA29: =Z29*equityP -> 0.1162039119 | AB29: =+AA29/(1-taxrate) -> 0.1164367855 | AC29: =debtP*Debt_Rate -> 0.02027173677 | AD29: =+AC29+AB29 -> 0.1367085222 | AE29: =+AD29/(S29/100) -> 0.05796096037 | AF29: =1-AE29 -> 0.9420390396 | AG29: =expenses/(AF29) -> 728647.5231 | AH29: =+AG29-Revenue -> 231808.4831 | AI29: =+AH29/$J$49 -> 252827.3064 | AJ29: =+AI29*$J$47 -> 6390.210168 | AK29: 735037.7333
F30: 24 | J30: Before | K30: After | R30: 6th Iteration
F31: 25 | H31: Operating Statistics | J31: Income Tax | K31: Income Tax | R31: 1 | S31: =AK26/Investment*100 -> 236.3709814 | T31: =EXP(y_inter1-(slope*LN(+S31))) -> 7.28682742 | U31: =(+S31*T31/100)/100 -> 0.1722394548 | V31: =regDebt_weighted -> 0.03586 | W31: =+U31-V31 -> 0.1363794548 | X31: =+((W31*(1-0.34))-Pfd_weighted)/Equity_percent -> 0.2436640704 | Y31: =+Y29 -> 0.0025 | Z31: =+X31+Y31 -> 0.2461640704 | AA31: =Z31*equityP -> 0.1211822889 | AB31: =+AA31/(1-taxrate) -> 0.1214251392 | AC31: =debtP*Debt_Rate -> 0.02027173677 | AD31: =+AC31+AB31 -> 0.1416968759 | AE31: =+AD31/(S31/100) -> 0.05994681543 | AF31: =1-AE31 -> 0.9400531846 | AG31: =expenses/(AF31) -> 730186.7854 | AH31: =+AG31-Revenue -> 233347.7454 | AI31: =+AH31/$J$49 -> 254506.1385 | AJ31: =+AI31*$J$47 -> 6432.64265 | AK31: =ROUND(+AJ31+AG31,5) -> 736619.428
F32: 26 | R32: 2 | S32: =AK27/Investment*100 -> 236.1297262 | T32: =EXP(y_inter2-(slope*LN(+S32))) -> 7.188168485 | U32: =(+S32*T32/100)/100 -> 0.1697340256 | V32: =regDebt_weighted -> 0.03586 | W32: =+U32-V32 -> 0.1338740256 | X32: =+((W32*(1-0.34))-Pfd_weighted)/Equity_percent -> 0.2388571422 | Y32: =+Y31 -> 0.0025 | Z32: =+X32+Y32 -> 0.2413571422 | AA32: =Z32*equityP -> 0.1188159218 | AB32: =+AA32/(1-taxrate) -> 0.1190540298 | AC32: =debtP*Debt_Rate -> 0.02027173677 | AD32: =+AC32+AB32 -> 0.1393257666 | AE32: =+AD32/(S32/100) -> 0.05900390809 | AF32: =1-AE32 -> 0.9409960919 | AG32: =expenses/(AF32) -> 729455.1155 | AH32: =+AG32-Revenue -> 232616.0755 | AI32: =+AH32/$J$49 -> 253708.1257 | AJ32: =+AI32*$J$47 -> 6412.472878 | AK32: =ROUND(+AJ32+AG32,5) -> 735867.5884
F33: 27 | H33: Return on Investment | J33: =+K9/J28 -> 0.1365309029 | K33: =+(M14+M11)/J28 -> 0.1362983846 | R33: 3 | S33: =AK28/Investment*100 -> 235.9672934 | T33: =EXP(y_inter3-(slope*LN(S33))) -> 7.121631657 | U33: =(+S33*T33/100)/100 -> 0.1680472146 | V33: =regDebt_weighted -> 0.03586 | W33: =+U33-V33 -> 0.1321872146 | X33: =+((W33*(1-0.34))-Pfd_weighted)/Equity_percent -> 0.2356208188 | Y33: =+Y32 -> 0.0025 | Z33: =+X33+Y33 -> 0.2381208188 | AA33: =Z33*equityP -> 0.1172227361 | AB33: =+AA33/(1-taxrate) -> 0.1174576514 | AC33: =debtP*Debt_Rate -> 0.02027173677 | AD33: =+AC33+AB33 -> 0.1377293882 | AE33: =+AD33/(S33/100) -> 0.05836799931 | AF33: =1-AE33 -> 0.9416320007 | AG33: =expenses/(AF33) -> 728962.4954 | AH33: =+AG33-Revenue -> 232123.4554 | AI33: =+AH33/$J$49 -> 253170.8381 | AJ33: =+AI33*$J$47 -> 6398.892933 | AK33: 735361.3883
F34: 28 | H34: Return on Equity | J34: =+(M9-M11)/J26 -> 0.2361634676 | K34: =+M14/J26 -> 0.2356911407 | R34: 4 | S34: =AK29/Investment*100 -> 235.8634242 | T34: =EXP(y_inter4-(slope*LN(S34))) -> 7.07903693 | U34: =(+S34*T34/100)/100 -> 0.1669685891 | V34: =regDebt_weighted -> 0.03586 | W34: =+U34-V34 -> 0.1311085891 | X34: =+((W34*(1-0.34))-Pfd_weighted)/Equity_percent -> 0.2335513627 | Y34: =+Y33 -> 0.0025 | Z34: 0.2360513627 | AA34: =Z34*equityP -> 0.1162039789 | AB34: =+AA34/(1-taxrate) -> 0.1164368526 | AC34: =debtP*Debt_Rate -> 0.02027173677 | AD34: =+AC34+AB34 -> 0.1367085894 | AE34: =+AD34/(S34/100) -> 0.05796091098 | AF34: =1-AE34 -> 0.942039089 | AG34: =expenses/(AF34) -> 728647.4849 | AH34: =+AG34-Revenue -> 231808.4449 | AI34: =+AH34/$J$49 -> 252827.2647 | AJ34: =+AI34*$J$47 -> 6390.209115 | AK34: 735037.6941
F35: 29 | H35: Operating Ratio | J35: =+K8/K7 -> 0.941632 | K35: =+M8/M7 -> 0.9421399007 | R35: 7th Iteration
F36: 30 | H36: Profit Margin | J36: =+K9/K7 -> 0.058368 | K36: =+J36 -> 0.058368 | R36: 1 | S36: =AK31/Investment*100 -> 236.3709682 | T36: =EXP(y_inter1-(slope*LN(+S36))) -> 7.286827699 | U36: =(+S36*T36/100)/100 -> 0.1722394518 | V36: =regDebt_weighted -> 0.03586 | W36: =+U36-V36 -> 0.1363794518 | X36: =+((W36*(1-0.34))-Pfd_weighted)/Equity_percent -> 0.2436640645 | Y36: =+Y34 -> 0.0025 | Z36: =+X36+Y36 -> 0.2461640645 | AA36: =Z36*equityP -> 0.121182286 | AB36: =+AA36/(1-taxrate) -> 0.1214251363 | AC36: =debtP*Debt_Rate -> 0.02027173677 | AD36: =+AC36+AB36 -> 0.1416968731 | AE36: =+AD36/(S36/100) -> 0.05994681757 | AF36: =1-AE36 -> 0.9400531824 | AG36: =expenses/(AF36) -> 730186.787 | AH36: =+AG36-Revenue -> 233347.747 | AI36: =+AH36/$J$49 -> 254506.1403 | AJ36: =+AI36*$J$47 -> 6432.642696 | AK36: =ROUND(+AJ36+AG36,5) -> 736619.4297
F37: 31 | H37: Final turnover | J37: =+S39/100 -> 2.358634116 | K37: =+J37 -> 2.358634116 | R37: 2 | S37: =AK32/Investment*100 -> 236.1297132 | T37: =EXP(y_inter2-(slope*LN(+S37))) -> 7.188168755 | U37: =(+S37*T37/100)/100 -> 0.1697340227 | V37: =regDebt_weighted -> 0.03586 | W37: =+U37-V37 -> 0.1338740227 | X37: =+((W37*(1-0.34))-Pfd_weighted)/Equity_percent -> 0.2388571365 | Y37: =+Y36 -> 0.0025 | Z37: =+X37+Y37 -> 0.2413571365 | AA37: =Z37*equityP -> 0.118815919 | AB37: =+AA37/(1-taxrate) -> 0.1190540271 | AC37: =debtP*Debt_Rate -> 0.02027173677 | AD37: =+AC37+AB37 -> 0.1393257638 | AE37: =+AD37/(S37/100) -> 0.05900391015 | AF37: =1-AE37 -> 0.9409960899 | AG37: =expenses/(AF37) -> 729455.1171 | AH37: =+AG37-Revenue -> 232616.0771 | AI37: =+AH37/$J$49 -> 253708.1275 | AJ37: =+AI37*$J$47 -> 6412.472922 | AK37: =ROUND(+AJ37+AG37,5) -> 735867.59
F38: 32 | H38: Tax Rate | J38: =+C10 -> 0.002 | K38: =+J38 -> 0.002 | R38: 3 | S38: =AK33/Investment*100 -> 235.9672806 | T38: =EXP(y_inter3-(slope*LN(S38))) -> 7.12163192 | U38: =(+S38*T38/100)/100 -> 0.1680472118 | V38: =regDebt_weighted -> 0.03586 | W38: =+U38-V38 -> 0.1321872118 | X38: =+((W38*(1-0.34))-Pfd_weighted)/Equity_percent -> 0.2356208133 | Y38: =+Y37 -> 0.0025 | Z38: =+X38+Y38 -> 0.2381208133 | AA38: =Z38*equityP -> 0.1172227334 | AB38: =+AA38/(1-taxrate) -> 0.1174576487 | AC38: =debtP*Debt_Rate -> 0.02027173677 | AD38: =+AC38+AB38 -> 0.1377293855 | AE38: =+AD38/(S38/100) -> 0.05836800131 | AF38: =1-AE38 -> 0.9416319987 | AG38: =expenses/(AF38) -> 728962.4969 | AH38: =+AG38-Revenue -> 232123.4569 | AI38: =+AH38/$J$49 -> 253170.8398 | AJ38: =+AI38*$J$47 -> 6398.892976 | AK38: 735361.3899
F39: 33 | R39: 4 | S39: =AK34/Investment*100 -> 235.8634116 | T39: =EXP(y_inter4-(slope*LN(S39))) -> 7.079037189 | U39: =(+S39*T39/100)/100 -> 0.1669685862 | V39: =regDebt_weighted -> 0.03586 | W39: =+U39-V39 -> 0.1311085862 | X39: =+((W39*(1-0.34))-Pfd_weighted)/Equity_percent -> 0.2335513573 | Y39: =+Y38 -> 0.0025 | Z39: 0.2360513573 | AA39: =Z39*equityP -> 0.1162039762 | AB39: =+AA39/(1-taxrate) -> 0.1164368499 | AC39: =debtP*Debt_Rate -> 0.02027173677 | AD39: =+AC39+AB39 -> 0.1367085867 | AE39: =+AD39/(S39/100) -> 0.05796091295 | AF39: =1-AE39 -> 0.9420390871 | AG39: =expenses/(AF39) -> 728647.4865 | AH39: =+AG39-Revenue -> 231808.4465 | AI39: =+AH39/$J$49 -> 252827.2663 | AJ39: =+AI39*$J$47 -> 6390.209157 | AK39: 735037.6956
F40: 34
F41: 35 | H41: Revenue Sensitive Taxes Charges | R41: Curve
F42: 36 | J42: Rate | K42: Taxes | R42: Lookup Table
F43: 37 | H43: B & O Tax | J43: =IF(A64=TRUE,C11,0) -> 0.015 | K43: =+J43*($J$7/$J$49) -> 3797.56258 | R43: 0 | S43: 1 | U43: Profit Margin | V43: =VLOOKUP(R48,R36:AG39,14) -> 0.05836800131
F44: 38 | H44: WUTC Fee | J44: =IF(A64=TRUE,C12,0) -> 0.004275 | K44: =+J44*($J$7/$J$49) -> 1082.305335 | R44: 50 | S44: 2 | U44: Operating Ratio | V44: =ROUND(1-V43,6) -> 0.941632
F45: 39 | H45: City Tax | J45: =IF(A64=TRUE,C13,0) -> 0 | K45: =+J45*($J$7/$J$49) -> 0 | R45: 125 | S45: 3 | U45: Percent Chg | V45: =+M7/Revenue-1 -> 0.4800797233
F46: 40 | H46: Bad Debts | J46: =IF(A64=TRUE,C14,0) -> 0.006 | K46: =+J46*($J$7/$J$49) -> 1519.025032 | R46: 401 | S46: 4
F47: 41 | H47: Revenue Sensitive | J47: =SUM(J43:J46) -> 0.025275 | K47: =+K43+K44+K45+K46 -> 6398.892948 | R47: =VLOOKUP(R48,R36:S39,2) -> 235.9672806 | S47: Curve turnover | X47: @EXP(5.72260-(.68367*@LN(T)))
F48: 42 | R48: =VLOOKUP(S36,R43:S46,2) -> 3 | S48: Curve No. Used | X48: @EXP(5.70827-(.68367*@LN(T)))
F49: 43 | H49: Conversion Factor | J49: =((K35)-J47) -> 0.9168649007 | X49: @EXP(5.69850-(.68367*@LN(T)))
R50: =+V44 -> 0.941632 | S50: Operating Ratio | X50: @EXP(5.69220-(.68367*@LN(T)))
S53: Base Utility from LG Sample Study | W53: Regression Results
S54: Percent | T54: Cost | U54: Weighted | W54: Y intercept (1) | X54: 5.7226 | Y54: Y intercept (3) | Z54: 5.6985
R55: Debt | S55: 0.562 | T55: 0.0638 | U55: =ROUND(+S55*T55,5) -> 0.03586 | W55: Y intercept (2) | X55: 5.70827 | Y55: Y intercept (4) | Z55: 5.6922
R56: Pfd. | S56: 0.094 | T56: 0.0659 | U56: =ROUND(+S56*T56,5) -> 0.00619
R57: Equity | S57: 0.344 | X57: Slope | Y57: 0.68367
S58: =SUM(S55:S57) -> 1
X60: Operating Statistics | Y60: Pre-tax | Z60: After Tax
X62: Return on Investment | Y62: =+J33 -> 0.1365309029 | Z62: 0.1362983846
X63: Return on Equity | Y63: 0.2361634676 | Z63: 0.2356911407
A64: TRUE | X64: Operating Ratio | Y64: 0.941632 | Z64: 0.9421399007
X65: Profit Margin | Y65: 0.058368 | Z65: 0.058368
X66: Final turnover | Y66: 2.358634116 | Z66: 2.358634116
X67: Tax Rate | Y67: 0.002 | Z67: 0.002

Sheet RCY
B1: NEW IMPROVED LURITO - GALLAGHER FORMULA | AE1: !??! | AF1: OP/RATIO | AI1: curve
G2: NOTE: | N2: FORMULAS | U2: 1st Revenue | V2: 1st Turnover | W2: M | X2: ROR | Y2: ROE | AA2: Adj ROE | AB2: Pre Tax ROE | AC2: Adj M | AD2: Revenues | AE2: Decision | AI2: lookup table
B3: !!! | C3: Revenue Requirement | E3: =E5+E4 -> 735364.9365 | F3: !!!<-- | H3: Red numbers are input/linked fields. | N3: 1. less than 50 | Q3: @EXP(5.72260-(.68367*@LN(T))) | U3: =$E$6*1.25 -> 858018.0162 | V3: ='RCY LG 2018 V5.0c'!S6 -> 159.4287639 | W3: =EXP(5.7226-(0.68367*LN(+V3))) -> 9.538165214 | X3: =(+W3*V3)/100 -> 15.2065789 | Y3: ='RCY LG 2018 V5.0c'!X6 -> 0.2049587813 | Z3: =+$E$18 -> 0.25 | AA3: =Y3+Z3 -> 0.4549587813 | AB3: =100*($E$15*$E$17+($E$16*(AA3/100))/(1-$E$19)) -> 2.251590804 | AC3: ='RCY LG 2018 V5.0c'!AE6 -> 0.07690252892 | AD3: =$E$6/(1-AC3) -> 743599.0612 | AE3: =IF(AD3=$U$3,"yes","not yet") -> not yet | AF3: =100*(1-AC3) -> 92.30974711 | AI3: 0 | AJ3: 1
B4: !!! | C4: Revenue Deficiency | E4: =(+E6-((H13/100)*E5))/H23 -> 238525.8965 | F4: !!!<-- | H4: Black are formula calculations | N4: 2. Between 50 and 125 | Q4: @EXP(5.70827-(.68367*@LN(T))) | U4: =$E$6*1.25 -> 858018.0162 | V4: ='RCY LG 2018 V5.0c'!S7 -> 159.4287639 | W4: ='RCY LG 2018 V5.0c'!T7 -> 9.538165214 | X4: =(+W4*V4)/100 -> 15.2065789 | Y4: ='RCY LG 2018 V5.0c'!X7 -> 0.2049587813 | Z4: =+$E$18 -> 0.25 | AA4: =Y4+Z4 -> 0.4549587813 | AB4: =100*($E$15*$E$17+($E$16*(AA4/100))/(1-$E$19)) -> 2.251590804 | AC4: ='RCY LG 2018 V5.0c'!AE7 -> 0.07690252892 | AD4: =$E$6/(1-AC4) -> 743599.0612 | AE4: =IF(AD4=$U$4,"yes","not yet") -> not yet | AF4: =100*(1-AC4) -> 92.30974711 | AI4: 50 | AJ4: 2
B5: * | C5: Revenue | E5: =Proforma!P26 -> 496839.04 | F5: * p/f before rates | N5: 3. Between 125 and 140 | Q5: @EXP(5.69850-(.68367*@LN(T))) | U5: =$E$6*1.25 -> 858018.0162 | V5: ='RCY LG 2018 V5.0c'!S8 -> 159.4287639 | W5: ='RCY LG 2018 V5.0c'!T8 -> 9.538165214 | X5: =(+W5*V5)/100 -> 15.2065789 | Y5: ='RCY LG 2018 V5.0c'!X8 -> 0.2049587813 | Z5: =+$E$18 -> 0.25 | AA5: =Y5+Z5 -> 0.4549587813 | AB5: =100*($E$15*$E$17+($E$16*(AA5/100))/(1-$E$19)) -> 2.251590804 | AC5: ='RCY LG 2018 V5.0c'!AE8 -> 0.07690252892 | AD5: =$E$6/(1-AC5) -> 743599.0612 | AE5: =IF(AD5=$U$5,"yes","not yet") -> not yet | AF5: =100*(1-AC5) -> 92.30974711 | AI5: 125 | AJ5: 3
B6: * | C6: Expenses | E6: =+Proforma!P391 -> 686414.4129 | F6: * p/f before rates | N6: 4. greater than 400 | Q6: @EXP(5.69220-(.68367*@LN(T))) | U6: =$E$6*1.25 -> 858018.0162 | V6: ='RCY LG 2018 V5.0c'!S9 -> 159.4287639 | W6: ='RCY LG 2018 V5.0c'!T9 -> 9.538165214 | X6: =(+W6*V6)/100 -> 15.2065789 | Y6: ='RCY LG 2018 V5.0c'!X9 -> 0.2049587813 | Z6: =+$E$18 -> 0.25 | AA6: =Y6+Z6 -> 0.4549587813 | AB6: =100*($E$15*$E$17+($E$16*(AA6/100))/(1-$E$19)) -> 2.251590804 | AC6: ='RCY LG 2018 V5.0c'!AE9 -> 0.07690252892 | AD6: =$E$6/(1-AC6) -> 743599.0612 | AE6: =IF(AD6=$U$6,"yes","not yet") -> not yet | AF6: =100*(1-AC6) -> 92.30974711 | AI6: 401 | AJ6: 4
B7: * | C7: Avg. Investment - | E7: ='Ave Inv. Summary'!K66 -> 311637.0144 | F7: * p/f before rates
C8: curve turnover | E8: =V3 -> 159.4287639 | F8: (calculated) | V8: 2nd Turnover | W8: M | X8: ROR | Y8: ROE | AI8: lookup tables
C9: final turnover | E9: =HLOOKUP($AJ$32,$AJ$26:$AR$30,$E$10+1) -> 235.9672806 | F9: (calculated) | V9: ='RCY LG 2018 V5.0c'!S11 -> 240.7934239 | W9: ='RCY LG 2018 V5.0c'!T11 -> 7.195063371 | X9: =(+W9*V9)/100 -> 17.32523944 | Y9: ='RCY LG 2018 V5.0c'!X11 -> 0.2456075009 | Z9: =+$E$18 -> 0.25 | AA9: =Y9+Z9 -> 0.4956075009 | AB9: =100*($E$15*$E$17+($E$16*(AA9/100))/(1-$E$19)) -> 2.271641563 | AC9: ='RCY LG 2018 V5.0c'!AE11 -> 0.05924393946 | AD9: =$E$6/(1-AC9) -> 729641.234 | AE9: =IF(OR(OR(AD9=AD3,AD9=(AD3+1)),AD9=(AD8187-1)),"yes","not yet") -> not yet | AF9: =100*(1-AC9) -> 94.07560605
C10: curve No. used | E10: =VLOOKUP(E8,AI3:AJ6,2) -> 3 | F10: (calculated) | V10: ='RCY LG 2018 V5.0c'!S12 -> 240.7934239 | W10: ='RCY LG 2018 V5.0c'!T12 -> 7.092693346 | X10: =(+W10*V10)/100 -> 17.07873915 | Y10: ='RCY LG 2018 V5.0c'!X12 -> 0.2408781349 | Z10: =+$E$18 -> 0.25 | AA10: =Y10+Z10 -> 0.4908781349 | AB10: =100*($E$15*$E$17+($E$16*(AA10/100))/(1-$E$19)) -> 2.269308712 | AC10: ='RCY LG 2018 V5.0c'!AE12 -> 0.05827512135 | AD10: =$E$6/(1-AC10) -> 728890.6012 | AE10: =IF(OR(OR(AD10=AD4,AD10=(AD4+1)),AD10=(AD4-1)),"yes","not yet") -> not yet | AF10: =100*(1-AC10) -> 94.17248786
V11: ='RCY LG 2018 V5.0c'!S13 -> 240.7934239 | W11: ='RCY LG 2018 V5.0c'!T13 -> 7.023735142 | X11: =(+W11*V11)/100 -> 16.91269233 | Y11: ='RCY LG 2018 V5.0c'!X13 -> 0.2376923529 | Z11: =+$E$18 -> 0.25 | AA11: =Y11+Z11 -> 0.4876923529 | AB11: =100*($E$15*$E$17+($E$16*(AA11/100))/(1-$E$19)) -> 2.267737264 | AC11: ='RCY LG 2018 V5.0c'!AE13 -> 0.05762250886 | AD11: =$E$6/(1-AC11) -> 728385.832 | AE11: =IF(OR(OR(AD11=AD5,AD11=(AD5+1)),AD11=(AD5-1)),"yes","not yet") -> not yet | AF11: =100*(1-AC11) -> 94.23774911 | AJ11: 1 | AK11: 2 | AL11: 3 | AM11: 4 | AN11: 5 | AO11: 6 | AP11: 7 | AQ11: 8 | AR11: 9
C12: Company actual | V12: ='RCY LG 2018 V5.0c'!S14 -> 240.7934239 | W12: ='RCY LG 2018 V5.0c'!T14 -> 6.979624704 | X12: =(+W12*V12)/100 -> 16.8064773 | Y12: ='RCY LG 2018 V5.0c'!X14 -> 0.2356545063 | Z12: =+$E$18 -> 0.25 | AA12: =Y12+Z12 -> 0.4856545063 | AB12: =100*($E$15*$E$17+($E$16*(AA12/100))/(1-$E$19)) -> 2.266732058 | AC12: ='RCY LG 2018 V5.0c'!AE14 -> 0.05720505276 | AD12: =$E$6/(1-AC12) -> 728063.3132 | AE12: =IF(OR(OR(AD12=AD6,AD12=(AD6+1)),AD12=(AD6-1)),"yes","not yet") -> not yet | AF12: =100*(1-AC12) -> 94.27949472 | AJ12: =AE3 -> not yet | AK12: =AE9 -> not yet | AL12: =AE15 -> not yet | AM12: =AE21 -> not yet | AN12: =AE27 -> not yet | AO12: =AE33 -> not yet | AP12: =AE39 -> yes | AQ12: =AE45 -> 0 | AR12: =AE51 -> 0
C13: capital structure: | E13: !!! | F13: OPERATING RATIO -> | H13: =HLOOKUP($AJ$23,$AJ$17:$AR$21,$E$10+1) -> 94.16319987 | I13: !!!<-- | AJ13: =AE4 -> not yet | AK13: =AE10 -> not yet | AL13: =AE16 -> not yet | AM13: =AE22 -> not yet | AN13: =AE28 -> not yet | AO13: =AE34 -> not yet | AP13: =AE40 -> yes | AQ13: =AE46 -> 0 | AR13: =AE52 -> 0
C14: - | D14: - | H14: = | V14: 3rd Turnover | W14: M | X14: ROR | Y14: ROE | AJ14: =AE5 -> not yet | AK14: =AE11 -> not yet | AL14: =AE17 -> not yet | AM14: =AE23 -> not yet | AN14: =AE29 -> not yet | AO14: =AE35 -> not yet | AP14: =AE41 -> yes | AQ14: =AE47 -> 0 | AR14: =AE53 -> 0
B15: * | C15: Actual Debt Ratio | E15: =+'Combined LG'!E15 -> 0.5077173987 | F15: Conversion factor data: | V15: ='RCY LG 2018 V5.0c'!S16 -> 236.1910824 | W15: ='RCY LG 2018 V5.0c'!T16 -> 7.290621424 | X15: =(+W15*V15)/100 -> 17.21979766 | Y15: ='RCY LG 2018 V5.0c'!X16 -> 0.24358449 | Z15: =+$E$18 -> 0.25 | AA15: =Y15+Z15 -> 0.49358449 | AB15: =100*($E$15*$E$17+($E$16*(AA15/100))/(1-$E$19)) -> 2.270643674 | AC15: ='RCY LG 2018 V5.0c'!AE16 -> 0.05997585511 | AD15: =$E$6/(1-AC15) -> 730209.3427 | AE15: =IF(OR(OR(AD15=AD9,AD15=(AD9+1)),AD15=(AD1-1)),"yes","not yet") -> not yet | AF15: =100*(1-AC15) -> 94.00241449 | AJ15: =AE6 -> not yet | AK15: =AE12 -> not yet | AL15: =AE18 -> not yet | AM15: =AE24 -> not yet | AN15: =AE30 -> not yet | AO15: =AE36 -> not yet | AP15: =AE42 -> yes | AQ15: =AE48 -> 0 | AR15: =AE54 -> 0
B16: * | C16: Actual Equity Ratio | E16: =+'Combined LG'!E16 -> 0.4922826013 | F16: B & O Tax | H16: =+'Combined LG'!H16 -> 0.015 | I16: * | V16: ='RCY LG 2018 V5.0c'!S17 -> 235.9435748 | W16: ='RCY LG 2018 V5.0c'!T17 -> 7.192045243 | X16: =(+W16*V16)/100 -> 16.96916865 | Y16: ='RCY LG 2018 V5.0c'!X17 -> 0.2387759101 | Z16: =+$E$18 -> 0.25 | AA16: =Y16+Z16 -> 0.4887759101 | AB16: =100*($E$15*$E$17+($E$16*(AA16/100))/(1-$E$19)) -> 2.26827175 | AC16: ='RCY LG 2018 V5.0c'!AE17 -> 0.05903347759 | AD16: =$E$6/(1-AC16) -> 729478.0384 | AE16: =IF(OR(OR(AD16=AD10,AD16=(AD10+1)),AD16=(AD10-1)),"yes","not yet") -> not yet | AF16: =100*(1-AC16) -> 94.09665224
B17: * | C17: Actual Cost of Debt | E17: =+'Combined LG'!E17 -> 0.03992720522 | F17: WUTC Fee | H17: =+'Combined LG'!H17 -> 0.004275 | I17: * | V17: ='RCY LG 2018 V5.0c'!S18 -> 235.7771363 | W17: ='RCY LG 2018 V5.0c'!T18 -> 7.125557939 | X17: =(+W17*V17)/100 -> 16.80043645 | Y17: ='RCY LG 2018 V5.0c'!X18 -> 0.2355386064 | Z17: =+$E$18 -> 0.25 | AA17: =Y17+Z17 -> 0.4855386064 | AB17: =100*($E$15*$E$17+($E$16*(AA17/100))/(1-$E$19)) -> 2.266674888 | AC17: ='RCY LG 2018 V5.0c'!AE18 -> 0.05839787414 | AD17: =$E$6/(1-AC17) -> 728985.6236 | AE17: =IF(OR(OR(AD17=AD11,AD17=(AD11+1)),AD17=(AD11-1)),"yes","not yet") -> not yet | AF17: =100*(1-AC17) -> 94.16021259 | AJ17: =HLOOKUP(1,$AJ$11:$AR$15,$E$10+1) -> not yet | AK17: =HLOOKUP(2,$AJ$11:$AR$15,$E$10+1) -> not yet | AL17: =HLOOKUP(3,$AJ$11:$AR$15,$E$10+1) -> not yet | AM17: =HLOOKUP(4,$AJ$11:$AR$15,$E$10+1) -> not yet | AN17: =HLOOKUP(5,$AJ$11:$AR$15,$E$10+1) -> not yet | AO17: =HLOOKUP(6,$AJ$11:$AR$15,$E$10+1) -> not yet | AP17: =HLOOKUP(7,$AJ$11:$AR$15,$E$10+1) -> yes | AQ17: =HLOOKUP(8,$AJ$11:$AR$15,$E$10+1) -> 0 | AR17: =HLOOKUP(9,$AJ$11:$AR$15,$E$10+1) -> 0
B18: * | C18: Basis Points | E18: 0.25 | F18: City Tax | H18: =+'Combined LG'!H18 -> 0 | I18: * | V18: ='RCY LG 2018 V5.0c'!S19 -> 235.6707915 | W18: ='RCY LG 2018 V5.0c'!T19 -> 7.082992316 | X18: =(+W18*V18)/100 -> 16.69254406 | Y18: ='RCY LG 2018 V5.0c'!X19 -> 0.2334685778 | Z18: =+$E$18 -> 0.25 | AA18: =Y18+Z18 -> 0.4834685778 | AB18: =100*($E$15*$E$17+($E$16*(AA18/100))/(1-$E$19)) -> 2.265653807 | AC18: ='RCY LG 2018 V5.0c'!AE19 -> 0.05799095985 | AD18: =$E$6/(1-AC18) -> 728670.7279 | AE18: =IF(OR(OR(AD18=AD12,AD18=(AD12+1)),AD18=(AD12-1)),"yes","not yet") -> not yet | AF18: =100*(1-AC18) -> 94.20090401 | AI18: 1 | AJ18: =AF3 -> 92.30974711 | AK18: =AF9 -> 94.07560605 | AL18: =AF15 -> 94.00241449 | AM18: =AF21 -> 94.00543823 | AN18: =AF27 -> 94.00531329 | AO18: =AF33 -> 94.00531846 | AP18: =AF39 -> 94.00531824 | AQ18: =AF45 -> 0 | AR18: =AF51 -> 0
B19: * | C19: Tax Rate | E19: =+'Combined LG'!E19 -> 0.002 | F19: Bad Debts | H19: =+'Combined LG'!H19 -> 0.006 | I19: * | AI19: 2 | AJ19: =AF4 -> 92.30974711 | AK19: =AF10 -> 94.17248786 | AL19: =AF16 -> 94.09665224 | AM19: =AF22 -> 94.09972897 | AN19: =AF28 -> 94.09960412 | AO19: =AF34 -> 94.09960919 | AP19: =AF40 -> 94.09960899 | AQ19: =AF46 -> 0 | AR19: =AF52 -> 0
H20: - | V20: 4th Turnover | W20: M | X20: ROR | Y20: ROE | AI20: 3 | AJ20: =AF5 -> 92.30974711 | AK20: =AF11 -> 94.23774911 | AL20: =AF17 -> 94.16021259 | AM20: =AF23 -> 94.1633196 | AN20: =AF29 -> 94.16319508 | AO20: =AF35 -> 94.16320007 | AP20: =AF41 -> 94.16319987 | AQ20: =AF47 -> 0 | AR20: =AF53 -> 0
F21: Revenue Sensitive | H21: =SUM(H16:H19) -> 0.025275 | V21: ='RCY LG 2018 V5.0c'!S21 -> 236.378406 | W21: ='RCY LG 2018 V5.0c'!T21 -> 7.286670942 | X21: =(+W21*V21)/100 -> 17.22411662 | Y21: ='RCY LG 2018 V5.0c'!X21 -> 0.2436673538 | Z21: =+$E$18 -> 0.25 | AA21: =Y21+Z21 -> 0.4936673538 | AB21: =100*($E$15*$E$17+($E$16*(AA21/100))/(1-$E$19)) -> 2.270684548 | AC21: ='RCY LG 2018 V5.0c'!AE21 -> 0.0599456177 | AD21: =$E$6/(1-AC21) -> 730185.855 | AE21: =IF(OR(OR(AD21=AD15,AD21=(AD15+1)),AD21=(AD7-1)),"yes","not yet") -> not yet | AF21: =100*(1-AC21) -> 94.00543823 | AI21: 4 | AJ21: =AF6 -> 92.30974711 | AK21: =AF12 -> 94.27949472 | AL21: =AF18 -> 94.20090401 | AM21: =AF24 -> 94.20402817 | AN21: =AF30 -> 94.20390396 | AO21: =AF36 -> 94.2039089 | AP21: =AF42 -> 94.20390871 | AQ21: =AF48 -> 0 | AR21: =AF54 -> 0
V22: ='RCY LG 2018 V5.0c'!S22 -> 236.1372716 | W22: ='RCY LG 2018 V5.0c'!T22 -> 7.188011454 | X22: =(+W22*V22)/100 -> 16.97357413 | Y22: ='RCY LG 2018 V5.0c'!X22 -> 0.2388604339 | Z22: =+$E$18 -> 0.25 | AA22: =Y22+Z22 -> 0.4888604339 | AB22: =100*($E$15*$E$17+($E$16*(AA22/100))/(1-$E$19)) -> 2.268313443 | AC22: ='RCY LG 2018 V5.0c'!AE22 -> 0.05900271032 | AD22: =$E$6/(1-AC22) -> 729454.187 | AE22: =IF(OR(OR(AD22=AD16,AD22=(AD16+1)),AD22=(AD16-1)),"yes","not yet") -> not yet | AF22: =100*(1-AC22) -> 94.09972897
F23: Conversion Factor | H23: =((+H13/100)-H21) -> 0.9163569987 | V23: ='RCY LG 2018 V5.0c'!S23 -> 235.9749068 | W23: ='RCY LG 2018 V5.0c'!T23 -> 7.12147457 | X23: =(+W23*V23)/100 -> 16.80489298 | Y23: ='RCY LG 2018 V5.0c'!X23 -> 0.2356241094 | Z23: =+$E$18 -> 0.25 | AA23: =Y23+Z23 -> 0.4856241094 | AB23: =100*($E$15*$E$17+($E$16*(AA23/100))/(1-$E$19)) -> 2.266717064 | AC23: ='RCY LG 2018 V5.0c'!AE23 -> 0.05836680401 | AD23: =$E$6/(1-AC23) -> 728961.57 | AE23: =IF(OR(OR(AD23=AD17,AD23=(AD17+1)),AD23=(AD17-1)),"yes","not yet") -> not yet | AF23: =100*(1-AC23) -> 94.1633196 | AJ23: yes
V24: ='RCY LG 2018 V5.0c'!S24 -> 235.8710756 | W24: ='RCY LG 2018 V5.0c'!T24 -> 7.078879935 | X24: =(+W24*V24)/100 -> 16.69703024 | Y24: ='RCY LG 2018 V5.0c'!X24 -> 0.23355465 | Z24: =+$E$18 -> 0.25 | AA24: =Y24+Z24 -> 0.48355465 | AB24: =100*($E$15*$E$17+($E$16*(AA24/100))/(1-$E$19)) -> 2.265696263 | AC24: ='RCY LG 2018 V5.0c'!AE24 -> 0.05795971826 | AD24: =$E$6/(1-AC24) -> 728646.5624 | AE24: =IF(OR(OR(AD24=AD18,AD24=(AD18+1)),AD24=(AD18-1)),"yes","not yet") -> not yet | AF24: =100*(1-AC24) -> 94.20402817 | AJ24: =HLOOKUP($AJ$23,$AJ$17:$AR$21,$E$10+1) -> 94.16319987
C26: Company Reference | V26: 5th Turnover | W26: M | X26: ROR | Y26: ROE | AJ26: =HLOOKUP(1,$AJ$11:$AR$15,$E$10+1) -> not yet | AK26: =HLOOKUP(2,$AJ$11:$AR$15,$E$10+1) -> not yet | AL26: =HLOOKUP(3,$AJ$11:$AR$15,$E$10+1) -> not yet | AM26: =HLOOKUP(4,$AJ$11:$AR$15,$E$10+1) -> not yet | AN26: =HLOOKUP(5,$AJ$11:$AR$15,$E$10+1) -> not yet | AO26: =HLOOKUP(6,$AJ$11:$AR$15,$E$10+1) -> not yet | AP26: =HLOOKUP(7,$AJ$11:$AR$15,$E$10+1) -> yes | AQ26: =HLOOKUP(8,$AJ$11:$AR$15,$E$10+1) -> 0 | AR26: =HLOOKUP(9,$AJ$11:$AR$15,$E$10+1) -> 0
C27: Annl Price Increase (PI) $ | E27: =+E4 -> 238525.8965 | V27: ='RCY LG 2018 V5.0c'!S26 -> 236.3706614 | W27: ='RCY LG 2018 V5.0c'!T26 -> 7.286834164 | X27: =(+W27*V27)/100 -> 17.22393811 | Y27: ='RCY LG 2018 V5.0c'!X26 -> 0.2436639288 | Z27: =+$E$18 -> 0.25 | AA27: =Y27+Z27 -> 0.4936639288 | AB27: =100*($E$15*$E$17+($E$16*(AA27/100))/(1-$E$19)) -> 2.270682859 | AC27: ='RCY LG 2018 V5.0c'!AE26 -> 0.05994686705 | AD27: =$E$6/(1-AC27) -> 730186.8255 | AE27: =IF(OR(OR(AD27=AD21,AD27=(AD21+1)),AD27=(AD13-1)),"yes","not yet") -> not yet | AF27: =100*(1-AC27) -> 94.00531329 | AI27: 1 | AJ27: =V3 -> 159.4287639 | AK27: =V9 -> 240.7934239 | AL27: =V15 -> 236.1910824 | AM27: =V21 -> 236.378406 | AN27: =V27 -> 236.3706614 | AO27: =V33 -> 236.3709814 | AP27: =V39 -> 236.3709682 | AQ27: =V45 -> 0 | AR27: =V51 -> 0
C28: Monthly PI $ | E28: =+E27/12 -> 19877.15805 | V28: ='RCY LG 2018 V5.0c'!S27 -> 236.1294071 | W28: ='RCY LG 2018 V5.0c'!T27 -> 7.188175127 | X28: =(+W28*V28)/100 -> 16.97339531 | Y28: ='RCY LG 2018 V5.0c'!X27 -> 0.238857003 | Z28: =+$E$18 -> 0.25 | AA28: =Y28+Z28 -> 0.488857003 | AB28: =100*($E$15*$E$17+($E$16*(AA28/100))/(1-$E$19)) -> 2.26831175 | AC28: ='RCY LG 2018 V5.0c'!AE27 -> 0.05900395875 | AD28: =$E$6/(1-AC28) -> 729455.1548 | AE28: =IF(OR(OR(AD28=AD22,AD28=(AD22+1)),AD28=(AD22-1)),"yes","not yet") -> not yet | AF28: =100*(1-AC28) -> 94.09960412 | AI28: 2 | AJ28: =V4 -> 159.4287639 | AK28: =V10 -> 240.7934239 | AL28: =V16 -> 235.9435748 | AM28: =V22 -> 236.1372716 | AN28: =V28 -> 236.1294071 | AO28: =V34 -> 236.1297262 | AP28: =V40 -> 236.1297132 | AQ28: =V46 -> 0 | AR28: =V52 -> 0
C29: Percentage PI | E29: =+E4/E5 -> 0.4800868638 | V29: ='RCY LG 2018 V5.0c'!S28 -> 235.9669755 | W29: ='RCY LG 2018 V5.0c'!T28 -> 7.121638215 | X29: =(+W29*V29)/100 -> 16.8047143 | Y29: ='RCY LG 2018 V5.0c'!X28 -> 0.2356206814 | Z29: =+$E$18 -> 0.25 | AA29: =Y29+Z29 -> 0.4856206814 | AB29: =100*($E$15*$E$17+($E$16*(AA29/100))/(1-$E$19)) -> 2.266715373 | AC29: ='RCY LG 2018 V5.0c'!AE28 -> 0.05836804922 | AD29: =$E$6/(1-AC29) -> 728962.534 | AE29: =IF(OR(OR(AD29=AD23,AD29=(AD23+1)),AD29=(AD23-1)),"yes","not yet") -> not yet | AF29: =100*(1-AC29) -> 94.16319508 | AI29: 3 | AJ29: =V5 -> 159.4287639 | AK29: =V11 -> 240.7934239 | AL29: =V17 -> 235.7771363 | AM29: =V23 -> 235.9749068 | AN29: =V29 -> 235.9669755 | AO29: =V35 -> 235.9672934 | AP29: =V41 -> 235.9672806 | AQ29: =V47 -> 0 | AR29: =V53 -> 0
V30: ='RCY LG 2018 V5.0c'!S29 -> 235.8631074 | W30: ='RCY LG 2018 V5.0c'!T29 -> 7.07904343 | X30: =(+W30*V30)/100 -> 16.69685181 | Y30: ='RCY LG 2018 V5.0c'!X29 -> 0.2335512266 | Z30: =+$E$18 -> 0.25 | AA30: =Y30+Z30 -> 0.4835512266 | AB30: =100*($E$15*$E$17+($E$16*(AA30/100))/(1-$E$19)) -> 2.265694575 | AC30: ='RCY LG 2018 V5.0c'!AE29 -> 0.05796096037 | AD30: =$E$6/(1-AC30) -> 728647.5231 | AE30: =IF(OR(OR(AD30=AD24,AD30=(AD24+1)),AD30=(AD24-1)),"yes","not yet") -> not yet | AF30: =100*(1-AC30) -> 94.20390396 | AI30: 4 | AJ30: =V6 -> 159.4287639 | AK30: =V12 -> 240.7934239 | AL30: =V18 -> 235.6707915 | AM30: =V24 -> 235.8710756 | AN30: =V30 -> 235.8631074 | AO30: =V36 -> 235.8634242 | AP30: =V42 -> 235.8634116 | AQ30: =V48 -> 0 | AR30: =V54 -> 0
V32: 6th Turnover | W32: M | X32: ROR | Y32: ROE | AJ32: yes
V33: ='RCY LG 2018 V5.0c'!S31 -> 236.3709814 | W33: ='RCY LG 2018 V5.0c'!T31 -> 7.28682742 | X33: =(+W33*V33)/100 -> 17.22394548 | Y33: ='RCY LG 2018 V5.0c'!X31 -> 0.2436640704 | Z33: =+$E$18 -> 0.25 | AA33: =Y33+Z33 -> 0.4936640704 | AB33: =100*($E$15*$E$17+($E$16*(AA33/100))/(1-$E$19)) -> 2.270682928 | AC33: ='RCY LG 2018 V5.0c'!AE31 -> 0.05994681543 | AD33: =ROUND($E$6/(1-AC33),0) -> 730187 | AE33: =IF(OR(OR(AD33=AD27,AD33=(AD27+1)),AD33=(AD19-1)),"yes","not yet") -> not yet | AF33: =100*(1-AC33) -> 94.00531846 | AJ33: =HLOOKUP($AJ$32,$AJ$26:$AR$30,$E$10+1) -> 235.9672806
V34: ='RCY LG 2018 V5.0c'!S32 -> 236.1297262 | W34: ='RCY LG 2018 V5.0c'!T32 -> 7.188168485 | X34: =(+W34*V34)/100 -> 16.97340256 | Y34: ='RCY LG 2018 V5.0c'!X32 -> 0.2388571422 | Z34: =+$E$18 -> 0.25 | AA34: =Y34+Z34 -> 0.4888571422 | AB34: =100*($E$15*$E$17+($E$16*(AA34/100))/(1-$E$19)) -> 2.268311819 | AC34: ='RCY LG 2018 V5.0c'!AE32 -> 0.05900390809 | AD34: =ROUND($E$6/(1-AC34),0) -> 729455 | AE34: =IF(OR(OR(AD34=AD28,AD34=(AD28+1)),AD34=(AD28-1)),"yes","not yet") -> not yet | AF34: =100*(1-AC34) -> 94.09960919
V35: ='RCY LG 2018 V5.0c'!S33 -> 235.9672934 | W35: ='RCY LG 2018 V5.0c'!T33 -> 7.121631657 | X35: =(+W35*V35)/100 -> 16.80472146 | Y35: ='RCY LG 2018 V5.0c'!X33 -> 0.2356208188 | Z35: =+$E$18 -> 0.25 | AA35: =Y35+Z35 -> 0.4856208188 | AB35: =100*($E$15*$E$17+($E$16*(AA35/100))/(1-$E$19)) -> 2.266715441 | AC35: ='RCY LG 2018 V5.0c'!AE33 -> 0.05836799931 | AD35: =ROUND($E$6/(1-AC35),0) -> 728962 | AE35: =IF(OR(OR(AD35=AD29,AD35=(AD29+1)),AD35=(AD29-1)),"yes","not yet") -> not yet | AF35: =100*(1-AC35) -> 94.16320007 | AJ35: =HLOOKUP(1,$AJ$11:$AR$15,$E$10+1) -> not yet | AK35: =HLOOKUP(2,$AJ$11:$AR$15,$E$10+1) -> not yet | AL35: =HLOOKUP(3,$AJ$11:$AR$15,$E$10+1) -> not yet | AM35: =HLOOKUP(4,$AJ$11:$AR$15,$E$10+1) -> not yet | AN35: =HLOOKUP(5,$AJ$11:$AR$15,$E$10+1) -> not yet | AO35: =HLOOKUP(6,$AJ$11:$AR$15,$E$10+1) -> not yet | AP35: =HLOOKUP(7,$AJ$11:$AR$15,$E$10+1) -> yes | AQ35: =HLOOKUP(8,$AJ$11:$AR$15,$E$10+1) -> 0 | AR35: =HLOOKUP(9,$AJ$11:$AR$15,$E$10+1) -> 0
V36: ='RCY LG 2018 V5.0c'!S34 -> 235.8634242 | W36: ='RCY LG 2018 V5.0c'!T34 -> 7.07903693 | X36: =(+W36*V36)/100 -> 16.69685891 | Y36: ='RCY LG 2018 V5.0c'!X34 -> 0.2335513627 | Z36: =+$E$18 -> 0.25 | AA36: =Y36+Z36 -> 0.4835513627 | AB36: =100*($E$15*$E$17+($E$16*(AA36/100))/(1-$E$19)) -> 2.265694642 | AC36: ='RCY LG 2018 V5.0c'!AE34 -> 0.05796091098 | AD36: =ROUND($E$6/(1-AC36),0) -> 728647 | AE36: =IF(OR(OR(AD36=AD30,AD36=(AD30+1)),AD36=(AD30-1)),"yes","not yet") -> not yet | AF36: =100*(1-AC36) -> 94.2039089 | AI36: 1 | AJ36: =AD3 -> 743599.0612 | AK36: =AD9 -> 729641.234 | AL36: =AD15 -> 730209.3427 | AM36: =AD21 -> 730185.855 | AN36: =AD27 -> 730186.8255 | AO36: =AD33 -> 730187 | AP36: =AD39 -> 730187 | AQ36: =AD45 -> 0 | AR36: =AD51 -> 0
AI37: 2 | AJ37: =AD4 -> 743599.0612 | AK37: =AD10 -> 728890.6012 | AL37: =AD16 -> 729478.0384 | AM37: =AD22 -> 729454.187 | AN37: =AD28 -> 729455.1548 | AO37: =AD34 -> 729455 | AP37: =AD40 -> 729455 | AQ37: =AD46 -> 0 | AR37: =AD52 -> 0
V38: 7th turnover | W38: M | X38: ROR | Y38: ROE | AI38: 3 | AJ38: =AD5 -> 743599.0612 | AK38: =AD11 -> 728385.832 | AL38: =AD17 -> 728985.6236 | AM38: =AD23 -> 728961.57 | AN38: =AD29 -> 728962.534 | AO38: =AD35 -> 728962 | AP38: =AD41 -> 728962 | AQ38: =AD47 -> 0 | AR38: =AD53 -> 0
V39: ='RCY LG 2018 V5.0c'!S36 -> 236.3709682 | W39: ='RCY LG 2018 V5.0c'!T36 -> 7.286827699 | X39: =(+W39*V39)/100 -> 17.22394518 | Y39: ='RCY LG 2018 V5.0c'!X36 -> 0.2436640645 | Z39: =+$E$18 -> 0.25 | AA39: =Y39+Z39 -> 0.4936640645 | AB39: =100*($E$15*$E$17+($E$16*(AA39/100))/(1-$E$19)) -> 2.270682925 | AC39: ='RCY LG 2018 V5.0c'!AE36 -> 0.05994681757 | AD39: =ROUND($E$6/(1-AC39),0) -> 730187 | AE39: =IF(OR(OR(AD39=AD33,AD39=(AD33+1)),AD39=(AD25-1)),"yes","not yet") -> yes | AF39: =100*(1-AC39) -> 94.00531824 | AI39: 4 | AJ39: =AD6 -> 743599.0612 | AK39: =AD12 -> 728063.3132 | AL39: =AD18 -> 728670.7279 | AM39: =AD24 -> 728646.5624 | AN39: =AD30 -> 728647.5231 | AO39: =AD36 -> 728647 | AP39: =AD42 -> 728647 | AQ39: =AD48 -> 0 | AR39: =AD54 -> 0
V40: ='RCY LG 2018 V5.0c'!S37 -> 236.1297132 | W40: ='RCY LG 2018 V5.0c'!T37 -> 7.188168755 | X40: =(+W40*V40)/100 -> 16.97340227 | Y40: ='RCY LG 2018 V5.0c'!X37 -> 0.2388571365 | Z40: =+$E$18 -> 0.25 | AA40: =Y40+Z40 -> 0.4888571365 | AB40: =100*($E$15*$E$17+($E$16*(AA40/100))/(1-$E$19)) -> 2.268311816 | AC40: ='RCY LG 2018 V5.0c'!AE37 -> 0.05900391015 | AD40: =ROUND($E$6/(1-AC40),0) -> 729455 | AE40: =IF(OR(OR(AD40=AD34,AD40=(AD34+1)),AD40=(AD34-1)),"yes","not yet") -> yes | AF40: =100*(1-AC40) -> 94.09960899
V41: ='RCY LG 2018 V5.0c'!S38 -> 235.9672806 | W41: ='RCY LG 2018 V5.0c'!T38 -> 7.12163192 | X41: =(+W41*V41)/100 -> 16.80472118 | Y41: ='RCY LG 2018 V5.0c'!X38 -> 0.2356208133 | Z41: =+$E$18 -> 0.25 | AA41: =Y41+Z41 -> 0.4856208133 | AB41: =100*($E$15*$E$17+($E$16*(AA41/100))/(1-$E$19)) -> 2.266715438 | AC41: ='RCY LG 2018 V5.0c'!AE38 -> 0.05836800131 | AD41: =ROUND($E$6/(1-AC41),0) -> 728962 | AE41: =IF(OR(OR(AD41=AD35,AD41=(AD35+1)),AD41=(AD35-1)),"yes","not yet") -> yes | AF41: =100*(1-AC41) -> 94.16319987 | AJ41: yes
V42: ='RCY LG 2018 V5.0c'!S39 -> 235.8634116 | W42: ='RCY LG 2018 V5.0c'!T39 -> 7.079037189 | X42: =(+W42*V42)/100 -> 16.69685862 | Y42: ='RCY LG 2018 V5.0c'!X39 -> 0.2335513573 | Z42: =+$E$18 -> 0.25 | AA42: =Y42+Z42 -> 0.4835513573 | AB42: =100*($E$15*$E$17+($E$16*(AA42/100))/(1-$E$19)) -> 2.265694639 | AC42: ='RCY LG 2018 V5.0c'!AE39 -> 0.05796091295 | AD42: =ROUND($E$6/(1-AC42),0) -> 728647 | AE42: =IF(OR(OR(AD42=AD36,AD42=(AD36+1)),AD42=(AD36-1)),"yes","not yet") -> yes | AF42: =100*(1-AC42) -> 94.20390871 | AJ42: =HLOOKUP($AJ$32,$AJ$35:$AR$39,$E$10+1) -> 728962
V44: 8th turnover | W44: M | X44: ROR | Y44: ROE

Sheet YW LG 2018 V5.0c
B2: Public Companies | F2: Public Co | I2: LURITO - GALLAGHER FORMULA MODEL 2018 V5.0a | M2: Public Co | R2: CALCULATION TABLES | AH2: Revenue Senstive Taxes (RevS)
K3: (b) + (c) | M3: (d) + (e) | T3: Regession | V3: Regession | W3: Regession | X3: Regession | Z3: Adjusted | AA3: Hauler | AB3: Hauler | AC3: Hauler | AD3: Hauler | AE3: Hauler | AF3: Hauler | AG3: Revenue Req | AH3: Revenue | AI3: Revenue
B4: INPUTS - Test Year | H4: (a) | I4: (b) | J4: (c) | K4: (d) | L4: (e) | M4: (f) | T4: Before Tax | V4: Less | W4: Adjusted | X4: After Tax | Y4: Flotation Costs | Z4: After Tax | AA4: Weighted Cost | AB4: Weighted Cost | AC4: Weighted Cost | AD4: Adjusted | AE4: Before Tax | AF4: Before Tax | AG4: Before RevS | AH4: Increase Before | AI4: Increase After | AJ4: RevS | AK4: Total
B5: Operating Revenue | C5: 509870.06 | F5: Line | I5: Historical | J5: Revenue | K5: Proforma | L5: Add: Revenue | M5: Revenue | T5: Profit Ratio | U5: BTROI | V5: WCDebt | W5: BTROE | X5: ROE | Y5: Basis Points | Z5: ROE | AA5: Equity | AB5: Equity BFT | AC5: Debt | AD5: BTROR | AE5: Profit Ratio | AF5: Operating Ratio | AG5: Taxes | AH5: RevS Taxes | AI5: RevS Taxes | AJ5: Taxes | AK5: Revenue Req
B6: Operating Expenses | C6: 445551.3879 | F6: No. | J6: Change | L6: Sensitive Taxes | M6: Requirement | R6: 1 | S6: =Revenue/Investment*100 -> 193.2828449 | T6: =EXP(y_inter1-(slope*LN(+S6))) -> 8.361646869 | U6: =(+S6*T6/100)/100 -> 0.1616162895 | V6: =regDebt_weighted -> 0.03586 | W6: =+U6-V6 -> 0.1257562895 | X6: =+((W6*(1-0.34))-Pfd_weighted)/Equity_percent -> 0.2232824159 | Y6: =+C15 -> 0.0025 | Z6: =+X6+Y6 -> 0.2257824159 | AA6: =Z6*equityP -> 0.111148755 | AB6: =+AA6/(1-taxrate) -> 0.111371498 | AC6: =debtP*Debt_Rate -> 0.02027173677 | AD6: =AC6+AB6 -> 0.1316432348 | AE6: =AD6/(S6/100) -> 0.06810911483 | AF6: =1-AE6 -> 0.9318908852 | AG6: =expenses/(AF6) -> 478115.4049 | AH6: =+AG6-Revenue -> -31754.65508 | AI6: =+AH6/$J$49 -> -35064.89201 | AJ6: =+AI6*$J$47 -> -886.2651455 | AK6: =ROUND(+AJ6+AG6,5) -> 477229.1398
B7: Investment | C7: 263794.7823 | F7: 1 | H7: Operating Revenue | I7: =IF(A64=TRUE,C5,0) -> 509870.06 | J7: =(+$I8/($R50))-I7 -> -31296.11258 | K7: =+I7+J7 -> 478573.9474 | L7: =((+J7/J49*K35)-J7) -> -873.4673293 | M7: =IFERROR(+K7+L7,0.00001) -> 477700.4801 | R7: 2 | S7: =Revenue/Investment*100 -> 193.2828449 | T7: =EXP(y_inter1-(slope*LN(+S7))) -> 8.361646869 | U7: =(+S7*T7/100)/100 -> 0.1616162895 | V7: =regDebt_weighted -> 0.03586 | W7: =+U7-V7 -> 0.1257562895 | X7: =+((W7*(1-0.34))-Pfd_weighted)/Equity_percent -> 0.2232824159 | Y7: =+Y6 -> 0.0025 | Z7: =+X7+Y7 -> 0.2257824159 | AA7: =Z7*equityP -> 0.111148755 | AB7: =+AA7/(1-taxrate) -> 0.111371498 | AC7: =debtP*Debt_Rate -> 0.02027173677 | AD7: =AC7+AB7 -> 0.1316432348 | AE7: =AD7/(S7/100) -> 0.06810911483 | AF7: =1-AE7 -> 0.9318908852 | AG7: =expenses/(AF7) -> 478115.4049 | AH7: =+AG7-Revenue -> -31754.65508 | AI7: =+AH7/$J$49 -> -35064.89201 | AJ7: =+AI7*$J$47 -> -886.2651455 | AK7: =ROUND(+AJ7+AG7,5) -> 477229.1398
B8: Capital Structure-Debt % | C8: 0.5077173987 | F8: =+F7+1 -> 2 | H8: Operating Expenses | I8: =IF(A64=TRUE,C6,0) -> 445551.3879 | K8: =+I8 -> 445551.3879 | L8: =+L7 -> -873.4673293 | M8: =IFERROR(+K8+L8,0.00001) -> 444677.9206 | R8: 3 | S8: =Revenue/Investment*100 -> 193.2828449 | T8: =EXP(y_inter1-(slope*LN(+S8))) -> 8.361646869 | U8: 0.1616162895 | V8: =regDebt_weighted -> 0.03586 | W8: 0.1257562895 | X8: =+((W8*(1-0.34))-Pfd_weighted)/Equity_percent -> 0.2232824159 | Y8: =+Y7 -> 0.0025 | Z8: =+X8+Y8 -> 0.2257824159 | AA8: =Z8*equityP -> 0.111148755 | AB8: =+AA8/(1-taxrate) -> 0.111371498 | AC8: =debtP*Debt_Rate -> 0.02027173677 | AD8: 0.1316432348 | AE8: 0.06810911483 | AF8: 0.9318908852 | AG8: =expenses/(AF8) -> 478115.4049 | AH8: =+AG8-Revenue -> -31754.65508 | AI8: =+AH8/$J$49 -> -35064.89201 | AJ8: =+AI8*$J$47 -> -886.2651455 | AK8: 477229.1398
B9: Capital Structure-Debt Rate | C9: 0.03992720522 | F9: =+F8+1 -> 3 | H9: Operating Income | I9: =+I7-I8 -> 64318.6721 | K9: =+K7-K8 -> 33022.55952 | M9: =+M7-M8 -> 33022.55952 | R9: 4 | S9: =Revenue/Investment*100 -> 193.2828449 | T9: =EXP(y_inter1-(slope*LN(+S9))) -> 8.361646869 | U9: 0.1616162895 | V9: =regDebt_weighted -> 0.03586 | W9: 0.1257562895 | X9: =+((W9*(1-0.34))-Pfd_weighted)/Equity_percent -> 0.2232824159 | Y9: =+Y8 -> 0.0025 | Z9: 0.2257824159 | AA9: =Z9*equityP -> 0.111148755 | AB9: =+AA9/(1-taxrate) -> 0.111371498 | AC9: =debtP*Debt_Rate -> 0.02027173677 | AD9: 0.1316432348 | AE9: 0.06810911483 | AF9: 0.9318908852 | AG9: =expenses/(AF9) -> 478115.4049 | AH9: =+AG9-Revenue -> -31754.65508 | AI9: =+AH9/$J$49 -> -35064.89201 | AJ9: =+AI9*$J$47 -> -886.2651455 | AK9: 477229.1398
B10: Federal Income Tax Rate | C10: 0.002 | F10: 4 | R10: 2nd Iteration
B11: B&O Tax Rate | C11: 0.015 | F11: 5 | H11: Interest Expense | I11: =+K11 -> 5347.578389 | K11: =+M27 -> 5347.578389 | M11: =+K11 -> 5347.578389 | R11: 1 | S11: =IF((AK6/Investment*100)>0,(AK6/Investment*100),0) -> 180.9092415 | T11: =EXP(y_inter1-(slope*LN(S11))) -> 8.748536525 | U11: =(+S11*T11/100)/100 -> 0.1582691107 | V11: =regDebt_weighted -> 0.03586 | W11: =+U11-V11 -> 0.1224091107 | X11: =+((W11*(1-0.34))-Pfd_weighted)/Equity_percent -> 0.216860503 | Y11: =+Y9 -> 0.0025 | Z11: =+X11+Y11 -> 0.219360503 | AA11: =Z11*equityP -> 0.1079873591 | AB11: =+AA11/(1-taxrate) -> 0.1082037666 | AC11: =debtP*Debt_Rate -> 0.02027173677 | AD11: =+AC11+AB11 -> 0.1284755034 | AE11: =+AD11/(S11/100) -> 0.0710165508 | AF11: =1-AE11 -> 0.9289834492 | AG11: =expenses/(AF11) -> 479611.7609 | AH11: =+AG11-Revenue -> -30258.29912 | AI11: =+AH11/$J$49 -> -33412.54969 | AJ11: =+AI11*$J$47 -> -844.5021935 | AK11: =ROUND(+AJ11+AG11,5) -> 478767.2587
B12: WUTC Fee | C12: 0.004275 | F12: 6 | H12: Income Tax Expense | I12: =IF(I14<0,0,+J38*I14) -> 117.7067739 | J12: =+K12-I12 -> -62.35681161 | K12: =+(K9-K11)*taxrate -> 55.34996226 | M12: =+K12 -> 55.34996226 | R12: 2 | S12: =IF((AK7/Investment*100)>0,(AK7/Investment*100),0) -> 180.9092415 | T12: =EXP(y_inter2-(slope*LN(+S12))) -> 8.624063973 | U12: =(+S12*T12/100)/100 -> 0.1560172872 | V12: =regDebt_weighted -> 0.03586 | W12: =+U12-V12 -> 0.1201572872 | X12: =+((W12*(1-0.34))-Pfd_weighted)/Equity_percent -> 0.212540144 | Y12: =+Y11 -> 0.0025 | Z12: =+X12+Y12 -> 0.215040144 | AA12: =Z12*equityP -> 0.1058605215 | AB12: =+AA12/(1-taxrate) -> 0.1060726668 | AC12: =debtP*Debt_Rate -> 0.02027173677 | AD12: =+AC12+AB12 -> 0.1263444036 | AE12: =+AD12/(S12/100) -> 0.06983855692 | AF12: =1-AE12 -> 0.9301614431 | AG12: =expenses/(AF12) -> 479004.3612 | AH12: =+AG12-Revenue -> -30865.69875 | AI12: =+AH12/$J$49 -> -34083.26718 | AJ12: =+AI12*$J$47 -> -861.4545781 | AK12: =ROUND(+AJ12+AG12,5) -> 478142.9067
B13: City Tax | C13: 0 | F13: 7 | R13: 3 | S13: =IF((AK8/Investment*100)>0,(AK8/Investment*100),0) -> 180.9092415 | T13: =EXP(y_inter3-(slope*LN(S13))) -> 8.540217127 | U13: =(+S13*T13/100)/100 -> 0.1545004202 | V13: =regDebt_weighted -> 0.03586 | W13: =+U13-V13 -> 0.1186404202 | X13: =+((W13*(1-0.34))-Pfd_weighted)/Equity_percent -> 0.209629876 | Y13: =+Y12 -> 0.0025 | Z13: =+X13+Y13 -> 0.212129876 | AA13: =Z13*equityP -> 0.1044278472 | AB13: =+AA13/(1-taxrate) -> 0.1046371214 | AC13: =debtP*Debt_Rate -> 0.02027173677 | AD13: =+AC13+AB13 -> 0.1249088582 | AE13: =+AD13/(S13/100) -> 0.06904504003 | AF13: =1-AE13 -> 0.93095496 | AG13: =expenses/(AF13) -> 478596.0729 | AH13: =+AG13-Revenue -> -31273.98708 | AI13: =+AH13/$J$49 -> -34534.11718 | AJ13: =+AI13*$J$47 -> -872.8498118 | AK13: 477723.2231
B14: Bad Debts | C14: 0.006 | F14: 8 | H14: Net Income | I14: =+I9-SUM(I11:I13) -> 58853.38693 | K14: =+K9-SUM(K11:K13) -> 27619.63117 | M14: =+M9-SUM(M11:M13) -> 27619.63117 | R14: 4 | S14: =IF((AK9/Investment*100)>0,(AK9/Investment*100),0) -> 180.9092415 | T14: =EXP(y_inter4-(slope*LN(S14))) -> 8.486582884 | U14: =(+S14*T14/100)/100 -> 0.1535301272 | V14: =regDebt_weighted -> 0.03586 | W14: =+U14-V14 -> 0.1176701272 | X14: =+((W14*(1-0.34))-Pfd_weighted)/Equity_percent -> 0.2077682673 | Y14: =+Y13 -> 0.0025 | Z14: 0.2102682673 | AA14: =Z14*equityP -> 0.1035114096 | AB14: =+AA14/(1-taxrate) -> 0.1037188473 | AC14: =debtP*Debt_Rate -> 0.02027173677 | AD14: =+AC14+AB14 -> 0.1239905841 | AE14: =+AD14/(S14/100) -> 0.06853745175 | AF14: =1-AE14 -> 0.9314625483 | AG14: =expenses/(AF14) -> 478335.2683 | AH14: =+AG14-Revenue -> -31534.79173 | AI14: =+AH14/$J$49 -> -34822.10919 | AJ14: =+AI14*$J$47 -> -880.1288097 | AK14: 477455.1395
B15: Basis Points - Flotation | C15: 0.0025 | F15: 9 | R15: 3rd Iteration
D16: Yes | F16: 10 | H16: Operating Ratio | I16: =+I8/I7 -> 0.8738528163 | K16: =+K8/K7 -> 0.930998 | M16: =+M8/M7 -> 0.930871831 | R16: 1 | S16: =AK11/Investment*100 -> 181.4923155 | T16: =EXP(y_inter1-(slope*LN(+S16))) -> 8.729311437 | U16: =(+S16*T16/100)/100 -> 0.1584302946 | V16: =regDebt_weighted -> 0.03586 | W16: =+U16-V16 -> 0.1225702946 | X16: =+((W16*(1-0.34))-Pfd_weighted)/Equity_percent -> 0.2171697512 | Y16: =+Y14 -> 0.0025 | Z16: =+X16+Y16 -> 0.2196697512 | AA16: =Z16*equityP -> 0.1081395965 | AB16: =+AA16/(1-taxrate) -> 0.1083563092 | AC16: =debtP*Debt_Rate -> 0.02027173677 | AD16: =+AC16+AB16 -> 0.1286280459 | AE16: =+AD16/(S16/100) -> 0.07087244745 | AF16: =1-AE16 -> 0.9291275526 | AG16: =expenses/(AF16) -> 479537.3753 | AH16: =+AG16-Revenue -> -30332.68467 | AI16: =+AH16/$J$49 -> -33494.6895 | AJ16: =+AI16*$J$47 -> -846.5782771 | AK16: =ROUND(+AJ16+AG16,5) -> 478690.7971
B17: Check when input is complete | D17: No | F17: 11 | R17: 2 | S17: =AK12/Investment*100 -> 181.2556346 | T17: =EXP(y_inter2-(slope*LN(+S17))) -> 8.61279284 | U17: =(+S17*T17/100)/100 -> 0.1561117232 | V17: =regDebt_weighted -> 0.03586 | W17: =+U17-V17 -> 0.1202517232 | X17: =+((W17*(1-0.34))-Pfd_weighted)/Equity_percent -> 0.2127213293 | Y17: =+Y16 -> 0.0025 | Z17: =+X17+Y17 -> 0.2152213293 | AA17: =Z17*equityP -> 0.1059497158 | AB17: =+AA17/(1-taxrate) -> 0.1061620399 | AC17: =debtP*Debt_Rate -> 0.02027173677 | AD17: =+AC17+AB17 -> 0.1264337767 | AE17: =+AD17/(S17/100) -> 0.06975439798 | AF17: =1-AE17 -> 0.930245602 | AG17: =expenses/(AF17) -> 478961.0259 | AH17: =+AG17-Revenue -> -30909.03408 | AI17: =+AH17/$J$49 -> -34131.11996 | AJ17: =+AI17*$J$47 -> -862.6640571 | AK17: =ROUND(+AJ17+AG17,5) -> 478098.3619
F18: 12 | H18: Revenue Requirement | R18: 3 | S18: =AK13/Investment*100 -> 181.0965398 | T18: =EXP(y_inter3-(slope*LN(S18))) -> 8.534177496 | U18: =(+S18*T18/100)/100 -> 0.1545510015 | V18: =regDebt_weighted -> 0.03586 | W18: =+U18-V18 -> 0.1186910015 | X18: =+((W18*(1-0.34))-Pfd_weighted)/Equity_percent -> 0.2097269215 | Y18: =+Y17 -> 0.0025 | Z18: =+X18+Y18 -> 0.2122269215 | AA18: =Z18*equityP -> 0.104475621 | AB18: =+AA18/(1-taxrate) -> 0.1046849909 | AC18: =debtP*Debt_Rate -> 0.02027173677 | AD18: =+AC18+AB18 -> 0.1249567277 | AE18: =+AD18/(S18/100) -> 0.06900006363 | AF18: =1-AE18 -> 0.9309999364 | AG18: =expenses/(AF18) -> 478572.952 | AH18: =+AG18-Revenue -> -31297.10796 | AI18: =+AH18/$J$49 -> -34559.64827 | AJ18: =+AI18*$J$47 -> -873.4951101 | AK18: 477699.4569
B19: For Intial input: Uncheck Checkbox Until Completed | F19: 13 | I19: Historical Revenue | J19: =+Revenue -> 509870.06 | L19: Revenue Increase before taxes | M19: =+J7 -> -31296.11258 | R19: 4 | S19: =AK14/Investment*100 -> 180.994914 | T19: =EXP(y_inter4-(slope*LN(S19))) -> 8.483836336 | U19: =(+S19*T19/100)/100 -> 0.1535531228 | V19: =regDebt_weighted -> 0.03586 | W19: =+U19-V19 -> 0.1176931228 | X19: =+((W19*(1-0.34))-Pfd_weighted)/Equity_percent -> 0.2078123868 | Y19: =+Y18 -> 0.0025 | Z19: 0.2103123868 | AA19: =Z19*equityP -> 0.1035331288 | AB19: =+AA19/(1-taxrate) -> 0.1037406101 | AC19: =debtP*Debt_Rate -> 0.02027173677 | AD19: =+AC19+AB19 -> 0.1240123468 | AE19: =+AD19/(S19/100) -> 0.06851703404 | AF19: =1-AE19 -> 0.931482966 | AG19: =expenses/(AF19) -> 478324.7834 | AH19: =+AG19-Revenue -> -31545.27663 | AI19: =+AH19/$J$49 -> -34833.68708 | AJ19: =+AI19*$J$47 -> -880.421441 | AK19: 477444.3619
F20: 14 | I20: Rate Increase | J20: =+J21-J19 -> -32169.57991 | L20: Rev Sensitive Taxes | M20: =+L8 -> -873.4673293 | R20: 4th Iteration
F21: 15 | I21: Revenue Requirement | J21: =+M7 -> 477700.4801 | L21: Rate Increase | M21: =+M19+M20 -> -32169.57991 | R21: 1 | S21: =AK16/Investment*100 -> 181.4633302 | T21: =EXP(y_inter1-(slope*LN(+S21))) -> 8.730264681 | U21: =(+S21*T21/100)/100 -> 0.1584222903 | V21: =regDebt_weighted -> 0.03586 | W21: =+U21-V21 -> 0.1225622903 | X21: =+((W21*(1-0.34))-Pfd_weighted)/Equity_percent -> 0.2171543942 | Y21: =+Y19 -> 0.0025 | Z21: =+X21+Y21 -> 0.2196543942 | AA21: =Z21*equityP -> 0.1081320365 | AB21: =+AA21/(1-taxrate) -> 0.108348734 | AC21: =debtP*Debt_Rate -> 0.02027173677 | AD21: =+AC21+AB21 -> 0.1286204708 | AE21: =+AD21/(S21/100) -> 0.07087959348 | AF21: =1-AE21 -> 0.9291204065 | AG21: =expenses/(AF21) -> 479541.0635 | AH21: =+AG21-Revenue -> -30328.99646 | AI21: =+AH21/$J$49 -> -33490.61682 | AJ21: =+AI21*$J$47 -> -846.4753401 | AK21: =ROUND(+AJ21+AG21,5) -> 478694.5882
F22: 16 | R22: 2 | S22: =AK17/Investment*100 -> 181.2387484 | T22: =EXP(y_inter2-(slope*LN(+S22))) -> 8.61334145 | U22: =(+S22*T22/100)/100 -> 0.1561071224 | V22: =regDebt_weighted -> 0.03586 | W22: =+U22-V22 -> 0.1202471224 | X22: =+((W22*(1-0.34))-Pfd_weighted)/Equity_percent -> 0.2127125023 | Y22: =+Y21 -> 0.0025 | Z22: =+X22+Y22 -> 0.2152125023 | AA22: =Z22*equityP -> 0.1059453705 | AB22: =+AA22/(1-taxrate) -> 0.1061576858 | AC22: =debtP*Debt_Rate -> 0.02027173677 | AD22: =+AC22+AB22 -> 0.1264294226 | AE22: =+AD22/(S22/100) -> 0.06975849464 | AF22: =1-AE22 -> 0.9302415054 | AG22: =expenses/(AF22) -> 478963.1352 | AH22: =+AG22-Revenue -> -30906.9248 | AI22: =+AH22/$J$49 -> -34128.7908 | AJ22: =+AI22*$J$47 -> -862.6051875 | AK22: =ROUND(+AJ22+AG22,5) -> 478100.53
B23: 2018 Version Update Changes | F23: 17 | R23: 3 | S23: =AK18/Investment*100 -> 181.0875305 | T23: =EXP(y_inter3-(slope*LN(S23))) -> 8.534467771 | U23: =(+S23*T23/100)/100 -> 0.1545485693 | V23: =regDebt_weighted -> 0.03586 | W23: =+U23-V23 -> 0.1186885693 | X23: =+((W23*(1-0.34))-Pfd_weighted)/Equity_percent -> 0.209722255 | Y23: =+Y22 -> 0.0025 | Z23: =+X23+Y23 -> 0.212222255 | AA23: =Z23*equityP -> 0.1044733237 | AB23: =+AA23/(1-taxrate) -> 0.1046826891 | AC23: =debtP*Debt_Rate -> 0.02027173677 | AD23: =+AC23+AB23 -> 0.1249544259 | AE23: =+AD23/(S23/100) -> 0.06900222536 | AF23: =1-AE23 -> 0.9309977746 | AG23: =expenses/(AF23) -> 478574.0633 | AH23: =+AG23-Revenue -> -31295.99673 | AI23: =+AH23/$J$49 -> -34558.42121 | AJ23: =+AI23*$J$47 -> -873.4640961 | AK23: 477700.5992
B24: ● Allows Income Tax Rate Changes, | F24: 18 | H24: Captial Structure Financing Investment | K24: Financing Cost | R24: 4 | S24: =AK19/Investment*100 -> 180.9908284 | T24: =EXP(y_inter4-(slope*LN(S24))) -> 8.483967265 | U24: =(+S24*T24/100)/100 -> 0.1535520264 | V24: =regDebt_weighted -> 0.03586 | W24: =+U24-V24 -> 0.1176920264 | X24: =+((W24*(1-0.34))-Pfd_weighted)/Equity_percent -> 0.2078102831 | Y24: =+Y23 -> 0.0025 | Z24: 0.2103102831 | AA24: =Z24*equityP -> 0.1035320933 | AB24: =+AA24/(1-taxrate) -> 0.1037395724 | AC24: =debtP*Debt_Rate -> 0.02027173677 | AD24: =+AC24+AB24 -> 0.1240113092 | AE24: =+AD24/(S24/100) -> 0.06851800737 | AF24: =1-AE24 -> 0.9314819926 | AG24: =expenses/(AF24) -> 478325.2832 | AH24: =+AG24-Revenue -> -31544.77682 | AI24: =+AH24/$J$49 -> -34833.13516 | AJ24: =+AI24*$J$47 -> -880.4074912 | AK24: 477444.8757
B25: ● Minimizes impact of changes in test-year revenue from | F25: 19 | H25: Type | I25: Percent | J25: Amount | K25: Cost of Capital | L25: Weighted | M25: Amount | R25: 5th Iteration
B26: resulting revenue requirment, | F26: 20 | H26: Equity | I26: =1-I27 -> 0.4922826013 | J26: =+I26*J28 -> 129861.5817 | K26: =+K34 -> 0.2126851592 | L26: =+K26*I26 -> 0.1047012034 | M26: =+J26*K26 -> 27619.63117 | R26: 1 | S26: =AK21/Investment*100 -> 181.4647674 | T26: =EXP(y_inter1-(slope*LN(+S26))) -> 8.730217411 | U26: =(+S26*T26/100)/100 -> 0.1584226872 | V26: =regDebt_weighted -> 0.03586 | W26: =+U26-V26 -> 0.1225626872 | X26: =+((W26*(1-0.34))-Pfd_weighted)/Equity_percent -> 0.2171551556 | Y26: =+Y24 -> 0.0025 | Z26: =+X26+Y26 -> 0.2196551556 | AA26: =Z26*equityP -> 0.1081324114 | AB26: =+AA26/(1-taxrate) -> 0.1083491096 | AC26: =debtP*Debt_Rate -> 0.02027173677 | AD26: =+AC26+AB26 -> 0.1286208464 | AE26: =+AD26/(S26/100) -> 0.07087923912 | AF26: =1-AE26 -> 0.9291207609 | AG26: =expenses/(AF26) -> 479540.8806 | AH26: =+AG26-Revenue -> -30329.17935 | AI26: =+AH26/$J$49 -> -33490.81878 | AJ26: =+AI26*$J$47 -> -846.4804446 | AK26: =ROUND(+AJ26+AG26,5) -> 478694.4002
B27: ● Corrects interest rate transposition in LG. | F27: 21 | H27: Debt | I27: =IF(A64=TRUE,C8,0) -> 0.5077173987 | J27: =+I27*J28 -> 133933.2007 | K27: =IF(A64=TRUE,C9,0) -> 0.03992720522 | L27: =+K27*I27 -> 0.02027173677 | M27: =+K27*J27 -> 5347.578389 | R27: 2 | S27: =AK22/Investment*100 -> 181.2395703 | T27: =EXP(y_inter2-(slope*LN(+S27))) -> 8.613314746 | U27: =(+S27*T27/100)/100 -> 0.1561073463 | V27: =regDebt_weighted -> 0.03586 | W27: =+U27-V27 -> 0.1202473463 | X27: =+((W27*(1-0.34))-Pfd_weighted)/Equity_percent -> 0.2127129319 | Y27: =+Y26 -> 0.0025 | Z27: =+X27+Y27 -> 0.2152129319 | AA27: =Z27*equityP -> 0.105945582 | AB27: =+AA27/(1-taxrate) -> 0.1061578978 | AC27: =debtP*Debt_Rate -> 0.02027173677 | AD27: =+AC27+AB27 -> 0.1264296345 | AE27: =+AD27/(S27/100) -> 0.06975829523 | AF27: =1-AE27 -> 0.9302417048 | AG27: =expenses/(AF27) -> 478963.0325 | AH27: =+AG27-Revenue -> -30907.02747 | AI27: =+AH27/$J$49 -> -34128.90418 | AJ27: =+AI27*$J$47 -> -862.6080531 | AK27: =ROUND(+AJ27+AG27,5) -> 478100.4245
F28: 22 | H28: Total | I28: =SUM(I26:I27) -> 1 | J28: =IF(A64=TRUE,C7,0) -> 263794.7823 | L28: =SUM(L26:L27) -> 0.1249729402 | M28: =SUM(M26:M27) -> 32967.20956 | R28: 3 | S28: =AK23/Investment*100 -> 181.0879635 | T28: =EXP(y_inter3-(slope*LN(S28))) -> 8.53445382 | U28: =(+S28*T28/100)/100 -> 0.1545486862 | V28: =regDebt_weighted -> 0.03586 | W28: =+U28-V28 -> 0.1186886862 | X28: =+((W28*(1-0.34))-Pfd_weighted)/Equity_percent -> 0.2097224793 | Y28: =+Y27 -> 0.0025 | Z28: =+X28+Y28 -> 0.2122224793 | AA28: =Z28*equityP -> 0.1044734342 | AB28: =+AA28/(1-taxrate) -> 0.1046827998 | AC28: =debtP*Debt_Rate -> 0.02027173677 | AD28: =+AC28+AB28 -> 0.1249545365 | AE28: =+AD28/(S28/100) -> 0.06900212146 | AF28: =1-AE28 -> 0.9309978785 | AG28: =expenses/(AF28) -> 478574.0099 | AH28: =+AG28-Revenue -> -31296.05014 | AI28: =+AH28/$J$49 -> -34558.48019 | AJ28: =+AI28*$J$47 -> -873.4655867 | AK28: 477700.5443
F29: 23 | R29: 4 | S29: =AK24/Investment*100 -> 180.9910232 | T29: =EXP(y_inter4-(slope*LN(S29))) -> 8.483961023 | U29: =(+S29*T29/100)/100 -> 0.1535520786 | V29: =regDebt_weighted -> 0.03586 | W29: =+U29-V29 -> 0.1176920786 | X29: =+((W29*(1-0.34))-Pfd_weighted)/Equity_percent -> 0.2078103834 | Y29: =+Y28 -> 0.0025 | Z29: 0.2103103834 | AA29: =Z29*equityP -> 0.1035321426 | AB29: =+AA29/(1-taxrate) -> 0.1037396219 | AC29: =debtP*Debt_Rate -> 0.02027173677 | AD29: =+AC29+AB29 -> 0.1240113586 | AE29: =+AD29/(S29/100) -> 0.06851796098 | AF29: =1-AE29 -> 0.931482039 | AG29: =expenses/(AF29) -> 478325.2594 | AH29: =+AG29-Revenue -> -31544.80064 | AI29: =+AH29/$J$49 -> -34833.16147 | AJ29: =+AI29*$J$47 -> -880.4081562 | AK29: 477444.8512
F30: 24 | J30: Before | K30: After | R30: 6th Iteration
F31: 25 | H31: Operating Statistics | J31: Income Tax | K31: Income Tax | R31: 1 | S31: =AK26/Investment*100 -> 181.4646961 | T31: =EXP(y_inter1-(slope*LN(+S31))) -> 8.730219755 | U31: =(+S31*T31/100)/100 -> 0.1584226675 | V31: =regDebt_weighted -> 0.03586 | W31: =+U31-V31 -> 0.1225626675 | X31: =+((W31*(1-0.34))-Pfd_weighted)/Equity_percent -> 0.2171551179 | Y31: =+Y29 -> 0.0025 | Z31: =+X31+Y31 -> 0.2196551179 | AA31: =Z31*equityP -> 0.1081323928 | AB31: =+AA31/(1-taxrate) -> 0.108349091 | AC31: =debtP*Debt_Rate -> 0.02027173677 | AD31: =+AC31+AB31 -> 0.1286208278 | AE31: =+AD31/(S31/100) -> 0.07087925669 | AF31: =1-AE31 -> 0.9291207433 | AG31: =expenses/(AF31) -> 479540.8897 | AH31: =+AG31-Revenue -> -30329.17028 | AI31: =+AH31/$J$49 -> -33490.80876 | AJ31: =+AI31*$J$47 -> -846.4801914 | AK31: =ROUND(+AJ31+AG31,5) -> 478694.4095
F32: 26 | R32: 2 | S32: =AK27/Investment*100 -> 181.2395303 | T32: =EXP(y_inter2-(slope*LN(+S32))) -> 8.613316046 | U32: =(+S32*T32/100)/100 -> 0.1561073354 | V32: =regDebt_weighted -> 0.03586 | W32: =+U32-V32 -> 0.1202473354 | X32: =+((W32*(1-0.34))-Pfd_weighted)/Equity_percent -> 0.212712911 | Y32: =+Y31 -> 0.0025 | Z32: =+X32+Y32 -> 0.215212911 | AA32: =Z32*equityP -> 0.1059455717 | AB32: =+AA32/(1-taxrate) -> 0.1061578874 | AC32: =debtP*Debt_Rate -> 0.02027173677 | AD32: =+AC32+AB32 -> 0.1264296242 | AE32: =+AD32/(S32/100) -> 0.06975830494 | AF32: =1-AE32 -> 0.9302416951 | AG32: =expenses/(AF32) -> 478963.0375 | AH32: =+AG32-Revenue -> -30907.02247 | AI32: =+AH32/$J$49 -> -34128.89866 | AJ32: =+AI32*$J$47 -> -862.6079136 | AK32: =ROUND(+AJ32+AG32,5) -> 478100.4296
F33: 27 | H33: Return on Investment | J33: =+K9/J28 -> 0.1251827622 | K33: =+(M14+M11)/J28 -> 0.1249729402 | R33: 3 | S33: =AK28/Investment*100 -> 181.0879427 | T33: =EXP(y_inter3-(slope*LN(S33))) -> 8.53445449 | U33: =(+S33*T33/100)/100 -> 0.1545486806 | V33: =regDebt_weighted -> 0.03586 | W33: =+U33-V33 -> 0.1186886806 | X33: =+((W33*(1-0.34))-Pfd_weighted)/Equity_percent -> 0.2097224685 | Y33: =+Y32 -> 0.0025 | Z33: =+X33+Y33 -> 0.2122224685 | AA33: =Z33*equityP -> 0.1044734288 | AB33: =+AA33/(1-taxrate) -> 0.1046827944 | AC33: =debtP*Debt_Rate -> 0.02027173677 | AD33: =+AC33+AB33 -> 0.1249545312 | AE33: =+AD33/(S33/100) -> 0.06900212646 | AF33: =1-AE33 -> 0.9309978735 | AG33: =expenses/(AF33) -> 478574.0124 | AH33: =+AG33-Revenue -> -31296.04757 | AI33: =+AH33/$J$49 -> -34558.47735 | AJ33: =+AI33*$J$47 -> -873.4655151 | AK33: 477700.5469
F34: 28 | H34: Return on Equity | J34: =+(M9-M11)/J26 -> 0.213111382 | K34: =+M14/J26 -> 0.2126851592 | R34: 4 | S34: =AK29/Investment*100 -> 180.9910139 | T34: =EXP(y_inter4-(slope*LN(S34))) -> 8.483961321 | U34: =(+S34*T34/100)/100 -> 0.1535520761 | V34: =regDebt_weighted -> 0.03586 | W34: =+U34-V34 -> 0.1176920761 | X34: =+((W34*(1-0.34))-Pfd_weighted)/Equity_percent -> 0.2078103786 | Y34: =+Y33 -> 0.0025 | Z34: 0.2103103786 | AA34: =Z34*equityP -> 0.1035321403 | AB34: =+AA34/(1-taxrate) -> 0.1037396195 | AC34: =debtP*Debt_Rate -> 0.02027173677 | AD34: =+AC34+AB34 -> 0.1240113563 | AE34: =+AD34/(S34/100) -> 0.06851796319 | AF34: =1-AE34 -> 0.9314820368 | AG34: =expenses/(AF34) -> 478325.2605 | AH34: =+AG34-Revenue -> -31544.79951 | AI34: =+AH34/$J$49 -> -34833.16022 | AJ34: =+AI34*$J$47 -> -880.4081245 | AK34: 477444.8524
F35: 29 | H35: Operating Ratio | J35: =+K8/K7 -> 0.930998 | K35: =+M8/M7 -> 0.930871831 | R35: 7th Iteration
F36: 30 | H36: Profit Margin | J36: =+K9/K7 -> 0.069002 | K36: =+J36 -> 0.069002 | R36: 1 | S36: =AK31/Investment*100 -> 181.4646997 | T36: =EXP(y_inter1-(slope*LN(+S36))) -> 8.730219639 | U36: =(+S36*T36/100)/100 -> 0.1584226685 | V36: =regDebt_weighted -> 0.03586 | W36: =+U36-V36 -> 0.1225626685 | X36: =+((W36*(1-0.34))-Pfd_weighted)/Equity_percent -> 0.2171551198 | Y36: =+Y34 -> 0.0025 | Z36: =+X36+Y36 -> 0.2196551198 | AA36: =Z36*equityP -> 0.1081323937 | AB36: =+AA36/(1-taxrate) -> 0.1083490919 | AC36: =debtP*Debt_Rate -> 0.02027173677 | AD36: =+AC36+AB36 -> 0.1286208287 | AE36: =+AD36/(S36/100) -> 0.07087925582 | AF36: =1-AE36 -> 0.9291207442 | AG36: =expenses/(AF36) -> 479540.8893 | AH36: =+AG36-Revenue -> -30329.17073 | AI36: =+AH36/$J$49 -> -33490.80926 | AJ36: =+AI36*$J$47 -> -846.480204 | AK36: =ROUND(+AJ36+AG36,5) -> 478694.4091
F37: 31 | H37: Final turnover | J37: =+S39/100 -> 1.809910143 | K37: =+J37 -> 1.809910143 | R37: 2 | S37: =AK32/Investment*100 -> 181.2395322 | T37: =EXP(y_inter2-(slope*LN(+S37))) -> 8.613315982 | U37: =(+S37*T37/100)/100 -> 0.156107336 | V37: =regDebt_weighted -> 0.03586 | W37: =+U37-V37 -> 0.120247336 | X37: =+((W37*(1-0.34))-Pfd_weighted)/Equity_percent -> 0.212712912 | Y37: =+Y36 -> 0.0025 | Z37: =+X37+Y37 -> 0.215212912 | AA37: =Z37*equityP -> 0.1059455722 | AB37: =+AA37/(1-taxrate) -> 0.1061578879 | AC37: =debtP*Debt_Rate -> 0.02027173677 | AD37: =+AC37+AB37 -> 0.1264296247 | AE37: =+AD37/(S37/100) -> 0.06975830447 | AF37: =1-AE37 -> 0.9302416955 | AG37: =expenses/(AF37) -> 478963.0373 | AH37: =+AG37-Revenue -> -30907.02271 | AI37: =+AH37/$J$49 -> -34128.89893 | AJ37: =+AI37*$J$47 -> -862.6079204 | AK37: =ROUND(+AJ37+AG37,5) -> 478100.4294
F38: 32 | H38: Tax Rate | J38: =+C10 -> 0.002 | K38: =+J38 -> 0.002 | R38: 3 | S38: =AK33/Investment*100 -> 181.0879437 | T38: =EXP(y_inter3-(slope*LN(S38))) -> 8.534454458 | U38: =(+S38*T38/100)/100 -> 0.1545486808 | V38: =regDebt_weighted -> 0.03586 | W38: =+U38-V38 -> 0.1186886808 | X38: =+((W38*(1-0.34))-Pfd_weighted)/Equity_percent -> 0.209722469 | Y38: =+Y37 -> 0.0025 | Z38: =+X38+Y38 -> 0.212222469 | AA38: =Z38*equityP -> 0.1044734291 | AB38: =+AA38/(1-taxrate) -> 0.1046827947 | AC38: =debtP*Debt_Rate -> 0.02027173677 | AD38: =+AC38+AB38 -> 0.1249545315 | AE38: =+AD38/(S38/100) -> 0.06900212622 | AF38: =1-AE38 -> 0.9309978738 | AG38: =expenses/(AF38) -> 478574.0123 | AH38: =+AG38-Revenue -> -31296.0477 | AI38: =+AH38/$J$49 -> -34558.47749 | AJ38: =+AI38*$J$47 -> -873.4655185 | AK38: 477700.5468
F39: 33 | R39: 4 | S39: =AK34/Investment*100 -> 180.9910143 | T39: =EXP(y_inter4-(slope*LN(S39))) -> 8.483961306 | U39: =(+S39*T39/100)/100 -> 0.1535520763 | V39: =regDebt_weighted -> 0.03586 | W39: =+U39-V39 -> 0.1176920763 | X39: =+((W39*(1-0.34))-Pfd_weighted)/Equity_percent -> 0.2078103789 | Y39: =+Y38 -> 0.0025 | Z39: 0.2103103789 | AA39: =Z39*equityP -> 0.1035321404 | AB39: =+AA39/(1-taxrate) -> 0.1037396196 | AC39: =debtP*Debt_Rate -> 0.02027173677 | AD39: =+AC39+AB39 -> 0.1240113564 | AE39: =+AD39/(S39/100) -> 0.06851796308 | AF39: =1-AE39 -> 0.9314820369 | AG39: =expenses/(AF39) -> 478325.2604 | AH39: =+AG39-Revenue -> -31544.79956 | AI39: =+AH39/$J$49 -> -34833.16028 | AJ39: =+AI39*$J$47 -> -880.408126 | AK39: 477444.8523
F40: 34
F41: 35 | H41: Revenue Sensitive Taxes Charges | R41: Curve
F42: 36 | J42: Rate | K42: Taxes | R42: Lookup Table
F43: 37 | H43: B & O Tax | J43: =IF(A64=TRUE,C11,0) -> 0.015 | K43: =+J43*($J$7/$J$49) -> -518.378237 | R43: 0 | S43: 1 | U43: Profit Margin | V43: =VLOOKUP(R48,R36:AG39,14) -> 0.06900212622
F44: 38 | H44: WUTC Fee | J44: =IF(A64=TRUE,C12,0) -> 0.004275 | K44: =+J44*($J$7/$J$49) -> -147.7377975 | R44: 50 | S44: 2 | U44: Operating Ratio | V44: =ROUND(1-V43,6) -> 0.930998
F45: 39 | H45: City Tax | J45: =IF(A64=TRUE,C13,0) -> 0 | K45: =+J45*($J$7/$J$49) -> 0 | R45: 125 | S45: 3 | U45: Percent Chg | V45: =+M7/Revenue-1 -> -0.06309368294
F46: 40 | H46: Bad Debts | J46: =IF(A64=TRUE,C14,0) -> 0.006 | K46: =+J46*($J$7/$J$49) -> -207.3512948 | R46: 401 | S46: 4
F47: 41 | H47: Revenue Sensitive | J47: =SUM(J43:J46) -> 0.025275 | K47: =+K43+K44+K45+K46 -> -873.4673293 | R47: =VLOOKUP(R48,R36:S39,2) -> 181.0879437 | S47: Curve turnover | X47: @EXP(5.72260-(.68367*@LN(T)))
F48: 42 | R48: =VLOOKUP(S36,R43:S46,2) -> 3 | S48: Curve No. Used | X48: @EXP(5.70827-(.68367*@LN(T)))
F49: 43 | H49: Conversion Factor | J49: =((K35)-J47) -> 0.905596831 | X49: @EXP(5.69850-(.68367*@LN(T)))
R50: =+V44 -> 0.930998 | S50: Operating Ratio | X50: @EXP(5.69220-(.68367*@LN(T)))
S53: Base Utility from LG Sample Study | W53: Regression Results
S54: Percent | T54: Cost | U54: Weighted | W54: Y intercept (1) | X54: 5.7226 | Y54: Y intercept (3) | Z54: 5.6985
R55: Debt | S55: 0.562 | T55: 0.0638 | U55: =ROUND(+S55*T55,5) -> 0.03586 | W55: Y intercept (2) | X55: 5.70827 | Y55: Y intercept (4) | Z55: 5.6922
R56: Pfd. | S56: 0.094 | T56: 0.0659 | U56: =ROUND(+S56*T56,5) -> 0.00619
R57: Equity | S57: 0.344 | X57: Slope | Y57: 0.68367
S58: =SUM(S55:S57) -> 1
X60: Operating Statistics | Y60: Pre-tax | Z60: After Tax
X62: Return on Investment | Y62: =+J33 -> 0.1251827622 | Z62: 0.1249729402
X63: Return on Equity | Y63: 0.213111382 | Z63: 0.2126851592
A64: TRUE | X64: Operating Ratio | Y64: 0.930998 | Z64: 0.930871831
X65: Profit Margin | Y65: 0.069002 | Z65: 0.069002
X66: Final turnover | Y66: 1.809910143 | Z66: 1.809910143
X67: Tax Rate | Y67: 0.002 | Z67: 0.002

Sheet YW
B1: NEW IMPROVED LURITO - GALLAGHER FORMULA | AE1: !??! | AF1: OP/RATIO | AI1: curve
G2: NOTE: | N2: FORMULAS | U2: 1st Revenue | V2: 1st Turnover | W2: M | X2: ROR | Y2: ROE | AA2: Adj ROE | AB2: Pre Tax ROE | AC2: Adj M | AD2: Revenues | AE2: Decision | AI2: lookup table
B3: !!! | C3: Revenue Requirement | E3: =E5+E4 -> 477700.6683 | F3: !!!<-- | H3: Red numbers are input/linked fields. | N3: 1. less than 50 | Q3: @EXP(5.72260-(.68367*@LN(T))) | U3: =$E$6*1.25 -> 556939.2349 | V3: ='YW LG 2018 V5.0c'!S6 -> 193.2828449 | W3: =EXP(5.7226-(0.68367*LN(+V3))) -> 8.361646869 | X3: =(+W3*V3)/100 -> 16.16162895 | Y3: ='YW LG 2018 V5.0c'!X6 -> 0.2232824159 | Z3: =+$E$18 -> 0.25 | AA3: =Y3+Z3 -> 0.4732824159 | AB3: =100*($E$15*$E$17+($E$16*(AA3/100))/(1-$E$19)) -> 2.260629287 | AC3: ='YW LG 2018 V5.0c'!AE6 -> 0.06810911483 | AD3: =$E$6/(1-AC3) -> 478115.4049 | AE3: =IF(AD3=$U$3,"yes","not yet") -> not yet | AF3: =100*(1-AC3) -> 93.18908852 | AI3: 0 | AJ3: 1
B4: !!! | C4: Revenue Deficiency | E4: =(+E6-((H13/100)*E5))/H23 -> -32169.39166 | F4: !!!<-- | H4: Black are formula calculations | N4: 2. Between 50 and 125 | Q4: @EXP(5.70827-(.68367*@LN(T))) | U4: =$E$6*1.25 -> 556939.2349 | V4: ='YW LG 2018 V5.0c'!S7 -> 193.2828449 | W4: ='YW LG 2018 V5.0c'!T7 -> 8.361646869 | X4: =(+W4*V4)/100 -> 16.16162895 | Y4: ='YW LG 2018 V5.0c'!X7 -> 0.2232824159 | Z4: =+$E$18 -> 0.25 | AA4: =Y4+Z4 -> 0.4732824159 | AB4: =100*($E$15*$E$17+($E$16*(AA4/100))/(1-$E$19)) -> 2.260629287 | AC4: ='YW LG 2018 V5.0c'!AE7 -> 0.06810911483 | AD4: =$E$6/(1-AC4) -> 478115.4049 | AE4: =IF(AD4=$U$4,"yes","not yet") -> not yet | AF4: =100*(1-AC4) -> 93.18908852 | AI4: 50 | AJ4: 2
B5: * | C5: Revenue | E5: =Proforma!Q26 -> 509870.06 | F5: * p/f before rates | N5: 3. Between 125 and 140 | Q5: @EXP(5.69850-(.68367*@LN(T))) | U5: =$E$6*1.25 -> 556939.2349 | V5: ='YW LG 2018 V5.0c'!S8 -> 193.2828449 | W5: ='YW LG 2018 V5.0c'!T8 -> 8.361646869 | X5: =(+W5*V5)/100 -> 16.16162895 | Y5: ='YW LG 2018 V5.0c'!X8 -> 0.2232824159 | Z5: =+$E$18 -> 0.25 | AA5: =Y5+Z5 -> 0.4732824159 | AB5: =100*($E$15*$E$17+($E$16*(AA5/100))/(1-$E$19)) -> 2.260629287 | AC5: ='YW LG 2018 V5.0c'!AE8 -> 0.06810911483 | AD5: =$E$6/(1-AC5) -> 478115.4049 | AE5: =IF(AD5=$U$5,"yes","not yet") -> not yet | AF5: =100*(1-AC5) -> 93.18908852 | AI5: 125 | AJ5: 3
B6: * | C6: Expenses | E6: =+Proforma!Q391 -> 445551.3879 | F6: * p/f before rates | N6: 4. greater than 400 | Q6: @EXP(5.69220-(.68367*@LN(T))) | U6: =$E$6*1.25 -> 556939.2349 | V6: ='YW LG 2018 V5.0c'!S9 -> 193.2828449 | W6: ='YW LG 2018 V5.0c'!T9 -> 8.361646869 | X6: =(+W6*V6)/100 -> 16.16162895 | Y6: ='YW LG 2018 V5.0c'!X9 -> 0.2232824159 | Z6: =+$E$18 -> 0.25 | AA6: =Y6+Z6 -> 0.4732824159 | AB6: =100*($E$15*$E$17+($E$16*(AA6/100))/(1-$E$19)) -> 2.260629287 | AC6: ='YW LG 2018 V5.0c'!AE9 -> 0.06810911483 | AD6: =$E$6/(1-AC6) -> 478115.4049 | AE6: =IF(AD6=$U$6,"yes","not yet") -> not yet | AF6: =100*(1-AC6) -> 93.18908852 | AI6: 401 | AJ6: 4
B7: * | C7: Avg. Investment - | E7: ='Ave Inv. Summary'!L66 -> 263794.7823 | F7: * p/f before rates
C8: curve turnover | E8: =V3 -> 193.2828449 | F8: (calculated) | V8: 2nd Turnover | W8: M | X8: ROR | Y8: ROE | AI8: lookup tables
C9: final turnover | E9: =HLOOKUP($AJ$32,$AJ$26:$AR$30,$E$10+1) -> 181.0879437 | F9: (calculated) | V9: ='YW LG 2018 V5.0c'!S11 -> 180.9092415 | W9: ='YW LG 2018 V5.0c'!T11 -> 8.748536525 | X9: =(+W9*V9)/100 -> 15.82691107 | Y9: ='YW LG 2018 V5.0c'!X11 -> 0.216860503 | Z9: =+$E$18 -> 0.25 | AA9: =Y9+Z9 -> 0.466860503 | AB9: =100*($E$15*$E$17+($E$16*(AA9/100))/(1-$E$19)) -> 2.257461556 | AC9: ='YW LG 2018 V5.0c'!AE11 -> 0.0710165508 | AD9: =$E$6/(1-AC9) -> 479611.7609 | AE9: =IF(OR(OR(AD9=AD3,AD9=(AD3+1)),AD9=(AD8187-1)),"yes","not yet") -> not yet | AF9: =100*(1-AC9) -> 92.89834492
C10: curve No. used | E10: =VLOOKUP(E8,AI3:AJ6,2) -> 3 | F10: (calculated) | V10: ='YW LG 2018 V5.0c'!S12 -> 180.9092415 | W10: ='YW LG 2018 V5.0c'!T12 -> 8.624063973 | X10: =(+W10*V10)/100 -> 15.60172872 | Y10: ='YW LG 2018 V5.0c'!X12 -> 0.212540144 | Z10: =+$E$18 -> 0.25 | AA10: =Y10+Z10 -> 0.462540144 | AB10: =100*($E$15*$E$17+($E$16*(AA10/100))/(1-$E$19)) -> 2.255330456 | AC10: ='YW LG 2018 V5.0c'!AE12 -> 0.06983855692 | AD10: =$E$6/(1-AC10) -> 479004.3612 | AE10: =IF(OR(OR(AD10=AD4,AD10=(AD4+1)),AD10=(AD4-1)),"yes","not yet") -> not yet | AF10: =100*(1-AC10) -> 93.01614431
V11: ='YW LG 2018 V5.0c'!S13 -> 180.9092415 | W11: ='YW LG 2018 V5.0c'!T13 -> 8.540217127 | X11: =(+W11*V11)/100 -> 15.45004202 | Y11: ='YW LG 2018 V5.0c'!X13 -> 0.209629876 | Z11: =+$E$18 -> 0.25 | AA11: =Y11+Z11 -> 0.459629876 | AB11: =100*($E$15*$E$17+($E$16*(AA11/100))/(1-$E$19)) -> 2.253894911 | AC11: ='YW LG 2018 V5.0c'!AE13 -> 0.06904504003 | AD11: =$E$6/(1-AC11) -> 478596.0729 | AE11: =IF(OR(OR(AD11=AD5,AD11=(AD5+1)),AD11=(AD5-1)),"yes","not yet") -> not yet | AF11: =100*(1-AC11) -> 93.095496 | AJ11: 1 | AK11: 2 | AL11: 3 | AM11: 4 | AN11: 5 | AO11: 6 | AP11: 7 | AQ11: 8 | AR11: 9
C12: Company actual | V12: ='YW LG 2018 V5.0c'!S14 -> 180.9092415 | W12: ='YW LG 2018 V5.0c'!T14 -> 8.486582884 | X12: =(+W12*V12)/100 -> 15.35301272 | Y12: ='YW LG 2018 V5.0c'!X14 -> 0.2077682673 | Z12: =+$E$18 -> 0.25 | AA12: =Y12+Z12 -> 0.4577682673 | AB12: =100*($E$15*$E$17+($E$16*(AA12/100))/(1-$E$19)) -> 2.252976636 | AC12: ='YW LG 2018 V5.0c'!AE14 -> 0.06853745175 | AD12: =$E$6/(1-AC12) -> 478335.2683 | AE12: =IF(OR(OR(AD12=AD6,AD12=(AD6+1)),AD12=(AD6-1)),"yes","not yet") -> not yet | AF12: =100*(1-AC12) -> 93.14625483 | AJ12: =AE3 -> not yet | AK12: =AE9 -> not yet | AL12: =AE15 -> not yet | AM12: =AE21 -> not yet | AN12: =AE27 -> not yet | AO12: =AE33 -> not yet | AP12: =AE39 -> yes | AQ12: =AE45 -> 0 | AR12: =AE51 -> 0
C13: capital structure: | E13: !!! | F13: OPERATING RATIO -> | H13: =HLOOKUP($AJ$23,$AJ$17:$AR$21,$E$10+1) -> 93.09978738 | I13: !!!<-- | AJ13: =AE4 -> not yet | AK13: =AE10 -> not yet | AL13: =AE16 -> not yet | AM13: =AE22 -> not yet | AN13: =AE28 -> not yet | AO13: =AE34 -> not yet | AP13: =AE40 -> yes | AQ13: =AE46 -> 0 | AR13: =AE52 -> 0
C14: - | D14: - | H14: = | V14: 3rd Turnover | W14: M | X14: ROR | Y14: ROE | AJ14: =AE5 -> not yet | AK14: =AE11 -> not yet | AL14: =AE17 -> not yet | AM14: =AE23 -> not yet | AN14: =AE29 -> not yet | AO14: =AE35 -> not yet | AP14: =AE41 -> yes | AQ14: =AE47 -> 0 | AR14: =AE53 -> 0
B15: * | C15: Actual Debt Ratio | E15: =+'Combined LG'!E15 -> 0.5077173987 | F15: Conversion factor data: | V15: ='YW LG 2018 V5.0c'!S16 -> 181.4923155 | W15: ='YW LG 2018 V5.0c'!T16 -> 8.729311437 | X15: =(+W15*V15)/100 -> 15.84302946 | Y15: ='YW LG 2018 V5.0c'!X16 -> 0.2171697512 | Z15: =+$E$18 -> 0.25 | AA15: =Y15+Z15 -> 0.4671697512 | AB15: =100*($E$15*$E$17+($E$16*(AA15/100))/(1-$E$19)) -> 2.257614098 | AC15: ='YW LG 2018 V5.0c'!AE16 -> 0.07087244745 | AD15: =$E$6/(1-AC15) -> 479537.3753 | AE15: =IF(OR(OR(AD15=AD9,AD15=(AD9+1)),AD15=(AD1-1)),"yes","not yet") -> not yet | AF15: =100*(1-AC15) -> 92.91275526 | AJ15: =AE6 -> not yet | AK15: =AE12 -> not yet | AL15: =AE18 -> not yet | AM15: =AE24 -> not yet | AN15: =AE30 -> not yet | AO15: =AE36 -> not yet | AP15: =AE42 -> yes | AQ15: =AE48 -> 0 | AR15: =AE54 -> 0
B16: * | C16: Actual Equity Ratio | E16: =+'Combined LG'!E16 -> 0.4922826013 | F16: B & O Tax | H16: =+'Combined LG'!H16 -> 0.015 | I16: * | V16: ='YW LG 2018 V5.0c'!S17 -> 181.2556346 | W16: ='YW LG 2018 V5.0c'!T17 -> 8.61279284 | X16: =(+W16*V16)/100 -> 15.61117232 | Y16: ='YW LG 2018 V5.0c'!X17 -> 0.2127213293 | Z16: =+$E$18 -> 0.25 | AA16: =Y16+Z16 -> 0.4627213293 | AB16: =100*($E$15*$E$17+($E$16*(AA16/100))/(1-$E$19)) -> 2.255419829 | AC16: ='YW LG 2018 V5.0c'!AE17 -> 0.06975439798 | AD16: =$E$6/(1-AC16) -> 478961.0259 | AE16: =IF(OR(OR(AD16=AD10,AD16=(AD10+1)),AD16=(AD10-1)),"yes","not yet") -> not yet | AF16: =100*(1-AC16) -> 93.0245602
B17: * | C17: Actual Cost of Debt | E17: =+'Combined LG'!E17 -> 0.03992720522 | F17: WUTC Fee | H17: =+'Combined LG'!H17 -> 0.004275 | I17: * | V17: ='YW LG 2018 V5.0c'!S18 -> 181.0965398 | W17: ='YW LG 2018 V5.0c'!T18 -> 8.534177496 | X17: =(+W17*V17)/100 -> 15.45510015 | Y17: ='YW LG 2018 V5.0c'!X18 -> 0.2097269215 | Z17: =+$E$18 -> 0.25 | AA17: =Y17+Z17 -> 0.4597269215 | AB17: =100*($E$15*$E$17+($E$16*(AA17/100))/(1-$E$19)) -> 2.25394278 | AC17: ='YW LG 2018 V5.0c'!AE18 -> 0.06900006363 | AD17: =$E$6/(1-AC17) -> 478572.952 | AE17: =IF(OR(OR(AD17=AD11,AD17=(AD11+1)),AD17=(AD11-1)),"yes","not yet") -> not yet | AF17: =100*(1-AC17) -> 93.09999364 | AJ17: =HLOOKUP(1,$AJ$11:$AR$15,$E$10+1) -> not yet | AK17: =HLOOKUP(2,$AJ$11:$AR$15,$E$10+1) -> not yet | AL17: =HLOOKUP(3,$AJ$11:$AR$15,$E$10+1) -> not yet | AM17: =HLOOKUP(4,$AJ$11:$AR$15,$E$10+1) -> not yet | AN17: =HLOOKUP(5,$AJ$11:$AR$15,$E$10+1) -> not yet | AO17: =HLOOKUP(6,$AJ$11:$AR$15,$E$10+1) -> not yet | AP17: =HLOOKUP(7,$AJ$11:$AR$15,$E$10+1) -> yes | AQ17: =HLOOKUP(8,$AJ$11:$AR$15,$E$10+1) -> 0 | AR17: =HLOOKUP(9,$AJ$11:$AR$15,$E$10+1) -> 0
B18: * | C18: Basis Points | E18: 0.25 | F18: City Tax | H18: =+'Combined LG'!H18 -> 0 | I18: * | V18: ='YW LG 2018 V5.0c'!S19 -> 180.994914 | W18: ='YW LG 2018 V5.0c'!T19 -> 8.483836336 | X18: =(+W18*V18)/100 -> 15.35531228 | Y18: ='YW LG 2018 V5.0c'!X19 -> 0.2078123868 | Z18: =+$E$18 -> 0.25 | AA18: =Y18+Z18 -> 0.4578123868 | AB18: =100*($E$15*$E$17+($E$16*(AA18/100))/(1-$E$19)) -> 2.252998399 | AC18: ='YW LG 2018 V5.0c'!AE19 -> 0.06851703404 | AD18: =$E$6/(1-AC18) -> 478324.7834 | AE18: =IF(OR(OR(AD18=AD12,AD18=(AD12+1)),AD18=(AD12-1)),"yes","not yet") -> not yet | AF18: =100*(1-AC18) -> 93.1482966 | AI18: 1 | AJ18: =AF3 -> 93.18908852 | AK18: =AF9 -> 92.89834492 | AL18: =AF15 -> 92.91275526 | AM18: =AF21 -> 92.91204065 | AN18: =AF27 -> 92.91207609 | AO18: =AF33 -> 92.91207433 | AP18: =AF39 -> 92.91207442 | AQ18: =AF45 -> 0 | AR18: =AF51 -> 0
B19: * | C19: Tax Rate | E19: =+'Combined LG'!E19 -> 0.002 | F19: Bad Debts | H19: =+'Combined LG'!H19 -> 0.006 | I19: * | AI19: 2 | AJ19: =AF4 -> 93.18908852 | AK19: =AF10 -> 93.01614431 | AL19: =AF16 -> 93.0245602 | AM19: =AF22 -> 93.02415054 | AN19: =AF28 -> 93.02417048 | AO19: =AF34 -> 93.02416951 | AP19: =AF40 -> 93.02416955 | AQ19: =AF46 -> 0 | AR19: =AF52 -> 0
H20: - | V20: 4th Turnover | W20: M | X20: ROR | Y20: ROE | AI20: 3 | AJ20: =AF5 -> 93.18908852 | AK20: =AF11 -> 93.095496 | AL20: =AF17 -> 93.09999364 | AM20: =AF23 -> 93.09977746 | AN20: =AF29 -> 93.09978785 | AO20: =AF35 -> 93.09978735 | AP20: =AF41 -> 93.09978738 | AQ20: =AF47 -> 0 | AR20: =AF53 -> 0
F21: Revenue Sensitive | H21: =SUM(H16:H19) -> 0.025275 | V21: ='YW LG 2018 V5.0c'!S21 -> 181.4633302 | W21: ='YW LG 2018 V5.0c'!T21 -> 8.730264681 | X21: =(+W21*V21)/100 -> 15.84222903 | Y21: ='YW LG 2018 V5.0c'!X21 -> 0.2171543942 | Z21: =+$E$18 -> 0.25 | AA21: =Y21+Z21 -> 0.4671543942 | AB21: =100*($E$15*$E$17+($E$16*(AA21/100))/(1-$E$19)) -> 2.257606523 | AC21: ='YW LG 2018 V5.0c'!AE21 -> 0.07087959348 | AD21: =$E$6/(1-AC21) -> 479541.0635 | AE21: =IF(OR(OR(AD21=AD15,AD21=(AD15+1)),AD21=(AD7-1)),"yes","not yet") -> not yet | AF21: =100*(1-AC21) -> 92.91204065 | AI21: 4 | AJ21: =AF6 -> 93.18908852 | AK21: =AF12 -> 93.14625483 | AL21: =AF18 -> 93.1482966 | AM21: =AF24 -> 93.14819926 | AN21: =AF30 -> 93.1482039 | AO21: =AF36 -> 93.14820368 | AP21: =AF42 -> 93.14820369 | AQ21: =AF48 -> 0 | AR21: =AF54 -> 0
V22: ='YW LG 2018 V5.0c'!S22 -> 181.2387484 | W22: ='YW LG 2018 V5.0c'!T22 -> 8.61334145 | X22: =(+W22*V22)/100 -> 15.61071224 | Y22: ='YW LG 2018 V5.0c'!X22 -> 0.2127125023 | Z22: =+$E$18 -> 0.25 | AA22: =Y22+Z22 -> 0.4627125023 | AB22: =100*($E$15*$E$17+($E$16*(AA22/100))/(1-$E$19)) -> 2.255415475 | AC22: ='YW LG 2018 V5.0c'!AE22 -> 0.06975849464 | AD22: =$E$6/(1-AC22) -> 478963.1352 | AE22: =IF(OR(OR(AD22=AD16,AD22=(AD16+1)),AD22=(AD16-1)),"yes","not yet") -> not yet | AF22: =100*(1-AC22) -> 93.02415054
F23: Conversion Factor | H23: =((+H13/100)-H21) -> 0.9057228738 | V23: ='YW LG 2018 V5.0c'!S23 -> 181.0875305 | W23: ='YW LG 2018 V5.0c'!T23 -> 8.534467771 | X23: =(+W23*V23)/100 -> 15.45485693 | Y23: ='YW LG 2018 V5.0c'!X23 -> 0.209722255 | Z23: =+$E$18 -> 0.25 | AA23: =Y23+Z23 -> 0.459722255 | AB23: =100*($E$15*$E$17+($E$16*(AA23/100))/(1-$E$19)) -> 2.253940478 | AC23: ='YW LG 2018 V5.0c'!AE23 -> 0.06900222536 | AD23: =$E$6/(1-AC23) -> 478574.0633 | AE23: =IF(OR(OR(AD23=AD17,AD23=(AD17+1)),AD23=(AD17-1)),"yes","not yet") -> not yet | AF23: =100*(1-AC23) -> 93.09977746 | AJ23: yes
V24: ='YW LG 2018 V5.0c'!S24 -> 180.9908284 | W24: ='YW LG 2018 V5.0c'!T24 -> 8.483967265 | X24: =(+W24*V24)/100 -> 15.35520264 | Y24: ='YW LG 2018 V5.0c'!X24 -> 0.2078102831 | Z24: =+$E$18 -> 0.25 | AA24: =Y24+Z24 -> 0.4578102831 | AB24: =100*($E$15*$E$17+($E$16*(AA24/100))/(1-$E$19)) -> 2.252997362 | AC24: ='YW LG 2018 V5.0c'!AE24 -> 0.06851800737 | AD24: =$E$6/(1-AC24) -> 478325.2832 | AE24: =IF(OR(OR(AD24=AD18,AD24=(AD18+1)),AD24=(AD18-1)),"yes","not yet") -> not yet | AF24: =100*(1-AC24) -> 93.14819926 | AJ24: =HLOOKUP($AJ$23,$AJ$17:$AR$21,$E$10+1) -> 93.09978738
C26: Company Reference | V26: 5th Turnover | W26: M | X26: ROR | Y26: ROE | AJ26: =HLOOKUP(1,$AJ$11:$AR$15,$E$10+1) -> not yet | AK26: =HLOOKUP(2,$AJ$11:$AR$15,$E$10+1) -> not yet | AL26: =HLOOKUP(3,$AJ$11:$AR$15,$E$10+1) -> not yet | AM26: =HLOOKUP(4,$AJ$11:$AR$15,$E$10+1) -> not yet | AN26: =HLOOKUP(5,$AJ$11:$AR$15,$E$10+1) -> not yet | AO26: =HLOOKUP(6,$AJ$11:$AR$15,$E$10+1) -> not yet | AP26: =HLOOKUP(7,$AJ$11:$AR$15,$E$10+1) -> yes | AQ26: =HLOOKUP(8,$AJ$11:$AR$15,$E$10+1) -> 0 | AR26: =HLOOKUP(9,$AJ$11:$AR$15,$E$10+1) -> 0
C27: Annl Price Increase (PI) $ | E27: =+E4 -> -32169.39166 | V27: ='YW LG 2018 V5.0c'!S26 -> 181.4647674 | W27: ='YW LG 2018 V5.0c'!T26 -> 8.730217411 | X27: =(+W27*V27)/100 -> 15.84226872 | Y27: ='YW LG 2018 V5.0c'!X26 -> 0.2171551556 | Z27: =+$E$18 -> 0.25 | AA27: =Y27+Z27 -> 0.4671551556 | AB27: =100*($E$15*$E$17+($E$16*(AA27/100))/(1-$E$19)) -> 2.257606899 | AC27: ='YW LG 2018 V5.0c'!AE26 -> 0.07087923912 | AD27: =$E$6/(1-AC27) -> 479540.8806 | AE27: =IF(OR(OR(AD27=AD21,AD27=(AD21+1)),AD27=(AD13-1)),"yes","not yet") -> not yet | AF27: =100*(1-AC27) -> 92.91207609 | AI27: 1 | AJ27: =V3 -> 193.2828449 | AK27: =V9 -> 180.9092415 | AL27: =V15 -> 181.4923155 | AM27: =V21 -> 181.4633302 | AN27: =V27 -> 181.4647674 | AO27: =V33 -> 181.4646961 | AP27: =V39 -> 181.4646997 | AQ27: =V45 -> 0 | AR27: =V51 -> 0
C28: Monthly PI $ | E28: =+E27/12 -> -2680.782638 | V28: ='YW LG 2018 V5.0c'!S27 -> 181.2395703 | W28: ='YW LG 2018 V5.0c'!T27 -> 8.613314746 | X28: =(+W28*V28)/100 -> 15.61073463 | Y28: ='YW LG 2018 V5.0c'!X27 -> 0.2127129319 | Z28: =+$E$18 -> 0.25 | AA28: =Y28+Z28 -> 0.4627129319 | AB28: =100*($E$15*$E$17+($E$16*(AA28/100))/(1-$E$19)) -> 2.255415687 | AC28: ='YW LG 2018 V5.0c'!AE27 -> 0.06975829523 | AD28: =$E$6/(1-AC28) -> 478963.0325 | AE28: =IF(OR(OR(AD28=AD22,AD28=(AD22+1)),AD28=(AD22-1)),"yes","not yet") -> not yet | AF28: =100*(1-AC28) -> 93.02417048 | AI28: 2 | AJ28: =V4 -> 193.2828449 | AK28: =V10 -> 180.9092415 | AL28: =V16 -> 181.2556346 | AM28: =V22 -> 181.2387484 | AN28: =V28 -> 181.2395703 | AO28: =V34 -> 181.2395303 | AP28: =V40 -> 181.2395322 | AQ28: =V46 -> 0 | AR28: =V52 -> 0
C29: Percentage PI | E29: =+E4/E5 -> -0.06309331374 | V29: ='YW LG 2018 V5.0c'!S28 -> 181.0879635 | W29: ='YW LG 2018 V5.0c'!T28 -> 8.53445382 | X29: =(+W29*V29)/100 -> 15.45486862 | Y29: ='YW LG 2018 V5.0c'!X28 -> 0.2097224793 | Z29: =+$E$18 -> 0.25 | AA29: =Y29+Z29 -> 0.4597224793 | AB29: =100*($E$15*$E$17+($E$16*(AA29/100))/(1-$E$19)) -> 2.253940589 | AC29: ='YW LG 2018 V5.0c'!AE28 -> 0.06900212146 | AD29: =$E$6/(1-AC29) -> 478574.0099 | AE29: =IF(OR(OR(AD29=AD23,AD29=(AD23+1)),AD29=(AD23-1)),"yes","not yet") -> not yet | AF29: =100*(1-AC29) -> 93.09978785 | AI29: 3 | AJ29: =V5 -> 193.2828449 | AK29: =V11 -> 180.9092415 | AL29: =V17 -> 181.0965398 | AM29: =V23 -> 181.0875305 | AN29: =V29 -> 181.0879635 | AO29: =V35 -> 181.0879427 | AP29: =V41 -> 181.0879437 | AQ29: =V47 -> 0 | AR29: =V53 -> 0
V30: ='YW LG 2018 V5.0c'!S29 -> 180.9910232 | W30: ='YW LG 2018 V5.0c'!T29 -> 8.483961023 | X30: =(+W30*V30)/100 -> 15.35520786 | Y30: ='YW LG 2018 V5.0c'!X29 -> 0.2078103834 | Z30: =+$E$18 -> 0.25 | AA30: =Y30+Z30 -> 0.4578103834 | AB30: =100*($E$15*$E$17+($E$16*(AA30/100))/(1-$E$19)) -> 2.252997411 | AC30: ='YW LG 2018 V5.0c'!AE29 -> 0.06851796098 | AD30: =$E$6/(1-AC30) -> 478325.2594 | AE30: =IF(OR(OR(AD30=AD24,AD30=(AD24+1)),AD30=(AD24-1)),"yes","not yet") -> not yet | AF30: =100*(1-AC30) -> 93.1482039 | AI30: 4 | AJ30: =V6 -> 193.2828449 | AK30: =V12 -> 180.9092415 | AL30: =V18 -> 180.994914 | AM30: =V24 -> 180.9908284 | AN30: =V30 -> 180.9910232 | AO30: =V36 -> 180.9910139 | AP30: =V42 -> 180.9910143 | AQ30: =V48 -> 0 | AR30: =V54 -> 0
V32: 6th Turnover | W32: M | X32: ROR | Y32: ROE | AJ32: yes
V33: ='YW LG 2018 V5.0c'!S31 -> 181.4646961 | W33: ='YW LG 2018 V5.0c'!T31 -> 8.730219755 | X33: =(+W33*V33)/100 -> 15.84226675 | Y33: ='YW LG 2018 V5.0c'!X31 -> 0.2171551179 | Z33: =+$E$18 -> 0.25 | AA33: =Y33+Z33 -> 0.4671551179 | AB33: =100*($E$15*$E$17+($E$16*(AA33/100))/(1-$E$19)) -> 2.25760688 | AC33: ='YW LG 2018 V5.0c'!AE31 -> 0.07087925669 | AD33: =ROUND($E$6/(1-AC33),0) -> 479541 | AE33: =IF(OR(OR(AD33=AD27,AD33=(AD27+1)),AD33=(AD19-1)),"yes","not yet") -> not yet | AF33: =100*(1-AC33) -> 92.91207433 | AJ33: =HLOOKUP($AJ$32,$AJ$26:$AR$30,$E$10+1) -> 181.0879437
V34: ='YW LG 2018 V5.0c'!S32 -> 181.2395303 | W34: ='YW LG 2018 V5.0c'!T32 -> 8.613316046 | X34: =(+W34*V34)/100 -> 15.61073354 | Y34: ='YW LG 2018 V5.0c'!X32 -> 0.212712911 | Z34: =+$E$18 -> 0.25 | AA34: =Y34+Z34 -> 0.462712911 | AB34: =100*($E$15*$E$17+($E$16*(AA34/100))/(1-$E$19)) -> 2.255415677 | AC34: ='YW LG 2018 V5.0c'!AE32 -> 0.06975830494 | AD34: =ROUND($E$6/(1-AC34),0) -> 478963 | AE34: =IF(OR(OR(AD34=AD28,AD34=(AD28+1)),AD34=(AD28-1)),"yes","not yet") -> not yet | AF34: =100*(1-AC34) -> 93.02416951
V35: ='YW LG 2018 V5.0c'!S33 -> 181.0879427 | W35: ='YW LG 2018 V5.0c'!T33 -> 8.53445449 | X35: =(+W35*V35)/100 -> 15.45486806 | Y35: ='YW LG 2018 V5.0c'!X33 -> 0.2097224685 | Z35: =+$E$18 -> 0.25 | AA35: =Y35+Z35 -> 0.4597224685 | AB35: =100*($E$15*$E$17+($E$16*(AA35/100))/(1-$E$19)) -> 2.253940584 | AC35: ='YW LG 2018 V5.0c'!AE33 -> 0.06900212646 | AD35: =ROUND($E$6/(1-AC35),0) -> 478574 | AE35: =IF(OR(OR(AD35=AD29,AD35=(AD29+1)),AD35=(AD29-1)),"yes","not yet") -> not yet | AF35: =100*(1-AC35) -> 93.09978735 | AJ35: =HLOOKUP(1,$AJ$11:$AR$15,$E$10+1) -> not yet | AK35: =HLOOKUP(2,$AJ$11:$AR$15,$E$10+1) -> not yet | AL35: =HLOOKUP(3,$AJ$11:$AR$15,$E$10+1) -> not yet | AM35: =HLOOKUP(4,$AJ$11:$AR$15,$E$10+1) -> not yet | AN35: =HLOOKUP(5,$AJ$11:$AR$15,$E$10+1) -> not yet | AO35: =HLOOKUP(6,$AJ$11:$AR$15,$E$10+1) -> not yet | AP35: =HLOOKUP(7,$AJ$11:$AR$15,$E$10+1) -> yes | AQ35: =HLOOKUP(8,$AJ$11:$AR$15,$E$10+1) -> 0 | AR35: =HLOOKUP(9,$AJ$11:$AR$15,$E$10+1) -> 0
V36: ='YW LG 2018 V5.0c'!S34 -> 180.9910139 | W36: ='YW LG 2018 V5.0c'!T34 -> 8.483961321 | X36: =(+W36*V36)/100 -> 15.35520761 | Y36: ='YW LG 2018 V5.0c'!X34 -> 0.2078103786 | Z36: =+$E$18 -> 0.25 | AA36: =Y36+Z36 -> 0.4578103786 | AB36: =100*($E$15*$E$17+($E$16*(AA36/100))/(1-$E$19)) -> 2.252997409 | AC36: ='YW LG 2018 V5.0c'!AE34 -> 0.06851796319 | AD36: =ROUND($E$6/(1-AC36),0) -> 478325 | AE36: =IF(OR(OR(AD36=AD30,AD36=(AD30+1)),AD36=(AD30-1)),"yes","not yet") -> not yet | AF36: =100*(1-AC36) -> 93.14820368 | AI36: 1 | AJ36: =AD3 -> 478115.4049 | AK36: =AD9 -> 479611.7609 | AL36: =AD15 -> 479537.3753 | AM36: =AD21 -> 479541.0635 | AN36: =AD27 -> 479540.8806 | AO36: =AD33 -> 479541 | AP36: =AD39 -> 479541 | AQ36: =AD45 -> 0 | AR36: =AD51 -> 0
AI37: 2 | AJ37: =AD4 -> 478115.4049 | AK37: =AD10 -> 479004.3612 | AL37: =AD16 -> 478961.0259 | AM37: =AD22 -> 478963.1352 | AN37: =AD28 -> 478963.0325 | AO37: =AD34 -> 478963 | AP37: =AD40 -> 478963 | AQ37: =AD46 -> 0 | AR37: =AD52 -> 0
V38: 7th turnover | W38: M | X38: ROR | Y38: ROE | AI38: 3 | AJ38: =AD5 -> 478115.4049 | AK38: =AD11 -> 478596.0729 | AL38: =AD17 -> 478572.952 | AM38: =AD23 -> 478574.0633 | AN38: =AD29 -> 478574.0099 | AO38: =AD35 -> 478574 | AP38: =AD41 -> 478574 | AQ38: =AD47 -> 0 | AR38: =AD53 -> 0
V39: ='YW LG 2018 V5.0c'!S36 -> 181.4646997 | W39: ='YW LG 2018 V5.0c'!T36 -> 8.730219639 | X39: =(+W39*V39)/100 -> 15.84226685 | Y39: ='YW LG 2018 V5.0c'!X36 -> 0.2171551198 | Z39: =+$E$18 -> 0.25 | AA39: =Y39+Z39 -> 0.4671551198 | AB39: =100*($E$15*$E$17+($E$16*(AA39/100))/(1-$E$19)) -> 2.257606881 | AC39: ='YW LG 2018 V5.0c'!AE36 -> 0.07087925582 | AD39: =ROUND($E$6/(1-AC39),0) -> 479541 | AE39: =IF(OR(OR(AD39=AD33,AD39=(AD33+1)),AD39=(AD25-1)),"yes","not yet") -> yes | AF39: =100*(1-AC39) -> 92.91207442 | AI39: 4 | AJ39: =AD6 -> 478115.4049 | AK39: =AD12 -> 478335.2683 | AL39: =AD18 -> 478324.7834 | AM39: =AD24 -> 478325.2832 | AN39: =AD30 -> 478325.2594 | AO39: =AD36 -> 478325 | AP39: =AD42 -> 478325 | AQ39: =AD48 -> 0 | AR39: =AD54 -> 0
V40: ='YW LG 2018 V5.0c'!S37 -> 181.2395322 | W40: ='YW LG 2018 V5.0c'!T37 -> 8.613315982 | X40: =(+W40*V40)/100 -> 15.6107336 | Y40: ='YW LG 2018 V5.0c'!X37 -> 0.212712912 | Z40: =+$E$18 -> 0.25 | AA40: =Y40+Z40 -> 0.462712912 | AB40: =100*($E$15*$E$17+($E$16*(AA40/100))/(1-$E$19)) -> 2.255415677 | AC40: ='YW LG 2018 V5.0c'!AE37 -> 0.06975830447 | AD40: =ROUND($E$6/(1-AC40),0) -> 478963 | AE40: =IF(OR(OR(AD40=AD34,AD40=(AD34+1)),AD40=(AD34-1)),"yes","not yet") -> yes | AF40: =100*(1-AC40) -> 93.02416955
V41: ='YW LG 2018 V5.0c'!S38 -> 181.0879437 | W41: ='YW LG 2018 V5.0c'!T38 -> 8.534454458 | X41: =(+W41*V41)/100 -> 15.45486808 | Y41: ='YW LG 2018 V5.0c'!X38 -> 0.209722469 | Z41: =+$E$18 -> 0.25 | AA41: =Y41+Z41 -> 0.459722469 | AB41: =100*($E$15*$E$17+($E$16*(AA41/100))/(1-$E$19)) -> 2.253940584 | AC41: ='YW LG 2018 V5.0c'!AE38 -> 0.06900212622 | AD41: =ROUND($E$6/(1-AC41),0) -> 478574 | AE41: =IF(OR(OR(AD41=AD35,AD41=(AD35+1)),AD41=(AD35-1)),"yes","not yet") -> yes | AF41: =100*(1-AC41) -> 93.09978738 | AJ41: yes
V42: ='YW LG 2018 V5.0c'!S39 -> 180.9910143 | W42: ='YW LG 2018 V5.0c'!T39 -> 8.483961306 | X42: =(+W42*V42)/100 -> 15.35520763 | Y42: ='YW LG 2018 V5.0c'!X39 -> 0.2078103789 | Z42: =+$E$18 -> 0.25 | AA42: =Y42+Z42 -> 0.4578103789 | AB42: =100*($E$15*$E$17+($E$16*(AA42/100))/(1-$E$19)) -> 2.252997409 | AC42: ='YW LG 2018 V5.0c'!AE39 -> 0.06851796308 | AD42: =ROUND($E$6/(1-AC42),0) -> 478325 | AE42: =IF(OR(OR(AD42=AD36,AD42=(AD36+1)),AD42=(AD36-1)),"yes","not yet") -> yes | AF42: =100*(1-AC42) -> 93.14820369 | AJ42: =HLOOKUP($AJ$32,$AJ$35:$AR$39,$E$10+1) -> 478574
V44: 8th turnover | W44: M | X44: ROR | Y44: ROE
V50: 9th turnover | W50: M | X50: ROR | Y50: ROE

Sheet MF RCY LG 2018 V5.0c
B2: Public Companies | F2: Public Co | I2: LURITO - GALLAGHER FORMULA MODEL 2018 V5.0a | M2: Public Co | R2: CALCULATION TABLES | AH2: Revenue Senstive Taxes (RevS)
K3: (b) + (c) | M3: (d) + (e) | T3: Regession | V3: Regession | W3: Regession | X3: Regession | Z3: Adjusted | AA3: Hauler | AB3: Hauler | AC3: Hauler | AD3: Hauler | AE3: Hauler | AF3: Hauler | AG3: Revenue Req | AH3: Revenue | AI3: Revenue
B4: INPUTS - Test Year | H4: (a) | I4: (b) | J4: (c) | K4: (d) | L4: (e) | M4: (f) | T4: Before Tax | V4: Less | W4: Adjusted | X4: After Tax | Y4: Flotation Costs | Z4: After Tax | AA4: Weighted Cost | AB4: Weighted Cost | AC4: Weighted Cost | AD4: Adjusted | AE4: Before Tax | AF4: Before Tax | AG4: Before RevS | AH4: Increase Before | AI4: Increase After | AJ4: RevS | AK4: Total
B5: Operating Revenue | C5: 43328.54234 | F5: Line | I5: Historical | J5: Revenue | K5: Proforma | L5: Add: Revenue | M5: Revenue | T5: Profit Ratio | U5: BTROI | V5: WCDebt | W5: BTROE | X5: ROE | Y5: Basis Points | Z5: ROE | AA5: Equity | AB5: Equity BFT | AC5: Debt | AD5: BTROR | AE5: Profit Ratio | AF5: Operating Ratio | AG5: Taxes | AH5: RevS Taxes | AI5: RevS Taxes | AJ5: Taxes | AK5: Revenue Req
B6: Operating Expenses | C6: 32564.88683 | F6: No. | J6: Change | L6: Sensitive Taxes | M6: Requirement | R6: 1 | S6: =Revenue/Investment*100 -> 225.1741478 | T6: =EXP(y_inter1-(slope*LN(+S6))) -> 7.532640834 | U6: =(+S6*T6/100)/100 -> 0.1696155981 | V6: =regDebt_weighted -> 0.03586 | W6: =+U6-V6 -> 0.1337555981 | X6: =+((W6*(1-0.34))-Pfd_weighted)/Equity_percent -> 0.2386299265 | Y6: =+C15 -> 0.0025 | Z6: =+X6+Y6 -> 0.2411299265 | AA6: =Z6*equityP -> 0.1187040675 | AB6: =+AA6/(1-taxrate) -> 0.1189419514 | AC6: =debtP*Debt_Rate -> 0.02027173677 | AD6: =AC6+AB6 -> 0.1392136882 | AE6: =AD6/(S6/100) -> 0.06182489842 | AF6: =1-AE6 -> 0.9381751016 | AG6: =expenses/(AF6) -> 34710.88369 | AH6: =+AG6-Revenue -> -8617.658654 | AI6: =+AH6/$J$49 -> -9520.797108 | AJ6: =+AI6*$J$47 -> -240.6381469 | AK6: =ROUND(+AJ6+AG6,5) -> 34470.24554
B7: Investment | C7: 19242.23662 | F7: 1 | H7: Operating Revenue | I7: =IF(A64=TRUE,C5,0) -> 43328.54234 | J7: =(+$I8/($R50))-I7 -> -8345.599521 | K7: =+I7+J7 -> 34982.94282 | L7: =((+J7/J49*K35)-J7) -> -233.0412104 | M7: =IFERROR(+K7+L7,0.00001) -> 34749.90161 | R7: 2 | S7: =Revenue/Investment*100 -> 225.1741478 | T7: =EXP(y_inter1-(slope*LN(+S7))) -> 7.532640834 | U7: =(+S7*T7/100)/100 -> 0.1696155981 | V7: =regDebt_weighted -> 0.03586 | W7: =+U7-V7 -> 0.1337555981 | X7: =+((W7*(1-0.34))-Pfd_weighted)/Equity_percent -> 0.2386299265 | Y7: =+Y6 -> 0.0025 | Z7: =+X7+Y7 -> 0.2411299265 | AA7: =Z7*equityP -> 0.1187040675 | AB7: =+AA7/(1-taxrate) -> 0.1189419514 | AC7: =debtP*Debt_Rate -> 0.02027173677 | AD7: =AC7+AB7 -> 0.1392136882 | AE7: =AD7/(S7/100) -> 0.06182489842 | AF7: =1-AE7 -> 0.9381751016 | AG7: =expenses/(AF7) -> 34710.88369 | AH7: =+AG7-Revenue -> -8617.658654 | AI7: =+AH7/$J$49 -> -9520.797108 | AJ7: =+AI7*$J$47 -> -240.6381469 | AK7: =ROUND(+AJ7+AG7,5) -> 34470.24554
B8: Capital Structure-Debt % | C8: 0.5077173987 | F8: =+F7+1 -> 2 | H8: Operating Expenses | I8: =IF(A64=TRUE,C6,0) -> 32564.88683 | K8: =+I8 -> 32564.88683 | L8: =+L7 -> -233.0412104 | M8: =IFERROR(+K8+L8,0.00001) -> 32331.84562 | R8: 3 | S8: =Revenue/Investment*100 -> 225.1741478 | T8: =EXP(y_inter1-(slope*LN(+S8))) -> 7.532640834 | U8: 0.1696155981 | V8: =regDebt_weighted -> 0.03586 | W8: 0.1337555981 | X8: =+((W8*(1-0.34))-Pfd_weighted)/Equity_percent -> 0.2386299265 | Y8: =+Y7 -> 0.0025 | Z8: =+X8+Y8 -> 0.2411299265 | AA8: =Z8*equityP -> 0.1187040675 | AB8: =+AA8/(1-taxrate) -> 0.1189419514 | AC8: =debtP*Debt_Rate -> 0.02027173677 | AD8: 0.1392136882 | AE8: 0.06182489842 | AF8: 0.9381751016 | AG8: =expenses/(AF8) -> 34710.88369 | AH8: =+AG8-Revenue -> -8617.658654 | AI8: =+AH8/$J$49 -> -9520.797108 | AJ8: =+AI8*$J$47 -> -240.6381469 | AK8: 34470.24554
B9: Capital Structure-Debt Rate | C9: 0.03992720522 | F9: =+F8+1 -> 3 | H9: Operating Income | I9: =+I7-I8 -> 10763.65551 | K9: =+K7-K8 -> 2418.055991 | M9: =+M7-M8 -> 2418.055991 | R9: 4 | S9: =Revenue/Investment*100 -> 225.1741478 | T9: =EXP(y_inter1-(slope*LN(+S9))) -> 7.532640834 | U9: 0.1696155981 | V9: =regDebt_weighted -> 0.03586 | W9: 0.1337555981 | X9: =+((W9*(1-0.34))-Pfd_weighted)/Equity_percent -> 0.2386299265 | Y9: =+Y8 -> 0.0025 | Z9: 0.2411299265 | AA9: =Z9*equityP -> 0.1187040675 | AB9: =+AA9/(1-taxrate) -> 0.1189419514 | AC9: =debtP*Debt_Rate -> 0.02027173677 | AD9: 0.1392136882 | AE9: 0.06182489842 | AF9: 0.9381751016 | AG9: =expenses/(AF9) -> 34710.88369 | AH9: =+AG9-Revenue -> -8617.658654 | AI9: =+AH9/$J$49 -> -9520.797108 | AJ9: =+AI9*$J$47 -> -240.6381469 | AK9: 34470.24554
B10: Federal Income Tax Rate | C10: 0.002 | F10: 4 | R10: 2nd Iteration
B11: B&O Tax Rate | C11: 0.015 | F11: 5 | H11: Interest Expense | I11: =+K11 -> 390.0735557 | K11: =+M27 -> 390.0735557 | M11: =+K11 -> 390.0735557 | R11: 1 | S11: =IF((AK6/Investment*100)>0,(AK6/Investment*100),0) -> 179.1384557 | T11: =EXP(y_inter1-(slope*LN(S11))) -> 8.807567848 | U11: =(+S11*T11/100)/100 -> 0.1577774103 | V11: =regDebt_weighted -> 0.03586 | W11: =+U11-V11 -> 0.1219174103 | X11: =+((W11*(1-0.34))-Pfd_weighted)/Equity_percent -> 0.2159171245 | Y11: =+Y9 -> 0.0025 | Z11: =+X11+Y11 -> 0.2184171245 | AA11: =Z11*equityP -> 0.1075229502 | AB11: =+AA11/(1-taxrate) -> 0.107738427 | AC11: =debtP*Debt_Rate -> 0.02027173677 | AD11: =+AC11+AB11 -> 0.1280101638 | AE11: =+AD11/(S11/100) -> 0.07145878493 | AF11: =1-AE11 -> 0.9285412151 | AG11: =expenses/(AF11) -> 35071.01925 | AH11: =+AG11-Revenue -> -8257.52309 | AI11: =+AH11/$J$49 -> -9122.919009 | AJ11: =+AI11*$J$47 -> -230.581778 | AK11: =ROUND(+AJ11+AG11,5) -> 34840.43747
B12: WUTC Fee | C12: 0.004275 | F12: 6 | H12: Income Tax Expense | I12: =IF(I14<0,0,+J38*I14) -> 20.70575241 | J12: =+K12-I12 -> -16.64978754 | K12: =+(K9-K11)*taxrate -> 4.05596487 | M12: =+K12 -> 4.05596487 | R12: 2 | S12: =IF((AK7/Investment*100)>0,(AK7/Investment*100),0) -> 179.1384557 | T12: =EXP(y_inter2-(slope*LN(+S12))) -> 8.682255409 | U12: =(+S12*T12/100)/100 -> 0.1555325826 | V12: =regDebt_weighted -> 0.03586 | W12: =+U12-V12 -> 0.1196725826 | X12: =+((W12*(1-0.34))-Pfd_weighted)/Equity_percent -> 0.2116101876 | Y12: =+Y11 -> 0.0025 | Z12: =+X12+Y12 -> 0.2141101876 | AA12: =Z12*equityP -> 0.1054027201 | AB12: =+AA12/(1-taxrate) -> 0.105613948 | AC12: =debtP*Debt_Rate -> 0.02027173677 | AD12: =+AC12+AB12 -> 0.1258856848 | AE12: =+AD12/(S12/100) -> 0.07027284246 | AF12: =1-AE12 -> 0.9297271575 | AG12: =expenses/(AF12) -> 35026.28332 | AH12: =+AG12-Revenue -> -8302.259022 | AI12: =+AH12/$J$49 -> -9172.343308 | AJ12: =+AI12*$J$47 -> -231.8309771 | AK12: =ROUND(+AJ12+AG12,5) -> 34794.45234
B13: City Tax | C13: 0 | F13: 7 | R13: 3 | S13: =IF((AK8/Investment*100)>0,(AK8/Investment*100),0) -> 179.1384557 | T13: =EXP(y_inter3-(slope*LN(S13))) -> 8.597842801 | U13: =(+S13*T13/100)/100 -> 0.1540204282 | V13: =regDebt_weighted -> 0.03586 | W13: =+U13-V13 -> 0.1181604282 | X13: =+((W13*(1-0.34))-Pfd_weighted)/Equity_percent -> 0.2087089611 | Y13: =+Y12 -> 0.0025 | Z13: =+X13+Y13 -> 0.2112089611 | AA13: =Z13*equityP -> 0.1039744968 | AB13: =+AA13/(1-taxrate) -> 0.1041828625 | AC13: =debtP*Debt_Rate -> 0.02027173677 | AD13: =+AC13+AB13 -> 0.1244545993 | AE13: =+AD13/(S13/100) -> 0.06947397127 | AF13: =1-AE13 -> 0.9305260287 | AG13: =expenses/(AF13) -> 34996.21271 | AH13: =+AG13-Revenue -> -8332.329636 | AI13: =+AH13/$J$49 -> -9205.565349 | AJ13: =+AI13*$J$47 -> -232.6706642 | AK13: 34763.54204
B14: Bad Debts | C14: 0.006 | F14: 8 | H14: Net Income | I14: =+I9-SUM(I11:I13) -> 10352.8762 | K14: =+K9-SUM(K11:K13) -> 2023.92647 | M14: =+M9-SUM(M11:M13) -> 2023.92647 | R14: 4 | S14: =IF((AK9/Investment*100)>0,(AK9/Investment*100),0) -> 179.1384557 | T14: =EXP(y_inter4-(slope*LN(S14))) -> 8.543846657 | U14: =(+S14*T14/100)/100 -> 0.1530531496 | V14: =regDebt_weighted -> 0.03586 | W14: =+U14-V14 -> 0.1171931496 | X14: =+((W14*(1-0.34))-Pfd_weighted)/Equity_percent -> 0.2068531359 | Y14: =+Y13 -> 0.0025 | Z14: 0.2093531359 | AA14: =Z14*equityP -> 0.1030609063 | AB14: =+AA14/(1-taxrate) -> 0.1032674412 | AC14: =debtP*Debt_Rate -> 0.02027173677 | AD14: =+AC14+AB14 -> 0.123539178 | AE14: =+AD14/(S14/100) -> 0.068962958 | AF14: =1-AE14 -> 0.931037042 | AG14: =expenses/(AF14) -> 34977.00452 | AH14: =+AG14-Revenue -> -8351.537818 | AI14: =+AH14/$J$49 -> -9226.786566 | AJ14: =+AI14*$J$47 -> -233.2070305 | AK14: 34743.79749
B15: Basis Points - Flotation | C15: 0.0025 | F15: 9 | R15: 3rd Iteration
D16: Yes | F16: 10 | H16: Operating Ratio | I16: =+I8/I7 -> 0.7515804841 | K16: =+K8/K7 -> 0.930879 | M16: =+M8/M7 -> 0.9304154579 | R16: 1 | S16: =AK11/Investment*100 -> 181.0623066 | T16: =EXP(y_inter1-(slope*LN(+S16))) -> 8.743479581 | U16: =(+S16*T16/100)/100 -> 0.158311458 | V16: =regDebt_weighted -> 0.03586 | W16: =+U16-V16 -> 0.122451458 | X16: =+((W16*(1-0.34))-Pfd_weighted)/Equity_percent -> 0.2169417509 | Y16: =+Y14 -> 0.0025 | Z16: =+X16+Y16 -> 0.2194417509 | AA16: =Z16*equityP -> 0.108027356 | AB16: =+AA16/(1-taxrate) -> 0.1082438437 | AC16: =debtP*Debt_Rate -> 0.02027173677 | AD16: =+AC16+AB16 -> 0.1285155804 | AE16: =+AD16/(S16/100) -> 0.07097864975 | AF16: =1-AE16 -> 0.9290213502 | AG16: =expenses/(AF16) -> 35052.89391 | AH16: =+AG16-Revenue -> -8275.648432 | AI16: =+AH16/$J$49 -> -9142.943904 | AJ16: =+AI16*$J$47 -> -231.0879072 | AK16: =ROUND(+AJ16+AG16,5) -> 34821.806
B17: Check when input is complete | D17: No | F17: 11 | R17: 2 | S17: =AK12/Investment*100 -> 180.8233264 | T17: =EXP(y_inter2-(slope*LN(+S17))) -> 8.626865151 | U17: =(+S17*T17/100)/100 -> 0.1559938453 | V17: =regDebt_weighted -> 0.03586 | W17: =+U17-V17 -> 0.1201338453 | X17: =+((W17*(1-0.34))-Pfd_weighted)/Equity_percent -> 0.2124951683 | Y17: =+Y16 -> 0.0025 | Z17: =+X17+Y17 -> 0.2149951683 | AA17: =Z17*equityP -> 0.1058383807 | AB17: =+AA17/(1-taxrate) -> 0.1060504817 | AC17: =debtP*Debt_Rate -> 0.02027173677 | AD17: =+AC17+AB17 -> 0.1263222185 | AE17: =+AD17/(S17/100) -> 0.06985947055 | AF17: =1-AE17 -> 0.9301405295 | AG17: =expenses/(AF17) -> 35010.71698 | AH17: =+AG17-Revenue -> -8317.82536 | AI17: =+AH17/$J$49 -> -9189.541012 | AJ17: =+AI17*$J$47 -> -232.2656491 | AK17: =ROUND(+AJ17+AG17,5) -> 34778.45133
F18: 12 | H18: Revenue Requirement | R18: 3 | S18: =AK13/Investment*100 -> 180.6626886 | T18: =EXP(y_inter3-(slope*LN(S18))) -> 8.548183548 | U18: =(+S18*T18/100)/100 -> 0.1544337823 | V18: =regDebt_weighted -> 0.03586 | W18: =+U18-V18 -> 0.1185737823 | X18: =+((W18*(1-0.34))-Pfd_weighted)/Equity_percent -> 0.2095020241 | Y18: =+Y17 -> 0.0025 | Z18: =+X18+Y18 -> 0.2120020241 | AA18: =Z18*equityP -> 0.1043649079 | AB18: =+AA18/(1-taxrate) -> 0.104574056 | AC18: =debtP*Debt_Rate -> 0.02027173677 | AD18: =+AC18+AB18 -> 0.1248457928 | AE18: =+AD18/(S18/100) -> 0.06910435892 | AF18: =1-AE18 -> 0.9308956411 | AG18: =expenses/(AF18) -> 34982.31745 | AH18: =+AG18-Revenue -> -8346.224891 | AI18: =+AH18/$J$49 -> -9220.91684 | AJ18: =+AI18*$J$47 -> -233.0586731 | AK18: 34749.25878
B19: For Intial input: Uncheck Checkbox Until Completed | F19: 13 | I19: Historical Revenue | J19: =+Revenue -> 43328.54234 | L19: Revenue Increase before taxes | M19: =+J7 -> -8345.599521 | R19: 4 | S19: =AK14/Investment*100 -> 180.5600782 | T19: =EXP(y_inter4-(slope*LN(S19))) -> 8.497799284 | U19: =(+S19*T19/100)/100 -> 0.1534363303 | V19: =regDebt_weighted -> 0.03586 | W19: =+U19-V19 -> 0.1175763303 | X19: =+((W19*(1-0.34))-Pfd_weighted)/Equity_percent -> 0.2075883081 | Y19: =+Y18 -> 0.0025 | Z19: 0.2100883081 | AA19: =Z19*equityP -> 0.1034228188 | AB19: =+AA19/(1-taxrate) -> 0.103630079 | AC19: =debtP*Debt_Rate -> 0.02027173677 | AD19: =+AC19+AB19 -> 0.1239018158 | AE19: =+AD19/(S19/100) -> 0.06862082527 | AF19: =1-AE19 -> 0.9313791747 | AG19: =expenses/(AF19) -> 34964.15608 | AH19: =+AG19-Revenue -> -8364.386267 | AI19: =+AH19/$J$49 -> -9240.981544 | AJ19: =+AI19*$J$47 -> -233.5658085 | AK19: 34730.59027
F20: 14 | I20: Rate Increase | J20: =+J21-J19 -> -8578.640731 | L20: Rev Sensitive Taxes | M20: =+L8 -> -233.0412104 | R20: 4th Iteration
F21: 15 | I21: Revenue Requirement | J21: =+M7 -> 34749.90161 | L21: Rate Increase | M21: =+M19+M20 -> -8578.640731 | R21: 1 | S21: =AK16/Investment*100 -> 180.9654807 | T21: =EXP(y_inter1-(slope*LN(+S21))) -> 8.746677665 | U21: =(+S21*T21/100)/100 -> 0.1582846728 | V21: =regDebt_weighted -> 0.03586 | W21: =+U21-V21 -> 0.1224246728 | X21: =+((W21*(1-0.34))-Pfd_weighted)/Equity_percent -> 0.2168903606 | Y21: =+Y19 -> 0.0025 | Z21: =+X21+Y21 -> 0.2193903606 | AA21: =Z21*equityP -> 0.1080020574 | AB21: =+AA21/(1-taxrate) -> 0.1082184944 | AC21: =debtP*Debt_Rate -> 0.02027173677 | AD21: =+AC21+AB21 -> 0.1284902312 | AE21: =+AD21/(S21/100) -> 0.07100261922 | AF21: =1-AE21 -> 0.9289973808 | AG21: =expenses/(AF21) -> 35053.79833 | AH21: =+AG21-Revenue -> -8274.744017 | AI21: =+AH21/$J$49 -> -9141.944705 | AJ21: =+AI21*$J$47 -> -231.0626524 | AK21: =ROUND(+AJ21+AG21,5) -> 34822.73567
F22: 16 | R22: 2 | S22: =AK17/Investment*100 -> 180.7401707 | T22: =EXP(y_inter2-(slope*LN(+S22))) -> 8.629578496 | U22: =(+S22*T22/100)/100 -> 0.1559711491 | V22: =regDebt_weighted -> 0.03586 | W22: =+U22-V22 -> 0.1201111491 | X22: =+((W22*(1-0.34))-Pfd_weighted)/Equity_percent -> 0.2124516232 | Y22: =+Y21 -> 0.0025 | Z22: =+X22+Y22 -> 0.2149516232 | AA22: =Z22*equityP -> 0.1058169442 | AB22: =+AA22/(1-taxrate) -> 0.1060290022 | AC22: =debtP*Debt_Rate -> 0.02027173677 | AD22: =+AC22+AB22 -> 0.126300739 | AE22: =+AD22/(S22/100) -> 0.06987972762 | AF22: =1-AE22 -> 0.9301202724 | AG22: =expenses/(AF22) -> 35011.47948 | AH22: =+AG22-Revenue -> -8317.062862 | AI22: =+AH22/$J$49 -> -9188.698604 | AJ22: =+AI22*$J$47 -> -232.2443572 | AK22: =ROUND(+AJ22+AG22,5) -> 34779.23512
B23: 2018 Version Update Changes | F23: 17 | R23: 3 | S23: =AK18/Investment*100 -> 180.58846 | T23: =EXP(y_inter3-(slope*LN(S23))) -> 8.550585553 | U23: =(+S23*T23/100)/100 -> 0.1544137077 | V23: =regDebt_weighted -> 0.03586 | W23: =+U23-V23 -> 0.1185537077 | X23: =+((W23*(1-0.34))-Pfd_weighted)/Equity_percent -> 0.2094635089 | Y23: =+Y22 -> 0.0025 | Z23: =+X23+Y23 -> 0.2119635089 | AA23: =Z23*equityP -> 0.1043459475 | AB23: =+AA23/(1-taxrate) -> 0.1045550577 | AC23: =debtP*Debt_Rate -> 0.02027173677 | AD23: =+AC23+AB23 -> 0.1248267944 | AE23: =+AD23/(S23/100) -> 0.06912224317 | AF23: =1-AE23 -> 0.9308777568 | AG23: =expenses/(AF23) -> 34982.98954 | AH23: =+AG23-Revenue -> -8345.552802 | AI23: =+AH23/$J$49 -> -9220.174315 | AJ23: =+AI23*$J$47 -> -233.0399058 | AK23: 34749.94963
B24: ● Allows Income Tax Rate Changes, | F24: 18 | H24: Captial Structure Financing Investment | K24: Financing Cost | R24: 4 | S24: =AK19/Investment*100 -> 180.4914416 | T24: =EXP(y_inter4-(slope*LN(S24))) -> 8.500008439 | U24: =(+S24*T24/100)/100 -> 0.1534178776 | V24: =regDebt_weighted -> 0.03586 | W24: =+U24-V24 -> 0.1175578776 | X24: =+((W24*(1-0.34))-Pfd_weighted)/Equity_percent -> 0.2075529048 | Y24: =+Y23 -> 0.0025 | Z24: 0.2100529048 | AA24: =Z24*equityP -> 0.1034053904 | AB24: =+AA24/(1-taxrate) -> 0.1036126156 | AC24: =debtP*Debt_Rate -> 0.02027173677 | AD24: =+AC24+AB24 -> 0.1238843524 | AE24: =+AD24/(S24/100) -> 0.06863724468 | AF24: =1-AE24 -> 0.9313627553 | AG24: =expenses/(AF24) -> 34964.77247 | AH24: =+AG24-Revenue -> -8363.769868 | AI24: =+AH24/$J$49 -> -9240.300547 | AJ24: =+AI24*$J$47 -> -233.5485963 | AK24: 34731.22388
B25: ● Minimizes impact of changes in test-year revenue from | F25: 19 | H25: Type | I25: Percent | J25: Amount | K25: Cost of Capital | L25: Weighted | M25: Amount | R25: 5th Iteration
B26: resulting revenue requirment, | F26: 20 | H26: Equity | I26: =1-I27 -> 0.4922826013 | J26: =+I26*J28 -> 9472.6183 | K26: =+K34 -> 0.2136607225 | L26: =+K26*I26 -> 0.1051814563 | M26: =+J26*K26 -> 2023.92647 | R26: 1 | S26: =AK21/Investment*100 -> 180.9703121 | T26: =EXP(y_inter1-(slope*LN(+S26))) -> 8.746518019 | U26: =(+S26*T26/100)/100 -> 0.1582860096 | V26: =regDebt_weighted -> 0.03586 | W26: =+U26-V26 -> 0.1224260096 | X26: =+((W26*(1-0.34))-Pfd_weighted)/Equity_percent -> 0.2168929253 | Y26: =+Y24 -> 0.0025 | Z26: =+X26+Y26 -> 0.2193929253 | AA26: =Z26*equityP -> 0.10800332 | AB26: =+AA26/(1-taxrate) -> 0.1082197595 | AC26: =debtP*Debt_Rate -> 0.02027173677 | AD26: =+AC26+AB26 -> 0.1284914963 | AE26: =+AD26/(S26/100) -> 0.07100142271 | AF26: =1-AE26 -> 0.9289985773 | AG26: =expenses/(AF26) -> 35053.75318 | AH26: =+AG26-Revenue -> -8274.789165 | AI26: =+AH26/$J$49 -> -9141.994585 | AJ26: =+AI26*$J$47 -> -231.0639131 | AK26: =ROUND(+AJ26+AG26,5) -> 34822.68926
B27: ● Corrects interest rate transposition in LG. | F27: 21 | H27: Debt | I27: =IF(A64=TRUE,C8,0) -> 0.5077173987 | J27: =+I27*J28 -> 9769.618324 | K27: =IF(A64=TRUE,C9,0) -> 0.03992720522 | L27: =+K27*I27 -> 0.02027173677 | M27: =+K27*J27 -> 390.0735557 | R27: 2 | S27: =AK22/Investment*100 -> 180.744244 | T27: =EXP(y_inter2-(slope*LN(+S27))) -> 8.629445537 | U27: =(+S27*T27/100)/100 -> 0.155972261 | V27: =regDebt_weighted -> 0.03586 | W27: =+U27-V27 -> 0.120112261 | X27: =+((W27*(1-0.34))-Pfd_weighted)/Equity_percent -> 0.2124537566 | Y27: =+Y26 -> 0.0025 | Z27: =+X27+Y27 -> 0.2149537566 | AA27: =Z27*equityP -> 0.1058179944 | AB27: =+AA27/(1-taxrate) -> 0.1060300545 | AC27: =debtP*Debt_Rate -> 0.02027173677 | AD27: =+AC27+AB27 -> 0.1263017913 | AE27: =+AD27/(S27/100) -> 0.069878735 | AF27: =1-AE27 -> 0.930121265 | AG27: =expenses/(AF27) -> 35011.44212 | AH27: =+AG27-Revenue -> -8317.100226 | AI27: =+AH27/$J$49 -> -9188.739884 | AJ27: =+AI27*$J$47 -> -232.2454006 | AK27: =ROUND(+AJ27+AG27,5) -> 34779.19672
F28: 22 | H28: Total | I28: =SUM(I26:I27) -> 1 | J28: =IF(A64=TRUE,C7,0) -> 19242.23662 | L28: =SUM(L26:L27) -> 0.125453193 | M28: =SUM(M26:M27) -> 2414.000026 | R28: 3 | S28: =AK23/Investment*100 -> 180.5920502 | T28: =EXP(y_inter3-(slope*LN(S28))) -> 8.550469335 | U28: =(+S28*T28/100)/100 -> 0.1544146788 | V28: =regDebt_weighted -> 0.03586 | W28: =+U28-V28 -> 0.1185546788 | X28: =+((W28*(1-0.34))-Pfd_weighted)/Equity_percent -> 0.209465372 | Y28: =+Y27 -> 0.0025 | Z28: =+X28+Y28 -> 0.211965372 | AA28: =Z28*equityP -> 0.1043468647 | AB28: =+AA28/(1-taxrate) -> 0.1045559767 | AC28: =debtP*Debt_Rate -> 0.02027173677 | AD28: =+AC28+AB28 -> 0.1248277135 | AE28: =+AD28/(S28/100) -> 0.06912137788 | AF28: =1-AE28 -> 0.9308786221 | AG28: =expenses/(AF28) -> 34982.95702 | AH28: =+AG28-Revenue -> -8345.58532 | AI28: =+AH28/$J$49 -> -9220.210242 | AJ28: =+AI28*$J$47 -> -233.0408139 | AK28: 34749.91621
F29: 23 | R29: 4 | S29: =AK24/Investment*100 -> 180.4947344 | T29: =EXP(y_inter4-(slope*LN(S29))) -> 8.499902423 | U29: =(+S29*T29/100)/100 -> 0.153418763 | V29: =regDebt_weighted -> 0.03586 | W29: =+U29-V29 -> 0.117558763 | X29: =+((W29*(1-0.34))-Pfd_weighted)/Equity_percent -> 0.2075546034 | Y29: =+Y28 -> 0.0025 | Z29: 0.2100546034 | AA29: =Z29*equityP -> 0.1034062266 | AB29: =+AA29/(1-taxrate) -> 0.1036134535 | AC29: =debtP*Debt_Rate -> 0.02027173677 | AD29: =+AC29+AB29 -> 0.1238851903 | AE29: =+AD29/(S29/100) -> 0.06863645674 | AF29: =1-AE29 -> 0.9313635433 | AG29: =expenses/(AF29) -> 34964.74289 | AH29: =+AG29-Revenue -> -8363.799449 | AI29: =+AH29/$J$49 -> -9240.333227 | AJ29: =+AI29*$J$47 -> -233.5494223 | AK29: 34731.19347
F30: 24 | J30: Before | K30: After | R30: 6th Iteration
F31: 25 | H31: Operating Statistics | J31: Income Tax | K31: Income Tax | R31: 1 | S31: =AK26/Investment*100 -> 180.9700709 | T31: =EXP(y_inter1-(slope*LN(+S31))) -> 8.746525989 | U31: =(+S31*T31/100)/100 -> 0.1582859428 | V31: =regDebt_weighted -> 0.03586 | W31: =+U31-V31 -> 0.1224259428 | X31: =+((W31*(1-0.34))-Pfd_weighted)/Equity_percent -> 0.2168927973 | Y31: =+Y29 -> 0.0025 | Z31: =+X31+Y31 -> 0.2193927973 | AA31: =Z31*equityP -> 0.1080032569 | AB31: =+AA31/(1-taxrate) -> 0.1082196963 | AC31: =debtP*Debt_Rate -> 0.02027173677 | AD31: =+AC31+AB31 -> 0.1284914331 | AE31: =+AD31/(S31/100) -> 0.07100148244 | AF31: =1-AE31 -> 0.9289985176 | AG31: =expenses/(AF31) -> 35053.75543 | AH31: =+AG31-Revenue -> -8274.786911 | AI31: =+AH31/$J$49 -> -9141.992095 | AJ31: =+AI31*$J$47 -> -231.0638502 | AK31: =ROUND(+AJ31+AG31,5) -> 34822.69158
F32: 26 | R32: 2 | S32: =AK27/Investment*100 -> 180.7440445 | T32: =EXP(y_inter2-(slope*LN(+S32))) -> 8.629452051 | U32: =(+S32*T32/100)/100 -> 0.1559722065 | V32: =regDebt_weighted -> 0.03586 | W32: =+U32-V32 -> 0.1201122065 | X32: =+((W32*(1-0.34))-Pfd_weighted)/Equity_percent -> 0.2124536521 | Y32: =+Y31 -> 0.0025 | Z32: =+X32+Y32 -> 0.2149536521 | AA32: =Z32*equityP -> 0.105817943 | AB32: =+AA32/(1-taxrate) -> 0.106030003 | AC32: =debtP*Debt_Rate -> 0.02027173677 | AD32: =+AC32+AB32 -> 0.1263017398 | AE32: =+AD32/(S32/100) -> 0.06987878363 | AF32: =1-AE32 -> 0.9301212164 | AG32: =expenses/(AF32) -> 35011.44395 | AH32: =+AG32-Revenue -> -8317.098395 | AI32: =+AH32/$J$49 -> -9188.737861 | AJ32: =+AI32*$J$47 -> -232.2453494 | AK32: =ROUND(+AJ32+AG32,5) -> 34779.1986
F33: 27 | H33: Return on Investment | J33: =+K9/J28 -> 0.1256639775 | K33: =+(M14+M11)/J28 -> 0.125453193 | R33: 3 | S33: =AK28/Investment*100 -> 180.5918766 | T33: =EXP(y_inter3-(slope*LN(S33))) -> 8.550474957 | U33: =(+S33*T33/100)/100 -> 0.1544146318 | V33: =regDebt_weighted -> 0.03586 | W33: =+U33-V33 -> 0.1185546318 | X33: =+((W33*(1-0.34))-Pfd_weighted)/Equity_percent -> 0.2094652819 | Y33: =+Y32 -> 0.0025 | Z33: =+X33+Y33 -> 0.2119652819 | AA33: =Z33*equityP -> 0.1043468204 | AB33: =+AA33/(1-taxrate) -> 0.1045559322 | AC33: =debtP*Debt_Rate -> 0.02027173677 | AD33: =+AC33+AB33 -> 0.124827669 | AE33: =+AD33/(S33/100) -> 0.06912141973 | AF33: =1-AE33 -> 0.9308785803 | AG33: =expenses/(AF33) -> 34982.95859 | AH33: =+AG33-Revenue -> -8345.583747 | AI33: =+AH33/$J$49 -> -9220.208504 | AJ33: =+AI33*$J$47 -> -233.0407699 | AK33: 34749.91782
F34: 28 | H34: Return on Equity | J34: =+(M9-M11)/J26 -> 0.2140889003 | K34: =+M14/J26 -> 0.2136607225 | R34: 4 | S34: =AK29/Investment*100 -> 180.4945763 | T34: =EXP(y_inter4-(slope*LN(S34))) -> 8.499907511 | U34: =(+S34*T34/100)/100 -> 0.1534187205 | V34: =regDebt_weighted -> 0.03586 | W34: =+U34-V34 -> 0.1175587205 | X34: =+((W34*(1-0.34))-Pfd_weighted)/Equity_percent -> 0.2075545219 | Y34: =+Y33 -> 0.0025 | Z34: 0.2100545219 | AA34: =Z34*equityP -> 0.1034061865 | AB34: =+AA34/(1-taxrate) -> 0.1036134133 | AC34: =debtP*Debt_Rate -> 0.02027173677 | AD34: =+AC34+AB34 -> 0.1238851501 | AE34: =+AD34/(S34/100) -> 0.06863649456 | AF34: =1-AE34 -> 0.9313635054 | AG34: =expenses/(AF34) -> 34964.74431 | AH34: =+AG34-Revenue -> -8363.798029 | AI34: =+AH34/$J$49 -> -9240.331659 | AJ34: =+AI34*$J$47 -> -233.5493827 | AK34: 34731.19493
F35: 29 | H35: Operating Ratio | J35: =+K8/K7 -> 0.930879 | K35: =+M8/M7 -> 0.9304154579 | R35: 7th Iteration
F36: 30 | H36: Profit Margin | J36: =+K9/K7 -> 0.069121 | K36: =+J36 -> 0.069121 | R36: 1 | S36: =AK31/Investment*100 -> 180.9700829 | T36: =EXP(y_inter1-(slope*LN(+S36))) -> 8.74652559 | U36: =(+S36*T36/100)/100 -> 0.1582859462 | V36: =regDebt_weighted -> 0.03586 | W36: =+U36-V36 -> 0.1224259462 | X36: =+((W36*(1-0.34))-Pfd_weighted)/Equity_percent -> 0.2168928037 | Y36: =+Y34 -> 0.0025 | Z36: =+X36+Y36 -> 0.2193928037 | AA36: =Z36*equityP -> 0.1080032601 | AB36: =+AA36/(1-taxrate) -> 0.1082196995 | AC36: =debtP*Debt_Rate -> 0.02027173677 | AD36: =+AC36+AB36 -> 0.1284914363 | AE36: =+AD36/(S36/100) -> 0.07100147946 | AF36: =1-AE36 -> 0.9289985205 | AG36: =expenses/(AF36) -> 35053.75532 | AH36: =+AG36-Revenue -> -8274.787024 | AI36: =+AH36/$J$49 -> -9141.992219 | AJ36: =+AI36*$J$47 -> -231.0638533 | AK36: =ROUND(+AJ36+AG36,5) -> 34822.69146
F37: 31 | H37: Final turnover | J37: =+S39/100 -> 1.804945839 | K37: =+J37 -> 1.804945839 | R37: 2 | S37: =AK32/Investment*100 -> 180.7440542 | T37: =EXP(y_inter2-(slope*LN(+S37))) -> 8.629451732 | U37: =(+S37*T37/100)/100 -> 0.1559722092 | V37: =regDebt_weighted -> 0.03586 | W37: =+U37-V37 -> 0.1201122092 | X37: =+((W37*(1-0.34))-Pfd_weighted)/Equity_percent -> 0.2124536572 | Y37: =+Y36 -> 0.0025 | Z37: =+X37+Y37 -> 0.2149536572 | AA37: =Z37*equityP -> 0.1058179455 | AB37: =+AA37/(1-taxrate) -> 0.1060300055 | AC37: =debtP*Debt_Rate -> 0.02027173677 | AD37: =+AC37+AB37 -> 0.1263017423 | AE37: =+AD37/(S37/100) -> 0.06987878125 | AF37: =1-AE37 -> 0.9301212187 | AG37: =expenses/(AF37) -> 35011.44386 | AH37: =+AG37-Revenue -> -8317.098485 | AI37: =+AH37/$J$49 -> -9188.73796 | AJ37: =+AI37*$J$47 -> -232.2453519 | AK37: =ROUND(+AJ37+AG37,5) -> 34779.1985
F38: 32 | H38: Tax Rate | J38: =+C10 -> 0.002 | K38: =+J38 -> 0.002 | R38: 3 | S38: =AK33/Investment*100 -> 180.5918849 | T38: =EXP(y_inter3-(slope*LN(S38))) -> 8.550474686 | U38: =(+S38*T38/100)/100 -> 0.154414634 | V38: =regDebt_weighted -> 0.03586 | W38: =+U38-V38 -> 0.118554634 | X38: =+((W38*(1-0.34))-Pfd_weighted)/Equity_percent -> 0.2094652863 | Y38: =+Y37 -> 0.0025 | Z38: =+X38+Y38 -> 0.2119652863 | AA38: =Z38*equityP -> 0.1043468225 | AB38: =+AA38/(1-taxrate) -> 0.1045559344 | AC38: =debtP*Debt_Rate -> 0.02027173677 | AD38: =+AC38+AB38 -> 0.1248276711 | AE38: =+AD38/(S38/100) -> 0.06912141772 | AF38: =1-AE38 -> 0.9308785823 | AG38: =expenses/(AF38) -> 34982.95852 | AH38: =+AG38-Revenue -> -8345.583823 | AI38: =+AH38/$J$49 -> -9220.208587 | AJ38: =+AI38*$J$47 -> -233.040772 | AK38: 34749.91775
F39: 33 | R39: 4 | S39: =AK34/Investment*100 -> 180.4945839 | T39: =EXP(y_inter4-(slope*LN(S39))) -> 8.499907267 | U39: =(+S39*T39/100)/100 -> 0.1534187225 | V39: =regDebt_weighted -> 0.03586 | W39: =+U39-V39 -> 0.1175587225 | X39: =+((W39*(1-0.34))-Pfd_weighted)/Equity_percent -> 0.2075545258 | Y39: =+Y38 -> 0.0025 | Z39: 0.2100545258 | AA39: =Z39*equityP -> 0.1034061884 | AB39: =+AA39/(1-taxrate) -> 0.1036134152 | AC39: =debtP*Debt_Rate -> 0.02027173677 | AD39: =+AC39+AB39 -> 0.123885152 | AE39: =+AD39/(S39/100) -> 0.06863649274 | AF39: =1-AE39 -> 0.9313635073 | AG39: =expenses/(AF39) -> 34964.74424 | AH39: =+AG39-Revenue -> -8363.798097 | AI39: =+AH39/$J$49 -> -9240.331734 | AJ39: =+AI39*$J$47 -> -233.5493846 | AK39: 34731.19486
F40: 34
F41: 35 | H41: Revenue Sensitive Taxes Charges | R41: Curve
F42: 36 | J42: Rate | K42: Taxes | R42: Lookup Table
F43: 37 | H43: B & O Tax | J43: =IF(A64=TRUE,C11,0) -> 0.015 | K43: =+J43*($J$7/$J$49) -> -138.303389 | R43: 0 | S43: 1 | U43: Profit Margin | V43: =VLOOKUP(R48,R36:AG39,14) -> 0.06912141772
F44: 38 | H44: WUTC Fee | J44: =IF(A64=TRUE,C12,0) -> 0.004275 | K44: =+J44*($J$7/$J$49) -> -39.41646585 | R44: 50 | S44: 2 | U44: Operating Ratio | V44: =ROUND(1-V43,6) -> 0.930879
F45: 39 | H45: City Tax | J45: =IF(A64=TRUE,C13,0) -> 0 | K45: =+J45*($J$7/$J$49) -> 0 | R45: 125 | S45: 3 | U45: Percent Chg | V45: =+M7/Revenue-1 -> -0.1979905224
F46: 40 | H46: Bad Debts | J46: =IF(A64=TRUE,C14,0) -> 0.006 | K46: =+J46*($J$7/$J$49) -> -55.32135558 | R46: 401 | S46: 4
F47: 41 | H47: Revenue Sensitive | J47: =SUM(J43:J46) -> 0.025275 | K47: =+K43+K44+K45+K46 -> -233.0412104 | R47: =VLOOKUP(R48,R36:S39,2) -> 180.5918849 | S47: Curve turnover | X47: @EXP(5.72260-(.68367*@LN(T)))
F48: 42 | R48: =VLOOKUP(S36,R43:S46,2) -> 3 | S48: Curve No. Used | X48: @EXP(5.70827-(.68367*@LN(T)))
F49: 43 | H49: Conversion Factor | J49: =((K35)-J47) -> 0.9051404579 | X49: @EXP(5.69850-(.68367*@LN(T)))
R50: =+V44 -> 0.930879 | S50: Operating Ratio | X50: @EXP(5.69220-(.68367*@LN(T)))
S53: Base Utility from LG Sample Study | W53: Regression Results
S54: Percent | T54: Cost | U54: Weighted | W54: Y intercept (1) | X54: 5.7226 | Y54: Y intercept (3) | Z54: 5.6985
R55: Debt | S55: 0.562 | T55: 0.0638 | U55: =ROUND(+S55*T55,5) -> 0.03586 | W55: Y intercept (2) | X55: 5.70827 | Y55: Y intercept (4) | Z55: 5.6922
R56: Pfd. | S56: 0.094 | T56: 0.0659 | U56: =ROUND(+S56*T56,5) -> 0.00619
R57: Equity | S57: 0.344 | X57: Slope | Y57: 0.68367
S58: =SUM(S55:S57) -> 1
X60: Operating Statistics | Y60: Pre-tax | Z60: After Tax
X62: Return on Investment | Y62: =+J33 -> 0.1256639775 | Z62: 0.125453193
X63: Return on Equity | Y63: 0.2140889003 | Z63: 0.2136607225
A64: TRUE | X64: Operating Ratio | Y64: 0.930879 | Z64: 0.9304154579
X65: Profit Margin | Y65: 0.069121 | Z65: 0.069121
X66: Final turnover | Y66: 1.804945839 | Z66: 1.804945839
X67: Tax Rate | Y67: 0.002 | Z67: 0.002

Sheet MF RCY
B1: NEW IMPROVED LURITO - GALLAGHER FORMULA | AE1: !??! | AF1: OP/RATIO | AI1: curve
G2: NOTE: | N2: FORMULAS | U2: 1st Revenue | V2: 1st Turnover | W2: M | X2: ROR | Y2: ROE | AA2: Adj ROE | AB2: Pre Tax ROE | AC2: Adj M | AD2: Revenues | AE2: Decision | AI2: lookup table
B3: !!! | C3: Revenue Requirement | E3: =E5+E4 -> 34750.03692 | F3: !!!<-- | H3: Red numbers are input/linked fields. | N3: 1. less than 50 | Q3: @EXP(5.72260-(.68367*@LN(T))) | U3: =$E$6*1.25 -> 40706.10854 | V3: ='MF RCY LG 2018 V5.0c'!S6 -> 225.1741478 | W3: =EXP(5.7226-(0.68367*LN(+V3))) -> 7.532640834 | X3: =(+W3*V3)/100 -> 16.96155981 | Y3: ='MF RCY LG 2018 V5.0c'!X6 -> 0.2386299265 | Z3: =+$E$18 -> 0.25 | AA3: =Y3+Z3 -> 0.4886299265 | AB3: =100*($E$15*$E$17+($E$16*(AA3/100))/(1-$E$19)) -> 2.268199741 | AC3: ='MF RCY LG 2018 V5.0c'!AE6 -> 0.06182489842 | AD3: =$E$6/(1-AC3) -> 34710.88369 | AE3: =IF(AD3=$U$3,"yes","not yet") -> not yet | AF3: =100*(1-AC3) -> 93.81751016 | AI3: 0 | AJ3: 1
B4: !!! | C4: Revenue Deficiency | E4: =(+E6-((H13/100)*E5))/H23 -> -8578.505418 | F4: !!!<-- | H4: Black are formula calculations | N4: 2. Between 50 and 125 | Q4: @EXP(5.70827-(.68367*@LN(T))) | U4: =$E$6*1.25 -> 40706.10854 | V4: ='MF RCY LG 2018 V5.0c'!S7 -> 225.1741478 | W4: ='MF RCY LG 2018 V5.0c'!T7 -> 7.532640834 | X4: =(+W4*V4)/100 -> 16.96155981 | Y4: ='MF RCY LG 2018 V5.0c'!X7 -> 0.2386299265 | Z4: =+$E$18 -> 0.25 | AA4: =Y4+Z4 -> 0.4886299265 | AB4: =100*($E$15*$E$17+($E$16*(AA4/100))/(1-$E$19)) -> 2.268199741 | AC4: ='MF RCY LG 2018 V5.0c'!AE7 -> 0.06182489842 | AD4: =$E$6/(1-AC4) -> 34710.88369 | AE4: =IF(AD4=$U$4,"yes","not yet") -> not yet | AF4: =100*(1-AC4) -> 93.81751016 | AI4: 50 | AJ4: 2
B5: * | C5: Revenue | E5: =Proforma!R26 -> 43328.54234 | F5: * p/f before rates | N5: 3. Between 125 and 140 | Q5: @EXP(5.69850-(.68367*@LN(T))) | U5: =$E$6*1.25 -> 40706.10854 | V5: ='MF RCY LG 2018 V5.0c'!S8 -> 225.1741478 | W5: ='MF RCY LG 2018 V5.0c'!T8 -> 7.532640834 | X5: =(+W5*V5)/100 -> 16.96155981 | Y5: ='MF RCY LG 2018 V5.0c'!X8 -> 0.2386299265 | Z5: =+$E$18 -> 0.25 | AA5: =Y5+Z5 -> 0.4886299265 | AB5: =100*($E$15*$E$17+($E$16*(AA5/100))/(1-$E$19)) -> 2.268199741 | AC5: ='MF RCY LG 2018 V5.0c'!AE8 -> 0.06182489842 | AD5: =$E$6/(1-AC5) -> 34710.88369 | AE5: =IF(AD5=$U$5,"yes","not yet") -> not yet | AF5: =100*(1-AC5) -> 93.81751016 | AI5: 125 | AJ5: 3
B6: * | C6: Expenses | E6: =+Proforma!R391 -> 32564.88683 | F6: * p/f before rates | N6: 4. greater than 400 | Q6: @EXP(5.69220-(.68367*@LN(T))) | U6: =$E$6*1.25 -> 40706.10854 | V6: ='MF RCY LG 2018 V5.0c'!S9 -> 225.1741478 | W6: ='MF RCY LG 2018 V5.0c'!T9 -> 7.532640834 | X6: =(+W6*V6)/100 -> 16.96155981 | Y6: ='MF RCY LG 2018 V5.0c'!X9 -> 0.2386299265 | Z6: =+$E$18 -> 0.25 | AA6: =Y6+Z6 -> 0.4886299265 | AB6: =100*($E$15*$E$17+($E$16*(AA6/100))/(1-$E$19)) -> 2.268199741 | AC6: ='MF RCY LG 2018 V5.0c'!AE9 -> 0.06182489842 | AD6: =$E$6/(1-AC6) -> 34710.88369 | AE6: =IF(AD6=$U$6,"yes","not yet") -> not yet | AF6: =100*(1-AC6) -> 93.81751016 | AI6: 401 | AJ6: 4
B7: * | C7: Avg. Investment - | E7: ='Ave Inv. Summary'!M66 -> 19242.23662 | F7: * p/f before rates
C8: curve turnover | E8: =V3 -> 225.1741478 | F8: (calculated) | V8: 2nd Turnover | W8: M | X8: ROR | Y8: ROE | AI8: lookup tables
C9: final turnover | E9: =HLOOKUP($AJ$32,$AJ$26:$AR$30,$E$10+1) -> 180.5918849 | F9: (calculated) | V9: ='MF RCY LG 2018 V5.0c'!S11 -> 179.1384557 | W9: ='MF RCY LG 2018 V5.0c'!T11 -> 8.807567848 | X9: =(+W9*V9)/100 -> 15.77774103 | Y9: ='MF RCY LG 2018 V5.0c'!X11 -> 0.2159171245 | Z9: =+$E$18 -> 0.25 | AA9: =Y9+Z9 -> 0.4659171245 | AB9: =100*($E$15*$E$17+($E$16*(AA9/100))/(1-$E$19)) -> 2.256996216 | AC9: ='MF RCY LG 2018 V5.0c'!AE11 -> 0.07145878493 | AD9: =$E$6/(1-AC9) -> 35071.01925 | AE9: =IF(OR(OR(AD9=AD3,AD9=(AD3+1)),AD9=(AD8187-1)),"yes","not yet") -> not yet | AF9: =100*(1-AC9) -> 92.85412151
C10: curve No. used | E10: =VLOOKUP(E8,AI3:AJ6,2) -> 3 | F10: (calculated) | V10: ='MF RCY LG 2018 V5.0c'!S12 -> 179.1384557 | W10: ='MF RCY LG 2018 V5.0c'!T12 -> 8.682255409 | X10: =(+W10*V10)/100 -> 15.55325826 | Y10: ='MF RCY LG 2018 V5.0c'!X12 -> 0.2116101876 | Z10: =+$E$18 -> 0.25 | AA10: =Y10+Z10 -> 0.4616101876 | AB10: =100*($E$15*$E$17+($E$16*(AA10/100))/(1-$E$19)) -> 2.254871737 | AC10: ='MF RCY LG 2018 V5.0c'!AE12 -> 0.07027284246 | AD10: =$E$6/(1-AC10) -> 35026.28332 | AE10: =IF(OR(OR(AD10=AD4,AD10=(AD4+1)),AD10=(AD4-1)),"yes","not yet") -> not yet | AF10: =100*(1-AC10) -> 92.97271575
V11: ='MF RCY LG 2018 V5.0c'!S13 -> 179.1384557 | W11: ='MF RCY LG 2018 V5.0c'!T13 -> 8.597842801 | X11: =(+W11*V11)/100 -> 15.40204282 | Y11: ='MF RCY LG 2018 V5.0c'!X13 -> 0.2087089611 | Z11: =+$E$18 -> 0.25 | AA11: =Y11+Z11 -> 0.4587089611 | AB11: =100*($E$15*$E$17+($E$16*(AA11/100))/(1-$E$19)) -> 2.253440652 | AC11: ='MF RCY LG 2018 V5.0c'!AE13 -> 0.06947397127 | AD11: =$E$6/(1-AC11) -> 34996.21271 | AE11: =IF(OR(OR(AD11=AD5,AD11=(AD5+1)),AD11=(AD5-1)),"yes","not yet") -> not yet | AF11: =100*(1-AC11) -> 93.05260287 | AJ11: 1 | AK11: 2 | AL11: 3 | AM11: 4 | AN11: 5 | AO11: 6 | AP11: 7 | AQ11: 8 | AR11: 9
C12: Company actual | V12: ='MF RCY LG 2018 V5.0c'!S14 -> 179.1384557 | W12: ='MF RCY LG 2018 V5.0c'!T14 -> 8.543846657 | X12: =(+W12*V12)/100 -> 15.30531496 | Y12: ='MF RCY LG 2018 V5.0c'!X14 -> 0.2068531359 | Z12: =+$E$18 -> 0.25 | AA12: =Y12+Z12 -> 0.4568531359 | AB12: =100*($E$15*$E$17+($E$16*(AA12/100))/(1-$E$19)) -> 2.25252523 | AC12: ='MF RCY LG 2018 V5.0c'!AE14 -> 0.068962958 | AD12: =$E$6/(1-AC12) -> 34977.00452 | AE12: =IF(OR(OR(AD12=AD6,AD12=(AD6+1)),AD12=(AD6-1)),"yes","not yet") -> not yet | AF12: =100*(1-AC12) -> 93.1037042 | AJ12: =AE3 -> not yet | AK12: =AE9 -> not yet | AL12: =AE15 -> not yet | AM12: =AE21 -> not yet | AN12: =AE27 -> not yet | AO12: =AE33 -> not yet | AP12: =AE39 -> yes | AQ12: =AE45 -> 0 | AR12: =AE51 -> 0
C13: capital structure: | E13: !!! | F13: OPERATING RATIO -> | H13: =HLOOKUP($AJ$23,$AJ$17:$AR$21,$E$10+1) -> 93.08785823 | I13: !!!<-- | AJ13: =AE4 -> not yet | AK13: =AE10 -> not yet | AL13: =AE16 -> not yet | AM13: =AE22 -> not yet | AN13: =AE28 -> not yet | AO13: =AE34 -> not yet | AP13: =AE40 -> yes | AQ13: =AE46 -> 0 | AR13: =AE52 -> 0
C14: - | D14: - | H14: = | V14: 3rd Turnover | W14: M | X14: ROR | Y14: ROE | AJ14: =AE5 -> not yet | AK14: =AE11 -> not yet | AL14: =AE17 -> not yet | AM14: =AE23 -> not yet | AN14: =AE29 -> not yet | AO14: =AE35 -> not yet | AP14: =AE41 -> yes | AQ14: =AE47 -> 0 | AR14: =AE53 -> 0
B15: * | C15: Actual Debt Ratio | E15: =+'Combined LG'!E15 -> 0.5077173987 | F15: Conversion factor data: | V15: ='MF RCY LG 2018 V5.0c'!S16 -> 181.0623066 | W15: ='MF RCY LG 2018 V5.0c'!T16 -> 8.743479581 | X15: =(+W15*V15)/100 -> 15.8311458 | Y15: ='MF RCY LG 2018 V5.0c'!X16 -> 0.2169417509 | Z15: =+$E$18 -> 0.25 | AA15: =Y15+Z15 -> 0.4669417509 | AB15: =100*($E$15*$E$17+($E$16*(AA15/100))/(1-$E$19)) -> 2.257501633 | AC15: ='MF RCY LG 2018 V5.0c'!AE16 -> 0.07097864975 | AD15: =$E$6/(1-AC15) -> 35052.89391 | AE15: =IF(OR(OR(AD15=AD9,AD15=(AD9+1)),AD15=(AD1-1)),"yes","not yet") -> not yet | AF15: =100*(1-AC15) -> 92.90213502 | AJ15: =AE6 -> not yet | AK15: =AE12 -> not yet | AL15: =AE18 -> not yet | AM15: =AE24 -> not yet | AN15: =AE30 -> not yet | AO15: =AE36 -> not yet | AP15: =AE42 -> yes | AQ15: =AE48 -> 0 | AR15: =AE54 -> 0
B16: * | C16: Actual Equity Ratio | E16: =+'Combined LG'!E16 -> 0.4922826013 | F16: B & O Tax | H16: =+'Combined LG'!H16 -> 0.015 | I16: * | V16: ='MF RCY LG 2018 V5.0c'!S17 -> 180.8233264 | W16: ='MF RCY LG 2018 V5.0c'!T17 -> 8.626865151 | X16: =(+W16*V16)/100 -> 15.59938453 | Y16: ='MF RCY LG 2018 V5.0c'!X17 -> 0.2124951683 | Z16: =+$E$18 -> 0.25 | AA16: =Y16+Z16 -> 0.4624951683 | AB16: =100*($E$15*$E$17+($E$16*(AA16/100))/(1-$E$19)) -> 2.255308271 | AC16: ='MF RCY LG 2018 V5.0c'!AE17 -> 0.06985947055 | AD16: =$E$6/(1-AC16) -> 35010.71698 | AE16: =IF(OR(OR(AD16=AD10,AD16=(AD10+1)),AD16=(AD10-1)),"yes","not yet") -> not yet | AF16: =100*(1-AC16) -> 93.01405295
B17: * | C17: Actual Cost of Debt | E17: =+'Combined LG'!E17 -> 0.03992720522 | F17: WUTC Fee | H17: =+'Combined LG'!H17 -> 0.004275 | I17: * | V17: ='MF RCY LG 2018 V5.0c'!S18 -> 180.6626886 | W17: ='MF RCY LG 2018 V5.0c'!T18 -> 8.548183548 | X17: =(+W17*V17)/100 -> 15.44337823 | Y17: ='MF RCY LG 2018 V5.0c'!X18 -> 0.2095020241 | Z17: =+$E$18 -> 0.25 | AA17: =Y17+Z17 -> 0.4595020241 | AB17: =100*($E$15*$E$17+($E$16*(AA17/100))/(1-$E$19)) -> 2.253831845 | AC17: ='MF RCY LG 2018 V5.0c'!AE18 -> 0.06910435892 | AD17: =$E$6/(1-AC17) -> 34982.31745 | AE17: =IF(OR(OR(AD17=AD11,AD17=(AD11+1)),AD17=(AD11-1)),"yes","not yet") -> not yet | AF17: =100*(1-AC17) -> 93.08956411 | AJ17: =HLOOKUP(1,$AJ$11:$AR$15,$E$10+1) -> not yet | AK17: =HLOOKUP(2,$AJ$11:$AR$15,$E$10+1) -> not yet | AL17: =HLOOKUP(3,$AJ$11:$AR$15,$E$10+1) -> not yet | AM17: =HLOOKUP(4,$AJ$11:$AR$15,$E$10+1) -> not yet | AN17: =HLOOKUP(5,$AJ$11:$AR$15,$E$10+1) -> not yet | AO17: =HLOOKUP(6,$AJ$11:$AR$15,$E$10+1) -> not yet | AP17: =HLOOKUP(7,$AJ$11:$AR$15,$E$10+1) -> yes | AQ17: =HLOOKUP(8,$AJ$11:$AR$15,$E$10+1) -> 0 | AR17: =HLOOKUP(9,$AJ$11:$AR$15,$E$10+1) -> 0
B18: * | C18: Basis Points | E18: 0.25 | F18: City Tax | H18: =+'Combined LG'!H18 -> 0 | I18: * | V18: ='MF RCY LG 2018 V5.0c'!S19 -> 180.5600782 | W18: ='MF RCY LG 2018 V5.0c'!T19 -> 8.497799284 | X18: =(+W18*V18)/100 -> 15.34363303 | Y18: ='MF RCY LG 2018 V5.0c'!X19 -> 0.2075883081 | Z18: =+$E$18 -> 0.25 | AA18: =Y18+Z18 -> 0.4575883081 | AB18: =100*($E$15*$E$17+($E$16*(AA18/100))/(1-$E$19)) -> 2.252887868 | AC18: ='MF RCY LG 2018 V5.0c'!AE19 -> 0.06862082527 | AD18: =$E$6/(1-AC18) -> 34964.15608 | AE18: =IF(OR(OR(AD18=AD12,AD18=(AD12+1)),AD18=(AD12-1)),"yes","not yet") -> not yet | AF18: =100*(1-AC18) -> 93.13791747 | AI18: 1 | AJ18: =AF3 -> 93.81751016 | AK18: =AF9 -> 92.85412151 | AL18: =AF15 -> 92.90213502 | AM18: =AF21 -> 92.89973808 | AN18: =AF27 -> 92.89985773 | AO18: =AF33 -> 92.89985176 | AP18: =AF39 -> 92.89985205 | AQ18: =AF45 -> 0 | AR18: =AF51 -> 0
B19: * | C19: Tax Rate | E19: =+'Combined LG'!E19 -> 0.002 | F19: Bad Debts | H19: =+'Combined LG'!H19 -> 0.006 | I19: * | AI19: 2 | AJ19: =AF4 -> 93.81751016 | AK19: =AF10 -> 92.97271575 | AL19: =AF16 -> 93.01405295 | AM19: =AF22 -> 93.01202724 | AN19: =AF28 -> 93.0121265 | AO19: =AF34 -> 93.01212164 | AP19: =AF40 -> 93.01212187 | AQ19: =AF46 -> 0 | AR19: =AF52 -> 0
H20: - | V20: 4th Turnover | W20: M | X20: ROR | Y20: ROE | AI20: 3 | AJ20: =AF5 -> 93.81751016 | AK20: =AF11 -> 93.05260287 | AL20: =AF17 -> 93.08956411 | AM20: =AF23 -> 93.08777568 | AN20: =AF29 -> 93.08786221 | AO20: =AF35 -> 93.08785803 | AP20: =AF41 -> 93.08785823 | AQ20: =AF47 -> 0 | AR20: =AF53 -> 0
F21: Revenue Sensitive | H21: =SUM(H16:H19) -> 0.025275 | V21: ='MF RCY LG 2018 V5.0c'!S21 -> 180.9654807 | W21: ='MF RCY LG 2018 V5.0c'!T21 -> 8.746677665 | X21: =(+W21*V21)/100 -> 15.82846728 | Y21: ='MF RCY LG 2018 V5.0c'!X21 -> 0.2168903606 | Z21: =+$E$18 -> 0.25 | AA21: =Y21+Z21 -> 0.4668903606 | AB21: =100*($E$15*$E$17+($E$16*(AA21/100))/(1-$E$19)) -> 2.257476284 | AC21: ='MF RCY LG 2018 V5.0c'!AE21 -> 0.07100261922 | AD21: =$E$6/(1-AC21) -> 35053.79833 | AE21: =IF(OR(OR(AD21=AD15,AD21=(AD15+1)),AD21=(AD7-1)),"yes","not yet") -> not yet | AF21: =100*(1-AC21) -> 92.89973808 | AI21: 4 | AJ21: =AF6 -> 93.81751016 | AK21: =AF12 -> 93.1037042 | AL21: =AF18 -> 93.13791747 | AM21: =AF24 -> 93.13627553 | AN21: =AF30 -> 93.13635433 | AO21: =AF36 -> 93.13635054 | AP21: =AF42 -> 93.13635073 | AQ21: =AF48 -> 0 | AR21: =AF54 -> 0
V22: ='MF RCY LG 2018 V5.0c'!S22 -> 180.7401707 | W22: ='MF RCY LG 2018 V5.0c'!T22 -> 8.629578496 | X22: =(+W22*V22)/100 -> 15.59711491 | Y22: ='MF RCY LG 2018 V5.0c'!X22 -> 0.2124516232 | Z22: =+$E$18 -> 0.25 | AA22: =Y22+Z22 -> 0.4624516232 | AB22: =100*($E$15*$E$17+($E$16*(AA22/100))/(1-$E$19)) -> 2.255286791 | AC22: ='MF RCY LG 2018 V5.0c'!AE22 -> 0.06987972762 | AD22: =$E$6/(1-AC22) -> 35011.47948 | AE22: =IF(OR(OR(AD22=AD16,AD22=(AD16+1)),AD22=(AD16-1)),"yes","not yet") -> not yet | AF22: =100*(1-AC22) -> 93.01202724
F23: Conversion Factor | H23: =((+H13/100)-H21) -> 0.9056035823 | V23: ='MF RCY LG 2018 V5.0c'!S23 -> 180.58846 | W23: ='MF RCY LG 2018 V5.0c'!T23 -> 8.550585553 | X23: =(+W23*V23)/100 -> 15.44137077 | Y23: ='MF RCY LG 2018 V5.0c'!X23 -> 0.2094635089 | Z23: =+$E$18 -> 0.25 | AA23: =Y23+Z23 -> 0.4594635089 | AB23: =100*($E$15*$E$17+($E$16*(AA23/100))/(1-$E$19)) -> 2.253812847 | AC23: ='MF RCY LG 2018 V5.0c'!AE23 -> 0.06912224317 | AD23: =$E$6/(1-AC23) -> 34982.98954 | AE23: =IF(OR(OR(AD23=AD17,AD23=(AD17+1)),AD23=(AD17-1)),"yes","not yet") -> not yet | AF23: =100*(1-AC23) -> 93.08777568 | AJ23: yes
V24: ='MF RCY LG 2018 V5.0c'!S24 -> 180.4914416 | W24: ='MF RCY LG 2018 V5.0c'!T24 -> 8.500008439 | X24: =(+W24*V24)/100 -> 15.34178776 | Y24: ='MF RCY LG 2018 V5.0c'!X24 -> 0.2075529048 | Z24: =+$E$18 -> 0.25 | AA24: =Y24+Z24 -> 0.4575529048 | AB24: =100*($E$15*$E$17+($E$16*(AA24/100))/(1-$E$19)) -> 2.252870405 | AC24: ='MF RCY LG 2018 V5.0c'!AE24 -> 0.06863724468 | AD24: =$E$6/(1-AC24) -> 34964.77247 | AE24: =IF(OR(OR(AD24=AD18,AD24=(AD18+1)),AD24=(AD18-1)),"yes","not yet") -> not yet | AF24: =100*(1-AC24) -> 93.13627553 | AJ24: =HLOOKUP($AJ$23,$AJ$17:$AR$21,$E$10+1) -> 93.08785823
C25: Company Reference
C26: Annl Price Increase (PI) $ | E26: =+E4 -> -8578.505418 | V26: 5th Turnover | W26: M | X26: ROR | Y26: ROE | AJ26: =HLOOKUP(1,$AJ$11:$AR$15,$E$10+1) -> not yet | AK26: =HLOOKUP(2,$AJ$11:$AR$15,$E$10+1) -> not yet | AL26: =HLOOKUP(3,$AJ$11:$AR$15,$E$10+1) -> not yet | AM26: =HLOOKUP(4,$AJ$11:$AR$15,$E$10+1) -> not yet | AN26: =HLOOKUP(5,$AJ$11:$AR$15,$E$10+1) -> not yet | AO26: =HLOOKUP(6,$AJ$11:$AR$15,$E$10+1) -> not yet | AP26: =HLOOKUP(7,$AJ$11:$AR$15,$E$10+1) -> yes | AQ26: =HLOOKUP(8,$AJ$11:$AR$15,$E$10+1) -> 0 | AR26: =HLOOKUP(9,$AJ$11:$AR$15,$E$10+1) -> 0
C27: Monthly PI $ | E27: =+E26/12 -> -714.8754515 | V27: ='MF RCY LG 2018 V5.0c'!S26 -> 180.9703121 | W27: ='MF RCY LG 2018 V5.0c'!T26 -> 8.746518019 | X27: =(+W27*V27)/100 -> 15.82860096 | Y27: ='MF RCY LG 2018 V5.0c'!X26 -> 0.2168929253 | Z27: =+$E$18 -> 0.25 | AA27: =Y27+Z27 -> 0.4668929253 | AB27: =100*($E$15*$E$17+($E$16*(AA27/100))/(1-$E$19)) -> 2.257477549 | AC27: ='MF RCY LG 2018 V5.0c'!AE26 -> 0.07100142271 | AD27: =$E$6/(1-AC27) -> 35053.75318 | AE27: =IF(OR(OR(AD27=AD21,AD27=(AD21+1)),AD27=(AD13-1)),"yes","not yet") -> not yet | AF27: =100*(1-AC27) -> 92.89985773 | AI27: 1 | AJ27: =V3 -> 225.1741478 | AK27: =V9 -> 179.1384557 | AL27: =V15 -> 181.0623066 | AM27: =V21 -> 180.9654807 | AN27: =V27 -> 180.9703121 | AO27: =V33 -> 180.9700709 | AP27: =V39 -> 180.9700829 | AQ27: =V45 -> 0 | AR27: =V51 -> 0
C28: Percentage PI | E28: =+E4/E5 -> -0.1979873994 | V28: ='MF RCY LG 2018 V5.0c'!S27 -> 180.744244 | W28: ='MF RCY LG 2018 V5.0c'!T27 -> 8.629445537 | X28: =(+W28*V28)/100 -> 15.5972261 | Y28: ='MF RCY LG 2018 V5.0c'!X27 -> 0.2124537566 | Z28: =+$E$18 -> 0.25 | AA28: =Y28+Z28 -> 0.4624537566 | AB28: =100*($E$15*$E$17+($E$16*(AA28/100))/(1-$E$19)) -> 2.255287844 | AC28: ='MF RCY LG 2018 V5.0c'!AE27 -> 0.069878735 | AD28: =$E$6/(1-AC28) -> 35011.44212 | AE28: =IF(OR(OR(AD28=AD22,AD28=(AD22+1)),AD28=(AD22-1)),"yes","not yet") -> not yet | AF28: =100*(1-AC28) -> 93.0121265 | AI28: 2 | AJ28: =V4 -> 225.1741478 | AK28: =V10 -> 179.1384557 | AL28: =V16 -> 180.8233264 | AM28: =V22 -> 180.7401707 | AN28: =V28 -> 180.744244 | AO28: =V34 -> 180.7440445 | AP28: =V40 -> 180.7440542 | AQ28: =V46 -> 0 | AR28: =V52 -> 0
V29: ='MF RCY LG 2018 V5.0c'!S28 -> 180.5920502 | W29: ='MF RCY LG 2018 V5.0c'!T28 -> 8.550469335 | X29: =(+W29*V29)/100 -> 15.44146788 | Y29: ='MF RCY LG 2018 V5.0c'!X28 -> 0.209465372 | Z29: =+$E$18 -> 0.25 | AA29: =Y29+Z29 -> 0.459465372 | AB29: =100*($E$15*$E$17+($E$16*(AA29/100))/(1-$E$19)) -> 2.253813766 | AC29: ='MF RCY LG 2018 V5.0c'!AE28 -> 0.06912137788 | AD29: =$E$6/(1-AC29) -> 34982.95702 | AE29: =IF(OR(OR(AD29=AD23,AD29=(AD23+1)),AD29=(AD23-1)),"yes","not yet") -> not yet | AF29: =100*(1-AC29) -> 93.08786221 | AI29: 3 | AJ29: =V5 -> 225.1741478 | AK29: =V11 -> 179.1384557 | AL29: =V17 -> 180.6626886 | AM29: =V23 -> 180.58846 | AN29: =V29 -> 180.5920502 | AO29: =V35 -> 180.5918766 | AP29: =V41 -> 180.5918849 | AQ29: =V47 -> 0 | AR29: =V53 -> 0
C30: Annual MF RCY Yards | E30: =SUMIFS('Com Lifts'!$A:$A,'Com Lifts'!$F:$F,"U") -> 8640.55806 | V30: ='MF RCY LG 2018 V5.0c'!S29 -> 180.4947344 | W30: ='MF RCY LG 2018 V5.0c'!T29 -> 8.499902423 | X30: =(+W30*V30)/100 -> 15.3418763 | Y30: ='MF RCY LG 2018 V5.0c'!X29 -> 0.2075546034 | Z30: =+$E$18 -> 0.25 | AA30: =Y30+Z30 -> 0.4575546034 | AB30: =100*($E$15*$E$17+($E$16*(AA30/100))/(1-$E$19)) -> 2.252871243 | AC30: ='MF RCY LG 2018 V5.0c'!AE29 -> 0.06863645674 | AD30: =$E$6/(1-AC30) -> 34964.74289 | AE30: =IF(OR(OR(AD30=AD24,AD30=(AD24+1)),AD30=(AD24-1)),"yes","not yet") -> not yet | AF30: =100*(1-AC30) -> 93.13635433 | AI30: 4 | AJ30: =V6 -> 225.1741478 | AK30: =V12 -> 179.1384557 | AL30: =V18 -> 180.5600782 | AM30: =V24 -> 180.4914416 | AN30: =V30 -> 180.4947344 | AO30: =V36 -> 180.4945763 | AP30: =V42 -> 180.4945839 | AQ30: =V48 -> 0 | AR30: =V54 -> 0
C31: MF RCY Revenue/Yd | E31: =E3/E30 -> 4.021735249 | F31: =E31*3.5 -> 14.07607337
V32: 6th Turnover | W32: M | X32: ROR | Y32: ROE | AJ32: yes
C33: Pre-Rate Case MF $/Yd | E33: 2.842284401 | V33: ='MF RCY LG 2018 V5.0c'!S31 -> 180.9700709 | W33: ='MF RCY LG 2018 V5.0c'!T31 -> 8.746525989 | X33: =(+W33*V33)/100 -> 15.82859428 | Y33: ='MF RCY LG 2018 V5.0c'!X31 -> 0.2168927973 | Z33: =+$E$18 -> 0.25 | AA33: =Y33+Z33 -> 0.4668927973 | AB33: =100*($E$15*$E$17+($E$16*(AA33/100))/(1-$E$19)) -> 2.257477486 | AC33: ='MF RCY LG 2018 V5.0c'!AE31 -> 0.07100148244 | AD33: =ROUND($E$6/(1-AC33),0) -> 35054 | AE33: =IF(OR(OR(AD33=AD27,AD33=(AD27+1)),AD33=(AD19-1)),"yes","not yet") -> not yet | AF33: =100*(1-AC33) -> 92.89985176 | AJ33: =HLOOKUP($AJ$32,$AJ$26:$AR$30,$E$10+1) -> 180.5918849
V34: ='MF RCY LG 2018 V5.0c'!S32 -> 180.7440445 | W34: ='MF RCY LG 2018 V5.0c'!T32 -> 8.629452051 | X34: =(+W34*V34)/100 -> 15.59722065 | Y34: ='MF RCY LG 2018 V5.0c'!X32 -> 0.2124536521 | Z34: =+$E$18 -> 0.25 | AA34: =Y34+Z34 -> 0.4624536521 | AB34: =100*($E$15*$E$17+($E$16*(AA34/100))/(1-$E$19)) -> 2.255287792 | AC34: ='MF RCY LG 2018 V5.0c'!AE32 -> 0.06987878363 | AD34: =ROUND($E$6/(1-AC34),0) -> 35011 | AE34: =IF(OR(OR(AD34=AD28,AD34=(AD28+1)),AD34=(AD28-1)),"yes","not yet") -> not yet | AF34: =100*(1-AC34) -> 93.01212164
V35: ='MF RCY LG 2018 V5.0c'!S33 -> 180.5918766 | W35: ='MF RCY LG 2018 V5.0c'!T33 -> 8.550474957 | X35: =(+W35*V35)/100 -> 15.44146318 | Y35: ='MF RCY LG 2018 V5.0c'!X33 -> 0.2094652819 | Z35: =+$E$18 -> 0.25 | AA35: =Y35+Z35 -> 0.4594652819 | AB35: =100*($E$15*$E$17+($E$16*(AA35/100))/(1-$E$19)) -> 2.253813721 | AC35: ='MF RCY LG 2018 V5.0c'!AE33 -> 0.06912141973 | AD35: =ROUND($E$6/(1-AC35),0) -> 34983 | AE35: =IF(OR(OR(AD35=AD29,AD35=(AD29+1)),AD35=(AD29-1)),"yes","not yet") -> not yet | AF35: =100*(1-AC35) -> 93.08785803 | AJ35: =HLOOKUP(1,$AJ$11:$AR$15,$E$10+1) -> not yet | AK35: =HLOOKUP(2,$AJ$11:$AR$15,$E$10+1) -> not yet | AL35: =HLOOKUP(3,$AJ$11:$AR$15,$E$10+1) -> not yet | AM35: =HLOOKUP(4,$AJ$11:$AR$15,$E$10+1) -> not yet | AN35: =HLOOKUP(5,$AJ$11:$AR$15,$E$10+1) -> not yet | AO35: =HLOOKUP(6,$AJ$11:$AR$15,$E$10+1) -> not yet | AP35: =HLOOKUP(7,$AJ$11:$AR$15,$E$10+1) -> yes | AQ35: =HLOOKUP(8,$AJ$11:$AR$15,$E$10+1) -> 0 | AR35: =HLOOKUP(9,$AJ$11:$AR$15,$E$10+1) -> 0
V36: ='MF RCY LG 2018 V5.0c'!S34 -> 180.4945763 | W36: ='MF RCY LG 2018 V5.0c'!T34 -> 8.499907511 | X36: =(+W36*V36)/100 -> 15.34187205 | Y36: ='MF RCY LG 2018 V5.0c'!X34 -> 0.2075545219 | Z36: =+$E$18 -> 0.25 | AA36: =Y36+Z36 -> 0.4575545219 | AB36: =100*($E$15*$E$17+($E$16*(AA36/100))/(1-$E$19)) -> 2.252871202 | AC36: ='MF RCY LG 2018 V5.0c'!AE34 -> 0.06863649456 | AD36: =ROUND($E$6/(1-AC36),0) -> 34965 | AE36: =IF(OR(OR(AD36=AD30,AD36=(AD30+1)),AD36=(AD30-1)),"yes","not yet") -> not yet | AF36: =100*(1-AC36) -> 93.13635054 | AI36: 1 | AJ36: =AD3 -> 34710.88369 | AK36: =AD9 -> 35071.01925 | AL36: =AD15 -> 35052.89391 | AM36: =AD21 -> 35053.79833 | AN36: =AD27 -> 35053.75318 | AO36: =AD33 -> 35054 | AP36: =AD39 -> 35054 | AQ36: =AD45 -> 0 | AR36: =AD51 -> 0
AI37: 2 | AJ37: =AD4 -> 34710.88369 | AK37: =AD10 -> 35026.28332 | AL37: =AD16 -> 35010.71698 | AM37: =AD22 -> 35011.47948 | AN37: =AD28 -> 35011.44212 | AO37: =AD34 -> 35011 | AP37: =AD40 -> 35011 | AQ37: =AD46 -> 0 | AR37: =AD52 -> 0
V38: 7th turnover | W38: M | X38: ROR | Y38: ROE | AI38: 3 | AJ38: =AD5 -> 34710.88369 | AK38: =AD11 -> 34996.21271 | AL38: =AD17 -> 34982.31745 | AM38: =AD23 -> 34982.98954 | AN38: =AD29 -> 34982.95702 | AO38: =AD35 -> 34983 | AP38: =AD41 -> 34983 | AQ38: =AD47 -> 0 | AR38: =AD53 -> 0
V39: ='MF RCY LG 2018 V5.0c'!S36 -> 180.9700829 | W39: ='MF RCY LG 2018 V5.0c'!T36 -> 8.74652559 | X39: =(+W39*V39)/100 -> 15.82859462 | Y39: ='MF RCY LG 2018 V5.0c'!X36 -> 0.2168928037 | Z39: =+$E$18 -> 0.25 | AA39: =Y39+Z39 -> 0.4668928037 | AB39: =100*($E$15*$E$17+($E$16*(AA39/100))/(1-$E$19)) -> 2.257477489 | AC39: ='MF RCY LG 2018 V5.0c'!AE36 -> 0.07100147946 | AD39: =ROUND($E$6/(1-AC39),0) -> 35054 | AE39: =IF(OR(OR(AD39=AD33,AD39=(AD33+1)),AD39=(AD25-1)),"yes","not yet") -> yes | AF39: =100*(1-AC39) -> 92.89985205 | AI39: 4 | AJ39: =AD6 -> 34710.88369 | AK39: =AD12 -> 34977.00452 | AL39: =AD18 -> 34964.15608 | AM39: =AD24 -> 34964.77247 | AN39: =AD30 -> 34964.74289 | AO39: =AD36 -> 34965 | AP39: =AD42 -> 34965 | AQ39: =AD48 -> 0 | AR39: =AD54 -> 0
V40: ='MF RCY LG 2018 V5.0c'!S37 -> 180.7440542 | W40: ='MF RCY LG 2018 V5.0c'!T37 -> 8.629451732 | X40: =(+W40*V40)/100 -> 15.59722092 | Y40: ='MF RCY LG 2018 V5.0c'!X37 -> 0.2124536572 | Z40: =+$E$18 -> 0.25 | AA40: =Y40+Z40 -> 0.4624536572 | AB40: =100*($E$15*$E$17+($E$16*(AA40/100))/(1-$E$19)) -> 2.255287795 | AC40: ='MF RCY LG 2018 V5.0c'!AE37 -> 0.06987878125 | AD40: =ROUND($E$6/(1-AC40),0) -> 35011 | AE40: =IF(OR(OR(AD40=AD34,AD40=(AD34+1)),AD40=(AD34-1)),"yes","not yet") -> yes | AF40: =100*(1-AC40) -> 93.01212187
V41: ='MF RCY LG 2018 V5.0c'!S38 -> 180.5918849 | W41: ='MF RCY LG 2018 V5.0c'!T38 -> 8.550474686 | X41: =(+W41*V41)/100 -> 15.4414634 | Y41: ='MF RCY LG 2018 V5.0c'!X38 -> 0.2094652863 | Z41: =+$E$18 -> 0.25 | AA41: =Y41+Z41 -> 0.4594652863 | AB41: =100*($E$15*$E$17+($E$16*(AA41/100))/(1-$E$19)) -> 2.253813724 | AC41: ='MF RCY LG 2018 V5.0c'!AE38 -> 0.06912141772 | AD41: =ROUND($E$6/(1-AC41),0) -> 34983 | AE41: =IF(OR(OR(AD41=AD35,AD41=(AD35+1)),AD41=(AD35-1)),"yes","not yet") -> yes | AF41: =100*(1-AC41) -> 93.08785823 | AJ41: yes
V42: ='MF RCY LG 2018 V5.0c'!S39 -> 180.4945839 | W42: ='MF RCY LG 2018 V5.0c'!T39 -> 8.499907267 | X42: =(+W42*V42)/100 -> 15.34187225 | Y42: ='MF RCY LG 2018 V5.0c'!X39 -> 0.2075545258 | Z42: =+$E$18 -> 0.25 | AA42: =Y42+Z42 -> 0.4575545258 | AB42: =100*($E$15*$E$17+($E$16*(AA42/100))/(1-$E$19)) -> 2.252871204 | AC42: ='MF RCY LG 2018 V5.0c'!AE39 -> 0.06863649274 | AD42: =ROUND($E$6/(1-AC42),0) -> 34965 | AE42: =IF(OR(OR(AD42=AD36,AD42=(AD36+1)),AD42=(AD36-1)),"yes","not yet") -> yes | AF42: =100*(1-AC42) -> 93.13635073 | AJ42: =HLOOKUP($AJ$32,$AJ$35:$AR$39,$E$10+1) -> 34983
V44: 8th turnover | W44: M | X44: ROR | Y44: ROE
V50: 9th turnover | W50: M | X50: ROR | Y50: ROE

Sheet Alloc Summary
B8: Allocations
C9: Truck Hours | D9: Actual | E9: =+Proforma!J5 -> Pay Diff Adj | F9: Container Count | G9: Customer Count | H9: =+Proforma!J6 -> Prev Alloc Costs
B10: Regulated | C10: ='Truck Hrs Sum'!E29 -> 0.05945702745 | D10: =SUMIF(Proforma!$H$8:$H$393,$D$9,Proforma!$K$8:$K$393)/SUMIF(Proforma!$H$8:$H$393,$D$9,Proforma!$F$8:$F$393) -> 0.1889995647 | F10: ='Container Counts'!$H$117 -> 0.1433 | G10: ='Customer Counts'!H99 -> 0.1384 | H10: =(SUMIF(Proforma!$H$8:$H$393,$C$9,Proforma!$K$8:$K$393)+SUMIF(Proforma!$H$8:$H$393,$D$9,Proforma!$K$8:$K$393)+SUMIF(Proforma!$H$8:$H$393,$F$9,Proforma!$K$8:$K$393)+SUMIF(Proforma!$H$8:$H$393,$G$9,Proforma!$K$8:$K$393))/(SUMIF(Proforma!$H$8:$H$393,$C$9,Proforma!$F$8:$F$393)+SUMIF(Proforma!$H$8:$H$393,$D$9,Proforma!$F$8:$F$393)+SUMIF(Proforma!$H$8:$H$393,$F$9,Proforma!$F$8:$F$393)+SUMIF(Proforma!$H$8:$H$393,$G$9,Proforma!$F$8:$F$393)) -> 0.1559916835
B11: Unregulated | C11: =1-C10 -> 0.9405429725 | D11: =1-D10 -> 0.8110004353 | F11: =1-F10 -> 0.8567 | G11: =1-G10 -> 0.8616 | H11: =1-H10 -> 0.8440083165
B12: Of Total $ | C12: =SUMIF(Proforma!$H$8:$H$393,C$9,Proforma!$F$8:$F$393)/1000 -> 8152.769812 | D12: =SUMIF(Proforma!$H$8:$H$393,D$9,Proforma!$F$8:$F$393)/1000 -> 24316.23979 | E12: =SUMIF(Proforma!$H$8:$H$393,E$9,Proforma!$F$8:$F$393)/1000 -> 0 | F12: =SUMIF(Proforma!$H$8:$H$393,F$9,Proforma!$F$8:$F$393)/1000 -> 160.94373 | G12: =SUMIF(Proforma!$H$8:$H$393,G$9,Proforma!$F$8:$F$393)/1000 -> 770.8232111 | H12: =SUMIF(Proforma!$H$8:$H$393,H$9,Proforma!$F$8:$F$393)/1000 -> 1625.955314
B13: Of Non-Regulated | C13: =SUMIF(Proforma!$H$8:$H$393,C$9,Proforma!$J$8:$J$393)/1000 -> 7668.030354 | D13: =SUMIF(Proforma!$H$8:$H$393,D$9,Proforma!$J$8:$J$393)/1000 -> 19720.48106 | E13: =SUMIF(Proforma!$H$8:$H$393,E$9,Proforma!$J$8:$J$393)/1000 -> 0 | F13: =SUMIF(Proforma!$H$8:$H$393,F$9,Proforma!$J$8:$J$393)/1000 -> 137.8804935 | G13: =SUMIF(Proforma!$H$8:$H$393,G$9,Proforma!$J$8:$J$393)/1000 -> 664.1412787 | H13: =SUMIF(Proforma!$H$8:$H$393,H$9,Proforma!$J$8:$J$393)/1000 -> 1372.319808
B14: Of Regulated | C14: =SUMIF(Proforma!$H$8:$H$393,C$9,Proforma!$K$8:$K$393)/1000 -> 484.7394585 | D14: =SUMIF(Proforma!$H$8:$H$393,D$9,Proforma!$K$8:$K$393)/1000 -> 4595.758735 | E14: =SUMIF(Proforma!$H$8:$H$393,E$9,Proforma!$K$8:$K$393)/1000 -> 0 | F14: =SUMIF(Proforma!$H$8:$H$393,F$9,Proforma!$K$8:$K$393)/1000 -> 23.06323651 | G14: =SUMIF(Proforma!$H$8:$H$393,G$9,Proforma!$K$8:$K$393)/1000 -> 106.6819324 | H14: =SUMIF(Proforma!$H$8:$H$393,H$9,Proforma!$K$8:$K$393)/1000 -> 253.6355067
C16: =+C9 -> Truck Hours | D16: Actual | E16: Pay Diff Adj | F16: Container Count | G16: Customer Count | H16: Prev Alloc Costs
B17: Garbage | C17: ='Truck Hrs Sum'!H25 -> 0.5188709664 | D17: =SUMIF(Proforma!$M$8:$M$3708,D$16,Proforma!$O$8:$O$393)/SUMIF(Proforma!$M$8:$M$3708,D$16,Proforma!$K$8:$K$393) -> 0.6072317304 | E17: ='Truck Hrs Sum'!E43 -> 0.5490185023 | F17: ='Container Counts'!H120 -> 0.39343044 | G17: ='Customer Counts'!H102 -> 0.3890134165 | H17: =(SUMIF(Proforma!$M$8:$M$393,$C$16,Proforma!$O$8:$O$393)+SUMIF(Proforma!$M$8:$M$393,$D$16,Proforma!$O$8:$O$393)+SUMIF(Proforma!$M$8:$M$393,$E$16,Proforma!$O$8:$O$393)+SUMIF(Proforma!$M$8:$M$393,$F$16,Proforma!$O$8:$O$393)+SUMIF(Proforma!$M$8:$M$393,$G$16,Proforma!$O$8:$O$393))/(SUMIF(Proforma!$M$8:$M$393,$C$16,Proforma!$K$8:$K$393)+SUMIF(Proforma!$M$8:$M$393,$D$16,Proforma!$K$8:$K$393)+SUMIF(Proforma!$M$8:$M$393,$E$16,Proforma!$K$8:$K$393)+SUMIF(Proforma!$M$8:$M$393,$F$16,Proforma!$K$8:$K$393)+SUMIF(Proforma!$M$8:$M$393,$G$16,Proforma!$K$8:$K$393)) -> 0.5946893437
B18: Recycle | C18: ='Truck Hrs Sum'!H26 -> 0.1969376938 | D18: =SUMIF(Proforma!$M$8:$M$3708,D$16,Proforma!$P$8:$P$393)/SUMIF(Proforma!$M$8:$M$3708,D$16,Proforma!$K$8:$K$393) -> 0.2144527202 | E18: ='Truck Hrs Sum'!E44 -> 0.1804453979 | F18: ='Container Counts'!H121 -> 0.3805737218 | G18: ='Customer Counts'!H103 -> 0.3902023844 | H18: =(SUMIF(Proforma!$M$8:$M$393,$C$16,Proforma!$P$8:$P$393)+SUMIF(Proforma!$M$8:$M$393,$D$16,Proforma!$P$8:$P$393)+SUMIF(Proforma!$M$8:$M$393,$E$16,Proforma!$P$8:$P$393)+SUMIF(Proforma!$M$8:$M$393,$F$16,Proforma!$P$8:$P$393)+SUMIF(Proforma!$M$8:$M$393,$G$16,Proforma!$P$8:$P$393))/(SUMIF(Proforma!$M$8:$M$393,$C$16,Proforma!$K$8:$K$393)+SUMIF(Proforma!$M$8:$M$393,$D$16,Proforma!$K$8:$K$393)+SUMIF(Proforma!$M$8:$M$393,$E$16,Proforma!$K$8:$K$393)+SUMIF(Proforma!$M$8:$M$393,$F$16,Proforma!$K$8:$K$393)+SUMIF(Proforma!$M$8:$M$393,$G$16,Proforma!$K$8:$K$393)) -> 0.2165592396
B19: Yardwaste | C19: ='Truck Hrs Sum'!H27 -> 0.2793454109 | D19: =SUMIF(Proforma!$M$8:$M$3708,D$16,Proforma!$Q$8:$Q$393)/SUMIF(Proforma!$M$8:$M$3708,D$16,Proforma!$K$8:$K$393) -> 0.1631517256 | E19: ='Truck Hrs Sum'!E45 -> 0.2659230151 | F19: ='Container Counts'!H122 -> 0.2126932224 | G19: ='Customer Counts'!H104 -> 0.2201344898 | H19: =(SUMIF(Proforma!$M$8:$M$393,$C$16,Proforma!$Q$8:$Q$393)+SUMIF(Proforma!$M$8:$M$393,$D$16,Proforma!$Q$8:$Q$393)+SUMIF(Proforma!$M$8:$M$393,$E$16,Proforma!$Q$8:$Q$393)+SUMIF(Proforma!$M$8:$M$393,$F$16,Proforma!$Q$8:$Q$393)+SUMIF(Proforma!$M$8:$M$393,$G$16,Proforma!$Q$8:$Q$393))/(SUMIF(Proforma!$M$8:$M$393,$C$16,Proforma!$K$8:$K$393)+SUMIF(Proforma!$M$8:$M$393,$D$16,Proforma!$K$8:$K$393)+SUMIF(Proforma!$M$8:$M$393,$E$16,Proforma!$K$8:$K$393)+SUMIF(Proforma!$M$8:$M$393,$F$16,Proforma!$K$8:$K$393)+SUMIF(Proforma!$M$8:$M$393,$G$16,Proforma!$K$8:$K$393)) -> 0.1748613889
B20: Multi-family Recycle | C20: ='Truck Hrs Sum'!H28 -> 0.004845928928 | D20: =SUMIF(Proforma!$M$8:$M$3708,D$16,Proforma!$R$8:$R$393)/SUMIF(Proforma!$M$8:$M$3708,D$16,Proforma!$K$8:$K$393) -> 0.01516382379 | E20: ='Truck Hrs Sum'!E46 -> 0.004613084667 | F20: ='Container Counts'!H123 -> 0.01330261593 | G20: ='Customer Counts'!H105 -> 0.0006497092551 | H20: =(SUMIF(Proforma!$M$8:$M$393,$C$16,Proforma!$R$8:$R$393)+SUMIF(Proforma!$M$8:$M$393,$D$16,Proforma!$R$8:$R$393)+SUMIF(Proforma!$M$8:$M$393,$E$16,Proforma!$R$8:$R$393)+SUMIF(Proforma!$M$8:$M$393,$F$16,Proforma!$R$8:$R$393)+SUMIF(Proforma!$M$8:$M$393,$G$16,Proforma!$R$8:$R$393))/(SUMIF(Proforma!$M$8:$M$393,$C$16,Proforma!$K$8:$K$393)+SUMIF(Proforma!$M$8:$M$393,$D$16,Proforma!$K$8:$K$393)+SUMIF(Proforma!$M$8:$M$393,$E$16,Proforma!$K$8:$K$393)+SUMIF(Proforma!$M$8:$M$393,$F$16,Proforma!$K$8:$K$393)+SUMIF(Proforma!$M$8:$M$393,$G$16,Proforma!$K$8:$K$393)) -> 0.01389002776
B21: =+B14 -> Of Regulated | C21: =SUMIF(Proforma!$M$8:$M$3708,C$16,Proforma!$K$8:$K$393)/1000 -> 295.869521 | D21: =SUMIF(Proforma!$M$8:$M$3708,D$16,Proforma!$K$8:$K$393)/1000 -> 4595.758735 | E21: =SUMIF(Proforma!$M$8:$M$3708,E$16,Proforma!$K$8:$K$393)/1000 -> 188.8699375 | F21: =SUMIF(Proforma!$M$8:$M$3708,F$16,Proforma!$K$8:$K$393)/1000 -> 23.06323651 | G21: =SUMIF(Proforma!$M$8:$M$3708,G$16,Proforma!$K$8:$K$393)/1000 -> 106.6819324 | H21: =SUMIF(Proforma!$M$8:$M$3708,H$16,Proforma!$K$8:$K$393)/1000 -> 253.6355067
B22: Of MSW | C22: =SUMIF(Proforma!$M$8:$M$3708,C$16,Proforma!$O$8:$O$393)/1000 -> 153.5181043 | D22: =SUMIF(Proforma!$M$8:$M$3708,D$16,Proforma!$O$8:$O$393)/1000 -> 2790.690529 | E22: =SUMIF(Proforma!$M$8:$M$3708,E$16,Proforma!$O$8:$O$393)/1000 -> 103.6930902 | F22: =SUMIF(Proforma!$M$8:$M$3708,F$16,Proforma!$O$8:$O$393)/1000 -> 9.073779286 | G22: =SUMIF(Proforma!$M$8:$M$3708,G$16,Proforma!$O$8:$O$393)/1000 -> 41.50070301 | H22: =SUMIF(Proforma!$M$8:$M$3708,H$16,Proforma!$O$8:$O$393)/1000 -> 150.834333
B23: Of RCY | C23: =SUMIF(Proforma!$M$8:$M$3708,C$16,Proforma!$P$8:$P$393)/1000 -> 58.26786115 | D23: =SUMIF(Proforma!$M$8:$M$3708,D$16,Proforma!$P$8:$P$393)/1000 -> 985.5729621 | E23: =SUMIF(Proforma!$M$8:$M$3708,E$16,Proforma!$P$8:$P$393)/1000 -> 34.08071103 | F23: =SUMIF(Proforma!$M$8:$M$3708,F$16,Proforma!$P$8:$P$393)/1000 -> 8.777261754 | G23: =SUMIF(Proforma!$M$8:$M$3708,G$16,Proforma!$P$8:$P$393)/1000 -> 41.6275444 | H23: =SUMIF(Proforma!$M$8:$M$3708,H$16,Proforma!$P$8:$P$393)/1000 -> 54.92711246
B24: Of YW | C24: =SUMIF(Proforma!$M$8:$M$3708,C$16,Proforma!$Q$8:$Q$393)/1000 -> 82.64979291 | D24: =SUMIF(Proforma!$M$8:$M$3708,D$16,Proforma!$Q$8:$Q$393)/1000 -> 749.8059679 | E24: =SUMIF(Proforma!$M$8:$M$3708,E$16,Proforma!$Q$8:$Q$393)/1000 -> 50.22486325 | F24: =SUMIF(Proforma!$M$8:$M$3708,F$16,Proforma!$Q$8:$Q$393)/1000 -> 4.905394091 | G24: =SUMIF(Proforma!$M$8:$M$3708,G$16,Proforma!$Q$8:$Q$393)/1000 -> 23.48437276 | H24: =SUMIF(Proforma!$M$8:$M$3708,H$16,Proforma!$Q$8:$Q$393)/1000 -> 44.35105698
B25: Of MF RCY | C25: =SUMIF(Proforma!$M$8:$M$3708,C$16,Proforma!$R$8:$R$393)/1000 -> 1.433762671 | D25: =SUMIF(Proforma!$M$8:$M$3708,D$16,Proforma!$R$8:$R$393)/1000 -> 69.68927564 | E25: =SUMIF(Proforma!$M$8:$M$3708,E$16,Proforma!$R$8:$R$393)/1000 -> 0.8712730128 | F25: =SUMIF(Proforma!$M$8:$M$3708,F$16,Proforma!$R$8:$R$393)/1000 -> 0.3068013775 | G25: =SUMIF(Proforma!$M$8:$M$3708,G$16,Proforma!$R$8:$R$393)/1000 -> 0.06931223884 | H25: =SUMIF(Proforma!$M$8:$M$3708,H$16,Proforma!$R$8:$R$393)/1000 -> 3.523004229

Sheet Proforma
A1: Allocation Worksheet
A2: General Rate Case | J2: Customer Count | K2: =+'Alloc Summary'!G10 -> 0.1384 | O2: =+'Alloc Summary'!$G17 -> 0.3890134165 | P2: =+'Alloc Summary'!$G18 -> 0.3902023844 | Q2: =+'Alloc Summary'!$G19 -> 0.2201344898 | R2: =+'Alloc Summary'!$G20 -> 0.0006497092551
J3: Truck Hours | K3: =+'Alloc Summary'!C10 -> 0.05945702745 | O3: =+'Alloc Summary'!$C17 -> 0.5188709664 | P3: =+'Alloc Summary'!$C18 -> 0.1969376938 | Q3: =+'Alloc Summary'!$C19 -> 0.2793454109 | R3: =+'Alloc Summary'!$C20 -> 0.004845928928
J4: Container Count | K4: =+'Alloc Summary'!F10 -> 0.1433 | O4: =+'Alloc Summary'!$F17 -> 0.39343044 | P4: =+'Alloc Summary'!$F18 -> 0.3805737218 | Q4: =+'Alloc Summary'!$F19 -> 0.2126932224 | R4: =+'Alloc Summary'!$F20 -> 0.01330261593
J5: Pay Diff Adj | K5: =+'Alloc Summary'!E10 -> 0 | O5: ='Alloc Summary'!E17 -> 0.5490185023 | P5: ='Alloc Summary'!E18 -> 0.1804453979 | Q5: ='Alloc Summary'!E19 -> 0.2659230151 | R5: ='Alloc Summary'!E20 -> 0.004613084667
J6: Prev Alloc Costs | K6: =+'Alloc Summary'!H10 -> 0.1559916835 | O6: =+'Alloc Summary'!$H17 -> 0.5946893437 | P6: =+'Alloc Summary'!$H18 -> 0.2165592396 | Q6: =+'Alloc Summary'!$H19 -> 0.1748613889 | R6: =+'Alloc Summary'!$H20 -> 0.01389002776
C8: Division | D8: Restating | E8: Proforma | F8: Adjusted | H8: Allocation | J8: Unregulated | K8: Regulated | M8: Allocation | O8: Regulated | P8: Regulated | Q8: Regulated | R8: =+Q8 -> Regulated
A9: Account # | B9: Account Description | C9: Total | D9: Adjustment | E9: Adjustment | F9: Proforma | H9: Methodology | J9: Operations | K9: Operations | M9: Methodology | O9: Garbage | P9: Recycle | Q9: Yardwaste | R9: MF Recycle
A10: REVENUE
A11: 3011** | B11: =+'P&L - ITD3 (Acct Desc)'!$A$89 -> Ind O/S | C11: =+VLOOKUP($B11,'P&L - ITD3 (Acct Desc)'!A$1:N$1417,2,FALSE) -> 3379225.51 | D11: =+'PF Restate'!$G11 -> -3086684.89 | E11: =+'PF Adj'!$G11 -> 11430.20929 | F11: =SUM(C11:E11) -> 303970.8293 | H11: Actual | J11: =F11-K11 -> 239316.79 | K11: ='Revenue Lookup'!Q100+E11 -> 64654.03929 | M11: =H11 -> Actual | O11: =K11-SUM(P11:R11) -> 38613.27929 | P11: 0 | Q11: 0 | R11: =SUM('IND (+MF) Price Out'!N8:N9) -> 26040.76
B12: Disposal Pass Through | D12: =+'PF Restate'!$G12 -> 3105470.89 | E12: =+'PF Adj'!$G12 -> 0 | F12: =SUM(C12:E12) -> 3105470.89 | H12: Actual | J12: 3041807.61 | K12: =-'Revenue Lookup'!Q77 -> 63663.28 | M12: Actual | O12: =K12-SUM(P12:R12) -> 63663.28 | P12: 0 | Q12: 0 | R12: 0
B13: Franchise Fee | D13: ='PF Restate'!C13 -> -18786 | E13: =+'PF Adj'!$G13 -> 0 | F13: -18786 | H13: Actual | J13: -18786 | M13: Actual
A14: 3012** | B14: =+'P&L - ITD3 (Acct Desc)'!$A$173 -> Com O/S | C14: =+VLOOKUP($B14,'P&L - ITD3 (Acct Desc)'!A$1:N$1417,2,FALSE) -> 4328366.13 | D14: =+'PF Restate'!$G14 -> 95750 | E14: =+'PF Adj'!$G14 -> 64204.80293 | F14: 4488320.933 | H14: Actual | J14: 4142952.73 | K14: =+'Revenue Lookup'!Q70-SUM('Revenue Lookup'!Q47:Q67)+E14 -> 345368.2029 | M14: Actual | O14: =K14-SUM(P14:R14) -> 328080.4206 | P14: 0 | Q14: 0 | R14: =SUM('Comm (+MF) Price Out'!O8:O9) -> 17287.78234
B15: Franchise Fee | D15: ='PF Restate'!C15 -> -95750 | E15: =+'PF Adj'!$G15 -> 0 | F15: -95750 | H15: Actual | J15: -95750 | M15: Actual
A16: 3013** | B16: =+'P&L - ITD3 (Acct Desc)'!$A$251 -> Resi O/S | C16: =+VLOOKUP($B16,'P&L - ITD3 (Acct Desc)'!A$1:N$1417,2,FALSE) -> 8338912.57 | D16: =+'PF Restate'!$G16 -> 60168 | E16: =+'PF Adj'!$G16 -> 244473.9441 | F16: 8643554.514 | H16: Actual | J16: 6436373.1 | K16: ='Revenue Lookup'!Q35+E16 -> 2207181.414 | M16: Actual | O16: =K16-SUM(P16:R16) -> 1200472.314 | P16: =+'Price Out Summ'!C11 -> 496839.04 | Q16: =+'Price Out Summ'!C13 -> 509870.06 | R16: 0
B17: Franchise Fee | D17: ='PF Restate'!C17 -> -60168 | E17: =+'PF Adj'!$G17 -> 0 | F17: -60168 | H17: Actual | J17: -60168 | M17: Actual
A19: 3111** | B19: =+'P&L - ITD3 (Acct Desc)'!$A$430 -> Ind I/C | C19: =+VLOOKUP($B19,'P&L - ITD3 (Acct Desc)'!A$1:N$1417,2,FALSE) -> -1137483.41 | D19: =+'PF Restate'!$G19+'PF Restate'!C20 -> 1137485 | E19: =+'PF Adj'!$G19 -> 0 | F19: =SUM(C19:E19) -> 1.59 | H19: Actual | J19: =F19-K19 -> 1.59 | K19: 0 | M19: =H19 -> Actual | O19: =K19-SUM(P19:R19) -> 0 | P19: =K19 -> 0 | Q19: 0 | R19: 0
B20: IC SOM | D20: ='PF Restate'!D20 -> 16106 | F20: 16106 | H20: Actual | J20: 16106 | M20: Actual
A21: 3112** | B21: =+'P&L - ITD3 (Acct Desc)'!$A$433 -> Com I/C | C21: =+VLOOKUP($B21,'P&L - ITD3 (Acct Desc)'!A$1:N$1417,2,FALSE) -> -267698.01 | D21: =+'PF Restate'!$G21+'PF Restate'!C22 -> 267699 | E21: =+'PF Adj'!$G21 -> 0 | F21: 0.99 | H21: Actual | J21: 0.99 | K21: 0 | M21: Actual | O21: =K21-SUM(P21:R21) -> 0 | P21: =K21*0.6 -> 0 | Q21: 0 | R21: =K21*0.4 -> 0
B22: IC SOM | D22: ='PF Restate'!D22 -> 11792 | F22: 11792 | H22: Actual | J22: 11792 | M22: Actual
A23: 3113** | B23: =+'P&L - ITD3 (Acct Desc)'!$A$436 -> Resi I/C | C23: =+VLOOKUP($B23,'P&L - ITD3 (Acct Desc)'!A$1:N$1417,2,FALSE) -> -704804.07 | D23: =+'PF Restate'!$G23+'PF Restate'!C24 -> 704804 | E23: =+'PF Adj'!$G23 -> 0 | F23: -0.07000000007 | H23: Actual | J23: -0.07000000007 | K23: 0 | M23: Actual | O23: =K23-SUM(P23:R23) -> 0 | P23: =K23*0.99 -> 0 | Q23: 0 | R23: =K23*0.01 -> 0
B24: IC SOM | D24: ='PF Restate'!D24 -> 169627 | F24: 169627 | H24: Actual | J24: 169627 | M24: Actual
B26: =+'P&L - ITD3 (Acct Desc)'!$A$444 -> Gross Revenue | C26: =+VLOOKUP($B26,'P&L - ITD3 (Acct Desc)'!A$1:N$1417,2,FALSE) -> 13936518.72 | D26: =SUM(D11:D25) -> 2307513 | E26: =SUM(E11:E25) -> 320108.9563 | F26: =SUM(C26:E26) -> 16564140.68 | J26: =F26-K26 -> 13883273.74 | K26: =SUM(K11:K25) -> 2680866.936 | O26: =SUM(O11:O25) -> 1630829.294 | P26: =SUM(P11:P25) -> 496839.04 | Q26: =SUM(Q11:Q25) -> 509870.06 | R26: =SUM(R11:R25) -> 43328.54234
A27: Check | C27: =+C26-SUM(C11:C25) -> 0
B28: =+'P&L - ITD3 (Acct Desc)'!$A$445 -> Disposal O/S | C28: =+VLOOKUP($B28,'P&L - ITD3 (Acct Desc)'!A$1:N$1417,2,FALSE) -> 949183.25 | D28: =+'PF Restate'!$G28 -> 0 | E28: =+'PF Adj'!$G28 -> 453241.1597 | F28: =SUM(C28:E28) -> 1402424.41 | H28: Actual | J28: =F28-K28 -> 380158.5044 | K28: ='Disposal Summary (with IC)'!S118+'Disposal Summary (with IC)'!S110+'Disposal Summary (with IC)'!S98+(E28*'Disposal Summary (with IC)'!S131) -> 1022265.905 | M28: =H28 -> Actual | O28: =K28-SUM(P28:R28) -> 1022265.905 | P28: 0 | Q28: 0 | R28: 0 | U28: =SUM(K28:K29)/K26 -> 0.4458429614 | V28: =SUM(J28:J29)/J26 -> 0.09469320995
B29: =+'P&L - ITD3 (Acct Desc)'!$A$447 -> Diverted O/S | C29: =+VLOOKUP($B29,'P&L - ITD3 (Acct Desc)'!A$1:N$1417,2,FALSE) -> 1021589.35 | D29: =+'PF Restate'!$G29 -> 0 | E29: =+'PF Adj'!$G29 -> 85883.6495 | F29: =SUM(C29:E29) -> 1107473 | H29: Actual | J29: =F29-K29 -> 934493.2507 | K29: ='Disposal Summary (with IC)'!S121+(E29*'Cedar Grove Disp Tons'!R10) -> 172979.7488 | M29: =H29 -> Actual | O29: =K29-SUM(P29:R29) -> 0 | P29: 0 | Q29: =K29-R29 -> 172979.7488 | R29: 0
A30: =+'P&L - ITD3 (Acct #)'!$A$464 -> 4X0 410000 | B30: Disposal I/C | C30: =IFERROR(+VLOOKUP($A30,'P&L - ITD3 (Acct Desc)'!A$1:N$1417,2,FALSE),0) -> 0 | D30: =+'PF Restate'!$G30 -> 0 | E30: =+'PF Adj'!$G30 -> 0 | F30: =SUM(C30:E30) -> 0 | H30: Actual | J30: =F30-K30 -> 0 | K30: 0 | M30: =H30 -> Actual | O30: =K30-SUM(P30:R30) -> 0 | P30: 0 | Q30: 0 | R30: 0
